Workbook

Sheet Main Menu
C3: Main Menu
B7: Click the links below for Quick Navigation
B8: Instructions
B9: COA
B10: Monthly Income & Exp. Reports
B11: Actual v Budget
B12: Bank Summary Page
C14: Income | D14: Payments | E14: Bank Rec
B15: September | C15: click | D15: click | E15: click
B16: October | C16: click | D16: click | E16: click
B17: November | C17: click | D17: click | E17: click
B18: December | C18: click | D18: click | E18: click
B19: January | C19: click | D19: click | E19: click
B20: February | C20: click | D20: click | E20: click
B21: March | C21: click | D21: click | E21: click
B22: April | C22: click | D22: click | E22: click
B23: May | C23: click | D23: click | E23: click
B24: June | C24: click | D24: click | E24: click
B25: July | C25: click | D25: click | E25: click
B26: August | C26: click | D26: click | E26: click
B28: Cashflow
B29: Receipts Report
B30: Receipt Transactions
B31: Payments Report
B32: Payment Transactions
A33: v3
B34: Lists | C34: Hidden in final version
B35: Payments | C35: Hidden in final version
B36: Receipts | C36: Hidden in final version

Sheet Instructions
A1: Main Menu
B2: INSTRUCTIONS:
B4: STEP 1: | C4: Input your School Name: | G4: Enter
B6: STEP 2: | C6: Input School Roll No: | G6: Enter
B8: STEP 3: | C8: Enter Bank Account Names: | G8: Bank 1
G9: Bank 2
G10: Bank 3
G11: Bank 4
B12: STEP 4: | C12: Sheet - COA
C13: Examine the list to determine which 'Nominal Code Descriptions' are relevant to your school
C14: Codes that are not relevant should be changed to "N" in column E
C15: Review your changes to ensure items changed to "N" are accurate
C16: Click on "Update Hidden Columns" which will show/hide these items from necessary sheets
C17: Search for individual categories using the searh box as indicated | M17: Go To: | N17: STEP 4
B19: STEP 5: | C19: Sheet - Actual v Budget
C20: Budget Reports: Year to Date Actual Versus Budget - Import/Input budget figures. | M20: Go To: | N20: STEP 5
C21: The import option will populate the Budget and the Prior Year.
B23: STEP 6: | C23: Sheets - September Payments to August Payments
C24: September Bank Reconcilation - Input opening bank balance figure which is extracted from your bank statement as of the 1st September (The opening bank balance is required for September only, the closing bank balance is required for all months.)
C26: If applicable, enter cheques drafted and recorded in prior year and not cashed per bank account | M26: Go To: | N26: STEP 6
B28: STEP 7: | C28: Sheet - Bank Summary Page
C29: Grant balances brought forward from prior year are entered into the Grant Analysis Section
C30: To update and generate reports select 'Year to date' or a relevant month from the dropdown as indicated | M30: Go To: | N30: STEP 7
B32: Input Info: | C32: Sheets - September Income/Payments to August Income/Payments
C33: Data relevant to each months' transactions are recorded into the monthly sheets which will automatically
C34: populate sheets: COA, Monthly Income & Exp, Budget Reports, Bank Summary and Cashflow
C35: Closing bank balances are extracted from the bank statement as at the end of the month
C36: Record cheques drafted in the month but not presented at the bank in the outstanding cheque section
C37: Ensure that each month is fully reconciled before moving onto the next month
B39: BOM Reports: | C39: Print out the following reports for the Board of Management meeting using the 'PRINT' button on each page. The following reports can be printed:
C41: Yearly /Monthly School Income and Expenditure Reports
C42: Yearly /Monthly Capital and Reserves Reports
C43: Budget Report 1: Year to Date Actual Versus Budget
C44: Budget Report 2: Year to Date Actual Versus Prior Year
C45: Monthly Bank Reconciliation Reports
B47: Reports: | C47: Additional reports may be printed as required:
C48: Grant Analysis
C49: Grant Income Anaysis
C50: Grant Expense Anaysis
C51: Cashflow Report
C52: Specific detailed reports per Bank, Date Range, Description and Category
B54: Note: | C54: Grey cells contain formulae and are protected to ensure these cells are not overtyped
B56: IF YOU NEED ANY FURTHER ASSISTANCE, PLEASE GO TO WWW.FSSU.IE/TEMPLATES
B57: FOR DETAILED INSTRUCTIONS OR CONTACT US ON 01-9104020
B59: REMEMBER TO BACKUP YOUR WORK EVERY TIME YOU USE THIS SPREADSHEET!
B60: IT CAN BE BACKED UP TO AN EXTERNAL DEVICE OR TO A SERVER

Sheet COA
A1: Nominal Code | B1: Description | C1: Type | D1: Category | E1: Include | F1: Total | K1: =B4 -> Description
A2: =IFERROR(DGET($A$4:$F$189,A1,$K$1:$K$2),"") -> 
A3: Main Menu | B3: FSSU - Chart of Accounts Primary School Level
A4: Nominal Code | B4: Description | C4: Type | D4: Category | E4: Include | F4: Total | G4: Opening Balance | H4: Opening Balance Adjustments | I4: Current Yr Adjustments | J4: Final Accounts | K4: Notes | AA4: =COUNTIF(AB5:AAB324,"?*") -> 185
A5: 3010 | B5: Capitation/Non Pay Budget | C5: Income | D5: Department of Education Income | E5: Y | F5: ='Monthly Income & Exp. Reports'!O8 -> 0 | J5: =-SUM(F5)-(G5+H5+I5) -> 0 | L5: H | Y5: =IF(ISNUMBER(SEARCH($K$2,B5)),MAX($Y$4:Y4)+1,0) -> 1 | Z5: Capitation/Non Pay Budget | AA5: =OFFSET($AB$5,,,COUNTIF($AB$5:$AB$269,"?*")) -> Capitation/Non Pay Budget | AB5: =IFERROR(VLOOKUP(ROWS($AB$5:AB5),$Y$5:$Z$189,2,0),"") -> Capitation/Non Pay Budget
A6: 3020 | B6: DEIS Grant | C6: Income | D6: Department of Education Income | E6: Y | F6: ='Monthly Income & Exp. Reports'!O9 -> 0 | J6: =-SUM(F6)-(G6+H6+I6) -> 0 | L6: I | Y6: =IF(ISNUMBER(SEARCH($K$2,B6)),MAX($Y$4:Y5)+1,0) -> 2 | Z6: DEIS Grant | AB6: =IFERROR(VLOOKUP(ROWS($AB$5:AB6),$Y$5:$Z$189,2,0),"") -> DEIS Grant
A7: 3021 | B7: Early Start Programme Mat/Equip/Par Inv Grant | C7: Income | D7: Department of Education Income | E7: N | F7: ='Monthly Income & Exp. Reports'!O10 -> 0 | J7: 0 | L7: J | Y7: =IF(ISNUMBER(SEARCH($K$2,B7)),MAX($Y$4:Y6)+1,0) -> 3 | Z7: Early Start Programme Mat/Equip/Par Inv Grant | AB7: =IFERROR(VLOOKUP(ROWS($AB$5:AB7),$Y$5:$Z$189,2,0),"") -> Early Start Programme Mat/Equip/Par Inv Grant
A8: 3022 | B8: Early Start Programme Capitation | C8: Income | D8: Department of Education Income | E8: N | F8: ='Monthly Income & Exp. Reports'!O11 -> 0 | J8: 0 | L8: K | Y8: =IF(ISNUMBER(SEARCH($K$2,B8)),MAX($Y$4:Y7)+1,0) -> 4 | Z8: Early Start Programme Capitation | AB8: =IFERROR(VLOOKUP(ROWS($AB$5:AB8),$Y$5:$Z$189,2,0),"") -> Early Start Programme Capitation
A9: 3050 | B9: Ancillary/School Support Services Grant | C9: Income | D9: Department of Education Income | E9: Y | F9: ='Monthly Income & Exp. Reports'!O12 -> 0 | J9: 0 | L9: L | Y9: =IF(ISNUMBER(SEARCH($K$2,B9)),MAX($Y$4:Y8)+1,0) -> 5 | Z9: Ancillary/School Support Services Grant | AB9: =IFERROR(VLOOKUP(ROWS($AB$5:AB9),$Y$5:$Z$189,2,0),"") -> Ancillary/School Support Services Grant
A10: 3140 | B10: Special Education Equipment Grant | C10: Income | D10: Department of Education Income | E10: Y | F10: ='Monthly Income & Exp. Reports'!O13 -> 0 | J10: 0 | L10: M | Y10: =IF(ISNUMBER(SEARCH($K$2,B10)),MAX($Y$4:Y9)+1,0) -> 6 | Z10: Special Education Equipment Grant | AB10: =IFERROR(VLOOKUP(ROWS($AB$5:AB10),$Y$5:$Z$189,2,0),"") -> Special Education Equipment Grant
A11: 3151 | B11: Free Schoolbook Grant | C11: Income | D11: Department of Education Income | E11: Y | F11: ='Monthly Income & Exp. Reports'!O14 -> 0 | J11: 0 | L11: N | Y11: =IF(ISNUMBER(SEARCH($K$2,B11)),MAX($Y$4:Y10)+1,0) -> 7 | Z11: Free Schoolbook Grant | AB11: =IFERROR(VLOOKUP(ROWS($AB$5:AB11),$Y$5:$Z$189,2,0),"") -> Free Schoolbook Grant
A12: 3152 | B12: Free Schoolbook Admin Grant | C12: Income | D12: Department of Education Income | E12: Y | F12: ='Monthly Income & Exp. Reports'!O15 -> 0 | J12: 0 | L12: O | Y12: =IF(ISNUMBER(SEARCH($K$2,B12)),MAX($Y$4:Y11)+1,0) -> 8 | Z12: Free Schoolbook Admin Grant | AB12: =IFERROR(VLOOKUP(ROWS($AB$5:AB12),$Y$5:$Z$189,2,0),"") -> Free Schoolbook Admin Grant
A13: 3155 | B13: School Library Books Capital Grant | C13: Income | D13: Department of Education Income | E13: N | F13: ='Monthly Income & Exp. Reports'!O16 -> 0 | J13: 0 | L13: P | Y13: =IF(ISNUMBER(SEARCH($K$2,B13)),MAX($Y$4:Y12)+1,0) -> 9 | Z13: School Library Books Capital Grant | AB13: =IFERROR(VLOOKUP(ROWS($AB$5:AB13),$Y$5:$Z$189,2,0),"") -> School Library Books Capital Grant
A14: 3170 | B14: Special Subject Grant | C14: Income | D14: Department of Education Income | E14: N | F14: ='Monthly Income & Exp. Reports'!O17 -> 0 | J14: 0 | L14: Q | Y14: =IF(ISNUMBER(SEARCH($K$2,B14)),MAX($Y$4:Y13)+1,0) -> 10 | Z14: Special Subject Grant | AB14: =IFERROR(VLOOKUP(ROWS($AB$5:AB14),$Y$5:$Z$189,2,0),"") -> Special Subject Grant
A15: 3171 | B15: Irish & Bilingual School Grant | C15: Income | D15: Department of Education Income | E15: N | F15: ='Monthly Income & Exp. Reports'!O18 -> 0 | J15: 0 | L15: R | Y15: =IF(ISNUMBER(SEARCH($K$2,B15)),MAX($Y$4:Y14)+1,0) -> 11 | Z15: Irish & Bilingual School Grant | AB15: =IFERROR(VLOOKUP(ROWS($AB$5:AB15),$Y$5:$Z$189,2,0),"") -> Irish & Bilingual School Grant
A16: 3190 | B16: JCSP Grant | C16: Income | D16: Department of Education Income | E16: N | F16: ='Monthly Income & Exp. Reports'!O19 -> 0 | J16: 0 | L16: S | Y16: =IF(ISNUMBER(SEARCH($K$2,B16)),MAX($Y$4:Y15)+1,0) -> 12 | Z16: JCSP Grant | AB16: =IFERROR(VLOOKUP(ROWS($AB$5:AB16),$Y$5:$Z$189,2,0),"") -> JCSP Grant
A17: 3200 | B17: Transition Year Grant | C17: Income | D17: Department of Education Income | E17: N | F17: ='Monthly Income & Exp. Reports'!O20 -> 0 | J17: 0 | L17: T | Y17: =IF(ISNUMBER(SEARCH($K$2,B17)),MAX($Y$4:Y16)+1,0) -> 13 | Z17: Transition Year Grant | AB17: =IFERROR(VLOOKUP(ROWS($AB$5:AB17),$Y$5:$Z$189,2,0),"") -> Transition Year Grant
A18: 3210 | B18: Leaving Certificate Applied Grant | C18: Income | D18: Department of Education Income | E18: N | F18: ='Monthly Income & Exp. Reports'!O21 -> 0 | J18: 0 | L18: U | Y18: =IF(ISNUMBER(SEARCH($K$2,B18)),MAX($Y$4:Y17)+1,0) -> 14 | Z18: Leaving Certificate Applied Grant | AB18: =IFERROR(VLOOKUP(ROWS($AB$5:AB18),$Y$5:$Z$189,2,0),"") -> Leaving Certificate Applied Grant
A19: 3225 | B19: Amortisation of DE Equipment Grants | C19: Income | D19: Department of Education Income | E19: N | F19: ='Monthly Income & Exp. Reports'!O22 -> 0 | J19: 0 | L19: V | Y19: =IF(ISNUMBER(SEARCH($K$2,B19)),MAX($Y$4:Y18)+1,0) -> 15 | Z19: Amortisation of DE Equipment Grants | AB19: =IFERROR(VLOOKUP(ROWS($AB$5:AB19),$Y$5:$Z$189,2,0),"") -> Amortisation of DE Equipment Grants
A20: 3226 | B20: Amortisation of DE ICT Grants | C20: Income | D20: Department of Education Income | E20: N | F20: ='Monthly Income & Exp. Reports'!O23 -> 0 | J20: 0 | L20: W | Y20: =IF(ISNUMBER(SEARCH($K$2,B20)),MAX($Y$4:Y19)+1,0) -> 16 | Z20: Amortisation of DE ICT Grants | AB20: =IFERROR(VLOOKUP(ROWS($AB$5:AB20),$Y$5:$Z$189,2,0),"") -> Amortisation of DE ICT Grants
A21: 3227 | B21: Amortisation of Other DE Grants | C21: Income | D21: Department of Education Income | E21: N | F21: ='Monthly Income & Exp. Reports'!O24 -> 0 | J21: =-SUM(F21)-(G21+H21+I21) -> 0 | L21: X | Y21: =IF(ISNUMBER(SEARCH($K$2,B21)),MAX($Y$4:Y20)+1,0) -> 17 | Z21: Amortisation of Other DE Grants | AB21: =IFERROR(VLOOKUP(ROWS($AB$5:AB21),$Y$5:$Z$189,2,0),"") -> Amortisation of Other DE Grants
A22: 3230 | B22: ICT Grant | C22: Income | D22: Department of Education Income | E22: Y | F22: ='Monthly Income & Exp. Reports'!O25 -> 0 | J22: 0 | L22: Y | Y22: =IF(ISNUMBER(SEARCH($K$2,B22)),MAX($Y$4:Y21)+1,0) -> 18 | Z22: ICT Grant | AB22: =IFERROR(VLOOKUP(ROWS($AB$5:AB22),$Y$5:$Z$189,2,0),"") -> ICT Grant
A23: 3260 | B23: School Excellence Fund Income | C23: Income | D23: Department of Education Income | E23: N | F23: ='Monthly Income & Exp. Reports'!O26 -> 0 | J23: 0 | L23: Z | Y23: =IF(ISNUMBER(SEARCH($K$2,B23)),MAX($Y$4:Y22)+1,0) -> 19 | Z23: School Excellence Fund Income | AB23: =IFERROR(VLOOKUP(ROWS($AB$5:AB23),$Y$5:$Z$189,2,0),"") -> School Excellence Fund Income
A24: 3275 | B24: Minor Works Grant-Non Capital | C24: Income | D24: Department of Education Income | E24: Y | F24: ='Monthly Income & Exp. Reports'!O27 -> 0 | J24: 0 | L24: AA | Y24: =IF(ISNUMBER(SEARCH($K$2,B24)),MAX($Y$4:Y23)+1,0) -> 20 | Z24: Minor Works Grant-Non Capital | AB24: =IFERROR(VLOOKUP(ROWS($AB$5:AB24),$Y$5:$Z$189,2,0),"") -> Minor Works Grant-Non Capital
A25: 3276 | B25: Temporary Accommodation Grant Income | C25: Income | D25: Department of Education Income | E25: Y | F25: ='Monthly Income & Exp. Reports'!O28 -> 0 | J25: 0 | L25: AB | Y25: =IF(ISNUMBER(SEARCH($K$2,B25)),MAX($Y$4:Y24)+1,0) -> 21 | Z25: Temporary Accommodation Grant Income | AB25: =IFERROR(VLOOKUP(ROWS($AB$5:AB25),$Y$5:$Z$189,2,0),"") -> Temporary Accommodation Grant Income
A26: 3277 | B26: COVID Minor Works Grant | C26: Income | D26: Department of Education Income | E26: N | F26: ='Monthly Income & Exp. Reports'!O29 -> 0 | J26: 0 | L26: AC | Y26: =IF(ISNUMBER(SEARCH($K$2,B26)),MAX($Y$4:Y25)+1,0) -> 22 | Z26: COVID Minor Works Grant | AB26: =IFERROR(VLOOKUP(ROWS($AB$5:AB26),$Y$5:$Z$189,2,0),"") -> COVID Minor Works Grant
A27: 3288 | B27: COVID Capitation for Cleaning and PPE Grant | C27: Income | D27: Department of Education Income | E27: N | F27: ='Monthly Income & Exp. Reports'!O30 -> 0 | J27: 0 | L27: AD | Y27: =IF(ISNUMBER(SEARCH($K$2,B27)),MAX($Y$4:Y26)+1,0) -> 23 | Z27: COVID Capitation for Cleaning and PPE Grant | AB27: =IFERROR(VLOOKUP(ROWS($AB$5:AB27),$Y$5:$Z$189,2,0),"") -> COVID Capitation for Cleaning and PPE Grant
A28: 3289 | B28: Once-Off Cost of Living Grant | C28: Income | D28: Department of Education Income | E28: Y | F28: ='Monthly Income & Exp. Reports'!O31 -> 0 | J28: 0 | L28: AE | Y28: =IF(ISNUMBER(SEARCH($K$2,B28)),MAX($Y$4:Y27)+1,0) -> 24 | Z28: Once-Off Cost of Living Grant | AB28: =IFERROR(VLOOKUP(ROWS($AB$5:AB28),$Y$5:$Z$189,2,0),"") -> Once-Off Cost of Living Grant
A29: 3290 | B29: Other Non Capital DE Grant Income | C29: Income | D29: Department of Education Income | E29: Y | F29: ='Monthly Income & Exp. Reports'!O32 -> 0 | J29: 0 | L29: AF | Y29: =IF(ISNUMBER(SEARCH($K$2,B29)),MAX($Y$4:Y28)+1,0) -> 25 | Z29: Other Non Capital DE Grant Income | AB29: =IFERROR(VLOOKUP(ROWS($AB$5:AB29),$Y$5:$Z$189,2,0),"") -> Other Non Capital DE Grant Income
A30: 3292 | B30: Standardised Testing Grant | C30: Income | D30: Department of Education Income | E30: Y | F30: ='Monthly Income & Exp. Reports'!O33 -> 0 | J30: 0 | L30: AG | Y30: =IF(ISNUMBER(SEARCH($K$2,B30)),MAX($Y$4:Y29)+1,0) -> 26 | Z30: Standardised Testing Grant | AB30: =IFERROR(VLOOKUP(ROWS($AB$5:AB30),$Y$5:$Z$189,2,0),"") -> Standardised Testing Grant
A31: 3293 | B31: Summer Provision Grant | C31: Income | D31: Department of Education Income | E31: Y | F31: ='Monthly Income & Exp. Reports'!O34 -> 0 | J31: 0 | L31: AH | Y31: =IF(ISNUMBER(SEARCH($K$2,B31)),MAX($Y$4:Y30)+1,0) -> 27 | Z31: Summer Provision Grant | AB31: =IFERROR(VLOOKUP(ROWS($AB$5:AB31),$Y$5:$Z$189,2,0),"") -> Summer Provision Grant
A32: 3294 | B32: Bus Escort Grant | C32: Income | D32: Department of Education Income | E32: Y | F32: ='Monthly Income & Exp. Reports'!O35 -> 0 | J32: 0 | L32: AI | Y32: =IF(ISNUMBER(SEARCH($K$2,B32)),MAX($Y$4:Y31)+1,0) -> 28 | Z32: Bus Escort Grant | AB32: =IFERROR(VLOOKUP(ROWS($AB$5:AB32),$Y$5:$Z$189,2,0),"") -> Bus Escort Grant
A33: 3295 | B33: Department of Children and Youth Affairs Income | C33: Income | D33: Other State Income | E33: N | F33: ='Monthly Income & Exp. Reports'!O36 -> 0 | J33: 0 | L33: AJ | Y33: =IF(ISNUMBER(SEARCH($K$2,B33)),MAX($Y$4:Y32)+1,0) -> 29 | Z33: Department of Children and Youth Affairs Income | AB33: =IFERROR(VLOOKUP(ROWS($AB$5:AB33),$Y$5:$Z$189,2,0),"") -> Department of Children and Youth Affairs Income
A34: 3296 | B34: DSP School Meals Grant | C34: Income | D34: Other State Income | E34: Y | F34: ='Monthly Income & Exp. Reports'!O37 -> 0 | J34: 0 | L34: AK | Y34: =IF(ISNUMBER(SEARCH($K$2,B34)),MAX($Y$4:Y33)+1,0) -> 30 | Z34: DSP School Meals Grant | AB34: =IFERROR(VLOOKUP(ROWS($AB$5:AB34),$Y$5:$Z$189,2,0),"") -> DSP School Meals Grant
A35: 3297 | B35: Erasmus Income | C35: Income | D35: Other State Income | E35: N | F35: ='Monthly Income & Exp. Reports'!O38 -> 0 | J35: 0 | L35: AL | Y35: =IF(ISNUMBER(SEARCH($K$2,B35)),MAX($Y$4:Y34)+1,0) -> 31 | Z35: Erasmus Income | AB35: =IFERROR(VLOOKUP(ROWS($AB$5:AB35),$Y$5:$Z$189,2,0),"") -> Erasmus Income
A36: 3298 | B36: HSE Funding | C36: Income | D36: Other State Income | E36: N | F36: ='Monthly Income & Exp. Reports'!O39 -> 0 | J36: 0 | L36: AM | Y36: =IF(ISNUMBER(SEARCH($K$2,B36)),MAX($Y$4:Y35)+1,0) -> 32 | Z36: HSE Funding | AB36: =IFERROR(VLOOKUP(ROWS($AB$5:AB36),$Y$5:$Z$189,2,0),"") -> HSE Funding
A37: 3299 | B37: Other State Funding | C37: Income | D37: Other State Income | E37: Y | F37: ='Monthly Income & Exp. Reports'!O40 -> 0 | J37: 0 | L37: AN | Y37: =IF(ISNUMBER(SEARCH($K$2,B37)),MAX($Y$4:Y36)+1,0) -> 33 | Z37: Other State Funding | AB37: =IFERROR(VLOOKUP(ROWS($AB$5:AB37),$Y$5:$Z$189,2,0),"") -> Other State Funding
A38: 3300 | B38: Education Fees (Fee paying schools) | C38: Income | D38: School Generated Income | E38: N | F38: ='Monthly Income & Exp. Reports'!O41 -> 0 | J38: 0 | L38: AO | Y38: =IF(ISNUMBER(SEARCH($K$2,B38)),MAX($Y$4:Y37)+1,0) -> 34 | Z38: Education Fees (Fee paying schools) | AB38: =IFERROR(VLOOKUP(ROWS($AB$5:AB38),$Y$5:$Z$189,2,0),"") -> Education Fees (Fee paying schools)
A39: 3310 | B39: Transition Year Income | C39: Income | D39: School Generated Income | E39: N | F39: ='Monthly Income & Exp. Reports'!O42 -> 0 | J39: 0 | L39: AP | Y39: =IF(ISNUMBER(SEARCH($K$2,B39)),MAX($Y$4:Y38)+1,0) -> 35 | Z39: Transition Year Income | AB39: =IFERROR(VLOOKUP(ROWS($AB$5:AB39),$Y$5:$Z$189,2,0),"") -> Transition Year Income
A40: 3335 | B40: Classroom Books/Resources Income | C40: Income | D40: School Generated Income | E40: Y | F40: ='Monthly Income & Exp. Reports'!O43 -> 0 | J40: 0 | L40: AQ | Y40: =IF(ISNUMBER(SEARCH($K$2,B40)),MAX($Y$4:Y39)+1,0) -> 36 | Z40: Classroom Books/Resources Income | AB40: =IFERROR(VLOOKUP(ROWS($AB$5:AB40),$Y$5:$Z$189,2,0),"") -> Classroom Books/Resources Income
A41: 3350 | B41: Hire of Facilities Rental Income | C41: Income | D41: School Generated Income | E41: Y | F41: ='Monthly Income & Exp. Reports'!O44 -> 0 | J41: 0 | L41: AR | Y41: =IF(ISNUMBER(SEARCH($K$2,B41)),MAX($Y$4:Y40)+1,0) -> 37 | Z41: Hire of Facilities Rental Income | AB41: =IFERROR(VLOOKUP(ROWS($AB$5:AB41),$Y$5:$Z$189,2,0),"") -> Hire of Facilities Rental Income
A42: 3370 | B42: Locker Income | C42: Income | D42: School Generated Income | E42: N | F42: ='Monthly Income & Exp. Reports'!O45 -> 0 | J42: 0 | L42: AS | Y42: =IF(ISNUMBER(SEARCH($K$2,B42)),MAX($Y$4:Y41)+1,0) -> 38 | Z42: Locker Income | AB42: =IFERROR(VLOOKUP(ROWS($AB$5:AB42),$Y$5:$Z$189,2,0),"") -> Locker Income
A43: 3375 | B43: Journals and Year Book Income | C43: Income | D43: School Generated Income | E43: Y | F43: ='Monthly Income & Exp. Reports'!O46 -> 0 | J43: 0 | L43: AT | Y43: =IF(ISNUMBER(SEARCH($K$2,B43)),MAX($Y$4:Y42)+1,0) -> 39 | Z43: Journals and Year Book Income | AB43: =IFERROR(VLOOKUP(ROWS($AB$5:AB43),$Y$5:$Z$189,2,0),"") -> Journals and Year Book Income
A44: 3380 | B44: Student Photocopying Income | C44: Income | D44: School Generated Income | E44: Y | F44: ='Monthly Income & Exp. Reports'!O47 -> 0 | J44: 0 | L44: AU | Y44: =IF(ISNUMBER(SEARCH($K$2,B44)),MAX($Y$4:Y43)+1,0) -> 40 | Z44: Student Photocopying Income | AB44: =IFERROR(VLOOKUP(ROWS($AB$5:AB44),$Y$5:$Z$189,2,0),"") -> Student Photocopying Income
A45: 3390 | B45: School Administration Charges | C45: Income | D45: School Generated Income | E45: Y | F45: ='Monthly Income & Exp. Reports'!O48 -> 0 | J45: =-SUM(F45)-(G45+H45+I45) -> 0 | L45: AV | Y45: =IF(ISNUMBER(SEARCH($K$2,B45)),MAX($Y$4:Y44)+1,0) -> 41 | Z45: Student Photocopying Income | AB45: =IFERROR(VLOOKUP(ROWS($AB$5:AB45),$Y$5:$Z$189,2,0),"") -> Student Photocopying Income
A46: 3410 | B46: Adult Education Income | C46: Income | D46: School Generated Income | E46: N | F46: ='Monthly Income & Exp. Reports'!O49 -> 0 | J46: 0 | L46: AW | Y46: =IF(ISNUMBER(SEARCH($K$2,B46)),MAX($Y$4:Y45)+1,0) -> 42 | Z46: Adult Education Income | AB46: =IFERROR(VLOOKUP(ROWS($AB$5:AB46),$Y$5:$Z$189,2,0),"") -> Adult Education Income
A47: 3420 | B47: Canteen Income | C47: Income | D47: School Generated Income | E47: N | F47: ='Monthly Income & Exp. Reports'!O50 -> 0 | J47: 0 | L47: AX | Y47: =IF(ISNUMBER(SEARCH($K$2,B47)),MAX($Y$4:Y46)+1,0) -> 43 | Z47: Canteen Income | AB47: =IFERROR(VLOOKUP(ROWS($AB$5:AB47),$Y$5:$Z$189,2,0),"") -> Canteen Income
A48: 3430 | B48: Tuck Shop Income | C48: Income | D48: School Generated Income | E48: Y | F48: ='Monthly Income & Exp. Reports'!O51 -> 0 | J48: 0 | L48: AY | Y48: =IF(ISNUMBER(SEARCH($K$2,B48)),MAX($Y$4:Y47)+1,0) -> 44 | Z48: Tuck Shop Income | AB48: =IFERROR(VLOOKUP(ROWS($AB$5:AB48),$Y$5:$Z$189,2,0),"") -> Tuck Shop Income
A49: 3440 | B49: Uniforms Income | C49: Income | D49: School Generated Income | E49: Y | F49: ='Monthly Income & Exp. Reports'!O52 -> 0 | J49: 0 | L49: AZ | Y49: =IF(ISNUMBER(SEARCH($K$2,B49)),MAX($Y$4:Y48)+1,0) -> 45 | Z49: Uniforms Income | AB49: =IFERROR(VLOOKUP(ROWS($AB$5:AB49),$Y$5:$Z$189,2,0),"") -> Uniforms Income
A50: 3450 | B50: Religion/Ethos Income | C50: Income | D50: School Generated Income | E50: Y | F50: ='Monthly Income & Exp. Reports'!O53 -> 0 | J50: 0 | L50: BA | Y50: =IF(ISNUMBER(SEARCH($K$2,B50)),MAX($Y$4:Y49)+1,0) -> 46 | Z50: Religion/Ethos Income | AB50: =IFERROR(VLOOKUP(ROWS($AB$5:AB50),$Y$5:$Z$189,2,0),"") -> Religion/Ethos Income
A51: 3490 | B51: After School Study/Club Income | C51: Income | D51: School Generated Income | E51: Y | F51: ='Monthly Income & Exp. Reports'!O54 -> 0 | J51: 0 | L51: BB | Y51: =IF(ISNUMBER(SEARCH($K$2,B51)),MAX($Y$4:Y50)+1,0) -> 47 | Z51: After School Study/Club Income | AB51: =IFERROR(VLOOKUP(ROWS($AB$5:AB51),$Y$5:$Z$189,2,0),"") -> After School Study/Club Income
A52: 3500 | B52: Games Income | C52: Income | D52: School Generated Income | E52: Y | F52: ='Monthly Income & Exp. Reports'!O55 -> 0 | J52: 0 | L52: BC | Y52: =IF(ISNUMBER(SEARCH($K$2,B52)),MAX($Y$4:Y51)+1,0) -> 48 | Z52: Games Income | AB52: =IFERROR(VLOOKUP(ROWS($AB$5:AB52),$Y$5:$Z$189,2,0),"") -> Games Income
A53: 3510 | B53: Bus Hire for Games Income | C53: Income | D53: School Generated Income | E53: Y | F53: ='Monthly Income & Exp. Reports'!O56 -> 0 | J53: 0 | L53: BD | Y53: =IF(ISNUMBER(SEARCH($K$2,B53)),MAX($Y$4:Y52)+1,0) -> 49 | Z53: Bus Hire for Games Income | AB53: =IFERROR(VLOOKUP(ROWS($AB$5:AB53),$Y$5:$Z$189,2,0),"") -> Bus Hire for Games Income
A54: 3511 | B54: Bus Hire Other Income | C54: Income | D54: School Generated Income | E54: Y | F54: ='Monthly Income & Exp. Reports'!O57 -> 0 | J54: 0 | L54: BE | Y54: =IF(ISNUMBER(SEARCH($K$2,B54)),MAX($Y$4:Y53)+1,0) -> 50 | Z54: Bus Hire Other Income | AB54: =IFERROR(VLOOKUP(ROWS($AB$5:AB54),$Y$5:$Z$189,2,0),"") -> Bus Hire Other Income
A55: 3520 | B55: School Musical/Drama Income | C55: Income | D55: School Generated Income | E55: Y | F55: ='Monthly Income & Exp. Reports'!O58 -> 0 | J55: 0 | L55: BF | Y55: =IF(ISNUMBER(SEARCH($K$2,B55)),MAX($Y$4:Y54)+1,0) -> 51 | Z55: School Musical/Drama Income | AB55: =IFERROR(VLOOKUP(ROWS($AB$5:AB55),$Y$5:$Z$189,2,0),"") -> School Musical/Drama Income
A56: 3530 | B56: School Tours Income | C56: Income | D56: School Generated Income | E56: Y | F56: ='Monthly Income & Exp. Reports'!O59 -> 0 | J56: 0 | L56: BG | Y56: =IF(ISNUMBER(SEARCH($K$2,B56)),MAX($Y$4:Y55)+1,0) -> 52 | Z56: School Tours Income | AB56: =IFERROR(VLOOKUP(ROWS($AB$5:AB56),$Y$5:$Z$189,2,0),"") -> School Tours Income
A57: 3531 | B57: School Swimming Income | C57: Income | D57: School Generated Income | E57: Y | F57: ='Monthly Income & Exp. Reports'!O60 -> 0 | J57: 0 | L57: BH | Y57: =IF(ISNUMBER(SEARCH($K$2,B57)),MAX($Y$4:Y56)+1,0) -> 53 | Z57: School Swimming Income | AB57: =IFERROR(VLOOKUP(ROWS($AB$5:AB57),$Y$5:$Z$189,2,0),"") -> School Swimming Income
A58: 3535 | B58: Student Insurance Income | C58: Income | D58: School Generated Income | E58: Y | F58: ='Monthly Income & Exp. Reports'!O61 -> 0 | J58: 0 | L58: BI | Y58: =IF(ISNUMBER(SEARCH($K$2,B58)),MAX($Y$4:Y57)+1,0) -> 54 | Z58: Student Insurance Income | AB58: =IFERROR(VLOOKUP(ROWS($AB$5:AB58),$Y$5:$Z$189,2,0),"") -> Student Insurance Income
A59: 3540 | B59: Pre-School Income | C59: Income | D59: School Generated Income | E59: Y | F59: ='Monthly Income & Exp. Reports'!O62 -> 0 | J59: 0 | L59: BJ | Y59: =IF(ISNUMBER(SEARCH($K$2,B59)),MAX($Y$4:Y58)+1,0) -> 55 | Z59: Pre-School Income | AB59: =IFERROR(VLOOKUP(ROWS($AB$5:AB59),$Y$5:$Z$189,2,0),"") -> Pre-School Income
A60: 3545 | B60: Summer Camps Income | C60: Income | D60: School Generated Income | E60: N | F60: ='Monthly Income & Exp. Reports'!O63 -> 0 | J60: 0 | L60: BK | Y60: =IF(ISNUMBER(SEARCH($K$2,B60)),MAX($Y$4:Y59)+1,0) -> 56 | Z60: Summer Camps Income | AB60: =IFERROR(VLOOKUP(ROWS($AB$5:AB60),$Y$5:$Z$189,2,0),"") -> Summer Camps Income
A61: 3550 | B61: Reimbursable Income | C61: Income | D61: School Generated Income | E61: Y | F61: ='Monthly Income & Exp. Reports'!O64 -> 0 | J61: 0 | L61: BL | Y61: =IF(ISNUMBER(SEARCH($K$2,B61)),MAX($Y$4:Y60)+1,0) -> 57 | Z61: Reimbursable Income | AB61: =IFERROR(VLOOKUP(ROWS($AB$5:AB61),$Y$5:$Z$189,2,0),"") -> Reimbursable Income
A62: 3570 | B62: Other School Generated Income | C62: Income | D62: School Generated Income | E62: Y | F62: ='Monthly Income & Exp. Reports'!O65 -> 0 | J62: 0 | L62: BM | Y62: =IF(ISNUMBER(SEARCH($K$2,B62)),MAX($Y$4:Y61)+1,0) -> 58 | Z62: Other School Generated Income | AB62: =IFERROR(VLOOKUP(ROWS($AB$5:AB62),$Y$5:$Z$189,2,0),"") -> Other School Generated Income
A63: 3572 | B63: School Arts and Crafts Income | C63: Income | D63: School Generated Income | E63: Y | F63: ='Monthly Income & Exp. Reports'!O66 -> 0 | J63: 0 | L63: BN | Y63: =IF(ISNUMBER(SEARCH($K$2,B63)),MAX($Y$4:Y62)+1,0) -> 59 | Z63: School Arts and Crafts Income | AB63: =IFERROR(VLOOKUP(ROWS($AB$5:AB63),$Y$5:$Z$189,2,0),"") -> School Arts and Crafts Income
A64: 3573 | B64: School Dance Income | C64: Income | D64: School Generated Income | E64: Y | F64: ='Monthly Income & Exp. Reports'!O67 -> 0 | J64: 0 | L64: BO | Y64: =IF(ISNUMBER(SEARCH($K$2,B64)),MAX($Y$4:Y63)+1,0) -> 60 | Z64: School Dance Income | AB64: =IFERROR(VLOOKUP(ROWS($AB$5:AB64),$Y$5:$Z$189,2,0),"") -> School Dance Income
A65: 3574 | B65: Restricted School Fundraising (Non Capital) | C65: Income | D65: School Generated Income | E65: Y | F65: ='Monthly Income & Exp. Reports'!O68 -> 0 | J65: 0 | L65: BP | Y65: =IF(ISNUMBER(SEARCH($K$2,B65)),MAX($Y$4:Y64)+1,0) -> 61 | Z65: Restricted School Fundraising (Non Capital) | AB65: =IFERROR(VLOOKUP(ROWS($AB$5:AB65),$Y$5:$Z$189,2,0),"") -> Restricted School Fundraising (Non Capital)
A66: 3575 | B66: Unrestricted School Fundraising (Non Capital) | C66: Income | D66: School Generated Income | E66: Y | F66: ='Monthly Income & Exp. Reports'!O69 -> 0 | J66: 0 | L66: BQ | Y66: =IF(ISNUMBER(SEARCH($K$2,B66)),MAX($Y$4:Y65)+1,0) -> 62 | Z66: Unrestricted School Fundraising (Non Capital) | AB66: =IFERROR(VLOOKUP(ROWS($AB$5:AB66),$Y$5:$Z$189,2,0),"") -> Unrestricted School Fundraising (Non Capital)
A67: 3580 | B67: Discounts/Rebates | C67: Income | D67: School Generated Income | E67: N | F67: ='Monthly Income & Exp. Reports'!O70 -> 0 | J67: 0 | L67: BR | Y67: =IF(ISNUMBER(SEARCH($K$2,B67)),MAX($Y$4:Y66)+1,0) -> 63 | Z67: Discounts/Rebates | AB67: =IFERROR(VLOOKUP(ROWS($AB$5:AB67),$Y$5:$Z$189,2,0),"") -> Discounts/Rebates
A68: 3650 | B68: Voluntary Contributions | C68: Income | D68: Other Income | E68: Y | F68: ='Monthly Income & Exp. Reports'!O71 -> 0 | J68: 0 | L68: BS | Y68: =IF(ISNUMBER(SEARCH($K$2,B68)),MAX($Y$4:Y67)+1,0) -> 64 | Z68: Voluntary Contributions | AB68: =IFERROR(VLOOKUP(ROWS($AB$5:AB68),$Y$5:$Z$189,2,0),"") -> Voluntary Contributions
A69: 3700 | B69: Income from Parents Association | C69: Income | D69: Other Income | E69: Y | F69: ='Monthly Income & Exp. Reports'!O72 -> 0 | J69: 0 | L69: BT | Y69: =IF(ISNUMBER(SEARCH($K$2,B69)),MAX($Y$4:Y68)+1,0) -> 65 | Z69: Income from Parents Association | AB69: =IFERROR(VLOOKUP(ROWS($AB$5:AB69),$Y$5:$Z$189,2,0),"") -> Income from Parents Association
A70: 3770 | B70: Insurance Claim Income | C70: Income | D70: Other Income | E70: Y | F70: ='Monthly Income & Exp. Reports'!O73 -> 0 | J70: =-SUM(F70)-(G70+H70+I70) -> 0 | L70: BU | Y70: =IF(ISNUMBER(SEARCH($K$2,B70)),MAX($Y$4:Y69)+1,0) -> 66 | Z70: Insurance Claim Income | AB70: =IFERROR(VLOOKUP(ROWS($AB$5:AB70),$Y$5:$Z$189,2,0),"") -> Insurance Claim Income
A71: 3800 | B71: Bank Interest Received | C71: Income | D71: Other Income | E71: Y | F71: ='Monthly Income & Exp. Reports'!O74 -> 0 | J71: 0 | L71: BV | Y71: =IF(ISNUMBER(SEARCH($K$2,B71)),MAX($Y$4:Y70)+1,0) -> 67 | Z71: Bank Interest Received | AB71: =IFERROR(VLOOKUP(ROWS($AB$5:AB71),$Y$5:$Z$189,2,0),"") -> Bank Interest Received
A72: 3840 | B72: Amortisation of Non DE funding | C72: Income | D72: Other Income | E72: N | F72: ='Monthly Income & Exp. Reports'!O75 -> 0 | J72: 0 | L72: BW | Y72: =IF(ISNUMBER(SEARCH($K$2,B72)),MAX($Y$4:Y71)+1,0) -> 68 | Z72: Amortisation of Non DE funding | AB72: =IFERROR(VLOOKUP(ROWS($AB$5:AB72),$Y$5:$Z$189,2,0),"") -> Amortisation of Non DE funding
A73: 3850 | B73: Other Income | C73: Income | D73: Other Income | E73: Y | F73: ='Monthly Income & Exp. Reports'!O76 -> 0 | J73: 0 | L73: BX | Y73: =IF(ISNUMBER(SEARCH($K$2,B73)),MAX($Y$4:Y72)+1,0) -> 69 | Z73: Other Income | AB73: =IFERROR(VLOOKUP(ROWS($AB$5:AB73),$Y$5:$Z$189,2,0),"") -> Other Income
A74: 3851 | B74: Designated Income (Non Capital) | C74: Income | D74: Other Income | E74: Y | F74: ='Monthly Income & Exp. Reports'!O77 -> 0 | J74: 0 | L74: BY | Y74: =IF(ISNUMBER(SEARCH($K$2,B74)),MAX($Y$4:Y73)+1,0) -> 70 | Z74: Designated Income (Non Capital) | AB74: =IFERROR(VLOOKUP(ROWS($AB$5:AB74),$Y$5:$Z$189,2,0),"") -> Designated Income (Non Capital)
A75: 3852 | B75: Restricted External Fundraising (Non Capital) | C75: Income | D75: Other Income | E75: Y | F75: ='Monthly Income & Exp. Reports'!O78 -> 0 | J75: 0 | L75: BZ | Y75: =IF(ISNUMBER(SEARCH($K$2,B75)),MAX($Y$4:Y74)+1,0) -> 71 | Z75: Restricted External Fundraising (Non Capital) | AB75: =IFERROR(VLOOKUP(ROWS($AB$5:AB75),$Y$5:$Z$189,2,0),"") -> Restricted External Fundraising (Non Capital)
A76: 3853 | B76: Unrestricted External Fundraising (Non Capital) | C76: Income | D76: Other Income | E76: Y | F76: ='Monthly Income & Exp. Reports'!O79 -> 0 | J76: 0 | L76: CA | Y76: =IF(ISNUMBER(SEARCH($K$2,B76)),MAX($Y$4:Y75)+1,0) -> 72 | Z76: Unrestricted External Fundraising (Non Capital) | AB76: =IFERROR(VLOOKUP(ROWS($AB$5:AB76),$Y$5:$Z$189,2,0),"") -> Unrestricted External Fundraising (Non Capital)
A77: 4110 | B77: Substitute Teachers Expense | C77: Expenditure | D77: Education Salary | E77: Y | F77: ='Monthly Income & Exp. Reports'!O84 -> 0 | J77: =F77+G77+H77+I77 -> 0 | L77: H | Y77: =IF(ISNUMBER(SEARCH($K$2,B77)),MAX($Y$4:Y76)+1,0) -> 73 | Z77: Substitute Teachers Expense | AB77: =IFERROR(VLOOKUP(ROWS($AB$5:AB77),$Y$5:$Z$189,2,0),"") -> Substitute Teachers Expense
A78: 4111 | B78: Privately Paid Teachers Expense | C78: Expenditure | D78: Education Salary | E78: Y | F78: ='Monthly Income & Exp. Reports'!O85 -> 0 | J78: =F78+G78+H78+I78 -> 0 | L78: I | Y78: =IF(ISNUMBER(SEARCH($K$2,B78)),MAX($Y$4:Y77)+1,0) -> 74 | Z78: Privately Paid Teachers Expense | AB78: =IFERROR(VLOOKUP(ROWS($AB$5:AB78),$Y$5:$Z$189,2,0),"") -> Privately Paid Teachers Expense
A79: 4113 | B79: Free Schoolbook Admin Salaries Expense | C79: Expenditure | D79: Education Salary | E79: Y | F79: ='Monthly Income & Exp. Reports'!O86 -> 0 | J79: 0 | L79: J | Y79: =IF(ISNUMBER(SEARCH($K$2,B79)),MAX($Y$4:Y78)+1,0) -> 75 | Z79: Free Schoolbook Admin Salaries Expense | AB79: =IFERROR(VLOOKUP(ROWS($AB$5:AB79),$Y$5:$Z$189,2,0),"") -> Free Schoolbook Admin Salaries Expense
A80: 4150 | B80: Supervision and Substitution Salaries Expense | C80: Expenditure | D80: Education Salary | E80: N | F80: ='Monthly Income & Exp. Reports'!O87 -> 0 | J80: 0 | L80: K | Y80: =IF(ISNUMBER(SEARCH($K$2,B80)),MAX($Y$4:Y79)+1,0) -> 76 | Z80: Supervision and Substitution Salaries Expense | AB80: =IFERROR(VLOOKUP(ROWS($AB$5:AB80),$Y$5:$Z$189,2,0),"") -> Supervision and Substitution Salaries Expense
A81: 4170 | B81: Adult Education Salaries Expense | C81: Expenditure | D81: Education Salary | E81: N | F81: ='Monthly Income & Exp. Reports'!O88 -> 0 | J81: 0 | L81: L | Y81: =IF(ISNUMBER(SEARCH($K$2,B81)),MAX($Y$4:Y80)+1,0) -> 77 | Z81: Adult Education Salaries Expense | AB81: =IFERROR(VLOOKUP(ROWS($AB$5:AB81),$Y$5:$Z$189,2,0),"") -> Adult Education Salaries Expense
A82: 4181 | B82: Canteen Salaries Expense | C82: Expenditure | D82: Education Salary | E82: N | F82: ='Monthly Income & Exp. Reports'!O89 -> 0 | J82: 0 | L82: M | Y82: =IF(ISNUMBER(SEARCH($K$2,B82)),MAX($Y$4:Y81)+1,0) -> 78 | Z82: Canteen Salaries Expense | AB82: =IFERROR(VLOOKUP(ROWS($AB$5:AB82),$Y$5:$Z$189,2,0),"") -> Canteen Salaries Expense
A83: 4190 | B83: After School Study/Club Salaries Expense | C83: Expenditure | D83: Education Salary | E83: Y | F83: ='Monthly Income & Exp. Reports'!O90 -> 0 | J83: 0 | L83: N | Y83: =IF(ISNUMBER(SEARCH($K$2,B83)),MAX($Y$4:Y82)+1,0) -> 79 | Z83: After School Study/Club Salaries Expense | AB83: =IFERROR(VLOOKUP(ROWS($AB$5:AB83),$Y$5:$Z$189,2,0),"") -> After School Study/Club Salaries Expense
A84: 4191 | B84: Summer Camps Salaries Expense | C84: Expenditure | D84: Education Salary | E84: N | F84: ='Monthly Income & Exp. Reports'!O91 -> 0 | J84: 0 | L84: O | Y84: =IF(ISNUMBER(SEARCH($K$2,B84)),MAX($Y$4:Y83)+1,0) -> 80 | Z84: Summer Camps Salaries Expense | AB84: =IFERROR(VLOOKUP(ROWS($AB$5:AB84),$Y$5:$Z$189,2,0),"") -> Summer Camps Salaries Expense
A85: 4196 | B85: Bus Escort Salary Expense | C85: Expenditure | D85: Education Salary | E85: Y | F85: ='Monthly Income & Exp. Reports'!O92 -> 0 | J85: 0 | L85: P | Y85: =IF(ISNUMBER(SEARCH($K$2,B85)),MAX($Y$4:Y84)+1,0) -> 81 | Z85: Bus Escort Salary Expense | AB85: =IFERROR(VLOOKUP(ROWS($AB$5:AB85),$Y$5:$Z$189,2,0),"") -> Bus Escort Salary Expense
A86: 4198 | B86: Other Educational Salaries Expense | C86: Expenditure | D86: Education Salary | E86: Y | F86: ='Monthly Income & Exp. Reports'!O93 -> 0 | J86: 0 | L86: Q | Y86: =IF(ISNUMBER(SEARCH($K$2,B86)),MAX($Y$4:Y85)+1,0) -> 82 | Z86: Other Educational Salaries Expense | AB86: =IFERROR(VLOOKUP(ROWS($AB$5:AB86),$Y$5:$Z$189,2,0),"") -> Other Educational Salaries Expense
A87: 4199 | B87: HSE Funded Salaries Expense | C87: Expenditure | D87: Education Salary | E87: N | F87: ='Monthly Income & Exp. Reports'!O94 -> 0 | J87: 0 | L87: R | Y87: =IF(ISNUMBER(SEARCH($K$2,B87)),MAX($Y$4:Y86)+1,0) -> 83 | Z87: HSE Funded Salaries Expense | AB87: =IFERROR(VLOOKUP(ROWS($AB$5:AB87),$Y$5:$Z$189,2,0),"") -> HSE Funded Salaries Expense
A88: 4310 | B88: Teaching Aids Expense | C88: Expenditure | D88: Education Other Expenditure | E88: Y | F88: ='Monthly Income & Exp. Reports'!O95 -> 0 | J88: 0 | L88: S | Y88: =IF(ISNUMBER(SEARCH($K$2,B88)),MAX($Y$4:Y87)+1,0) -> 84 | Z88: Teaching Aids Expense | AB88: =IFERROR(VLOOKUP(ROWS($AB$5:AB88),$Y$5:$Z$189,2,0),"") -> Teaching Aids Expense
A89: 4311 | B89: Early Start Programme Mat/Equip/Par Inv Expenses | C89: Expenditure | D89: Education Other Expenditure | E89: N | F89: ='Monthly Income & Exp. Reports'!O96 -> 0 | J89: =F89+G89+H89+I89 -> 0 | L89: T | Y89: =IF(ISNUMBER(SEARCH($K$2,B89)),MAX($Y$4:Y88)+1,0) -> 85 | Z89: Early Start Programme Mat/Equip/Par Inv Expenses | AB89: =IFERROR(VLOOKUP(ROWS($AB$5:AB89),$Y$5:$Z$189,2,0),"") -> Early Start Programme Mat/Equip/Par Inv Expenses
A90: 4315 | B90: Student Photocopying Expenses | C90: Expenditure | D90: Education Other Expenditure | E90: Y | F90: ='Monthly Income & Exp. Reports'!O97 -> 0 | J90: 0 | L90: U | Y90: =IF(ISNUMBER(SEARCH($K$2,B90)),MAX($Y$4:Y89)+1,0) -> 86 | Z90: Student Photocopying Expenses | AB90: =IFERROR(VLOOKUP(ROWS($AB$5:AB90),$Y$5:$Z$189,2,0),"") -> Student Photocopying Expenses
A91: 4330 | B91: Religion/Ethos Expense | C91: Expenditure | D91: Education Other Expenditure | E91: Y | F91: ='Monthly Income & Exp. Reports'!O98 -> 0 | J91: 0 | L91: V | Y91: =IF(ISNUMBER(SEARCH($K$2,B91)),MAX($Y$4:Y90)+1,0) -> 87 | Z91: Religion/Ethos Expense | AB91: =IFERROR(VLOOKUP(ROWS($AB$5:AB91),$Y$5:$Z$189,2,0),"") -> Religion/Ethos Expense
A92: 4410 | B92: ICT Grant Expense | C92: Expenditure | D92: Education Other Expenditure | E92: Y | F92: ='Monthly Income & Exp. Reports'!O99 -> 0 | J92: 0 | L92: W | Y92: =IF(ISNUMBER(SEARCH($K$2,B92)),MAX($Y$4:Y91)+1,0) -> 88 | Z92: ICT Grant Expense | AB92: =IFERROR(VLOOKUP(ROWS($AB$5:AB92),$Y$5:$Z$189,2,0),"") -> ICT Grant Expense
A93: 4420 | B93: Computer Maintenance & Support Expense | C93: Expenditure | D93: Education Other Expenditure | E93: Y | F93: ='Monthly Income & Exp. Reports'!O100 -> 0 | J93: 0 | L93: X | Y93: =IF(ISNUMBER(SEARCH($K$2,B93)),MAX($Y$4:Y92)+1,0) -> 89 | Z93: Computer Maintenance & Support Expense | AB93: =IFERROR(VLOOKUP(ROWS($AB$5:AB93),$Y$5:$Z$189,2,0),"") -> Computer Maintenance & Support Expense
A94: 4490 | B94: Other Subjects Expense | C94: Expenditure | D94: Education Other Expenditure | E94: N | F94: ='Monthly Income & Exp. Reports'!O101 -> 0 | J94: 0 | L94: Y | Y94: =IF(ISNUMBER(SEARCH($K$2,B94)),MAX($Y$4:Y93)+1,0) -> 90 | Z94: Other Subjects Expense | AB94: =IFERROR(VLOOKUP(ROWS($AB$5:AB94),$Y$5:$Z$189,2,0),"") -> Other Subjects Expense
A95: 4550 | B95: Leaving Cert Applied Expense | C95: Expenditure | D95: Education Other Expenditure | E95: N | F95: ='Monthly Income & Exp. Reports'!O102 -> 0 | J95: 0 | L95: Z | Y95: =IF(ISNUMBER(SEARCH($K$2,B95)),MAX($Y$4:Y94)+1,0) -> 91 | Z95: Leaving Cert Applied Expense | AB95: =IFERROR(VLOOKUP(ROWS($AB$5:AB95),$Y$5:$Z$189,2,0),"") -> Leaving Cert Applied Expense
A96: 4570 | B96: LCVP Expense | C96: Expenditure | D96: Education Other Expenditure | E96: N | F96: ='Monthly Income & Exp. Reports'!O103 -> 0 | J96: 0 | L96: AA | Y96: =IF(ISNUMBER(SEARCH($K$2,B96)),MAX($Y$4:Y95)+1,0) -> 92 | Z96: LCVP Expense | AB96: =IFERROR(VLOOKUP(ROWS($AB$5:AB96),$Y$5:$Z$189,2,0),"") -> LCVP Expense
A97: 4590 | B97: Transition Year Expense | C97: Expenditure | D97: Education Other Expenditure | E97: N | F97: ='Monthly Income & Exp. Reports'!O104 -> 0 | J97: 0 | L97: AB | Y97: =IF(ISNUMBER(SEARCH($K$2,B97)),MAX($Y$4:Y96)+1,0) -> 93 | Z97: Transition Year Expense | AB97: =IFERROR(VLOOKUP(ROWS($AB$5:AB97),$Y$5:$Z$189,2,0),"") -> Transition Year Expense
A98: 4610 | B98: Learning Support Expense | C98: Expenditure | D98: Education Other Expenditure | E98: Y | F98: ='Monthly Income & Exp. Reports'!O105 -> 0 | J98: 0 | L98: AC | Y98: =IF(ISNUMBER(SEARCH($K$2,B98)),MAX($Y$4:Y97)+1,0) -> 94 | Z98: Learning Support Expense | AB98: =IFERROR(VLOOKUP(ROWS($AB$5:AB98),$Y$5:$Z$189,2,0),"") -> Learning Support Expense
A99: 4620 | B99: Teacher Inservice and Training Expense | C99: Expenditure | D99: Education Other Expenditure | E99: Y | F99: ='Monthly Income & Exp. Reports'!O106 -> 0 | J99: 0 | L99: AD | Y99: =IF(ISNUMBER(SEARCH($K$2,B99)),MAX($Y$4:Y98)+1,0) -> 95 | Z99: Teacher Inservice and Training Expense | AB99: =IFERROR(VLOOKUP(ROWS($AB$5:AB99),$Y$5:$Z$189,2,0),"") -> Teacher Inservice and Training Expense
A100: 4635 | B100: Student Wellbeing Expense | C100: Expenditure | D100: Education Other Expenditure | E100: Y | F100: ='Monthly Income & Exp. Reports'!O107 -> 0 | J100: 0 | L100: AE | Y100: =IF(ISNUMBER(SEARCH($K$2,B100)),MAX($Y$4:Y99)+1,0) -> 96 | Z100: Student Wellbeing Expense | AB100: =IFERROR(VLOOKUP(ROWS($AB$5:AB100),$Y$5:$Z$189,2,0),"") -> Student Wellbeing Expense
A101: 4640 | B101: Library Non Grant Funded Expense | C101: Expenditure | D101: Education Other Expenditure | E101: N | F101: ='Monthly Income & Exp. Reports'!O108 -> 0 | J101: 0 | L101: AF | Y101: =IF(ISNUMBER(SEARCH($K$2,B101)),MAX($Y$4:Y100)+1,0) -> 97 | Z101: Library Non Grant Funded Expense | AB101: =IFERROR(VLOOKUP(ROWS($AB$5:AB101),$Y$5:$Z$189,2,0),"") -> Library Non Grant Funded Expense
A102: 4641 | B102: School Library Books Capital Grant Expense | C102: Expenditure | D102: Education Other Expenditure | E102: N | F102: ='Monthly Income & Exp. Reports'!O109 -> 0 | J102: =F102+G102+H102+I102 -> 0 | L102: AG | Y102: =IF(ISNUMBER(SEARCH($K$2,B102)),MAX($Y$4:Y101)+1,0) -> 98 | Z102: School Library Books Capital Grant Expense | AB102: =IFERROR(VLOOKUP(ROWS($AB$5:AB102),$Y$5:$Z$189,2,0),"") -> School Library Books Capital Grant Expense
A103: 4650 | B103: Physical Education Expense | C103: Expenditure | D103: Education Other Expenditure | E103: Y | F103: ='Monthly Income & Exp. Reports'!O110 -> 0 | J103: 0 | L103: AH | Y103: =IF(ISNUMBER(SEARCH($K$2,B103)),MAX($Y$4:Y102)+1,0) -> 99 | Z103: Physical Education Expense | AB103: =IFERROR(VLOOKUP(ROWS($AB$5:AB103),$Y$5:$Z$189,2,0),"") -> Physical Education Expense
A104: 4670 | B104: Games (excl. travel) Expense | C104: Expenditure | D104: Education Other Expenditure | E104: Y | F104: ='Monthly Income & Exp. Reports'!O111 -> 0 | J104: 0 | L104: AI | Y104: =IF(ISNUMBER(SEARCH($K$2,B104)),MAX($Y$4:Y103)+1,0) -> 100 | Z104: Games (excl. travel) Expense | AB104: =IFERROR(VLOOKUP(ROWS($AB$5:AB104),$Y$5:$Z$189,2,0),"") -> Games (excl. travel) Expense
A105: 4671 | B105: Bus Hire for Games Expense | C105: Expenditure | D105: Education Other Expenditure | E105: Y | F105: ='Monthly Income & Exp. Reports'!O112 -> 0 | J105: 0 | L105: AJ | Y105: =IF(ISNUMBER(SEARCH($K$2,B105)),MAX($Y$4:Y104)+1,0) -> 101 | Z105: Bus Hire for Games Expense | AB105: =IFERROR(VLOOKUP(ROWS($AB$5:AB105),$Y$5:$Z$189,2,0),"") -> Bus Hire for Games Expense
A106: 4690 | B106: Bus Hire Other Expense | C106: Expenditure | D106: Education Other Expenditure | E106: Y | F106: ='Monthly Income & Exp. Reports'!O113 -> 0 | J106: 0 | L106: AK | Y106: =IF(ISNUMBER(SEARCH($K$2,B106)),MAX($Y$4:Y105)+1,0) -> 102 | Z106: Bus Hire Other Expense | AB106: =IFERROR(VLOOKUP(ROWS($AB$5:AB106),$Y$5:$Z$189,2,0),"") -> Bus Hire Other Expense
A107: 4710 | B107: School Tours Expense | C107: Expenditure | D107: Education Other Expenditure | E107: Y | F107: ='Monthly Income & Exp. Reports'!O114 -> 0 | J107: 0 | L107: AL | Y107: =IF(ISNUMBER(SEARCH($K$2,B107)),MAX($Y$4:Y106)+1,0) -> 103 | Z107: School Tours Expense | AB107: =IFERROR(VLOOKUP(ROWS($AB$5:AB107),$Y$5:$Z$189,2,0),"") -> School Tours Expense
A108: 4720 | B108: School Musical/Drama Expense | C108: Expenditure | D108: Education Other Expenditure | E108: Y | F108: ='Monthly Income & Exp. Reports'!O115 -> 0 | J108: 0 | L108: AM | Y108: =IF(ISNUMBER(SEARCH($K$2,B108)),MAX($Y$4:Y107)+1,0) -> 104 | Z108: School Musical/Drama Expense | AB108: =IFERROR(VLOOKUP(ROWS($AB$5:AB108),$Y$5:$Z$189,2,0),"") -> School Musical/Drama Expense
A109: 4731 | B109: Free Schoolbook Grant Expense | C109: Expenditure | D109: Education Other Expenditure | E109: Y | F109: ='Monthly Income & Exp. Reports'!O116 -> 0 | J109: 0 | L109: AN | Y109: =IF(ISNUMBER(SEARCH($K$2,B109)),MAX($Y$4:Y108)+1,0) -> 105 | Z109: Free Schoolbook Grant Expense | AB109: =IFERROR(VLOOKUP(ROWS($AB$5:AB109),$Y$5:$Z$189,2,0),"") -> Free Schoolbook Grant Expense
A110: 4740 | B110: Book Rental Scheme Expense | C110: Expenditure | D110: Education Other Expenditure | E110: N | F110: ='Monthly Income & Exp. Reports'!O117 -> 0 | J110: 0 | L110: AO | Y110: =IF(ISNUMBER(SEARCH($K$2,B110)),MAX($Y$4:Y109)+1,0) -> 106 | Z110: Book Rental Scheme Expense | AB110: =IFERROR(VLOOKUP(ROWS($AB$5:AB110),$Y$5:$Z$189,2,0),"") -> Book Rental Scheme Expense
A111: 4741 | B111: Classroom Books/Resources Expense | C111: Expenditure | D111: Education Other Expenditure | E111: Y | F111: ='Monthly Income & Exp. Reports'!O118 -> 0 | J111: 0 | L111: AP | Y111: =IF(ISNUMBER(SEARCH($K$2,B111)),MAX($Y$4:Y110)+1,0) -> 107 | Z111: Classroom Books/Resources Expense | AB111: =IFERROR(VLOOKUP(ROWS($AB$5:AB111),$Y$5:$Z$189,2,0),"") -> Classroom Books/Resources Expense
A112: 4760 | B112: School Yearbook/Journal Expense | C112: Expenditure | D112: Education Other Expenditure | E112: Y | F112: ='Monthly Income & Exp. Reports'!O119 -> 0 | J112: 0 | L112: AQ | Y112: =IF(ISNUMBER(SEARCH($K$2,B112)),MAX($Y$4:Y111)+1,0) -> 108 | Z112: School Yearbook/Journal Expense | AB112: =IFERROR(VLOOKUP(ROWS($AB$5:AB112),$Y$5:$Z$189,2,0),"") -> School Yearbook/Journal Expense
A113: 4770 | B113: Trophies and Prizes Expense | C113: Expenditure | D113: Education Other Expenditure | E113: Y | F113: ='Monthly Income & Exp. Reports'!O120 -> 0 | J113: 0 | L113: AR | Y113: =IF(ISNUMBER(SEARCH($K$2,B113)),MAX($Y$4:Y112)+1,0) -> 109 | Z113: Trophies and Prizes Expense | AB113: =IFERROR(VLOOKUP(ROWS($AB$5:AB113),$Y$5:$Z$189,2,0),"") -> Trophies and Prizes Expense
A114: 4780 | B114: Uniform Expense | C114: Expenditure | D114: Education Other Expenditure | E114: Y | F114: ='Monthly Income & Exp. Reports'!O121 -> 0 | J114: 0 | L114: AS | Y114: =IF(ISNUMBER(SEARCH($K$2,B114)),MAX($Y$4:Y113)+1,0) -> 110 | Z114: Uniform Expense | AB114: =IFERROR(VLOOKUP(ROWS($AB$5:AB114),$Y$5:$Z$189,2,0),"") -> Uniform Expense
A115: 4810 | B115: Home School Liaison Expense | C115: Expenditure | D115: Education Other Expenditure | E115: Y | F115: ='Monthly Income & Exp. Reports'!O122 -> 0 | J115: 0 | L115: AT | Y115: =IF(ISNUMBER(SEARCH($K$2,B115)),MAX($Y$4:Y114)+1,0) -> 111 | Z115: Home School Liaison Expense | AB115: =IFERROR(VLOOKUP(ROWS($AB$5:AB115),$Y$5:$Z$189,2,0),"") -> Home School Liaison Expense
A116: 4815 | B116: School Excellence Fund Expense | C116: Expenditure | D116: Education Other Expenditure | E116: N | F116: ='Monthly Income & Exp. Reports'!O123 -> 0 | J116: 0 | L116: AU | Y116: =IF(ISNUMBER(SEARCH($K$2,B116)),MAX($Y$4:Y115)+1,0) -> 112 | Z116: School Excellence Fund Expense | AB116: =IFERROR(VLOOKUP(ROWS($AB$5:AB116),$Y$5:$Z$189,2,0),"") -> School Excellence Fund Expense
A117: 4908 | B117: Other Summer Camps Expense | C117: Expenditure | D117: Education Other Expenditure | E117: N | F117: ='Monthly Income & Exp. Reports'!O124 -> 0 | J117: 0 | L117: AV | Y117: =IF(ISNUMBER(SEARCH($K$2,B117)),MAX($Y$4:Y116)+1,0) -> 113 | Z117: Other Summer Camps Expense | AB117: =IFERROR(VLOOKUP(ROWS($AB$5:AB117),$Y$5:$Z$189,2,0),"") -> Other Summer Camps Expense
A118: 4909 | B118: Other Summer Provision Expense | C118: Expenditure | D118: Education Other Expenditure | E118: Y | F118: ='Monthly Income & Exp. Reports'!O125 -> 0 | J118: 0 | L118: AW | Y118: =IF(ISNUMBER(SEARCH($K$2,B118)),MAX($Y$4:Y117)+1,0) -> 114 | Z118: Other Summer Provision Expense | AB118: =IFERROR(VLOOKUP(ROWS($AB$5:AB118),$Y$5:$Z$189,2,0),"") -> Other Summer Provision Expense
A119: 4910 | B119: Other Educational Expense | C119: Expenditure | D119: Education Other Expenditure | E119: Y | F119: ='Monthly Income & Exp. Reports'!O126 -> 0 | J119: 0 | L119: AX | Y119: =IF(ISNUMBER(SEARCH($K$2,B119)),MAX($Y$4:Y118)+1,0) -> 115 | Z119: Other Educational Expense | AB119: =IFERROR(VLOOKUP(ROWS($AB$5:AB119),$Y$5:$Z$189,2,0),"") -> Other Educational Expense
A120: 4911 | B120: Department of Children and Youth Affairs Activities Expense | C120: Expenditure | D120: Education Other Expenditure | E120: N | F120: ='Monthly Income & Exp. Reports'!O127 -> 0 | J120: 0 | L120: AY | Y120: =IF(ISNUMBER(SEARCH($K$2,B120)),MAX($Y$4:Y119)+1,0) -> 116 | Z120: Department of Children and Youth Affairs Activities Expense | AB120: =IFERROR(VLOOKUP(ROWS($AB$5:AB120),$Y$5:$Z$189,2,0),"") -> Department of Children and Youth Affairs Activities Expense
A121: 4912 | B121: DSP School Meals Food Costs | C121: Expenditure | D121: Education Other Expenditure | E121: Y | F121: ='Monthly Income & Exp. Reports'!O128 -> 0 | J121: 0 | L121: AZ | Y121: =IF(ISNUMBER(SEARCH($K$2,B121)),MAX($Y$4:Y120)+1,0) -> 117 | Z121: DSP School Meals Food Costs | AB121: =IFERROR(VLOOKUP(ROWS($AB$5:AB121),$Y$5:$Z$189,2,0),"") -> DSP School Meals Food Costs
A122: 4913 | B122: Erasmus Expense | C122: Expenditure | D122: Education Other Expenditure | E122: N | F122: ='Monthly Income & Exp. Reports'!O129 -> 0 | J122: 0 | L122: BA | Y122: =IF(ISNUMBER(SEARCH($K$2,B122)),MAX($Y$4:Y121)+1,0) -> 118 | Z122: Erasmus Expense | AB122: =IFERROR(VLOOKUP(ROWS($AB$5:AB122),$Y$5:$Z$189,2,0),"") -> Erasmus Expense
A123: 4914 | B123: Other Non Capital DE Grants Expense | C123: Expenditure | D123: Education Other Expenditure | E123: Y | F123: ='Monthly Income & Exp. Reports'!O130 -> 0 | J123: 0 | L123: BB | Y123: =IF(ISNUMBER(SEARCH($K$2,B123)),MAX($Y$4:Y122)+1,0) -> 119 | Z123: Other Non Capital DE Grants Expense | AB123: =IFERROR(VLOOKUP(ROWS($AB$5:AB123),$Y$5:$Z$189,2,0),"") -> Other Non Capital DE Grants Expense
A124: 4915 | B124: Other Canteen Expense | C124: Expenditure | D124: Education Other Expenditure | E124: Y | F124: ='Monthly Income & Exp. Reports'!O131 -> 0 | J124: 0 | L124: BC | Y124: =IF(ISNUMBER(SEARCH($K$2,B124)),MAX($Y$4:Y123)+1,0) -> 120 | Z124: Other Canteen Expense | AB124: =IFERROR(VLOOKUP(ROWS($AB$5:AB124),$Y$5:$Z$189,2,0),"") -> Other Canteen Expense
A125: 4916 | B125: Student Insurance Expense | C125: Expenditure | D125: Education Other Expenditure | E125: Y | F125: ='Monthly Income & Exp. Reports'!O132 -> 0 | J125: 0 | L125: BD | Y125: =IF(ISNUMBER(SEARCH($K$2,B125)),MAX($Y$4:Y124)+1,0) -> 121 | Z125: Student Insurance Expense | AB125: =IFERROR(VLOOKUP(ROWS($AB$5:AB125),$Y$5:$Z$189,2,0),"") -> Student Insurance Expense
A126: 4917 | B126: Standardised Testing Expense | C126: Expenditure | D126: Education Other Expenditure | E126: Y | F126: ='Monthly Income & Exp. Reports'!O133 -> 0 | J126: 0 | L126: BE | Y126: =IF(ISNUMBER(SEARCH($K$2,B126)),MAX($Y$4:Y125)+1,0) -> 122 | Z126: Standardised Testing Expense | AB126: =IFERROR(VLOOKUP(ROWS($AB$5:AB126),$Y$5:$Z$189,2,0),"") -> Standardised Testing Expense
A127: 4918 | B127: Designated Expenditure (Non Capital) | C127: Expenditure | D127: Education Other Expenditure | E127: Y | F127: ='Monthly Income & Exp. Reports'!O134 -> 0 | J127: 0 | L127: BF | Y127: =IF(ISNUMBER(SEARCH($K$2,B127)),MAX($Y$4:Y126)+1,0) -> 123 | Z127: Designated Expenditure (Non Capital) | AB127: =IFERROR(VLOOKUP(ROWS($AB$5:AB127),$Y$5:$Z$189,2,0),"") -> Designated Expenditure (Non Capital)
A128: 4919 | B128: Special Educational Equipment (Non Capital) Expense | C128: Expenditure | D128: Education Other Expenditure | E128: Y | F128: ='Monthly Income & Exp. Reports'!O135 -> 0 | J128: 0 | L128: BG | Y128: =IF(ISNUMBER(SEARCH($K$2,B128)),MAX($Y$4:Y127)+1,0) -> 124 | Z128: Special Educational Equipment (Non Capital) Expense | AB128: =IFERROR(VLOOKUP(ROWS($AB$5:AB128),$Y$5:$Z$189,2,0),"") -> Special Educational Equipment (Non Capital) Expense
A129: 4920 | B129: School Dance Expense | C129: Expenditure | D129: Education Other Expenditure | E129: Y | F129: ='Monthly Income & Exp. Reports'!O136 -> 0 | J129: 0 | L129: BH | Y129: =IF(ISNUMBER(SEARCH($K$2,B129)),MAX($Y$4:Y128)+1,0) -> 125 | Z129: School Dance Expense | AB129: =IFERROR(VLOOKUP(ROWS($AB$5:AB129),$Y$5:$Z$189,2,0),"") -> School Dance Expense
A130: 4921 | B130: School Swimming Expense | C130: Expenditure | D130: Education Other Expenditure | E130: Y | F130: ='Monthly Income & Exp. Reports'!O137 -> 0 | J130: 0 | L130: BI | Y130: =IF(ISNUMBER(SEARCH($K$2,B130)),MAX($Y$4:Y129)+1,0) -> 126 | Z130: School Swimming Expense | AB130: =IFERROR(VLOOKUP(ROWS($AB$5:AB130),$Y$5:$Z$189,2,0),"") -> School Swimming Expense
A131: 4922 | B131: Restricted School Fundraising Expenses (Non Capital) | C131: Expenditure | D131: Education Other Expenditure | E131: Y | F131: ='Monthly Income & Exp. Reports'!O138 -> 0 | J131: 0 | L131: BJ | Y131: =IF(ISNUMBER(SEARCH($K$2,B131)),MAX($Y$4:Y130)+1,0) -> 127 | Z131: Restricted School Fundraising Expenses (Non Capital) | AB131: =IFERROR(VLOOKUP(ROWS($AB$5:AB131),$Y$5:$Z$189,2,0),"") -> Restricted School Fundraising Expenses (Non Capital)
A132: 4923 | B132: Restricted External Fundraising Expenses (Non Capital) | C132: Expenditure | D132: Education Other Expenditure | E132: Y | F132: ='Monthly Income & Exp. Reports'!O139 -> 0 | J132: 0 | L132: BK | Y132: =IF(ISNUMBER(SEARCH($K$2,B132)),MAX($Y$4:Y131)+1,0) -> 128 | Z132: Restricted External Fundraising Expenses (Non Capital) | AB132: =IFERROR(VLOOKUP(ROWS($AB$5:AB132),$Y$5:$Z$189,2,0),"") -> Restricted External Fundraising Expenses (Non Capital)
A133: 4924 | B133: Unrestricted External Fundraising Expenses (Non Capital) | C133: Expenditure | D133: Education Other Expenditure | E133: Y | F133: ='Monthly Income & Exp. Reports'!O140 -> 0 | J133: 0 | L133: BL | Y133: =IF(ISNUMBER(SEARCH($K$2,B133)),MAX($Y$4:Y132)+1,0) -> 129 | Z133: Unrestricted External Fundraising Expenses (Non Capital) | AB133: =IFERROR(VLOOKUP(ROWS($AB$5:AB133),$Y$5:$Z$189,2,0),"") -> Unrestricted External Fundraising Expenses (Non Capital)
A134: 4925 | B134: Unrestricted School Fundraising Expenses (Non Capital) | C134: Expenditure | D134: Education Other Expenditure | E134: Y | F134: ='Monthly Income & Exp. Reports'!O141 -> 0 | J134: 0 | L134: BM | Y134: =IF(ISNUMBER(SEARCH($K$2,B134)),MAX($Y$4:Y133)+1,0) -> 130 | Z134: Unrestricted School Fundraising Expenses (Non Capital) | AB134: =IFERROR(VLOOKUP(ROWS($AB$5:AB134),$Y$5:$Z$189,2,0),"") -> Unrestricted School Fundraising Expenses (Non Capital)
A135: 4927 | B135: School Arts and Crafts Expense | C135: Expenditure | D135: Education Other Expenditure | E135: Y | F135: ='Monthly Income & Exp. Reports'!O142 -> 0 | J135: 0 | L135: BN | Y135: =IF(ISNUMBER(SEARCH($K$2,B135)),MAX($Y$4:Y134)+1,0) -> 131 | Z135: School Arts and Crafts Expense | AB135: =IFERROR(VLOOKUP(ROWS($AB$5:AB135),$Y$5:$Z$189,2,0),"") -> School Arts and Crafts Expense
A136: 4928 | B136: Other HSE Expense | C136: Expenditure | D136: Education Other Expenditure | E136: N | F136: ='Monthly Income & Exp. Reports'!O143 -> 0 | J136: 0 | L136: BO | Y136: =IF(ISNUMBER(SEARCH($K$2,B136)),MAX($Y$4:Y135)+1,0) -> 132 | Z136: Other HSE Expense | AB136: =IFERROR(VLOOKUP(ROWS($AB$5:AB136),$Y$5:$Z$189,2,0),"") -> Other HSE Expense
A137: 4929 | B137: Other State Funding Expense | C137: Expenditure | D137: Education Other Expenditure | E137: Y | F137: ='Monthly Income & Exp. Reports'!O144 -> 0 | J137: 0 | L137: BP | Y137: =IF(ISNUMBER(SEARCH($K$2,B137)),MAX($Y$4:Y136)+1,0) -> 133 | Z137: Other State Funding Expense | AB137: =IFERROR(VLOOKUP(ROWS($AB$5:AB137),$Y$5:$Z$189,2,0),"") -> Other State Funding Expense
A138: 4930 | B138: Pre-School Expense | C138: Expenditure | D138: Education Other Expenditure | E138: N | F138: ='Monthly Income & Exp. Reports'!O145 -> 0 | J138: 0 | L138: BQ | Y138: =IF(ISNUMBER(SEARCH($K$2,B138)),MAX($Y$4:Y137)+1,0) -> 134 | Z138: Pre-School Expense | AB138: =IFERROR(VLOOKUP(ROWS($AB$5:AB138),$Y$5:$Z$189,2,0),"") -> Pre-School Expense
A139: 5010 | B139: Caretaker Wages Expense | C139: Expenditure | D139: Repairs, Maintenance & Establishment | E139: Y | F139: ='Monthly Income & Exp. Reports'!O146 -> 0 | J139: 0 | L139: BR | Y139: =IF(ISNUMBER(SEARCH($K$2,B139)),MAX($Y$4:Y138)+1,0) -> 135 | Z139: Caretaker Wages Expense | AB139: =IFERROR(VLOOKUP(ROWS($AB$5:AB139),$Y$5:$Z$189,2,0),"") -> Caretaker Wages Expense
A140: 5030 | B140: Caretaker Pension Expense | C140: Expenditure | D140: Repairs, Maintenance & Establishment | E140: N | F140: ='Monthly Income & Exp. Reports'!O147 -> 0 | J140: 0 | L140: BS | Y140: =IF(ISNUMBER(SEARCH($K$2,B140)),MAX($Y$4:Y139)+1,0) -> 136 | Z140: Caretaker Pension Expense | AB140: =IFERROR(VLOOKUP(ROWS($AB$5:AB140),$Y$5:$Z$189,2,0),"") -> Caretaker Pension Expense
A141: 5110 | B141: Cleaners Wages Expense | C141: Expenditure | D141: Repairs, Maintenance & Establishment | E141: Y | F141: ='Monthly Income & Exp. Reports'!O148 -> 0 | J141: 0 | L141: BT | Y141: =IF(ISNUMBER(SEARCH($K$2,B141)),MAX($Y$4:Y140)+1,0) -> 137 | Z141: Cleaners Wages Expense | AB141: =IFERROR(VLOOKUP(ROWS($AB$5:AB141),$Y$5:$Z$189,2,0),"") -> Cleaners Wages Expense
A142: 5112 | B142: Cleaners' Pension Expense | C142: Expenditure | D142: Repairs, Maintenance & Establishment | E142: N | F142: ='Monthly Income & Exp. Reports'!O149 -> 0 | J142: 0 | L142: BU | Y142: =IF(ISNUMBER(SEARCH($K$2,B142)),MAX($Y$4:Y141)+1,0) -> 138 | Z142: Cleaners' Pension Expense | AB142: =IFERROR(VLOOKUP(ROWS($AB$5:AB142),$Y$5:$Z$189,2,0),"") -> Cleaners' Pension Expense
A143: 5150 | B143: Contract Cleaners Expense | C143: Expenditure | D143: Repairs, Maintenance & Establishment | E143: Y | F143: ='Monthly Income & Exp. Reports'!O150 -> 0 | J143: =F143+G143+H143+I143 -> 0 | L143: BV | Y143: =IF(ISNUMBER(SEARCH($K$2,B143)),MAX($Y$4:Y142)+1,0) -> 139 | Z143: Contract Cleaners Expense | AB143: =IFERROR(VLOOKUP(ROWS($AB$5:AB143),$Y$5:$Z$189,2,0),"") -> Contract Cleaners Expense
A144: 5170 | B144: Cleaning Materials Expense | C144: Expenditure | D144: Repairs, Maintenance & Establishment | E144: Y | F144: ='Monthly Income & Exp. Reports'!O151 -> 0 | J144: 0 | L144: BW | Y144: =IF(ISNUMBER(SEARCH($K$2,B144)),MAX($Y$4:Y143)+1,0) -> 140 | Z144: Cleaning Materials Expense | AB144: =IFERROR(VLOOKUP(ROWS($AB$5:AB144),$Y$5:$Z$189,2,0),"") -> Cleaning Materials Expense
A145: 5175 | B145: Other Cleaning and Sanitation Expense | C145: Expenditure | D145: Repairs, Maintenance & Establishment | E145: Y | F145: ='Monthly Income & Exp. Reports'!O152 -> 0 | J145: 0 | L145: BX | Y145: =IF(ISNUMBER(SEARCH($K$2,B145)),MAX($Y$4:Y144)+1,0) -> 141 | Z145: Other Cleaning and Sanitation Expense | AB145: =IFERROR(VLOOKUP(ROWS($AB$5:AB145),$Y$5:$Z$189,2,0),"") -> Other Cleaning and Sanitation Expense
A146: 5310 | B146: Repairs to Buildings and Grounds Expense | C146: Expenditure | D146: Repairs, Maintenance & Establishment | E146: Y | F146: ='Monthly Income & Exp. Reports'!O153 -> 0 | J146: 0 | L146: BY | Y146: =IF(ISNUMBER(SEARCH($K$2,B146)),MAX($Y$4:Y145)+1,0) -> 142 | Z146: Repairs to Buildings and Grounds Expense | AB146: =IFERROR(VLOOKUP(ROWS($AB$5:AB146),$Y$5:$Z$189,2,0),"") -> Repairs to Buildings and Grounds Expense
A147: 5315 | B147: Minor Works Grant (Non Capital) Expense | C147: Expenditure | D147: Repairs, Maintenance & Establishment | E147: Y | F147: ='Monthly Income & Exp. Reports'!O154 -> 0 | J147: 0 | L147: BZ | Y147: =IF(ISNUMBER(SEARCH($K$2,B147)),MAX($Y$4:Y146)+1,0) -> 143 | Z147: Minor Works Grant (Non Capital) Expense | AB147: =IFERROR(VLOOKUP(ROWS($AB$5:AB147),$Y$5:$Z$189,2,0),"") -> Minor Works Grant (Non Capital) Expense
A148: 5350 | B148: Repairs to Furniture, Fittings and Equipment Expense | C148: Expenditure | D148: Repairs, Maintenance & Establishment | E148: Y | F148: ='Monthly Income & Exp. Reports'!O155 -> 0 | J148: 0 | L148: CA | Y148: =IF(ISNUMBER(SEARCH($K$2,B148)),MAX($Y$4:Y147)+1,0) -> 144 | Z148: Repairs to Furniture, Fittings and Equipment Expense | AB148: =IFERROR(VLOOKUP(ROWS($AB$5:AB148),$Y$5:$Z$189,2,0),"") -> Repairs to Furniture, Fittings and Equipment Expense
A149: 5400 | B149: Routine Security Expense | C149: Expenditure | D149: Repairs, Maintenance & Establishment | E149: Y | F149: ='Monthly Income & Exp. Reports'!O156 -> 0 | J149: 0 | L149: CB | Y149: =IF(ISNUMBER(SEARCH($K$2,B149)),MAX($Y$4:Y148)+1,0) -> 145 | Z149: Routine Security Expense | AB149: =IFERROR(VLOOKUP(ROWS($AB$5:AB149),$Y$5:$Z$189,2,0),"") -> Routine Security Expense
A150: 5450 | B150: General Insurance Expense | C150: Expenditure | D150: Repairs, Maintenance & Establishment | E150: Y | F150: ='Monthly Income & Exp. Reports'!O157 -> 0 | J150: 0 | L150: CC | Y150: =IF(ISNUMBER(SEARCH($K$2,B150)),MAX($Y$4:Y149)+1,0) -> 146 | Z150: General Insurance Expense | AB150: =IFERROR(VLOOKUP(ROWS($AB$5:AB150),$Y$5:$Z$189,2,0),"") -> General Insurance Expense
A151: 5510 | B151: Heating Expense | C151: Expenditure | D151: Repairs, Maintenance & Establishment | E151: Y | F151: ='Monthly Income & Exp. Reports'!O158 -> 0 | J151: 0 | L151: CD | Y151: =IF(ISNUMBER(SEARCH($K$2,B151)),MAX($Y$4:Y150)+1,0) -> 147 | Z151: Heating Expense | AB151: =IFERROR(VLOOKUP(ROWS($AB$5:AB151),$Y$5:$Z$189,2,0),"") -> Heating Expense
A152: 5550 | B152: Light and Power Expense | C152: Expenditure | D152: Repairs, Maintenance & Establishment | E152: Y | F152: ='Monthly Income & Exp. Reports'!O159 -> 0 | J152: 0 | L152: CE | Y152: =IF(ISNUMBER(SEARCH($K$2,B152)),MAX($Y$4:Y151)+1,0) -> 148 | Z152: Light and Power Expense | AB152: =IFERROR(VLOOKUP(ROWS($AB$5:AB152),$Y$5:$Z$189,2,0),"") -> Light and Power Expense
A153: 5551 | B153: Rent of Temporary Accommodation Expense | C153: Expenditure | D153: Repairs, Maintenance & Establishment | E153: Y | F153: ='Monthly Income & Exp. Reports'!O160 -> 0 | J153: 0 | L153: CF | Y153: =IF(ISNUMBER(SEARCH($K$2,B153)),MAX($Y$4:Y152)+1,0) -> 149 | Z153: Rent of Temporary Accommodation Expense | AB153: =IFERROR(VLOOKUP(ROWS($AB$5:AB153),$Y$5:$Z$189,2,0),"") -> Rent of Temporary Accommodation Expense
A154: 5552 | B154: Other Rental Costs Expense | C154: Expenditure | D154: Repairs, Maintenance & Establishment | E154: N | F154: ='Monthly Income & Exp. Reports'!O161 -> 0 | J154: 0 | L154: CG | Y154: =IF(ISNUMBER(SEARCH($K$2,B154)),MAX($Y$4:Y153)+1,0) -> 150 | Z154: Other Rental Costs Expense | AB154: =IFERROR(VLOOKUP(ROWS($AB$5:AB154),$Y$5:$Z$189,2,0),"") -> Other Rental Costs Expense
A155: 5610 | B155: Refuse Expense | C155: Expenditure | D155: Repairs, Maintenance & Establishment | E155: Y | F155: ='Monthly Income & Exp. Reports'!O162 -> 0 | J155: 0 | L155: CH | Y155: =IF(ISNUMBER(SEARCH($K$2,B155)),MAX($Y$4:Y154)+1,0) -> 151 | Z155: Refuse Expense | AB155: =IFERROR(VLOOKUP(ROWS($AB$5:AB155),$Y$5:$Z$189,2,0),"") -> Refuse Expense
A156: 5611 | B156: Water Rates Expense | C156: Expenditure | D156: Repairs, Maintenance & Establishment | E156: Y | F156: ='Monthly Income & Exp. Reports'!O163 -> 0 | J156: 0 | L156: CI | Y156: =IF(ISNUMBER(SEARCH($K$2,B156)),MAX($Y$4:Y155)+1,0) -> 152 | Z156: Water Rates Expense | AB156: =IFERROR(VLOOKUP(ROWS($AB$5:AB156),$Y$5:$Z$189,2,0),"") -> Water Rates Expense
A157: 5700 | B157: Licence Fee to Patron/Trustee Expense | C157: Expenditure | D157: Repairs, Maintenance & Establishment | E157: Y | F157: ='Monthly Income & Exp. Reports'!O164 -> 0 | J157: 0 | L157: CJ | Y157: =IF(ISNUMBER(SEARCH($K$2,B157)),MAX($Y$4:Y156)+1,0) -> 153 | Z157: Licence Fee to Patron/Trustee Expense | AB157: =IFERROR(VLOOKUP(ROWS($AB$5:AB157),$Y$5:$Z$189,2,0),"") -> Licence Fee to Patron/Trustee Expense
A158: 5800 | B158: Other Repairs and Maintenance Expense | C158: Expenditure | D158: Repairs, Maintenance & Establishment | E158: Y | F158: ='Monthly Income & Exp. Reports'!O165 -> 0 | J158: 0 | L158: CK | Y158: =IF(ISNUMBER(SEARCH($K$2,B158)),MAX($Y$4:Y157)+1,0) -> 154 | Z158: Other Repairs and Maintenance Expense | AB158: =IFERROR(VLOOKUP(ROWS($AB$5:AB158),$Y$5:$Z$189,2,0),"") -> Other Repairs and Maintenance Expense
A159: 5804 | B159: COVID Capitation for Cleaning Wages Expense | C159: Expenditure | D159: Repairs, Maintenance & Establishment | E159: N | F159: ='Monthly Income & Exp. Reports'!O166 -> 0 | J159: 0 | L159: CL | Y159: =IF(ISNUMBER(SEARCH($K$2,B159)),MAX($Y$4:Y158)+1,0) -> 155 | Z159: COVID Capitation for Cleaning Wages Expense | AB159: =IFERROR(VLOOKUP(ROWS($AB$5:AB159),$Y$5:$Z$189,2,0),"") -> COVID Capitation for Cleaning Wages Expense
A160: 5806 | B160: COVID Capitation for Cleaning (Non Wages) and PPE Grant Expense | C160: Expenditure | D160: Repairs, Maintenance & Establishment | E160: N | F160: ='Monthly Income & Exp. Reports'!O167 -> 0 | J160: 0 | L160: CM | Y160: =IF(ISNUMBER(SEARCH($K$2,B160)),MAX($Y$4:Y159)+1,0) -> 156 | Z160: COVID Capitation for Cleaning (Non Wages) and PPE Grant Expense | AB160: =IFERROR(VLOOKUP(ROWS($AB$5:AB160),$Y$5:$Z$189,2,0),"") -> COVID Capitation for Cleaning (Non Wages) and PPE Grant Expense
A161: 6010 | B161: Clerical Officers/Secretarial Wages Expense | C161: Expenditure | D161: Administration | E161: Y | F161: ='Monthly Income & Exp. Reports'!O168 -> 0 | J161: 0 | L161: CN | Y161: =IF(ISNUMBER(SEARCH($K$2,B161)),MAX($Y$4:Y160)+1,0) -> 157 | Z161: Clerical Officers/Secretarial Wages Expense | AB161: =IFERROR(VLOOKUP(ROWS($AB$5:AB161),$Y$5:$Z$189,2,0),"") -> Clerical Officers/Secretarial Wages Expense
A162: 6050 | B162: Clerical Officers/Secretarial Pension Expense | C162: Expenditure | D162: Administration | E162: N | F162: ='Monthly Income & Exp. Reports'!O169 -> 0 | J162: 0 | L162: CO | Y162: =IF(ISNUMBER(SEARCH($K$2,B162)),MAX($Y$4:Y161)+1,0) -> 158 | Z162: Clerical Officers/Secretarial Pension Expense | AB162: =IFERROR(VLOOKUP(ROWS($AB$5:AB162),$Y$5:$Z$189,2,0),"") -> Clerical Officers/Secretarial Pension Expense
A163: 6100 | B163: Recruitment Expense | C163: Expenditure | D163: Administration | E163: Y | F163: ='Monthly Income & Exp. Reports'!O170 -> 0 | J163: 0 | L163: CP | Y163: =IF(ISNUMBER(SEARCH($K$2,B163)),MAX($Y$4:Y162)+1,0) -> 159 | Z163: Recruitment Expense | AB163: =IFERROR(VLOOKUP(ROWS($AB$5:AB163),$Y$5:$Z$189,2,0),"") -> Recruitment Expense
A164: 6150 | B164: Advertising / Public Relations Expense | C164: Expenditure | D164: Administration | E164: Y | F164: ='Monthly Income & Exp. Reports'!O171 -> 0 | J164: 0 | L164: CQ | Y164: =IF(ISNUMBER(SEARCH($K$2,B164)),MAX($Y$4:Y163)+1,0) -> 160 | Z164: Advertising / Public Relations Expense | AB164: =IFERROR(VLOOKUP(ROWS($AB$5:AB164),$Y$5:$Z$189,2,0),"") -> Advertising / Public Relations Expense
A165: 6210 | B165: Postage Expense | C165: Expenditure | D165: Administration | E165: Y | F165: ='Monthly Income & Exp. Reports'!O172 -> 0 | J165: 0 | L165: CR | Y165: =IF(ISNUMBER(SEARCH($K$2,B165)),MAX($Y$4:Y164)+1,0) -> 161 | Z165: Postage Expense | AB165: =IFERROR(VLOOKUP(ROWS($AB$5:AB165),$Y$5:$Z$189,2,0),"") -> Postage Expense
A166: 6250 | B166: Telephone Expense / SMS Text | C166: Expenditure | D166: Administration | E166: Y | F166: ='Monthly Income & Exp. Reports'!O173 -> 0 | J166: 0 | L166: CS | Y166: =IF(ISNUMBER(SEARCH($K$2,B166)),MAX($Y$4:Y165)+1,0) -> 162 | Z166: Telephone Expense / SMS Text | AB166: =IFERROR(VLOOKUP(ROWS($AB$5:AB166),$Y$5:$Z$189,2,0),"") -> Telephone Expense / SMS Text
A167: 6300 | B167: Printing and Stationery Expense | C167: Expenditure | D167: Administration | E167: Y | F167: ='Monthly Income & Exp. Reports'!O174 -> 0 | J167: 0 | L167: CT | Y167: =IF(ISNUMBER(SEARCH($K$2,B167)),MAX($Y$4:Y166)+1,0) -> 163 | Z167: Printing and Stationery Expense | AB167: =IFERROR(VLOOKUP(ROWS($AB$5:AB167),$Y$5:$Z$189,2,0),"") -> Printing and Stationery Expense
A168: 6350 | B168: Office Equipment (Non Capital) Expense | C168: Expenditure | D168: Administration | E168: Y | F168: ='Monthly Income & Exp. Reports'!O175 -> 0 | J168: 0 | L168: CU | Y168: =IF(ISNUMBER(SEARCH($K$2,B168)),MAX($Y$4:Y167)+1,0) -> 164 | Z168: Office Equipment (Non Capital) Expense | AB168: =IFERROR(VLOOKUP(ROWS($AB$5:AB168),$Y$5:$Z$189,2,0),"") -> Office Equipment (Non Capital) Expense
A169: 6355 | B169: Non-ICT_Grant Funded Office Computers Expense | C169: Expenditure | D169: Administration | E169: Y | F169: ='Monthly Income & Exp. Reports'!O176 -> 0 | J169: 0 | L169: CV | Y169: =IF(ISNUMBER(SEARCH($K$2,B169)),MAX($Y$4:Y168)+1,0) -> 165 | Z169: Non-ICT_Grant Funded Office Computers Expense | AB169: =IFERROR(VLOOKUP(ROWS($AB$5:AB169),$Y$5:$Z$189,2,0),"") -> Non-ICT_Grant Funded Office Computers Expense
A170: 6400 | B170: Accounting / Auditing Expense | C170: Expenditure | D170: Administration | E170: Y | F170: ='Monthly Income & Exp. Reports'!O177 -> 0 | J170: 0 | L170: CW | Y170: =IF(ISNUMBER(SEARCH($K$2,B170)),MAX($Y$4:Y169)+1,0) -> 166 | Z170: Accounting / Auditing Expense | AB170: =IFERROR(VLOOKUP(ROWS($AB$5:AB170),$Y$5:$Z$189,2,0),"") -> Accounting / Auditing Expense
A171: 6450 | B171: Other Professional Fees Expense | C171: Expenditure | D171: Administration | E171: Y | F171: ='Monthly Income & Exp. Reports'!O178 -> 0 | J171: 0 | L171: CX | Y171: =IF(ISNUMBER(SEARCH($K$2,B171)),MAX($Y$4:Y170)+1,0) -> 167 | Z171: Other Professional Fees Expense | AB171: =IFERROR(VLOOKUP(ROWS($AB$5:AB171),$Y$5:$Z$189,2,0),"") -> Other Professional Fees Expense
A172: 6500 | B172: Travel and Subsistence Expense | C172: Expenditure | D172: Administration | E172: Y | F172: ='Monthly Income & Exp. Reports'!O179 -> 0 | J172: 0 | L172: CY | Y172: =IF(ISNUMBER(SEARCH($K$2,B172)),MAX($Y$4:Y171)+1,0) -> 168 | Z172: Travel and Subsistence Expense | AB172: =IFERROR(VLOOKUP(ROWS($AB$5:AB172),$Y$5:$Z$189,2,0),"") -> Travel and Subsistence Expense
A173: 6600 | B173: Principals Expenses | C173: Expenditure | D173: Administration | E173: Y | F173: ='Monthly Income & Exp. Reports'!O180 -> 0 | J173: 0 | L173: CZ | Y173: =IF(ISNUMBER(SEARCH($K$2,B173)),MAX($Y$4:Y172)+1,0) -> 169 | Z173: Principals Expenses | AB173: =IFERROR(VLOOKUP(ROWS($AB$5:AB173),$Y$5:$Z$189,2,0),"") -> Principals Expenses
A174: 6650 | B174: Board of Management Expense | C174: Expenditure | D174: Administration | E174: Y | F174: ='Monthly Income & Exp. Reports'!O181 -> 0 | J174: 0 | L174: DA | Y174: =IF(ISNUMBER(SEARCH($K$2,B174)),MAX($Y$4:Y173)+1,0) -> 170 | Z174: Board of Management Expense | AB174: =IFERROR(VLOOKUP(ROWS($AB$5:AB174),$Y$5:$Z$189,2,0),"") -> Board of Management Expense
A175: 6700 | B175: Annual Subscriptions Expense | C175: Expenditure | D175: Administration | E175: Y | F175: ='Monthly Income & Exp. Reports'!O182 -> 0 | J175: 0 | L175: DB | Y175: =IF(ISNUMBER(SEARCH($K$2,B175)),MAX($Y$4:Y174)+1,0) -> 171 | Z175: Annual Subscriptions Expense | AB175: =IFERROR(VLOOKUP(ROWS($AB$5:AB175),$Y$5:$Z$189,2,0),"") -> Annual Subscriptions Expense
A176: 6730 | B176: InSchool Administration System Expense | C176: Expenditure | D176: Administration | E176: Y | F176: ='Monthly Income & Exp. Reports'!O183 -> 0 | J176: 0 | L176: DC | Y176: =IF(ISNUMBER(SEARCH($K$2,B176)),MAX($Y$4:Y175)+1,0) -> 172 | Z176: InSchool Administration System Expense | AB176: =IFERROR(VLOOKUP(ROWS($AB$5:AB176),$Y$5:$Z$189,2,0),"") -> InSchool Administration System Expense
A177: 6731 | B177: Accounting Software/Payroll Software Expense | C177: Expenditure | D177: Administration | E177: Y | F177: ='Monthly Income & Exp. Reports'!O184 -> 0 | J177: 0 | L177: DD | Y177: =IF(ISNUMBER(SEARCH($K$2,B177)),MAX($Y$4:Y176)+1,0) -> 173 | Z177: Accounting Software/Payroll Software Expense | AB177: =IFERROR(VLOOKUP(ROWS($AB$5:AB177),$Y$5:$Z$189,2,0),"") -> Accounting Software/Payroll Software Expense
A178: 6750 | B178: Donations to Charity | C178: Expenditure | D178: Administration | E178: Y | F178: ='Monthly Income & Exp. Reports'!O185 -> 0 | J178: 0 | L178: DE | Y178: =IF(ISNUMBER(SEARCH($K$2,B178)),MAX($Y$4:Y177)+1,0) -> 174 | Z178: Donations to Charity | AB178: =IFERROR(VLOOKUP(ROWS($AB$5:AB178),$Y$5:$Z$189,2,0),"") -> Donations to Charity
A179: 6755 | B179: Medical and First Aid Expense | C179: Expenditure | D179: Administration | E179: Y | F179: ='Monthly Income & Exp. Reports'!O186 -> 0 | J179: 0 | L179: DF | Y179: =IF(ISNUMBER(SEARCH($K$2,B179)),MAX($Y$4:Y178)+1,0) -> 175 | Z179: Medical and First Aid Expense | AB179: =IFERROR(VLOOKUP(ROWS($AB$5:AB179),$Y$5:$Z$189,2,0),"") -> Medical and First Aid Expense
A180: 6780 | B180: Staff Room Expenses | C180: Expenditure | D180: Administration | E180: Y | F180: ='Monthly Income & Exp. Reports'!O187 -> 0 | J180: 0 | L180: DG | Y180: =IF(ISNUMBER(SEARCH($K$2,B180)),MAX($Y$4:Y179)+1,0) -> 176 | Z180: Staff Room Expenses | AB180: =IFERROR(VLOOKUP(ROWS($AB$5:AB180),$Y$5:$Z$189,2,0),"") -> Staff Room Expenses
A181: 6800 | B181: Hospitality Expense | C181: Expenditure | D181: Administration | E181: Y | F181: ='Monthly Income & Exp. Reports'!O188 -> 0 | J181: 0 | L181: DH | Y181: =IF(ISNUMBER(SEARCH($K$2,B181)),MAX($Y$4:Y180)+1,0) -> 177 | Z181: Hospitality Expense | AB181: =IFERROR(VLOOKUP(ROWS($AB$5:AB181),$Y$5:$Z$189,2,0),"") -> Hospitality Expense
A182: 6830 | B182: Tuck Shop Expense | C182: Expenditure | D182: Administration | E182: Y | F182: ='Monthly Income & Exp. Reports'!O189 -> 0 | J182: 0 | L182: DI | Y182: =IF(ISNUMBER(SEARCH($K$2,B182)),MAX($Y$4:Y181)+1,0) -> 178 | Z182: Tuck Shop Expense | AB182: =IFERROR(VLOOKUP(ROWS($AB$5:AB182),$Y$5:$Z$189,2,0),"") -> Tuck Shop Expense
A183: 6900 | B183: Other Administration Expenses | C183: Expenditure | D183: Administration | E183: Y | F183: ='Monthly Income & Exp. Reports'!O190 -> 0 | J183: 0 | L183: DJ | Y183: =IF(ISNUMBER(SEARCH($K$2,B183)),MAX($Y$4:Y182)+1,0) -> 179 | Z183: Other Administration Expenses | AB183: =IFERROR(VLOOKUP(ROWS($AB$5:AB183),$Y$5:$Z$189,2,0),"") -> Other Administration Expenses
A184: 7300 | B184: Leasing Expenses | C184: Expenditure | D184: Financial | E184: Y | F184: ='Monthly Income & Exp. Reports'!O191 -> 0 | J184: 0 | L184: DK | Y184: =IF(ISNUMBER(SEARCH($K$2,B184)),MAX($Y$4:Y183)+1,0) -> 180 | Z184: Leasing Expenses | AB184: =IFERROR(VLOOKUP(ROWS($AB$5:AB184),$Y$5:$Z$189,2,0),"") -> Leasing Expenses
A185: 7320 | B185: Loan Charges Expense | C185: Expenditure | D185: Financial | E185: Y | F185: ='Monthly Income & Exp. Reports'!O192 -> 0 | J185: 0 | L185: DL | Y185: =IF(ISNUMBER(SEARCH($K$2,B185)),MAX($Y$4:Y184)+1,0) -> 181 | Z185: Loan Charges Expense | AB185: =IFERROR(VLOOKUP(ROWS($AB$5:AB185),$Y$5:$Z$189,2,0),"") -> Loan Charges Expense
A186: 7400 | B186: Bank Interest Expense | C186: Expenditure | D186: Financial | E186: Y | F186: ='Monthly Income & Exp. Reports'!O193 -> 0 | J186: 0 | L186: DM | Y186: =IF(ISNUMBER(SEARCH($K$2,B186)),MAX($Y$4:Y185)+1,0) -> 182 | Z186: Bank Interest Expense | AB186: =IFERROR(VLOOKUP(ROWS($AB$5:AB186),$Y$5:$Z$189,2,0),"") -> Bank Interest Expense
A187: 7450 | B187: Bank Charges Expense | C187: Expenditure | D187: Financial | E187: Y | F187: ='Monthly Income & Exp. Reports'!O194 -> 0 | J187: 0 | L187: DN | Y187: =IF(ISNUMBER(SEARCH($K$2,B187)),MAX($Y$4:Y186)+1,0) -> 183 | Z187: Bank Charges Expense | AB187: =IFERROR(VLOOKUP(ROWS($AB$5:AB187),$Y$5:$Z$189,2,0),"") -> Bank Charges Expense
A188: 7800 | B188: Reimbursable Expenses | C188: Expenditure | D188: Financial | E188: Y | F188: ='Monthly Income & Exp. Reports'!O195 -> 0 | J188: 0 | L188: DO | Y188: =IF(ISNUMBER(SEARCH($K$2,B188)),MAX($Y$4:Y187)+1,0) -> 184 | Z188: Reimbursable Expenses | AB188: =IFERROR(VLOOKUP(ROWS($AB$5:AB188),$Y$5:$Z$189,2,0),"") -> Reimbursable Expenses
A189: 7850 | B189: Discounts Received | C189: Expenditure | D189: Financial | E189: N | F189: ='Monthly Income & Exp. Reports'!O196 -> 0 | J189: 0 | L189: DP | Y189: =IF(ISNUMBER(SEARCH($K$2,B189)),MAX($Y$4:Y188)+1,0) -> 185 | Z189: Discounts Received | AB189: =IFERROR(VLOOKUP(ROWS($AB$5:AB189),$Y$5:$Z$189,2,0),"") -> Discounts Received
A190: 8000 | B190: Annual Depreciation: Buildings | C190: Expenditure | D190: Depreciation | J190: =F190+G190+H190+I190 -> 0 | AB190: =IFERROR(VLOOKUP(ROWS($AB$5:AB190),$Y$5:$Z$189,2,0),"") -> 
A191: 8020 | B191: Annual Depreciation: Fixtures, Fittings and Equipment | C191: Expenditure | D191: Depreciation | J191: =F191+G191+H191+I191 -> 0 | AB191: =IFERROR(VLOOKUP(ROWS($AB$5:AB191),$Y$5:$Z$189,2,0),"") -> 
A192: 8040 | B192: Annual Depreciation: Motor Vehicles | C192: Expenditure | D192: Depreciation | J192: 0 | AB192: =IFERROR(VLOOKUP(ROWS($AB$5:AB192),$Y$5:$Z$189,2,0),"") -> 
A193: 8060 | B193: Annual Depreciation: ICT | C193: Expenditure | D193: Depreciation | J193: 0 | AB193: =IFERROR(VLOOKUP(ROWS($AB$5:AB193),$Y$5:$Z$189,2,0),"") -> 
A194: 8080 | B194: Annual Depreciation: Other | C194: Expenditure | D194: Depreciation | J194: 0 | AB194: =IFERROR(VLOOKUP(ROWS($AB$5:AB194),$Y$5:$Z$189,2,0),"") -> 
A195: 1400 | B195: Capital: Land and Buildings Cost B/Fwd | C195: Fixed Asset | D195: Fixed Asset | J195: 0 | AB195: =IFERROR(VLOOKUP(ROWS($AB$5:AB195),$Y$5:$Z$189,2,0),"") -> 
A196: 1401 | B196: Capital: Land and Buildings Additions | C196: Fixed Asset | D196: Fixed Asset | J196: 0
A197: 1402 | B197: Capital: Land and Buildings Disposals | C197: Fixed Asset | D197: Fixed Asset | J197: 0
A198: 1410 | B198: Accumulated Depreciation : Land and Buildings B/Fwd | C198: Fixed Asset | D198: Fixed Asset | J198: 0 | AB198: =IFERROR(VLOOKUP(ROWS($AB$5:AB198),$Y$5:$Z$189,2,0),"") -> 
A199: 1411 | B199: Depreciation: Land and Buildings Current Year | C199: Fixed Asset | D199: Fixed Asset | J199: 0
A200: 1412 | B200: Depreciation: Land and Buildings on Disposal | C200: Fixed Asset | D200: Fixed Asset | J200: 0
... 115 more rows

Sheet Monthly Income & Exp. Reports
B1: Main Menu | C1: Income & Exp. | E1: Capital & Res.
O2: Period Income & Expenditure selection | S2: Monthly Income & Expenditure
B3: =Instructions!G4 -> Enter
B4: Management Information Board of Management Only
B5: MONTHLY SCHOOL INCOME AND EXPENDITURE REPORT | O5: Total | S5: September
B7: SCHOOL INCOME | C7: September | D7: October | E7: November | F7: December | G7: January | H7: February | I7: March | J7: April | K7: May | L7: June | M7: July | N7: August | O7: Total | R7: SCHOOL MONTHLY INCOME | S7: =S5 -> September | T7: Year to date
B8: Capitation/Non Pay Budget | C8: ='Bank Summary Page'!$C$4 -> 0 | D8: ='Bank Summary Page'!$C$5 -> 0 | E8: ='Bank Summary Page'!$C$6 -> 0 | F8: ='Bank Summary Page'!$C$7 -> 0 | G8: ='Bank Summary Page'!$C$8 -> 0 | H8: ='Bank Summary Page'!$C$9 -> 0 | I8: ='Bank Summary Page'!$C$10 -> 0 | J8: ='Bank Summary Page'!$C$11 -> 0 | K8: ='Bank Summary Page'!$C$12 -> 0 | L8: ='Bank Summary Page'!$C$13 -> 0 | M8: ='Bank Summary Page'!$C$14 -> 0 | N8: ='Bank Summary Page'!$C$15 -> 0 | O8: =(CELL("width",C8)>0)*C8+(CELL("width",D8)>0)*D8+(CELL("width",E8)>0)*E8+(CELL("width",F8)>0)*F8+(CELL("width",G8)>0)*G8+(CELL("width",H8)>0)*H8+(CELL("width",I8)>0)*I8+(CELL("width",J8)>0)*J8+(CELL("width",K8)>0)*K8+(CELL("width",L8)>0)*L8+(CELL("width",M8)>0)*M8+(CELL("width",N8)>0)*N8 -> 0 | Q8: =IF(COA!$E$5="Y","Show","Hide") -> Show | R8: Capitation/Non Pay Budget | S8: =INDEX($C$8:$O$80,MATCH(R8,$B$8:$B$80,0),MATCH($S$7,$C$7:$O$7,0)) -> 0 | T8: =SUM(C8:N8) -> 0 | W8: =IF(AND(O8=0,Q8="Show"),"N","Y") -> N
B9: DEIS Grant | C9: ='Bank Summary Page'!$D$4 -> 0 | D9: ='Bank Summary Page'!$D$5 -> 0 | E9: ='Bank Summary Page'!$D$6 -> 0 | F9: ='Bank Summary Page'!$D$7 -> 0 | G9: ='Bank Summary Page'!$D$8 -> 0 | H9: ='Bank Summary Page'!$D$9 -> 0 | I9: ='Bank Summary Page'!$D$10 -> 0 | J9: ='Bank Summary Page'!$D$11 -> 0 | K9: ='Bank Summary Page'!$D$12 -> 0 | L9: ='Bank Summary Page'!$D$13 -> 0 | M9: ='Bank Summary Page'!$D$14 -> 0 | N9: ='Bank Summary Page'!$D$15 -> 0 | O9: =(CELL("width",C9)>0)*C9+(CELL("width",D9)>0)*D9+(CELL("width",E9)>0)*E9+(CELL("width",F9)>0)*F9+(CELL("width",G9)>0)*G9+(CELL("width",H9)>0)*H9+(CELL("width",I9)>0)*I9+(CELL("width",J9)>0)*J9+(CELL("width",K9)>0)*K9+(CELL("width",L9)>0)*L9+(CELL("width",M9)>0)*M9+(CELL("width",N9)>0)*N9 -> 0 | Q9: =IF(COA!$E$6="Y","Show","Hide") -> Show | R9: DEIS Grant | S9: =INDEX($C$8:$O$80,MATCH(R9,$B$8:$B$80,0),MATCH($S$7,$C$7:$O$7,0)) -> 0 | T9: =SUM(C9:N9) -> 0 | W9: =IF(AND(O9=0,Q9="Show"),"N","Y") -> N
B10: Early Start Programme Mat/Equip/Par Inv Grant | C10: ='Bank Summary Page'!$E$4 -> 0 | D10: ='Bank Summary Page'!$E$5 -> 0 | E10: ='Bank Summary Page'!$E$6 -> 0 | F10: ='Bank Summary Page'!$E$7 -> 0 | G10: ='Bank Summary Page'!$E$8 -> 0 | H10: ='Bank Summary Page'!$E$9 -> 0 | I10: ='Bank Summary Page'!$E$10 -> 0 | J10: ='Bank Summary Page'!$E$11 -> 0 | K10: ='Bank Summary Page'!$E$12 -> 0 | L10: ='Bank Summary Page'!$E$13 -> 0 | M10: ='Bank Summary Page'!$E$14 -> 0 | N10: ='Bank Summary Page'!$E$15 -> 0 | O10: 0 | Q10: =IF(COA!$E$7="Y","Show","Hide") -> Hide | R10: Early Start Programme Mat/Equip/Par Inv Grant | S10: 0 | T10: 0 | W10: Y
B11: Early Start Programme Capitation | C11: ='Bank Summary Page'!$F$4 -> 0 | D11: ='Bank Summary Page'!$F$5 -> 0 | E11: ='Bank Summary Page'!$F$6 -> 0 | F11: ='Bank Summary Page'!$F$7 -> 0 | G11: ='Bank Summary Page'!$F$8 -> 0 | H11: ='Bank Summary Page'!$F$9 -> 0 | I11: ='Bank Summary Page'!$F$10 -> 0 | J11: ='Bank Summary Page'!$F$11 -> 0 | K11: ='Bank Summary Page'!$F$12 -> 0 | L11: ='Bank Summary Page'!$F$13 -> 0 | M11: ='Bank Summary Page'!$F$14 -> 0 | N11: ='Bank Summary Page'!$F$15 -> 0 | O11: 0 | Q11: =IF(COA!$E$8="Y","Show","Hide") -> Hide | R11: Early Start Programme Capitation | S11: 0 | T11: 0 | W11: Y
B12: Ancillary/School Support Services Grant | C12: ='Bank Summary Page'!$G$4 -> 0 | D12: ='Bank Summary Page'!$G$5 -> 0 | E12: ='Bank Summary Page'!$G$6 -> 0 | F12: ='Bank Summary Page'!$G$7 -> 0 | G12: ='Bank Summary Page'!$G$8 -> 0 | H12: ='Bank Summary Page'!$G$9 -> 0 | I12: ='Bank Summary Page'!$G$10 -> 0 | J12: ='Bank Summary Page'!$G$11 -> 0 | K12: ='Bank Summary Page'!$G$12 -> 0 | L12: ='Bank Summary Page'!$G$13 -> 0 | M12: ='Bank Summary Page'!$G$14 -> 0 | N12: ='Bank Summary Page'!$G$15 -> 0 | O12: 0 | Q12: =IF(COA!$E$9="Y","Show","Hide") -> Show | R12: Ancillary/School Support Services Grant | S12: 0 | T12: 0 | W12: N
B13: Special Education Equipment Grant | C13: ='Bank Summary Page'!$H$4 -> 0 | D13: ='Bank Summary Page'!$H$5 -> 0 | E13: ='Bank Summary Page'!$H$6 -> 0 | F13: ='Bank Summary Page'!$H$7 -> 0 | G13: ='Bank Summary Page'!$H$8 -> 0 | H13: ='Bank Summary Page'!$H$9 -> 0 | I13: ='Bank Summary Page'!$H$10 -> 0 | J13: ='Bank Summary Page'!$H$11 -> 0 | K13: ='Bank Summary Page'!$H$12 -> 0 | L13: ='Bank Summary Page'!$H$13 -> 0 | M13: ='Bank Summary Page'!$H$14 -> 0 | N13: ='Bank Summary Page'!$H$15 -> 0 | O13: 0 | Q13: =IF(COA!$E$10="Y","Show","Hide") -> Show | R13: Special Education Equipment Grant | S13: 0 | T13: 0 | W13: N
B14: Free Schoolbook Grant | C14: ='Bank Summary Page'!$I$4 -> 0 | D14: ='Bank Summary Page'!$I$5 -> 0 | E14: ='Bank Summary Page'!$I$6 -> 0 | F14: ='Bank Summary Page'!$I$7 -> 0 | G14: ='Bank Summary Page'!$I$8 -> 0 | H14: ='Bank Summary Page'!$I$9 -> 0 | I14: ='Bank Summary Page'!$I$10 -> 0 | J14: ='Bank Summary Page'!$I$11 -> 0 | K14: ='Bank Summary Page'!$I$12 -> 0 | L14: ='Bank Summary Page'!$I$13 -> 0 | M14: ='Bank Summary Page'!$I$14 -> 0 | N14: ='Bank Summary Page'!$I$15 -> 0 | O14: 0 | Q14: =IF(COA!$E$11="Y","Show","Hide") -> Show | R14: Free Schoolbook Grant | S14: 0 | T14: 0 | W14: N
B15: Free Schoolbook Admin Grant | C15: ='Bank Summary Page'!$J$4 -> 0 | D15: ='Bank Summary Page'!$J$5 -> 0 | E15: ='Bank Summary Page'!$J$6 -> 0 | F15: ='Bank Summary Page'!$J$7 -> 0 | G15: ='Bank Summary Page'!$J$8 -> 0 | H15: ='Bank Summary Page'!$J$9 -> 0 | I15: ='Bank Summary Page'!$J$10 -> 0 | J15: ='Bank Summary Page'!$J$11 -> 0 | K15: ='Bank Summary Page'!$J$12 -> 0 | L15: ='Bank Summary Page'!$J$13 -> 0 | M15: ='Bank Summary Page'!$J$14 -> 0 | N15: ='Bank Summary Page'!$J$15 -> 0 | O15: 0 | Q15: =IF(COA!$E$12="Y","Show","Hide") -> Show | R15: Free Schoolbook Admin Grant | S15: 0 | T15: 0 | W15: N
B16: School Library Books Capital Grant | C16: ='Bank Summary Page'!$K$4 -> 0 | D16: ='Bank Summary Page'!$K$5 -> 0 | E16: ='Bank Summary Page'!$K$6 -> 0 | F16: ='Bank Summary Page'!$K$7 -> 0 | G16: ='Bank Summary Page'!$K$8 -> 0 | H16: ='Bank Summary Page'!$K$9 -> 0 | I16: ='Bank Summary Page'!$K$10 -> 0 | J16: ='Bank Summary Page'!$K$11 -> 0 | K16: ='Bank Summary Page'!$K$12 -> 0 | L16: ='Bank Summary Page'!$K$13 -> 0 | M16: ='Bank Summary Page'!$K$14 -> 0 | N16: ='Bank Summary Page'!$K$15 -> 0 | O16: 0 | Q16: =IF(COA!$E$13="Y","Show","Hide") -> Hide | R16: School Library Books Capital Grant | S16: 0 | T16: 0 | W16: Y
B17: Special Subject Grant | C17: ='Bank Summary Page'!$L$4 -> 0 | D17: ='Bank Summary Page'!$L$5 -> 0 | E17: ='Bank Summary Page'!$L$6 -> 0 | F17: ='Bank Summary Page'!$L$7 -> 0 | G17: ='Bank Summary Page'!$L$8 -> 0 | H17: ='Bank Summary Page'!$L$9 -> 0 | I17: ='Bank Summary Page'!$L$10 -> 0 | J17: ='Bank Summary Page'!$L$11 -> 0 | K17: ='Bank Summary Page'!$L$12 -> 0 | L17: ='Bank Summary Page'!$L$13 -> 0 | M17: ='Bank Summary Page'!$L$14 -> 0 | N17: ='Bank Summary Page'!$L$15 -> 0 | O17: 0 | Q17: =IF(COA!$E$14="Y","Show","Hide") -> Hide | R17: Special Subject Grant | S17: 0 | T17: 0 | W17: Y
B18: Irish & Bilingual School Grant | C18: ='Bank Summary Page'!$M$4 -> 0 | D18: ='Bank Summary Page'!$M$5 -> 0 | E18: ='Bank Summary Page'!$M$6 -> 0 | F18: ='Bank Summary Page'!$M$7 -> 0 | G18: ='Bank Summary Page'!$M$8 -> 0 | H18: ='Bank Summary Page'!$M$9 -> 0 | I18: ='Bank Summary Page'!$M$10 -> 0 | J18: ='Bank Summary Page'!$M$11 -> 0 | K18: ='Bank Summary Page'!$M$12 -> 0 | L18: ='Bank Summary Page'!$M$13 -> 0 | M18: ='Bank Summary Page'!$M$14 -> 0 | N18: ='Bank Summary Page'!$M$15 -> 0 | O18: 0 | Q18: =IF(COA!$E$15="Y","Show","Hide") -> Hide | R18: Irish & Bilingual School Grant | S18: 0 | T18: 0 | W18: Y
B19: JCSP Grant | C19: ='Bank Summary Page'!$N$4 -> 0 | D19: ='Bank Summary Page'!$N$5 -> 0 | E19: ='Bank Summary Page'!$N$6 -> 0 | F19: ='Bank Summary Page'!$N$7 -> 0 | G19: ='Bank Summary Page'!$N$8 -> 0 | H19: ='Bank Summary Page'!$N$9 -> 0 | I19: ='Bank Summary Page'!$N$10 -> 0 | J19: ='Bank Summary Page'!$N$11 -> 0 | K19: ='Bank Summary Page'!$N$12 -> 0 | L19: ='Bank Summary Page'!$N$13 -> 0 | M19: ='Bank Summary Page'!$N$14 -> 0 | N19: ='Bank Summary Page'!$N$15 -> 0 | O19: 0 | Q19: =IF(COA!$E$16="Y","Show","Hide") -> Hide | R19: JCSP Grant | S19: 0 | T19: 0 | W19: Y
B20: Transition Year Grant | C20: ='Bank Summary Page'!$O$4 -> 0 | D20: ='Bank Summary Page'!$O$5 -> 0 | E20: ='Bank Summary Page'!$O$6 -> 0 | F20: ='Bank Summary Page'!$O$7 -> 0 | G20: ='Bank Summary Page'!$O$8 -> 0 | H20: ='Bank Summary Page'!$O$9 -> 0 | I20: ='Bank Summary Page'!$O$10 -> 0 | J20: ='Bank Summary Page'!$O$11 -> 0 | K20: ='Bank Summary Page'!$O$12 -> 0 | L20: ='Bank Summary Page'!$O$13 -> 0 | M20: ='Bank Summary Page'!$O$14 -> 0 | N20: ='Bank Summary Page'!$O$15 -> 0 | O20: 0 | Q20: =IF(COA!$E$17="Y","Show","Hide") -> Hide | R20: Transition Year Grant | S20: 0 | T20: 0 | W20: Y
B21: Leaving Certificate Applied Grant | C21: ='Bank Summary Page'!$P$4 -> 0 | D21: ='Bank Summary Page'!$P$5 -> 0 | E21: ='Bank Summary Page'!$P$6 -> 0 | F21: ='Bank Summary Page'!$P$7 -> 0 | G21: ='Bank Summary Page'!$P$8 -> 0 | H21: ='Bank Summary Page'!$P$9 -> 0 | I21: ='Bank Summary Page'!$P$10 -> 0 | J21: ='Bank Summary Page'!$P$11 -> 0 | K21: ='Bank Summary Page'!$P$12 -> 0 | L21: ='Bank Summary Page'!$P$13 -> 0 | M21: ='Bank Summary Page'!$P$14 -> 0 | N21: ='Bank Summary Page'!$P$15 -> 0 | O21: 0 | Q21: =IF(COA!$E$18="Y","Show","Hide") -> Hide | R21: Leaving Certificate Applied Grant | S21: 0 | T21: 0 | W21: Y
B22: Amortisation of DE Equipment Grants | C22: ='Bank Summary Page'!$Q$4 -> 0 | D22: ='Bank Summary Page'!$Q$5 -> 0 | E22: ='Bank Summary Page'!$Q$6 -> 0 | F22: ='Bank Summary Page'!$Q$7 -> 0 | G22: ='Bank Summary Page'!$Q$8 -> 0 | H22: ='Bank Summary Page'!$Q$9 -> 0 | I22: ='Bank Summary Page'!$Q$10 -> 0 | J22: ='Bank Summary Page'!$Q$11 -> 0 | K22: ='Bank Summary Page'!$Q$12 -> 0 | L22: ='Bank Summary Page'!$Q$13 -> 0 | M22: ='Bank Summary Page'!$Q$14 -> 0 | N22: ='Bank Summary Page'!$Q$15 -> 0 | O22: 0 | Q22: =IF(COA!$E$19="Y","Show","Hide") -> Hide | R22: Amortisation of DE Equipment Grants | S22: 0 | T22: 0 | W22: Y
B23: Amortisation of DE ICT Grants | C23: ='Bank Summary Page'!$R$4 -> 0 | D23: ='Bank Summary Page'!$R$5 -> 0 | E23: ='Bank Summary Page'!$R$6 -> 0 | F23: ='Bank Summary Page'!$R$7 -> 0 | G23: ='Bank Summary Page'!$R$8 -> 0 | H23: ='Bank Summary Page'!$R$9 -> 0 | I23: ='Bank Summary Page'!$R$10 -> 0 | J23: ='Bank Summary Page'!$R$11 -> 0 | K23: ='Bank Summary Page'!$R$12 -> 0 | L23: ='Bank Summary Page'!$R$13 -> 0 | M23: ='Bank Summary Page'!$R$14 -> 0 | N23: ='Bank Summary Page'!$R$15 -> 0 | O23: 0 | Q23: =IF(COA!$E$20="Y","Show","Hide") -> Hide | R23: Amortisation of DE ICT Grants | S23: 0 | T23: 0 | W23: Y
B24: Amortisation of Other DE Grants | C24: ='Bank Summary Page'!$S$4 -> 0 | D24: ='Bank Summary Page'!$S$5 -> 0 | E24: ='Bank Summary Page'!$S$6 -> 0 | F24: ='Bank Summary Page'!$S$7 -> 0 | G24: ='Bank Summary Page'!$S$8 -> 0 | H24: ='Bank Summary Page'!$S$9 -> 0 | I24: ='Bank Summary Page'!$S$10 -> 0 | J24: ='Bank Summary Page'!$S$11 -> 0 | K24: ='Bank Summary Page'!$S$12 -> 0 | L24: ='Bank Summary Page'!$S$13 -> 0 | M24: ='Bank Summary Page'!$S$14 -> 0 | N24: ='Bank Summary Page'!$S$15 -> 0 | O24: 0 | Q24: =IF(COA!$E$21="Y","Show","Hide") -> Hide | R24: Amortisation of Other DE Grants | S24: 0 | T24: 0 | W24: Y
B25: ICT Grant | C25: ='Bank Summary Page'!$T$4 -> 0 | D25: ='Bank Summary Page'!$T$5 -> 0 | E25: ='Bank Summary Page'!$T$6 -> 0 | F25: ='Bank Summary Page'!$T$7 -> 0 | G25: ='Bank Summary Page'!$T$8 -> 0 | H25: ='Bank Summary Page'!$T$9 -> 0 | I25: ='Bank Summary Page'!$T$10 -> 0 | J25: ='Bank Summary Page'!$T$11 -> 0 | K25: ='Bank Summary Page'!$T$12 -> 0 | L25: ='Bank Summary Page'!$T$13 -> 0 | M25: ='Bank Summary Page'!$T$14 -> 0 | N25: ='Bank Summary Page'!$T$15 -> 0 | O25: 0 | Q25: =IF(COA!$E$22="Y","Show","Hide") -> Show | R25: ICT Grant | S25: 0 | T25: 0 | W25: N
B26: School Excellence Fund Income | C26: ='Bank Summary Page'!$U$4 -> 0 | D26: ='Bank Summary Page'!$U$5 -> 0 | E26: ='Bank Summary Page'!$U$6 -> 0 | F26: ='Bank Summary Page'!$U$7 -> 0 | G26: ='Bank Summary Page'!$U$8 -> 0 | H26: ='Bank Summary Page'!$U$9 -> 0 | I26: ='Bank Summary Page'!$U$10 -> 0 | J26: ='Bank Summary Page'!$U$11 -> 0 | K26: ='Bank Summary Page'!$U$12 -> 0 | L26: ='Bank Summary Page'!$U$13 -> 0 | M26: ='Bank Summary Page'!$U$14 -> 0 | N26: ='Bank Summary Page'!$U$15 -> 0 | O26: 0 | Q26: =IF(COA!$E$23="Y","Show","Hide") -> Hide | R26: School Excellence Fund Income | S26: 0 | T26: 0 | W26: Y
B27: Minor Works Grant-Non Capital | C27: ='Bank Summary Page'!$V$4 -> 0 | D27: ='Bank Summary Page'!$V$5 -> 0 | E27: ='Bank Summary Page'!$V$6 -> 0 | F27: ='Bank Summary Page'!$V$7 -> 0 | G27: ='Bank Summary Page'!$V$8 -> 0 | H27: ='Bank Summary Page'!$V$9 -> 0 | I27: ='Bank Summary Page'!$V$10 -> 0 | J27: ='Bank Summary Page'!$V$11 -> 0 | K27: ='Bank Summary Page'!$V$12 -> 0 | L27: ='Bank Summary Page'!$V$13 -> 0 | M27: ='Bank Summary Page'!$V$14 -> 0 | N27: ='Bank Summary Page'!$V$15 -> 0 | O27: 0 | Q27: =IF(COA!$E$24="Y","Show","Hide") -> Show | R27: Minor Works Grant-Non Capital | S27: 0 | T27: 0 | W27: N
B28: Temporary Accommodation Grant Income | C28: ='Bank Summary Page'!$W$4 -> 0 | D28: ='Bank Summary Page'!$W$5 -> 0 | E28: ='Bank Summary Page'!$W$6 -> 0 | F28: ='Bank Summary Page'!$W$7 -> 0 | G28: ='Bank Summary Page'!$W$8 -> 0 | H28: ='Bank Summary Page'!$W$9 -> 0 | I28: ='Bank Summary Page'!$W$10 -> 0 | J28: ='Bank Summary Page'!$W$11 -> 0 | K28: ='Bank Summary Page'!$W$12 -> 0 | L28: ='Bank Summary Page'!$W$13 -> 0 | M28: ='Bank Summary Page'!$W$14 -> 0 | N28: ='Bank Summary Page'!$W$15 -> 0 | O28: 0 | Q28: =IF(COA!$E$25="Y","Show","Hide") -> Show | R28: Temporary Accommodation Grant Income | S28: 0 | T28: 0 | W28: N
B29: COVID Minor Works Grant | C29: ='Bank Summary Page'!$X$4 -> 0 | D29: ='Bank Summary Page'!$X$5 -> 0 | E29: ='Bank Summary Page'!$X$6 -> 0 | F29: ='Bank Summary Page'!$X$7 -> 0 | G29: ='Bank Summary Page'!$X$8 -> 0 | H29: ='Bank Summary Page'!$X$9 -> 0 | I29: ='Bank Summary Page'!$X$10 -> 0 | J29: ='Bank Summary Page'!$X$11 -> 0 | K29: ='Bank Summary Page'!$X$12 -> 0 | L29: ='Bank Summary Page'!$X$13 -> 0 | M29: ='Bank Summary Page'!$X$14 -> 0 | N29: ='Bank Summary Page'!$X$15 -> 0 | O29: 0 | Q29: =IF(COA!$E$26="Y","Show","Hide") -> Hide | R29: COVID Minor Works Grant | S29: 0 | T29: 0 | W29: Y
B30: COVID Capitation for Cleaning and PPE Grant | C30: ='Bank Summary Page'!$Y$4 -> 0 | D30: ='Bank Summary Page'!$Y$5 -> 0 | E30: ='Bank Summary Page'!$Y$6 -> 0 | F30: ='Bank Summary Page'!$Y$7 -> 0 | G30: ='Bank Summary Page'!$Y$8 -> 0 | H30: ='Bank Summary Page'!$Y$9 -> 0 | I30: ='Bank Summary Page'!$Y$10 -> 0 | J30: ='Bank Summary Page'!$Y$11 -> 0 | K30: ='Bank Summary Page'!$Y$12 -> 0 | L30: ='Bank Summary Page'!$Y$13 -> 0 | M30: ='Bank Summary Page'!$Y$14 -> 0 | N30: ='Bank Summary Page'!$Y$15 -> 0 | O30: 0 | Q30: =IF(COA!$E$27="Y","Show","Hide") -> Hide | R30: COVID Capitation for Cleaning and PPE Grant | S30: 0 | T30: 0 | W30: Y
B31: Once-Off Cost of Living Grant | C31: ='Bank Summary Page'!$Z$4 -> 0 | D31: ='Bank Summary Page'!$Z$5 -> 0 | E31: ='Bank Summary Page'!$Z$6 -> 0 | F31: ='Bank Summary Page'!$Z$7 -> 0 | G31: ='Bank Summary Page'!$Z$8 -> 0 | H31: ='Bank Summary Page'!$Z$9 -> 0 | I31: ='Bank Summary Page'!$Z$10 -> 0 | J31: ='Bank Summary Page'!$Z$11 -> 0 | K31: ='Bank Summary Page'!$Z$12 -> 0 | L31: ='Bank Summary Page'!$Z$13 -> 0 | M31: ='Bank Summary Page'!$Z$14 -> 0 | N31: ='Bank Summary Page'!$Z$15 -> 0 | O31: 0 | Q31: =IF(COA!$E$28="Y","Show","Hide") -> Show | R31: Once-Off Cost of Living Grant | S31: 0 | T31: 0 | W31: N
B32: Other Non Capital DE Grant Income | C32: ='Bank Summary Page'!$AA$4 -> 0 | D32: ='Bank Summary Page'!$AA$5 -> 0 | E32: ='Bank Summary Page'!$AA$6 -> 0 | F32: ='Bank Summary Page'!$AA$7 -> 0 | G32: ='Bank Summary Page'!$AA$8 -> 0 | H32: ='Bank Summary Page'!$AA$9 -> 0 | I32: ='Bank Summary Page'!$AA$10 -> 0 | J32: ='Bank Summary Page'!$AA$11 -> 0 | K32: ='Bank Summary Page'!$AA$12 -> 0 | L32: ='Bank Summary Page'!$AA$13 -> 0 | M32: ='Bank Summary Page'!$AA$14 -> 0 | N32: ='Bank Summary Page'!$AA$15 -> 0 | O32: 0 | Q32: =IF(COA!$E$29="Y","Show","Hide") -> Show | R32: Other Non Capital DE Grant Income | S32: 0 | T32: 0 | W32: N
B33: Standardised Testing Grant | C33: ='Bank Summary Page'!$AB$4 -> 0 | D33: ='Bank Summary Page'!$AB$5 -> 0 | E33: ='Bank Summary Page'!$AB$6 -> 0 | F33: ='Bank Summary Page'!$AB$7 -> 0 | G33: ='Bank Summary Page'!$AB$8 -> 0 | H33: ='Bank Summary Page'!$AB$9 -> 0 | I33: ='Bank Summary Page'!$AB$10 -> 0 | J33: ='Bank Summary Page'!$AB$11 -> 0 | K33: ='Bank Summary Page'!$AB$12 -> 0 | L33: ='Bank Summary Page'!$AB$13 -> 0 | M33: ='Bank Summary Page'!$AB$14 -> 0 | N33: ='Bank Summary Page'!$AB$15 -> 0 | O33: 0 | Q33: =IF(COA!$E$30="Y","Show","Hide") -> Show | R33: Standardised Testing Grant | S33: 0 | T33: 0 | W33: N
B34: Summer Provision Grant | C34: ='Bank Summary Page'!$AC$4 -> 0 | D34: ='Bank Summary Page'!$AC$5 -> 0 | E34: ='Bank Summary Page'!$AC$6 -> 0 | F34: ='Bank Summary Page'!$AC$7 -> 0 | G34: ='Bank Summary Page'!$AC$8 -> 0 | H34: ='Bank Summary Page'!$AC$9 -> 0 | I34: ='Bank Summary Page'!$AC$10 -> 0 | J34: ='Bank Summary Page'!$AC$11 -> 0 | K34: ='Bank Summary Page'!$AC$12 -> 0 | L34: ='Bank Summary Page'!$AC$13 -> 0 | M34: ='Bank Summary Page'!$AC$14 -> 0 | N34: ='Bank Summary Page'!$AC$15 -> 0 | O34: 0 | Q34: =IF(COA!$E$31="Y","Show","Hide") -> Show | R34: Summer Provision Grant | S34: 0 | T34: 0 | W34: N
B35: Bus Escort Grant | C35: ='Bank Summary Page'!$AD$4 -> 0 | D35: ='Bank Summary Page'!$AD$5 -> 0 | E35: ='Bank Summary Page'!$AD$6 -> 0 | F35: ='Bank Summary Page'!$AD$7 -> 0 | G35: ='Bank Summary Page'!$AD$8 -> 0 | H35: ='Bank Summary Page'!$AD$9 -> 0 | I35: ='Bank Summary Page'!$AD$10 -> 0 | J35: ='Bank Summary Page'!$AD$11 -> 0 | K35: ='Bank Summary Page'!$AD$12 -> 0 | L35: ='Bank Summary Page'!$AD$13 -> 0 | M35: ='Bank Summary Page'!$AD$14 -> 0 | N35: ='Bank Summary Page'!$AD$15 -> 0 | O35: 0 | Q35: =IF(COA!$E$32="Y","Show","Hide") -> Show | R35: Bus Escort Grant | S35: 0 | T35: 0 | W35: N
B36: Department of Children and Youth Affairs Income | C36: ='Bank Summary Page'!$AE$4 -> 0 | D36: ='Bank Summary Page'!$AE$5 -> 0 | E36: ='Bank Summary Page'!$AE$6 -> 0 | F36: ='Bank Summary Page'!$AE$7 -> 0 | G36: ='Bank Summary Page'!$AE$8 -> 0 | H36: ='Bank Summary Page'!$AE$9 -> 0 | I36: ='Bank Summary Page'!$AE$10 -> 0 | J36: ='Bank Summary Page'!$AE$11 -> 0 | K36: ='Bank Summary Page'!$AE$12 -> 0 | L36: ='Bank Summary Page'!$AE$13 -> 0 | M36: ='Bank Summary Page'!$AE$14 -> 0 | N36: ='Bank Summary Page'!$AE$15 -> 0 | O36: 0 | Q36: =IF(COA!$E$33="Y","Show","Hide") -> Hide | R36: Department of Children and Youth Affairs Income | S36: 0 | T36: 0 | W36: Y
B37: DSP School Meals Grant | C37: ='Bank Summary Page'!$AF$4 -> 0 | D37: ='Bank Summary Page'!$AF$5 -> 0 | E37: ='Bank Summary Page'!$AF$6 -> 0 | F37: ='Bank Summary Page'!$AF$7 -> 0 | G37: ='Bank Summary Page'!$AF$8 -> 0 | H37: ='Bank Summary Page'!$AF$9 -> 0 | I37: ='Bank Summary Page'!$AF$10 -> 0 | J37: ='Bank Summary Page'!$AF$11 -> 0 | K37: ='Bank Summary Page'!$AF$12 -> 0 | L37: ='Bank Summary Page'!$AF$13 -> 0 | M37: ='Bank Summary Page'!$AF$14 -> 0 | N37: ='Bank Summary Page'!$AF$15 -> 0 | O37: 0 | Q37: =IF(COA!$E$34="Y","Show","Hide") -> Show | R37: DSP School Meals Grant | S37: 0 | T37: 0 | W37: N
B38: Erasmus Income | C38: ='Bank Summary Page'!$AG$4 -> 0 | D38: ='Bank Summary Page'!$AG$5 -> 0 | E38: ='Bank Summary Page'!$AG$6 -> 0 | F38: ='Bank Summary Page'!$AG$7 -> 0 | G38: ='Bank Summary Page'!$AG$8 -> 0 | H38: ='Bank Summary Page'!$AG$9 -> 0 | I38: ='Bank Summary Page'!$AG$10 -> 0 | J38: ='Bank Summary Page'!$AG$11 -> 0 | K38: ='Bank Summary Page'!$AG$12 -> 0 | L38: ='Bank Summary Page'!$AG$13 -> 0 | M38: ='Bank Summary Page'!$AG$14 -> 0 | N38: ='Bank Summary Page'!$AG$15 -> 0 | O38: 0 | Q38: =IF(COA!$E$35="Y","Show","Hide") -> Hide | R38: Erasmus Income | S38: 0 | T38: 0 | W38: Y
B39: HSE Funding | C39: ='Bank Summary Page'!$AH$4 -> 0 | D39: ='Bank Summary Page'!$AH$5 -> 0 | E39: ='Bank Summary Page'!$AH$6 -> 0 | F39: ='Bank Summary Page'!$AH$7 -> 0 | G39: ='Bank Summary Page'!$AH$8 -> 0 | H39: ='Bank Summary Page'!$AH$9 -> 0 | I39: ='Bank Summary Page'!$AH$10 -> 0 | J39: ='Bank Summary Page'!$AH$11 -> 0 | K39: ='Bank Summary Page'!$AH$12 -> 0 | L39: ='Bank Summary Page'!$AH$13 -> 0 | M39: ='Bank Summary Page'!$AH$14 -> 0 | N39: ='Bank Summary Page'!$AH$15 -> 0 | O39: 0 | Q39: =IF(COA!$E$36="Y","Show","Hide") -> Hide | R39: HSE Funding | S39: 0 | T39: 0 | W39: Y
B40: Other State Funding | C40: ='Bank Summary Page'!$AI$4 -> 0 | D40: ='Bank Summary Page'!$AI$5 -> 0 | E40: ='Bank Summary Page'!$AI$6 -> 0 | F40: ='Bank Summary Page'!$AI$7 -> 0 | G40: ='Bank Summary Page'!$AI$8 -> 0 | H40: ='Bank Summary Page'!$AI$9 -> 0 | I40: ='Bank Summary Page'!$AI$10 -> 0 | J40: ='Bank Summary Page'!$AI$11 -> 0 | K40: ='Bank Summary Page'!$AI$12 -> 0 | L40: ='Bank Summary Page'!$AI$13 -> 0 | M40: ='Bank Summary Page'!$AI$14 -> 0 | N40: ='Bank Summary Page'!$AI$15 -> 0 | O40: 0 | Q40: =IF(COA!$E$37="Y","Show","Hide") -> Show | R40: Other State Funding | S40: =INDEX($C$8:$O$80,MATCH(R40,$B$8:$B$80,0),MATCH($S$7,$C$7:$O$7,0)) -> 0 | T40: 0 | W40: N
B41: Education Fees (Fee paying schools) | C41: ='Bank Summary Page'!$AJ$4 -> 0 | D41: ='Bank Summary Page'!$AJ$5 -> 0 | E41: ='Bank Summary Page'!$AJ$6 -> 0 | F41: ='Bank Summary Page'!$AJ$7 -> 0 | G41: ='Bank Summary Page'!$AJ$8 -> 0 | H41: ='Bank Summary Page'!$AJ$9 -> 0 | I41: ='Bank Summary Page'!$AJ$10 -> 0 | J41: ='Bank Summary Page'!$AJ$11 -> 0 | K41: ='Bank Summary Page'!$AJ$12 -> 0 | L41: ='Bank Summary Page'!$AJ$13 -> 0 | M41: ='Bank Summary Page'!$AJ$14 -> 0 | N41: ='Bank Summary Page'!$AJ$15 -> 0 | O41: 0 | Q41: =IF(COA!$E$38="Y","Show","Hide") -> Hide | R41: Education Fees (Fee paying schools) | S41: 0 | T41: 0 | W41: Y
B42: Transition Year Income | C42: ='Bank Summary Page'!$AK$4 -> 0 | D42: ='Bank Summary Page'!$AK$5 -> 0 | E42: ='Bank Summary Page'!$AK$6 -> 0 | F42: ='Bank Summary Page'!$AK$7 -> 0 | G42: ='Bank Summary Page'!$AK$8 -> 0 | H42: ='Bank Summary Page'!$AK$9 -> 0 | I42: ='Bank Summary Page'!$AK$10 -> 0 | J42: ='Bank Summary Page'!$AK$11 -> 0 | K42: ='Bank Summary Page'!$AK$12 -> 0 | L42: ='Bank Summary Page'!$AK$13 -> 0 | M42: ='Bank Summary Page'!$AK$14 -> 0 | N42: ='Bank Summary Page'!$AK$15 -> 0 | O42: 0 | Q42: =IF(COA!$E$39="Y","Show","Hide") -> Hide | R42: Transition Year Income | S42: 0 | T42: 0 | W42: Y
B43: Classroom Books/Resources Income | C43: ='Bank Summary Page'!$AL$4 -> 0 | D43: ='Bank Summary Page'!$AL$5 -> 0 | E43: ='Bank Summary Page'!$AL$6 -> 0 | F43: ='Bank Summary Page'!$AL$7 -> 0 | G43: ='Bank Summary Page'!$AL$8 -> 0 | H43: ='Bank Summary Page'!$AL$9 -> 0 | I43: ='Bank Summary Page'!$AL$10 -> 0 | J43: ='Bank Summary Page'!$AL$11 -> 0 | K43: ='Bank Summary Page'!$AL$12 -> 0 | L43: ='Bank Summary Page'!$AL$13 -> 0 | M43: ='Bank Summary Page'!$AL$14 -> 0 | N43: ='Bank Summary Page'!$AL$15 -> 0 | O43: 0 | Q43: =IF(COA!$E$40="Y","Show","Hide") -> Show | R43: Classroom Books/Resources Income | S43: 0 | T43: 0 | W43: N
B44: Hire of Facilities Rental Income | C44: ='Bank Summary Page'!$AM$4 -> 0 | D44: ='Bank Summary Page'!$AM$5 -> 0 | E44: ='Bank Summary Page'!$AM$6 -> 0 | F44: ='Bank Summary Page'!$AM$7 -> 0 | G44: ='Bank Summary Page'!$AM$8 -> 0 | H44: ='Bank Summary Page'!$AM$9 -> 0 | I44: ='Bank Summary Page'!$AM$10 -> 0 | J44: ='Bank Summary Page'!$AM$11 -> 0 | K44: ='Bank Summary Page'!$AM$12 -> 0 | L44: ='Bank Summary Page'!$AM$13 -> 0 | M44: ='Bank Summary Page'!$AM$14 -> 0 | N44: ='Bank Summary Page'!$AM$15 -> 0 | O44: 0 | Q44: =IF(COA!$E$41="Y","Show","Hide") -> Show | R44: Hire of Facilities Rental Income | S44: 0 | T44: 0 | W44: N
B45: Locker Income | C45: ='Bank Summary Page'!$AN$4 -> 0 | D45: ='Bank Summary Page'!$AN$5 -> 0 | E45: ='Bank Summary Page'!$AN$6 -> 0 | F45: ='Bank Summary Page'!$AN$7 -> 0 | G45: ='Bank Summary Page'!$AN$8 -> 0 | H45: ='Bank Summary Page'!$AN$9 -> 0 | I45: ='Bank Summary Page'!$AN$10 -> 0 | J45: ='Bank Summary Page'!$AN$11 -> 0 | K45: ='Bank Summary Page'!$AN$12 -> 0 | L45: ='Bank Summary Page'!$AN$13 -> 0 | M45: ='Bank Summary Page'!$AN$14 -> 0 | N45: ='Bank Summary Page'!$AN$15 -> 0 | O45: 0 | Q45: =IF(COA!$E$42="Y","Show","Hide") -> Hide | R45: Locker Income | S45: 0 | T45: 0 | W45: Y
B46: Journals and Year Book Income | C46: ='Bank Summary Page'!$AO$4 -> 0 | D46: ='Bank Summary Page'!$AO$5 -> 0 | E46: ='Bank Summary Page'!$AO$6 -> 0 | F46: ='Bank Summary Page'!$AO$7 -> 0 | G46: ='Bank Summary Page'!$AO$8 -> 0 | H46: ='Bank Summary Page'!$AO$9 -> 0 | I46: ='Bank Summary Page'!$AO$10 -> 0 | J46: ='Bank Summary Page'!$AO$11 -> 0 | K46: ='Bank Summary Page'!$AO$12 -> 0 | L46: ='Bank Summary Page'!$AO$13 -> 0 | M46: ='Bank Summary Page'!$AO$14 -> 0 | N46: ='Bank Summary Page'!$AO$15 -> 0 | O46: 0 | Q46: =IF(COA!$E$43="Y","Show","Hide") -> Show | R46: Journals and Year Book Income | S46: 0 | T46: 0 | W46: N
B47: Student Photocopying Income | C47: ='Bank Summary Page'!$AP$4 -> 0 | D47: ='Bank Summary Page'!$AP$5 -> 0 | E47: ='Bank Summary Page'!$AP$6 -> 0 | F47: ='Bank Summary Page'!$AP$7 -> 0 | G47: ='Bank Summary Page'!$AP$8 -> 0 | H47: ='Bank Summary Page'!$AP$9 -> 0 | I47: ='Bank Summary Page'!$AP$10 -> 0 | J47: ='Bank Summary Page'!$AP$11 -> 0 | K47: ='Bank Summary Page'!$AP$12 -> 0 | L47: ='Bank Summary Page'!$AP$13 -> 0 | M47: ='Bank Summary Page'!$AP$14 -> 0 | N47: ='Bank Summary Page'!$AP$15 -> 0 | O47: 0 | Q47: =IF(COA!$E$44="Y","Show","Hide") -> Show | R47: Student Photocopying Income | S47: 0 | T47: 0 | W47: N
B48: School Administration Charges | C48: ='Bank Summary Page'!$AQ$4 -> 0 | D48: ='Bank Summary Page'!$AQ$5 -> 0 | E48: ='Bank Summary Page'!$AQ$6 -> 0 | F48: ='Bank Summary Page'!$AQ$7 -> 0 | G48: ='Bank Summary Page'!$AQ$8 -> 0 | H48: ='Bank Summary Page'!$AQ$9 -> 0 | I48: ='Bank Summary Page'!$AQ$10 -> 0 | J48: ='Bank Summary Page'!$AQ$11 -> 0 | K48: ='Bank Summary Page'!$AQ$12 -> 0 | L48: ='Bank Summary Page'!$AQ$13 -> 0 | M48: ='Bank Summary Page'!$AQ$14 -> 0 | N48: ='Bank Summary Page'!$AQ$15 -> 0 | O48: 0 | Q48: =IF(COA!$E$45="Y","Show","Hide") -> Show | R48: School Administration Charges | S48: 0 | T48: 0 | W48: N
B49: Adult Education Income | C49: ='Bank Summary Page'!$AR$4 -> 0 | D49: ='Bank Summary Page'!$AR$5 -> 0 | E49: ='Bank Summary Page'!$AR$6 -> 0 | F49: ='Bank Summary Page'!$AR$7 -> 0 | G49: ='Bank Summary Page'!$AR$8 -> 0 | H49: ='Bank Summary Page'!$AR$9 -> 0 | I49: ='Bank Summary Page'!$AR$10 -> 0 | J49: ='Bank Summary Page'!$AR$11 -> 0 | K49: ='Bank Summary Page'!$AR$12 -> 0 | L49: ='Bank Summary Page'!$AR$13 -> 0 | M49: ='Bank Summary Page'!$AR$14 -> 0 | N49: ='Bank Summary Page'!$AR$15 -> 0 | O49: 0 | Q49: =IF(COA!$E$46="Y","Show","Hide") -> Hide | R49: Adult Education Income | S49: 0 | T49: 0 | W49: Y
B50: Canteen Income | C50: ='Bank Summary Page'!$AS$4 -> 0 | D50: ='Bank Summary Page'!$AS$5 -> 0 | E50: ='Bank Summary Page'!$AS$6 -> 0 | F50: ='Bank Summary Page'!$AS$7 -> 0 | G50: ='Bank Summary Page'!$AS$8 -> 0 | H50: ='Bank Summary Page'!$AS$9 -> 0 | I50: ='Bank Summary Page'!$AS$10 -> 0 | J50: ='Bank Summary Page'!$AS$11 -> 0 | K50: ='Bank Summary Page'!$AS$12 -> 0 | L50: ='Bank Summary Page'!$AS$13 -> 0 | M50: ='Bank Summary Page'!$AS$14 -> 0 | N50: ='Bank Summary Page'!$AS$15 -> 0 | O50: 0 | Q50: =IF(COA!$E$47="Y","Show","Hide") -> Hide | R50: Canteen Income | S50: 0 | T50: 0 | W50: Y
B51: Tuck Shop Income | C51: ='Bank Summary Page'!$AT$4 -> 0 | D51: ='Bank Summary Page'!$AT$5 -> 0 | E51: ='Bank Summary Page'!$AT$6 -> 0 | F51: ='Bank Summary Page'!$AT$7 -> 0 | G51: ='Bank Summary Page'!$AT$8 -> 0 | H51: ='Bank Summary Page'!$AT$9 -> 0 | I51: ='Bank Summary Page'!$AT$10 -> 0 | J51: ='Bank Summary Page'!$AT$11 -> 0 | K51: ='Bank Summary Page'!$AT$12 -> 0 | L51: ='Bank Summary Page'!$AT$13 -> 0 | M51: ='Bank Summary Page'!$AT$14 -> 0 | N51: ='Bank Summary Page'!$AT$15 -> 0 | O51: 0 | Q51: =IF(COA!$E$48="Y","Show","Hide") -> Show | R51: Tuck Shop Income | S51: 0 | T51: 0 | W51: N
B52: Uniforms Income | C52: ='Bank Summary Page'!$AU$4 -> 0 | D52: ='Bank Summary Page'!$AU$5 -> 0 | E52: ='Bank Summary Page'!$AU$6 -> 0 | F52: ='Bank Summary Page'!$AU$7 -> 0 | G52: ='Bank Summary Page'!$AU$8 -> 0 | H52: ='Bank Summary Page'!$AU$9 -> 0 | I52: ='Bank Summary Page'!$AU$10 -> 0 | J52: ='Bank Summary Page'!$AU$11 -> 0 | K52: ='Bank Summary Page'!$AU$12 -> 0 | L52: ='Bank Summary Page'!$AU$13 -> 0 | M52: ='Bank Summary Page'!$AU$14 -> 0 | N52: ='Bank Summary Page'!$AU$15 -> 0 | O52: 0 | Q52: =IF(COA!$E$49="Y","Show","Hide") -> Show | R52: Uniforms Income | S52: 0 | T52: 0 | W52: N
B53: Religion/Ethos Income | C53: ='Bank Summary Page'!$AV$4 -> 0 | D53: ='Bank Summary Page'!$AV$5 -> 0 | E53: ='Bank Summary Page'!$AV$6 -> 0 | F53: ='Bank Summary Page'!$AV$7 -> 0 | G53: ='Bank Summary Page'!$AV$8 -> 0 | H53: ='Bank Summary Page'!$AV$9 -> 0 | I53: ='Bank Summary Page'!$AV$10 -> 0 | J53: ='Bank Summary Page'!$AV$11 -> 0 | K53: ='Bank Summary Page'!$AV$12 -> 0 | L53: ='Bank Summary Page'!$AV$13 -> 0 | M53: ='Bank Summary Page'!$AV$14 -> 0 | N53: ='Bank Summary Page'!$AV$15 -> 0 | O53: 0 | Q53: =IF(COA!$E$50="Y","Show","Hide") -> Show | R53: Religion/Ethos Income | S53: 0 | T53: 0 | W53: N
B54: After School Study/Club Income | C54: ='Bank Summary Page'!$AW$4 -> 0 | D54: ='Bank Summary Page'!$AW$5 -> 0 | E54: ='Bank Summary Page'!$AW$6 -> 0 | F54: ='Bank Summary Page'!$AW$7 -> 0 | G54: ='Bank Summary Page'!$AW$8 -> 0 | H54: ='Bank Summary Page'!$AW$9 -> 0 | I54: ='Bank Summary Page'!$AW$10 -> 0 | J54: ='Bank Summary Page'!$AW$11 -> 0 | K54: ='Bank Summary Page'!$AW$12 -> 0 | L54: ='Bank Summary Page'!$AW$13 -> 0 | M54: ='Bank Summary Page'!$AW$14 -> 0 | N54: ='Bank Summary Page'!$AW$15 -> 0 | O54: 0 | Q54: =IF(COA!$E$51="Y","Show","Hide") -> Show | R54: After School Study/Club Income | S54: 0 | T54: 0 | W54: N
B55: Games Income | C55: ='Bank Summary Page'!$AX$4 -> 0 | D55: ='Bank Summary Page'!$AX$5 -> 0 | E55: ='Bank Summary Page'!$AX$6 -> 0 | F55: ='Bank Summary Page'!$AX$7 -> 0 | G55: ='Bank Summary Page'!$AX$8 -> 0 | H55: ='Bank Summary Page'!$AX$9 -> 0 | I55: ='Bank Summary Page'!$AX$10 -> 0 | J55: ='Bank Summary Page'!$AX$11 -> 0 | K55: ='Bank Summary Page'!$AX$12 -> 0 | L55: ='Bank Summary Page'!$AX$13 -> 0 | M55: ='Bank Summary Page'!$AX$14 -> 0 | N55: ='Bank Summary Page'!$AX$15 -> 0 | O55: 0 | Q55: =IF(COA!$E$52="Y","Show","Hide") -> Show | R55: Games Income | S55: 0 | T55: 0 | W55: N
B56: Bus Hire for Games Income | C56: ='Bank Summary Page'!$AY$4 -> 0 | D56: ='Bank Summary Page'!$AY$5 -> 0 | E56: ='Bank Summary Page'!$AY$6 -> 0 | F56: ='Bank Summary Page'!$AY$7 -> 0 | G56: ='Bank Summary Page'!$AY$8 -> 0 | H56: ='Bank Summary Page'!$AY$9 -> 0 | I56: ='Bank Summary Page'!$AY$10 -> 0 | J56: ='Bank Summary Page'!$AY$11 -> 0 | K56: ='Bank Summary Page'!$AY$12 -> 0 | L56: ='Bank Summary Page'!$AY$13 -> 0 | M56: ='Bank Summary Page'!$AY$14 -> 0 | N56: ='Bank Summary Page'!$AY$15 -> 0 | O56: 0 | Q56: =IF(COA!$E$53="Y","Show","Hide") -> Show | R56: Bus Hire for Games Income | S56: 0 | T56: 0 | W56: N
B57: Bus Hire Other Income | C57: ='Bank Summary Page'!$AZ$4 -> 0 | D57: ='Bank Summary Page'!$AZ$5 -> 0 | E57: ='Bank Summary Page'!$AZ$6 -> 0 | F57: ='Bank Summary Page'!$AZ$7 -> 0 | G57: ='Bank Summary Page'!$AZ$8 -> 0 | H57: ='Bank Summary Page'!$AZ$9 -> 0 | I57: ='Bank Summary Page'!$AZ$10 -> 0 | J57: ='Bank Summary Page'!$AZ$11 -> 0 | K57: ='Bank Summary Page'!$AZ$12 -> 0 | L57: ='Bank Summary Page'!$AZ$13 -> 0 | M57: ='Bank Summary Page'!$AZ$14 -> 0 | N57: ='Bank Summary Page'!$AZ$15 -> 0 | O57: 0 | Q57: =IF(COA!$E$54="Y","Show","Hide") -> Show | R57: Bus Hire Other Income | S57: 0 | T57: 0 | W57: N
B58: School Musical/Drama Income | C58: ='Bank Summary Page'!$BA$4 -> 0 | D58: ='Bank Summary Page'!$BA$5 -> 0 | E58: ='Bank Summary Page'!$BA$6 -> 0 | F58: ='Bank Summary Page'!$BA$7 -> 0 | G58: ='Bank Summary Page'!$BA$8 -> 0 | H58: ='Bank Summary Page'!$BA$9 -> 0 | I58: ='Bank Summary Page'!$BA$10 -> 0 | J58: ='Bank Summary Page'!$BA$11 -> 0 | K58: ='Bank Summary Page'!$BA$12 -> 0 | L58: ='Bank Summary Page'!$BA$13 -> 0 | M58: ='Bank Summary Page'!$BA$14 -> 0 | N58: ='Bank Summary Page'!$BA$15 -> 0 | O58: 0 | Q58: =IF(COA!$E$55="Y","Show","Hide") -> Show | R58: School Musical/Drama Income | S58: 0 | T58: 0 | W58: N
B59: School Tours Income | C59: ='Bank Summary Page'!$BB$4 -> 0 | D59: ='Bank Summary Page'!$BB$5 -> 0 | E59: ='Bank Summary Page'!$BB$6 -> 0 | F59: ='Bank Summary Page'!$BB$7 -> 0 | G59: ='Bank Summary Page'!$BB$8 -> 0 | H59: ='Bank Summary Page'!$BB$9 -> 0 | I59: ='Bank Summary Page'!$BB$10 -> 0 | J59: ='Bank Summary Page'!$BB$11 -> 0 | K59: ='Bank Summary Page'!$BB$12 -> 0 | L59: ='Bank Summary Page'!$BB$13 -> 0 | M59: ='Bank Summary Page'!$BB$14 -> 0 | N59: ='Bank Summary Page'!$BB$15 -> 0 | O59: 0 | Q59: =IF(COA!$E$56="Y","Show","Hide") -> Show | R59: School Tours Income | S59: 0 | T59: 0 | W59: N
B60: School Swimming Income | C60: ='Bank Summary Page'!$BC$4 -> 0 | D60: ='Bank Summary Page'!$BC$5 -> 0 | E60: ='Bank Summary Page'!$BC$6 -> 0 | F60: ='Bank Summary Page'!$BC$7 -> 0 | G60: ='Bank Summary Page'!$BC$8 -> 0 | H60: ='Bank Summary Page'!$BC$9 -> 0 | I60: ='Bank Summary Page'!$BC$10 -> 0 | J60: ='Bank Summary Page'!$BC$11 -> 0 | K60: ='Bank Summary Page'!$BC$12 -> 0 | L60: ='Bank Summary Page'!$BC$13 -> 0 | M60: ='Bank Summary Page'!$BC$14 -> 0 | N60: ='Bank Summary Page'!$BC$15 -> 0 | O60: 0 | Q60: =IF(COA!$E$57="Y","Show","Hide") -> Show | R60: School Swimming Income | S60: 0 | T60: 0 | W60: N
B61: Student Insurance Income | C61: ='Bank Summary Page'!$BD$4 -> 0 | D61: ='Bank Summary Page'!$BD$5 -> 0 | E61: ='Bank Summary Page'!$BD$6 -> 0 | F61: ='Bank Summary Page'!$BD$7 -> 0 | G61: ='Bank Summary Page'!$BD$8 -> 0 | H61: ='Bank Summary Page'!$BD$9 -> 0 | I61: ='Bank Summary Page'!$BD$10 -> 0 | J61: ='Bank Summary Page'!$BD$11 -> 0 | K61: ='Bank Summary Page'!$BD$12 -> 0 | L61: ='Bank Summary Page'!$BD$13 -> 0 | M61: ='Bank Summary Page'!$BD$14 -> 0 | N61: ='Bank Summary Page'!$BD$15 -> 0 | O61: 0 | Q61: =IF(COA!$E$58="Y","Show","Hide") -> Show | R61: Student Insurance Income | S61: 0 | T61: 0 | W61: N
B62: Pre-School Income | C62: ='Bank Summary Page'!$BE$4 -> 0 | D62: ='Bank Summary Page'!$BE$5 -> 0 | E62: ='Bank Summary Page'!$BE$6 -> 0 | F62: ='Bank Summary Page'!$BE$7 -> 0 | G62: ='Bank Summary Page'!$BE$8 -> 0 | H62: ='Bank Summary Page'!$BE$9 -> 0 | I62: ='Bank Summary Page'!$BE$10 -> 0 | J62: ='Bank Summary Page'!$BE$11 -> 0 | K62: ='Bank Summary Page'!$BE$12 -> 0 | L62: ='Bank Summary Page'!$BE$13 -> 0 | M62: ='Bank Summary Page'!$BE$14 -> 0 | N62: ='Bank Summary Page'!$BE$15 -> 0 | O62: 0 | Q62: =IF(COA!$E$59="Y","Show","Hide") -> Show | R62: Pre-School Income | S62: 0 | T62: 0 | W62: N
B63: Summer Camps Income | C63: ='Bank Summary Page'!$BF$4 -> 0 | D63: ='Bank Summary Page'!$BF$5 -> 0 | E63: ='Bank Summary Page'!$BF$6 -> 0 | F63: ='Bank Summary Page'!$BF$7 -> 0 | G63: ='Bank Summary Page'!$BF$8 -> 0 | H63: ='Bank Summary Page'!$BF$9 -> 0 | I63: ='Bank Summary Page'!$BF$10 -> 0 | J63: ='Bank Summary Page'!$BF$11 -> 0 | K63: ='Bank Summary Page'!$BF$12 -> 0 | L63: ='Bank Summary Page'!$BF$13 -> 0 | M63: ='Bank Summary Page'!$BF$14 -> 0 | N63: ='Bank Summary Page'!$BF$15 -> 0 | O63: 0 | Q63: =IF(COA!$E$60="Y","Show","Hide") -> Hide | R63: Summer Camps Income | S63: 0 | T63: 0 | W63: Y
B64: Reimbursable Income | C64: ='Bank Summary Page'!$BG$4 -> 0 | D64: ='Bank Summary Page'!$BG$5 -> 0 | E64: ='Bank Summary Page'!$BG$6 -> 0 | F64: ='Bank Summary Page'!$BG$7 -> 0 | G64: ='Bank Summary Page'!$BG$8 -> 0 | H64: ='Bank Summary Page'!$BG$9 -> 0 | I64: ='Bank Summary Page'!$BG$10 -> 0 | J64: ='Bank Summary Page'!$BG$11 -> 0 | K64: ='Bank Summary Page'!$BG$12 -> 0 | L64: ='Bank Summary Page'!$BG$13 -> 0 | M64: ='Bank Summary Page'!$BG$14 -> 0 | N64: ='Bank Summary Page'!$BG$15 -> 0 | O64: 0 | Q64: =IF(COA!$E$61="Y","Show","Hide") -> Show | R64: Reimbursable Income | S64: 0 | T64: 0 | W64: N
B65: Other School Generated Income | C65: ='Bank Summary Page'!$BH$4 -> 0 | D65: ='Bank Summary Page'!$BH$5 -> 0 | E65: ='Bank Summary Page'!$BH$6 -> 0 | F65: ='Bank Summary Page'!$BH$7 -> 0 | G65: ='Bank Summary Page'!$BH$8 -> 0 | H65: ='Bank Summary Page'!$BH$9 -> 0 | I65: ='Bank Summary Page'!$BH$10 -> 0 | J65: ='Bank Summary Page'!$BH$11 -> 0 | K65: ='Bank Summary Page'!$BH$12 -> 0 | L65: ='Bank Summary Page'!$BH$13 -> 0 | M65: ='Bank Summary Page'!$BH$14 -> 0 | N65: ='Bank Summary Page'!$BH$15 -> 0 | O65: 0 | Q65: =IF(COA!$E$62="Y","Show","Hide") -> Show | R65: Other School Generated Income | S65: 0 | T65: 0 | W65: N
B66: School Arts and Crafts Income | C66: ='Bank Summary Page'!$BI$4 -> 0 | D66: ='Bank Summary Page'!$BI$5 -> 0 | E66: ='Bank Summary Page'!$BI$6 -> 0 | F66: ='Bank Summary Page'!$BI$7 -> 0 | G66: ='Bank Summary Page'!$BI$8 -> 0 | H66: ='Bank Summary Page'!$BI$9 -> 0 | I66: ='Bank Summary Page'!$BI$10 -> 0 | J66: ='Bank Summary Page'!$BI$11 -> 0 | K66: ='Bank Summary Page'!$BI$12 -> 0 | L66: ='Bank Summary Page'!$BI$13 -> 0 | M66: ='Bank Summary Page'!$BI$14 -> 0 | N66: ='Bank Summary Page'!$BI$15 -> 0 | O66: 0 | Q66: =IF(COA!$E$63="Y","Show","Hide") -> Show | R66: School Arts and Crafts Income | S66: 0 | T66: 0 | W66: N
B67: School Dance Income | C67: ='Bank Summary Page'!$BJ$4 -> 0 | D67: ='Bank Summary Page'!$BJ$5 -> 0 | E67: ='Bank Summary Page'!$BJ$6 -> 0 | F67: ='Bank Summary Page'!$BJ$7 -> 0 | G67: ='Bank Summary Page'!$BJ$8 -> 0 | H67: ='Bank Summary Page'!$BJ$9 -> 0 | I67: ='Bank Summary Page'!$BJ$10 -> 0 | J67: ='Bank Summary Page'!$BJ$11 -> 0 | K67: ='Bank Summary Page'!$BJ$12 -> 0 | L67: ='Bank Summary Page'!$BJ$13 -> 0 | M67: ='Bank Summary Page'!$BJ$14 -> 0 | N67: ='Bank Summary Page'!$BJ$15 -> 0 | O67: 0 | Q67: =IF(COA!$E$64="Y","Show","Hide") -> Show | R67: School Dance Income | S67: 0 | T67: 0 | W67: N
B68: Restricted School Fundraising (Non Capital) | C68: ='Bank Summary Page'!$BK$4 -> 0 | D68: ='Bank Summary Page'!$BK$5 -> 0 | E68: ='Bank Summary Page'!$BK$6 -> 0 | F68: ='Bank Summary Page'!$BK$7 -> 0 | G68: ='Bank Summary Page'!$BK$8 -> 0 | H68: ='Bank Summary Page'!$BK$9 -> 0 | I68: ='Bank Summary Page'!$BK$10 -> 0 | J68: ='Bank Summary Page'!$BK$11 -> 0 | K68: ='Bank Summary Page'!$BK$12 -> 0 | L68: ='Bank Summary Page'!$BK$13 -> 0 | M68: ='Bank Summary Page'!$BK$14 -> 0 | N68: ='Bank Summary Page'!$BK$15 -> 0 | O68: 0 | Q68: =IF(COA!$E$65="Y","Show","Hide") -> Show | R68: Restricted School Fundraising (Non Capital) | S68: 0 | T68: 0 | W68: N
B69: Unrestricted School Fundraising (Non Capital) | C69: ='Bank Summary Page'!$BL$4 -> 0 | D69: ='Bank Summary Page'!$BL$5 -> 0 | E69: ='Bank Summary Page'!$BL$6 -> 0 | F69: ='Bank Summary Page'!$BL$7 -> 0 | G69: ='Bank Summary Page'!$BL$8 -> 0 | H69: ='Bank Summary Page'!$BL$9 -> 0 | I69: ='Bank Summary Page'!$BL$10 -> 0 | J69: ='Bank Summary Page'!$BL$11 -> 0 | K69: ='Bank Summary Page'!$BL$12 -> 0 | L69: ='Bank Summary Page'!$BL$13 -> 0 | M69: ='Bank Summary Page'!$BL$14 -> 0 | N69: ='Bank Summary Page'!$BL$15 -> 0 | O69: 0 | Q69: =IF(COA!$E$66="Y","Show","Hide") -> Show | R69: Unrestricted School Fundraising (Non Capital) | S69: 0 | T69: 0 | W69: N
B70: Discounts/Rebates | C70: ='Bank Summary Page'!$BM$4 -> 0 | D70: ='Bank Summary Page'!$BM$5 -> 0 | E70: ='Bank Summary Page'!$BM$6 -> 0 | F70: ='Bank Summary Page'!$BM$7 -> 0 | G70: ='Bank Summary Page'!$BM$8 -> 0 | H70: ='Bank Summary Page'!$BM$9 -> 0 | I70: ='Bank Summary Page'!$BM$10 -> 0 | J70: ='Bank Summary Page'!$BM$11 -> 0 | K70: ='Bank Summary Page'!$BM$12 -> 0 | L70: ='Bank Summary Page'!$BM$13 -> 0 | M70: ='Bank Summary Page'!$BM$14 -> 0 | N70: ='Bank Summary Page'!$BM$15 -> 0 | O70: 0 | Q70: =IF(COA!$E$67="Y","Show","Hide") -> Hide | R70: Discounts/Rebates | S70: 0 | T70: 0 | W70: Y
B71: Voluntary Contributions | C71: ='Bank Summary Page'!$BN$4 -> 0 | D71: ='Bank Summary Page'!$BN$5 -> 0 | E71: ='Bank Summary Page'!$BN$6 -> 0 | F71: ='Bank Summary Page'!$BN$7 -> 0 | G71: ='Bank Summary Page'!$BN$8 -> 0 | H71: ='Bank Summary Page'!$BN$9 -> 0 | I71: ='Bank Summary Page'!$BN$10 -> 0 | J71: ='Bank Summary Page'!$BN$11 -> 0 | K71: ='Bank Summary Page'!$BN$12 -> 0 | L71: ='Bank Summary Page'!$BN$13 -> 0 | M71: ='Bank Summary Page'!$BN$14 -> 0 | N71: ='Bank Summary Page'!$BN$15 -> 0 | O71: 0 | Q71: =IF(COA!$E$68="Y","Show","Hide") -> Show | R71: Voluntary Contributions | S71: 0 | T71: 0 | W71: N
B72: Income from Parents Association | C72: ='Bank Summary Page'!$BO$4 -> 0 | D72: ='Bank Summary Page'!$BO$5 -> 0 | E72: ='Bank Summary Page'!$BO$6 -> 0 | F72: ='Bank Summary Page'!$BO$7 -> 0 | G72: ='Bank Summary Page'!$BO$8 -> 0 | H72: ='Bank Summary Page'!$BO$9 -> 0 | I72: ='Bank Summary Page'!$BO$10 -> 0 | J72: ='Bank Summary Page'!$BO$11 -> 0 | K72: ='Bank Summary Page'!$BO$12 -> 0 | L72: ='Bank Summary Page'!$BO$13 -> 0 | M72: ='Bank Summary Page'!$BO$14 -> 0 | N72: ='Bank Summary Page'!$BO$15 -> 0 | O72: 0 | Q72: =IF(COA!$E$69="Y","Show","Hide") -> Show | R72: Income from Parents Association | S72: =INDEX($C$8:$O$80,MATCH(R72,$B$8:$B$80,0),MATCH($S$7,$C$7:$O$7,0)) -> 0 | T72: 0 | W72: N
B73: Insurance Claim Income | C73: ='Bank Summary Page'!$BP$4 -> 0 | D73: ='Bank Summary Page'!$BP$5 -> 0 | E73: ='Bank Summary Page'!$BP$6 -> 0 | F73: ='Bank Summary Page'!$BP$7 -> 0 | G73: ='Bank Summary Page'!$BP$8 -> 0 | H73: ='Bank Summary Page'!$BP$9 -> 0 | I73: ='Bank Summary Page'!$BP$10 -> 0 | J73: ='Bank Summary Page'!$BP$11 -> 0 | K73: ='Bank Summary Page'!$BP$12 -> 0 | L73: ='Bank Summary Page'!$BP$13 -> 0 | M73: ='Bank Summary Page'!$BP$14 -> 0 | N73: ='Bank Summary Page'!$BP$15 -> 0 | O73: =(CELL("width",C73)>0)*C73+(CELL("width",D73)>0)*D73+(CELL("width",E73)>0)*E73+(CELL("width",F73)>0)*F73+(CELL("width",G73)>0)*G73+(CELL("width",H73)>0)*H73+(CELL("width",I73)>0)*I73+(CELL("width",J73)>0)*J73+(CELL("width",K73)>0)*K73+(CELL("width",L73)>0)*L73+(CELL("width",M73)>0)*M73+(CELL("width",N73)>0)*N73 -> 0 | Q73: =IF(COA!$E$70="Y","Show","Hide") -> Show | R73: Insurance Claim Income | S73: 0 | T73: =SUM(C73:N73) -> 0 | W73: =IF(AND(O73=0,Q73="Show"),"N","Y") -> N
B74: Bank Interest Received | C74: ='Bank Summary Page'!$BQ$4 -> 0 | D74: ='Bank Summary Page'!$BQ$5 -> 0 | E74: ='Bank Summary Page'!$BQ$6 -> 0 | F74: ='Bank Summary Page'!$BQ$7 -> 0 | G74: ='Bank Summary Page'!$BQ$8 -> 0 | H74: ='Bank Summary Page'!$BQ$9 -> 0 | I74: ='Bank Summary Page'!$BQ$10 -> 0 | J74: ='Bank Summary Page'!$BQ$11 -> 0 | K74: ='Bank Summary Page'!$BQ$12 -> 0 | L74: ='Bank Summary Page'!$BQ$13 -> 0 | M74: ='Bank Summary Page'!$BQ$14 -> 0 | N74: ='Bank Summary Page'!$BQ$15 -> 0 | O74: 0 | Q74: =IF(COA!$E$71="Y","Show","Hide") -> Show | R74: Bank Interest Received | S74: 0 | T74: 0 | W74: N
B75: Amortisation of Non DE funding | C75: ='Bank Summary Page'!$BR$4 -> 0 | D75: ='Bank Summary Page'!$BR$5 -> 0 | E75: ='Bank Summary Page'!$BR$6 -> 0 | F75: ='Bank Summary Page'!$BR$7 -> 0 | G75: ='Bank Summary Page'!$BR$8 -> 0 | H75: ='Bank Summary Page'!$BR$9 -> 0 | I75: ='Bank Summary Page'!$BR$10 -> 0 | J75: ='Bank Summary Page'!$BR$11 -> 0 | K75: ='Bank Summary Page'!$BR$12 -> 0 | L75: ='Bank Summary Page'!$BR$13 -> 0 | M75: ='Bank Summary Page'!$BR$14 -> 0 | N75: ='Bank Summary Page'!$BR$15 -> 0 | O75: 0 | Q75: =IF(COA!$E$72="Y","Show","Hide") -> Hide | R75: Amortisation of Non DE funding | S75: 0 | T75: 0 | W75: Y
B76: Other Income | C76: ='Bank Summary Page'!$BS$4 -> 0 | D76: ='Bank Summary Page'!$BS$5 -> 0 | E76: ='Bank Summary Page'!$BS$6 -> 0 | F76: ='Bank Summary Page'!$BS$7 -> 0 | G76: ='Bank Summary Page'!$BS$8 -> 0 | H76: ='Bank Summary Page'!$BS$9 -> 0 | I76: ='Bank Summary Page'!$BS$10 -> 0 | J76: ='Bank Summary Page'!$BS$11 -> 0 | K76: ='Bank Summary Page'!$BS$12 -> 0 | L76: ='Bank Summary Page'!$BS$13 -> 0 | M76: ='Bank Summary Page'!$BS$14 -> 0 | N76: ='Bank Summary Page'!$BS$15 -> 0 | O76: 0 | Q76: =IF(COA!$E$73="Y","Show","Hide") -> Show | R76: Other Income | S76: 0 | T76: 0 | W76: N
B77: Designated Income (Non Capital) | C77: ='Bank Summary Page'!$BT$4 -> 0 | D77: ='Bank Summary Page'!$BT$5 -> 0 | E77: ='Bank Summary Page'!$BT$6 -> 0 | F77: ='Bank Summary Page'!$BT$7 -> 0 | G77: ='Bank Summary Page'!$BT$8 -> 0 | H77: ='Bank Summary Page'!$BT$9 -> 0 | I77: ='Bank Summary Page'!$BT$10 -> 0 | J77: ='Bank Summary Page'!$BT$11 -> 0 | K77: ='Bank Summary Page'!$BT$12 -> 0 | L77: ='Bank Summary Page'!$BT$13 -> 0 | M77: ='Bank Summary Page'!$BT$14 -> 0 | N77: ='Bank Summary Page'!$BT$15 -> 0 | O77: 0 | Q77: =IF(COA!$E$74="Y","Show","Hide") -> Show | R77: Designated Income (Non Capital) | S77: 0 | T77: 0 | W77: N
B78: Restricted External Fundraising (Non Capital) | C78: ='Bank Summary Page'!$BU$4 -> 0 | D78: ='Bank Summary Page'!$BU$5 -> 0 | E78: ='Bank Summary Page'!$BU$6 -> 0 | F78: ='Bank Summary Page'!$BU$7 -> 0 | G78: ='Bank Summary Page'!$BU$8 -> 0 | H78: ='Bank Summary Page'!$BU$9 -> 0 | I78: ='Bank Summary Page'!$BU$10 -> 0 | J78: ='Bank Summary Page'!$BU$11 -> 0 | K78: ='Bank Summary Page'!$BU$12 -> 0 | L78: ='Bank Summary Page'!$BU$13 -> 0 | M78: ='Bank Summary Page'!$BU$14 -> 0 | N78: ='Bank Summary Page'!$BU$15 -> 0 | O78: 0 | Q78: =IF(COA!$E$75="Y","Show","Hide") -> Show | R78: Restricted External Fundraising (Non Capital) | S78: 0 | T78: 0 | W78: N
B79: Unrestricted External Fundraising (Non Capital) | C79: ='Bank Summary Page'!$BV$4 -> 0 | D79: ='Bank Summary Page'!$BV$5 -> 0 | E79: ='Bank Summary Page'!$BV$6 -> 0 | F79: ='Bank Summary Page'!$BV$7 -> 0 | G79: ='Bank Summary Page'!$BV$8 -> 0 | H79: ='Bank Summary Page'!$BV$9 -> 0 | I79: ='Bank Summary Page'!$BV$10 -> 0 | J79: ='Bank Summary Page'!$BV$11 -> 0 | K79: ='Bank Summary Page'!$BV$12 -> 0 | L79: ='Bank Summary Page'!$BV$13 -> 0 | M79: ='Bank Summary Page'!$BV$14 -> 0 | N79: ='Bank Summary Page'!$BV$15 -> 0 | O79: 0 | Q79: =IF(COA!$E$76="Y","Show","Hide") -> Show | R79: Unrestricted External Fundraising (Non Capital) | S79: 0 | T79: 0 | W79: N
B80: Transfer In | C80: ='Bank Summary Page'!$CF$4 -> 0 | D80: ='Bank Summary Page'!$CF$5 -> 0 | E80: ='Bank Summary Page'!$CF$6 -> 0 | F80: ='Bank Summary Page'!$CF$7 -> 0 | G80: ='Bank Summary Page'!$CF$8 -> 0 | H80: ='Bank Summary Page'!$CF$9 -> 0 | I80: ='Bank Summary Page'!$CF$10 -> 0 | J80: ='Bank Summary Page'!$CF$11 -> 0 | K80: ='Bank Summary Page'!$CF$12 -> 0 | L80: ='Bank Summary Page'!$CF$13 -> 0 | M80: ='Bank Summary Page'!$CF$14 -> 0 | N80: ='Bank Summary Page'!$CF$15 -> 0 | O80: 0 | R80: Transfer In | S80: 0 | T80: 0
B81: TOTAL SCHOOL INCOME | C81: =SUM(C8:C80) -> 0 | D81: 0 | E81: 0 | F81: 0 | G81: 0 | H81: 0 | I81: 0 | J81: 0 | K81: 0 | L81: 0 | M81: 0 | N81: 0 | O81: 0 | R81: TOTAL SCHOOL INCOME | S81: =SUM(S8:S80) -> 0 | T81: =SUM(T8:T80) -> 0
B83: SCHOOL EXPENDITURE | C83: September | D83: October | E83: November | F83: December | G83: January | H83: February | I83: March | J83: April | K83: May | L83: June | M83: July | N83: August | O83: Total | R83: SCHOOL MONTHLY EXPENDITURE | S83: =S5 -> September | T83: Year to date | W83: =IF(AND(O83=0,Q83="Show"),"N","Y") -> Y
B84: Substitute Teachers Expense | C84: ='Bank Summary Page'!$C$21 -> 0 | D84: ='Bank Summary Page'!$C$22 -> 0 | E84: ='Bank Summary Page'!$C$23 -> 0 | F84: ='Bank Summary Page'!$C$24 -> 0 | G84: ='Bank Summary Page'!$C$25 -> 0 | H84: ='Bank Summary Page'!$C$26 -> 0 | I84: ='Bank Summary Page'!$C$27 -> 0 | J84: ='Bank Summary Page'!$C$28 -> 0 | K84: ='Bank Summary Page'!$C$29 -> 0 | L84: ='Bank Summary Page'!$C$30 -> 0 | M84: ='Bank Summary Page'!$C$31 -> 0 | N84: ='Bank Summary Page'!$C$32 -> 0 | O84: =(CELL("width",C84)>0)*C84+(CELL("width",D84)>0)*D84+(CELL("width",E84)>0)*E84+(CELL("width",F84)>0)*F84+(CELL("width",G84)>0)*G84+(CELL("width",H84)>0)*H84+(CELL("width",I84)>0)*I84+(CELL("width",J84)>0)*J84+(CELL("width",K84)>0)*K84+(CELL("width",L84)>0)*L84+(CELL("width",M84)>0)*M84+(CELL("width",N84)>0)*N84 -> 0 | Q84: =IF(COA!$E$77="Y","Show","Hide") -> Show | R84: Substitute Teachers Expense | S84: =INDEX($C$84:$O$197,MATCH(R84,$B$84:$B$197,0),MATCH($S$83,$C$83:$O$83,0)) -> 0 | T84: =SUM(C84:N84) -> 0 | W84: =IF(AND(O84=0,Q84="Show"),"N","Y") -> N
B85: Privately Paid Teachers Expense | C85: ='Bank Summary Page'!$D$21 -> 0 | D85: ='Bank Summary Page'!$D$22 -> 0 | E85: ='Bank Summary Page'!$D$23 -> 0 | F85: ='Bank Summary Page'!$D$24 -> 0 | G85: ='Bank Summary Page'!$D$25 -> 0 | H85: ='Bank Summary Page'!$D$26 -> 0 | I85: ='Bank Summary Page'!$D$27 -> 0 | J85: ='Bank Summary Page'!$D$28 -> 0 | K85: ='Bank Summary Page'!$D$29 -> 0 | L85: ='Bank Summary Page'!$D$30 -> 0 | M85: ='Bank Summary Page'!$D$31 -> 0 | N85: ='Bank Summary Page'!$D$32 -> 0 | O85: =(CELL("width",C85)>0)*C85+(CELL("width",D85)>0)*D85+(CELL("width",E85)>0)*E85+(CELL("width",F85)>0)*F85+(CELL("width",G85)>0)*G85+(CELL("width",H85)>0)*H85+(CELL("width",I85)>0)*I85+(CELL("width",J85)>0)*J85+(CELL("width",K85)>0)*K85+(CELL("width",L85)>0)*L85+(CELL("width",M85)>0)*M85+(CELL("width",N85)>0)*N85 -> 0 | Q85: =IF(COA!$E$78="Y","Show","Hide") -> Show | R85: Privately Paid Teachers Expense | S85: 0 | T85: =SUM(C85:N85) -> 0 | W85: N
B86: Free Schoolbook Admin Salaries Expense | C86: ='Bank Summary Page'!$E$21 -> 0 | D86: ='Bank Summary Page'!$E$22 -> 0 | E86: ='Bank Summary Page'!$E$23 -> 0 | F86: ='Bank Summary Page'!$E$24 -> 0 | G86: ='Bank Summary Page'!$E$25 -> 0 | H86: ='Bank Summary Page'!$E$26 -> 0 | I86: ='Bank Summary Page'!$E$27 -> 0 | J86: ='Bank Summary Page'!$E$28 -> 0 | K86: ='Bank Summary Page'!$E$29 -> 0 | L86: ='Bank Summary Page'!$E$30 -> 0 | M86: ='Bank Summary Page'!$E$31 -> 0 | N86: ='Bank Summary Page'!$E$32 -> 0 | O86: 0 | Q86: =IF(COA!$E$79="Y","Show","Hide") -> Show | R86: Free Schoolbook Admin Salaries Expense | S86: 0 | T86: 0 | W86: N
B87: Supervision and Substitution Salaries Expense | C87: ='Bank Summary Page'!$F$21 -> 0 | D87: ='Bank Summary Page'!$F$22 -> 0 | E87: ='Bank Summary Page'!$F$23 -> 0 | F87: ='Bank Summary Page'!$F$24 -> 0 | G87: ='Bank Summary Page'!$F$25 -> 0 | H87: ='Bank Summary Page'!$F$26 -> 0 | I87: ='Bank Summary Page'!$F$27 -> 0 | J87: ='Bank Summary Page'!$F$28 -> 0 | K87: ='Bank Summary Page'!$F$29 -> 0 | L87: ='Bank Summary Page'!$F$30 -> 0 | M87: ='Bank Summary Page'!$F$31 -> 0 | N87: ='Bank Summary Page'!$F$32 -> 0 | O87: 0 | Q87: =IF(COA!$E$80="Y","Show","Hide") -> Hide | R87: Supervision and Substitution Salaries Expense | S87: 0 | T87: 0 | W87: Y
B88: Adult Education Salaries Expense | C88: ='Bank Summary Page'!$G$21 -> 0 | D88: ='Bank Summary Page'!$G$22 -> 0 | E88: ='Bank Summary Page'!$G$23 -> 0 | F88: ='Bank Summary Page'!$G$24 -> 0 | G88: ='Bank Summary Page'!$G$25 -> 0 | H88: ='Bank Summary Page'!$G$26 -> 0 | I88: ='Bank Summary Page'!$G$27 -> 0 | J88: ='Bank Summary Page'!$G$28 -> 0 | K88: ='Bank Summary Page'!$G$29 -> 0 | L88: ='Bank Summary Page'!$G$30 -> 0 | M88: ='Bank Summary Page'!$G$31 -> 0 | N88: ='Bank Summary Page'!$G$32 -> 0 | O88: 0 | Q88: =IF(COA!$E$81="Y","Show","Hide") -> Hide | R88: Adult Education Salaries Expense | S88: 0 | T88: 0 | W88: Y
B89: Canteen Salaries Expense | C89: ='Bank Summary Page'!$H$21 -> 0 | D89: ='Bank Summary Page'!$H$22 -> 0 | E89: ='Bank Summary Page'!$H$23 -> 0 | F89: ='Bank Summary Page'!$H$24 -> 0 | G89: ='Bank Summary Page'!$H$25 -> 0 | H89: ='Bank Summary Page'!$H$26 -> 0 | I89: ='Bank Summary Page'!$H$27 -> 0 | J89: ='Bank Summary Page'!$H$28 -> 0 | K89: ='Bank Summary Page'!$H$29 -> 0 | L89: ='Bank Summary Page'!$H$30 -> 0 | M89: ='Bank Summary Page'!$H$31 -> 0 | N89: ='Bank Summary Page'!$H$32 -> 0 | O89: 0 | Q89: =IF(COA!$E$82="Y","Show","Hide") -> Hide | R89: Canteen Salaries Expense | S89: 0 | T89: 0 | W89: Y
B90: After School Study/Club Salaries Expense | C90: ='Bank Summary Page'!$I$21 -> 0 | D90: ='Bank Summary Page'!$I$22 -> 0 | E90: ='Bank Summary Page'!$I$23 -> 0 | F90: ='Bank Summary Page'!$I$24 -> 0 | G90: ='Bank Summary Page'!$I$25 -> 0 | H90: ='Bank Summary Page'!$I$26 -> 0 | I90: ='Bank Summary Page'!$I$27 -> 0 | J90: ='Bank Summary Page'!$I$28 -> 0 | K90: ='Bank Summary Page'!$I$29 -> 0 | L90: ='Bank Summary Page'!$I$30 -> 0 | M90: ='Bank Summary Page'!$I$31 -> 0 | N90: ='Bank Summary Page'!$I$32 -> 0 | O90: 0 | Q90: =IF(COA!$E$83="Y","Show","Hide") -> Show | R90: After School Study/Club Salaries Expense | S90: 0 | T90: 0 | W90: N
B91: Summer Camps Salaries Expense | C91: ='Bank Summary Page'!$J$21 -> 0 | D91: ='Bank Summary Page'!$J$22 -> 0 | E91: ='Bank Summary Page'!$J$23 -> 0 | F91: ='Bank Summary Page'!$J$24 -> 0 | G91: ='Bank Summary Page'!$J$25 -> 0 | H91: ='Bank Summary Page'!$J$26 -> 0 | I91: ='Bank Summary Page'!$J$27 -> 0 | J91: ='Bank Summary Page'!$J$28 -> 0 | K91: ='Bank Summary Page'!$J$29 -> 0 | L91: ='Bank Summary Page'!$J$30 -> 0 | M91: ='Bank Summary Page'!$J$31 -> 0 | N91: ='Bank Summary Page'!$J$32 -> 0 | O91: 0 | Q91: =IF(COA!$E$84="Y","Show","Hide") -> Hide | R91: Summer Camps Salaries Expense | S91: 0 | T91: 0 | W91: Y
B92: Bus Escort Salary Expense | C92: ='Bank Summary Page'!$K$21 -> 0 | D92: ='Bank Summary Page'!$K$22 -> 0 | E92: ='Bank Summary Page'!$K$23 -> 0 | F92: ='Bank Summary Page'!$K$24 -> 0 | G92: ='Bank Summary Page'!$K$25 -> 0 | H92: ='Bank Summary Page'!$K$26 -> 0 | I92: ='Bank Summary Page'!$K$27 -> 0 | J92: ='Bank Summary Page'!$K$28 -> 0 | K92: ='Bank Summary Page'!$K$29 -> 0 | L92: ='Bank Summary Page'!$K$30 -> 0 | M92: ='Bank Summary Page'!$K$31 -> 0 | N92: ='Bank Summary Page'!$K$32 -> 0 | O92: 0 | Q92: =IF(COA!$E$85="Y","Show","Hide") -> Show | R92: Bus Escort Salary Expense | S92: 0 | T92: 0 | W92: N
B93: Other Educational Salaries Expense | C93: ='Bank Summary Page'!$L$21 -> 0 | D93: ='Bank Summary Page'!$L$22 -> 0 | E93: ='Bank Summary Page'!$L$23 -> 0 | F93: ='Bank Summary Page'!$L$24 -> 0 | G93: ='Bank Summary Page'!$L$25 -> 0 | H93: ='Bank Summary Page'!$L$26 -> 0 | I93: ='Bank Summary Page'!$L$27 -> 0 | J93: ='Bank Summary Page'!$L$28 -> 0 | K93: ='Bank Summary Page'!$L$29 -> 0 | L93: ='Bank Summary Page'!$L$30 -> 0 | M93: ='Bank Summary Page'!$L$31 -> 0 | N93: ='Bank Summary Page'!$L$32 -> 0 | O93: 0 | Q93: =IF(COA!$E$86="Y","Show","Hide") -> Show | R93: Other Educational Salaries Expense | S93: 0 | T93: 0 | W93: N
B94: HSE Funded Salaries Expense | C94: ='Bank Summary Page'!$M$21 -> 0 | D94: ='Bank Summary Page'!$M$22 -> 0 | E94: ='Bank Summary Page'!$M$23 -> 0 | F94: ='Bank Summary Page'!$M$24 -> 0 | G94: ='Bank Summary Page'!$M$25 -> 0 | H94: ='Bank Summary Page'!$M$26 -> 0 | I94: ='Bank Summary Page'!$M$27 -> 0 | J94: ='Bank Summary Page'!$M$28 -> 0 | K94: ='Bank Summary Page'!$M$29 -> 0 | L94: ='Bank Summary Page'!$M$30 -> 0 | M94: ='Bank Summary Page'!$M$31 -> 0 | N94: ='Bank Summary Page'!$M$32 -> 0 | O94: 0 | Q94: =IF(COA!$E$87="Y","Show","Hide") -> Hide | R94: HSE Funded Salaries Expense | S94: 0 | T94: 0 | W94: Y
B95: Teaching Aids Expense | C95: ='Bank Summary Page'!$N$21 -> 0 | D95: ='Bank Summary Page'!$N$22 -> 0 | E95: ='Bank Summary Page'!$N$23 -> 0 | F95: ='Bank Summary Page'!$N$24 -> 0 | G95: ='Bank Summary Page'!$N$25 -> 0 | H95: ='Bank Summary Page'!$N$26 -> 0 | I95: ='Bank Summary Page'!$N$27 -> 0 | J95: ='Bank Summary Page'!$N$28 -> 0 | K95: ='Bank Summary Page'!$N$29 -> 0 | L95: ='Bank Summary Page'!$N$30 -> 0 | M95: ='Bank Summary Page'!$N$31 -> 0 | N95: ='Bank Summary Page'!$N$32 -> 0 | O95: 0 | Q95: =IF(COA!$E$88="Y","Show","Hide") -> Show | R95: Teaching Aids Expense | S95: 0 | T95: 0 | W95: N
B96: Early Start Programme Mat/Equip/Par Inv Expenses | C96: ='Bank Summary Page'!$O$21 -> 0 | D96: ='Bank Summary Page'!$O$22 -> 0 | E96: ='Bank Summary Page'!$O$23 -> 0 | F96: ='Bank Summary Page'!$O$24 -> 0 | G96: ='Bank Summary Page'!$O$25 -> 0 | H96: ='Bank Summary Page'!$O$26 -> 0 | I96: ='Bank Summary Page'!$O$27 -> 0 | J96: ='Bank Summary Page'!$O$28 -> 0 | K96: ='Bank Summary Page'!$O$29 -> 0 | L96: ='Bank Summary Page'!$O$30 -> 0 | M96: ='Bank Summary Page'!$O$31 -> 0 | N96: ='Bank Summary Page'!$O$32 -> 0 | O96: 0 | Q96: =IF(COA!$E$89="Y","Show","Hide") -> Hide | R96: Early Start Programme Mat/Equip/Par Inv Expenses | S96: 0 | T96: 0 | W96: Y
B97: Student Photocopying Expenses | C97: ='Bank Summary Page'!$P$21 -> 0 | D97: ='Bank Summary Page'!$P$22 -> 0 | E97: ='Bank Summary Page'!$P$23 -> 0 | F97: ='Bank Summary Page'!$P$24 -> 0 | G97: ='Bank Summary Page'!$P$25 -> 0 | H97: ='Bank Summary Page'!$P$26 -> 0 | I97: ='Bank Summary Page'!$P$27 -> 0 | J97: ='Bank Summary Page'!$P$28 -> 0 | K97: ='Bank Summary Page'!$P$29 -> 0 | L97: ='Bank Summary Page'!$P$30 -> 0 | M97: ='Bank Summary Page'!$P$31 -> 0 | N97: ='Bank Summary Page'!$P$32 -> 0 | O97: 0 | Q97: =IF(COA!$E$90="Y","Show","Hide") -> Show | R97: Student Photocopying Expenses | S97: 0 | T97: 0 | W97: N
B98: Religion/Ethos Expense | C98: ='Bank Summary Page'!$Q$21 -> 0 | D98: ='Bank Summary Page'!$Q$22 -> 0 | E98: ='Bank Summary Page'!$Q$23 -> 0 | F98: ='Bank Summary Page'!$Q$24 -> 0 | G98: ='Bank Summary Page'!$Q$25 -> 0 | H98: ='Bank Summary Page'!$Q$26 -> 0 | I98: ='Bank Summary Page'!$Q$27 -> 0 | J98: ='Bank Summary Page'!$Q$28 -> 0 | K98: ='Bank Summary Page'!$Q$29 -> 0 | L98: ='Bank Summary Page'!$Q$30 -> 0 | M98: ='Bank Summary Page'!$Q$31 -> 0 | N98: ='Bank Summary Page'!$Q$32 -> 0 | O98: 0 | Q98: =IF(COA!$E$91="Y","Show","Hide") -> Show | R98: Religion/Ethos Expense | S98: 0 | T98: 0 | W98: N
B99: ICT Grant Expense | C99: ='Bank Summary Page'!$R$21 -> 0 | D99: ='Bank Summary Page'!$R$22 -> 0 | E99: ='Bank Summary Page'!$R$23 -> 0 | F99: ='Bank Summary Page'!$R$24 -> 0 | G99: ='Bank Summary Page'!$R$25 -> 0 | H99: ='Bank Summary Page'!$R$26 -> 0 | I99: ='Bank Summary Page'!$R$27 -> 0 | J99: ='Bank Summary Page'!$R$28 -> 0 | K99: ='Bank Summary Page'!$R$29 -> 0 | L99: ='Bank Summary Page'!$R$30 -> 0 | M99: ='Bank Summary Page'!$R$31 -> 0 | N99: ='Bank Summary Page'!$R$32 -> 0 | O99: 0 | Q99: =IF(COA!$E$92="Y","Show","Hide") -> Show | R99: ICT Grant Expense | S99: 0 | T99: 0 | W99: N
B100: Computer Maintenance & Support Expense | C100: ='Bank Summary Page'!$S$21 -> 0 | D100: ='Bank Summary Page'!$S$22 -> 0 | E100: ='Bank Summary Page'!$S$23 -> 0 | F100: ='Bank Summary Page'!$S$24 -> 0 | G100: ='Bank Summary Page'!$S$25 -> 0 | H100: ='Bank Summary Page'!$S$26 -> 0 | I100: ='Bank Summary Page'!$S$27 -> 0 | J100: ='Bank Summary Page'!$S$28 -> 0 | K100: ='Bank Summary Page'!$S$29 -> 0 | L100: ='Bank Summary Page'!$S$30 -> 0 | M100: ='Bank Summary Page'!$S$31 -> 0 | N100: ='Bank Summary Page'!$S$32 -> 0 | O100: 0 | Q100: =IF(COA!$E$93="Y","Show","Hide") -> Show | R100: Computer Maintenance & Support Expense | S100: 0 | T100: 0 | W100: N
B101: Other Subjects Expense | C101: ='Bank Summary Page'!$T$21 -> 0 | D101: ='Bank Summary Page'!$T$22 -> 0 | E101: ='Bank Summary Page'!$T$23 -> 0 | F101: ='Bank Summary Page'!$T$24 -> 0 | G101: ='Bank Summary Page'!$T$25 -> 0 | H101: ='Bank Summary Page'!$T$26 -> 0 | I101: ='Bank Summary Page'!$T$27 -> 0 | J101: ='Bank Summary Page'!$T$28 -> 0 | K101: ='Bank Summary Page'!$T$29 -> 0 | L101: ='Bank Summary Page'!$T$30 -> 0 | M101: ='Bank Summary Page'!$T$31 -> 0 | N101: ='Bank Summary Page'!$T$32 -> 0 | O101: 0 | Q101: =IF(COA!$E$94="Y","Show","Hide") -> Hide | R101: Other Subjects Expense | S101: 0 | T101: 0 | W101: Y
B102: Leaving Cert Applied Expense | C102: ='Bank Summary Page'!$U$21 -> 0 | D102: ='Bank Summary Page'!$U$22 -> 0 | E102: ='Bank Summary Page'!$U$23 -> 0 | F102: ='Bank Summary Page'!$U$24 -> 0 | G102: ='Bank Summary Page'!$U$25 -> 0 | H102: ='Bank Summary Page'!$U$26 -> 0 | I102: ='Bank Summary Page'!$U$27 -> 0 | J102: ='Bank Summary Page'!$U$28 -> 0 | K102: ='Bank Summary Page'!$U$29 -> 0 | L102: ='Bank Summary Page'!$U$30 -> 0 | M102: ='Bank Summary Page'!$U$31 -> 0 | N102: ='Bank Summary Page'!$U$32 -> 0 | O102: 0 | Q102: =IF(COA!$E$95="Y","Show","Hide") -> Hide | R102: Leaving Cert Applied Expense | S102: 0 | T102: 0 | W102: Y
B103: LCVP Expense | C103: ='Bank Summary Page'!$V$21 -> 0 | D103: ='Bank Summary Page'!$V$22 -> 0 | E103: ='Bank Summary Page'!$V$23 -> 0 | F103: ='Bank Summary Page'!$V$24 -> 0 | G103: ='Bank Summary Page'!$V$25 -> 0 | H103: ='Bank Summary Page'!$V$26 -> 0 | I103: ='Bank Summary Page'!$V$27 -> 0 | J103: ='Bank Summary Page'!$V$28 -> 0 | K103: ='Bank Summary Page'!$V$29 -> 0 | L103: ='Bank Summary Page'!$V$30 -> 0 | M103: ='Bank Summary Page'!$V$31 -> 0 | N103: ='Bank Summary Page'!$V$32 -> 0 | O103: 0 | Q103: =IF(COA!$E$96="Y","Show","Hide") -> Hide | R103: LCVP Expense | S103: 0 | T103: 0 | W103: Y
B104: Transition Year Expense | C104: ='Bank Summary Page'!$W$21 -> 0 | D104: ='Bank Summary Page'!$W$22 -> 0 | E104: ='Bank Summary Page'!$W$23 -> 0 | F104: ='Bank Summary Page'!$W$24 -> 0 | G104: ='Bank Summary Page'!$W$25 -> 0 | H104: ='Bank Summary Page'!$W$26 -> 0 | I104: ='Bank Summary Page'!$W$27 -> 0 | J104: ='Bank Summary Page'!$W$28 -> 0 | K104: ='Bank Summary Page'!$W$29 -> 0 | L104: ='Bank Summary Page'!$W$30 -> 0 | M104: ='Bank Summary Page'!$W$31 -> 0 | N104: ='Bank Summary Page'!$W$32 -> 0 | O104: 0 | Q104: =IF(COA!$E$97="Y","Show","Hide") -> Hide | R104: Transition Year Expense | S104: 0 | T104: 0 | W104: Y
B105: Learning Support Expense | C105: ='Bank Summary Page'!$X$21 -> 0 | D105: ='Bank Summary Page'!$X$22 -> 0 | E105: ='Bank Summary Page'!$X$23 -> 0 | F105: ='Bank Summary Page'!$X$24 -> 0 | G105: ='Bank Summary Page'!$X$25 -> 0 | H105: ='Bank Summary Page'!$X$26 -> 0 | I105: ='Bank Summary Page'!$X$27 -> 0 | J105: ='Bank Summary Page'!$X$28 -> 0 | K105: ='Bank Summary Page'!$X$29 -> 0 | L105: ='Bank Summary Page'!$X$30 -> 0 | M105: ='Bank Summary Page'!$X$31 -> 0 | N105: ='Bank Summary Page'!$X$32 -> 0 | O105: 0 | Q105: =IF(COA!$E$98="Y","Show","Hide") -> Show | R105: Learning Support Expense | S105: 0 | T105: 0 | W105: N
B106: Teacher Inservice and Training Expense | C106: ='Bank Summary Page'!$Y$21 -> 0 | D106: ='Bank Summary Page'!$Y$22 -> 0 | E106: ='Bank Summary Page'!$Y$23 -> 0 | F106: ='Bank Summary Page'!$Y$24 -> 0 | G106: ='Bank Summary Page'!$Y$25 -> 0 | H106: ='Bank Summary Page'!$Y$26 -> 0 | I106: ='Bank Summary Page'!$Y$27 -> 0 | J106: ='Bank Summary Page'!$Y$28 -> 0 | K106: ='Bank Summary Page'!$Y$29 -> 0 | L106: ='Bank Summary Page'!$Y$30 -> 0 | M106: ='Bank Summary Page'!$Y$31 -> 0 | N106: ='Bank Summary Page'!$Y$32 -> 0 | O106: 0 | Q106: =IF(COA!$E$99="Y","Show","Hide") -> Show | R106: Teacher Inservice and Training Expense | S106: 0 | T106: 0 | W106: N
B107: Student Wellbeing Expense | C107: ='Bank Summary Page'!$Z$21 -> 0 | D107: ='Bank Summary Page'!$Z$22 -> 0 | E107: ='Bank Summary Page'!$Z$23 -> 0 | F107: ='Bank Summary Page'!$Z$24 -> 0 | G107: ='Bank Summary Page'!$Z$25 -> 0 | H107: ='Bank Summary Page'!$Z$26 -> 0 | I107: ='Bank Summary Page'!$Z$27 -> 0 | J107: ='Bank Summary Page'!$Z$28 -> 0 | K107: ='Bank Summary Page'!$Z$29 -> 0 | L107: ='Bank Summary Page'!$Z$30 -> 0 | M107: ='Bank Summary Page'!$Z$31 -> 0 | N107: ='Bank Summary Page'!$Z$32 -> 0 | O107: 0 | Q107: =IF(COA!$E$100="Y","Show","Hide") -> Show | R107: Student Wellbeing Expense | S107: 0 | T107: 0 | W107: N
B108: Library Non Grant Funded Expense | C108: ='Bank Summary Page'!$AA$21 -> 0 | D108: ='Bank Summary Page'!$AA$22 -> 0 | E108: ='Bank Summary Page'!$AA$23 -> 0 | F108: ='Bank Summary Page'!$AA$24 -> 0 | G108: ='Bank Summary Page'!$AA$25 -> 0 | H108: ='Bank Summary Page'!$AA$26 -> 0 | I108: ='Bank Summary Page'!$AA$27 -> 0 | J108: ='Bank Summary Page'!$AA$28 -> 0 | K108: ='Bank Summary Page'!$AA$29 -> 0 | L108: ='Bank Summary Page'!$AA$30 -> 0 | M108: ='Bank Summary Page'!$AA$31 -> 0 | N108: ='Bank Summary Page'!$AA$32 -> 0 | O108: 0 | Q108: =IF(COA!$E$101="Y","Show","Hide") -> Hide | R108: Library Non Grant Funded Expense | S108: 0 | T108: 0 | W108: Y
B109: School Library Books Capital Grant Expense | C109: ='Bank Summary Page'!$AB$21 -> 0 | D109: ='Bank Summary Page'!$AB$22 -> 0 | E109: ='Bank Summary Page'!$AB$23 -> 0 | F109: ='Bank Summary Page'!$AB$24 -> 0 | G109: ='Bank Summary Page'!$AB$25 -> 0 | H109: ='Bank Summary Page'!$AB$26 -> 0 | I109: ='Bank Summary Page'!$AB$27 -> 0 | J109: ='Bank Summary Page'!$AB$28 -> 0 | K109: ='Bank Summary Page'!$AB$29 -> 0 | L109: ='Bank Summary Page'!$AB$30 -> 0 | M109: ='Bank Summary Page'!$AB$31 -> 0 | N109: ='Bank Summary Page'!$AB$32 -> 0 | O109: 0 | Q109: =IF(COA!$E$102="Y","Show","Hide") -> Hide | R109: School Library Books Capital Grant Expense | S109: 0 | T109: 0 | W109: Y
B110: Physical Education Expense | C110: ='Bank Summary Page'!$AC$21 -> 0 | D110: ='Bank Summary Page'!$AC$22 -> 0 | E110: ='Bank Summary Page'!$AC$23 -> 0 | F110: ='Bank Summary Page'!$AC$24 -> 0 | G110: ='Bank Summary Page'!$AC$25 -> 0 | H110: ='Bank Summary Page'!$AC$26 -> 0 | I110: ='Bank Summary Page'!$AC$27 -> 0 | J110: ='Bank Summary Page'!$AC$28 -> 0 | K110: ='Bank Summary Page'!$AC$29 -> 0 | L110: ='Bank Summary Page'!$AC$30 -> 0 | M110: ='Bank Summary Page'!$AC$31 -> 0 | N110: ='Bank Summary Page'!$AC$32 -> 0 | O110: 0 | Q110: =IF(COA!$E$103="Y","Show","Hide") -> Show | R110: Physical Education Expense | S110: 0 | T110: 0 | W110: N
B111: Games (excl. travel) Expense | C111: ='Bank Summary Page'!$AD$21 -> 0 | D111: ='Bank Summary Page'!$AD$22 -> 0 | E111: ='Bank Summary Page'!$AD$23 -> 0 | F111: ='Bank Summary Page'!$AD$24 -> 0 | G111: ='Bank Summary Page'!$AD$25 -> 0 | H111: ='Bank Summary Page'!$AD$26 -> 0 | I111: ='Bank Summary Page'!$AD$27 -> 0 | J111: ='Bank Summary Page'!$AD$28 -> 0 | K111: ='Bank Summary Page'!$AD$29 -> 0 | L111: ='Bank Summary Page'!$AD$30 -> 0 | M111: ='Bank Summary Page'!$AD$31 -> 0 | N111: ='Bank Summary Page'!$AD$32 -> 0 | O111: 0 | Q111: =IF(COA!$E$104="Y","Show","Hide") -> Show | R111: Games (excl. travel) Expense | S111: 0 | T111: 0 | W111: N
B112: Bus Hire for Games Expense | C112: ='Bank Summary Page'!$AE$21 -> 0 | D112: ='Bank Summary Page'!$AE$22 -> 0 | E112: ='Bank Summary Page'!$AE$23 -> 0 | F112: ='Bank Summary Page'!$AE$24 -> 0 | G112: ='Bank Summary Page'!$AE$25 -> 0 | H112: ='Bank Summary Page'!$AE$26 -> 0 | I112: ='Bank Summary Page'!$AE$27 -> 0 | J112: ='Bank Summary Page'!$AE$28 -> 0 | K112: ='Bank Summary Page'!$AE$29 -> 0 | L112: ='Bank Summary Page'!$AE$30 -> 0 | M112: ='Bank Summary Page'!$AE$31 -> 0 | N112: ='Bank Summary Page'!$AE$32 -> 0 | O112: 0 | Q112: =IF(COA!$E$105="Y","Show","Hide") -> Show | R112: Bus Hire for Games Expense | S112: 0 | T112: 0 | W112: N
B113: Bus Hire Other Expense | C113: ='Bank Summary Page'!$AF$21 -> 0 | D113: ='Bank Summary Page'!$AF$22 -> 0 | E113: ='Bank Summary Page'!$AF$23 -> 0 | F113: ='Bank Summary Page'!$AF$24 -> 0 | G113: ='Bank Summary Page'!$AF$25 -> 0 | H113: ='Bank Summary Page'!$AF$26 -> 0 | I113: ='Bank Summary Page'!$AF$27 -> 0 | J113: ='Bank Summary Page'!$AF$28 -> 0 | K113: ='Bank Summary Page'!$AF$29 -> 0 | L113: ='Bank Summary Page'!$AF$30 -> 0 | M113: ='Bank Summary Page'!$AF$31 -> 0 | N113: ='Bank Summary Page'!$AF$32 -> 0 | O113: 0 | Q113: =IF(COA!$E$106="Y","Show","Hide") -> Show | R113: Bus Hire Other Expense | S113: 0 | T113: 0 | W113: N
B114: School Tours Expense | C114: ='Bank Summary Page'!$AG$21 -> 0 | D114: ='Bank Summary Page'!$AG$22 -> 0 | E114: ='Bank Summary Page'!$AG$23 -> 0 | F114: ='Bank Summary Page'!$AG$24 -> 0 | G114: ='Bank Summary Page'!$AG$25 -> 0 | H114: ='Bank Summary Page'!$AG$26 -> 0 | I114: ='Bank Summary Page'!$AG$27 -> 0 | J114: ='Bank Summary Page'!$AG$28 -> 0 | K114: ='Bank Summary Page'!$AG$29 -> 0 | L114: ='Bank Summary Page'!$AG$30 -> 0 | M114: ='Bank Summary Page'!$AG$31 -> 0 | N114: ='Bank Summary Page'!$AG$32 -> 0 | O114: 0 | Q114: =IF(COA!$E$107="Y","Show","Hide") -> Show | R114: School Tours Expense | S114: 0 | T114: 0 | W114: N
B115: School Musical/Drama Expense | C115: ='Bank Summary Page'!$AH$21 -> 0 | D115: ='Bank Summary Page'!$AH$22 -> 0 | E115: ='Bank Summary Page'!$AH$23 -> 0 | F115: ='Bank Summary Page'!$AH$24 -> 0 | G115: ='Bank Summary Page'!$AH$25 -> 0 | H115: ='Bank Summary Page'!$AH$26 -> 0 | I115: ='Bank Summary Page'!$AH$27 -> 0 | J115: ='Bank Summary Page'!$AH$28 -> 0 | K115: ='Bank Summary Page'!$AH$29 -> 0 | L115: ='Bank Summary Page'!$AH$30 -> 0 | M115: ='Bank Summary Page'!$AH$31 -> 0 | N115: ='Bank Summary Page'!$AH$32 -> 0 | O115: 0 | Q115: =IF(COA!$E$108="Y","Show","Hide") -> Show | R115: School Musical/Drama Expense | S115: 0 | T115: 0 | W115: N
B116: Free Schoolbook Grant Expense | C116: ='Bank Summary Page'!$AI$21 -> 0 | D116: ='Bank Summary Page'!$AI$22 -> 0 | E116: ='Bank Summary Page'!$AI$23 -> 0 | F116: ='Bank Summary Page'!$AI$24 -> 0 | G116: ='Bank Summary Page'!$AI$25 -> 0 | H116: ='Bank Summary Page'!$AI$26 -> 0 | I116: ='Bank Summary Page'!$AI$27 -> 0 | J116: ='Bank Summary Page'!$AI$28 -> 0 | K116: ='Bank Summary Page'!$AI$29 -> 0 | L116: ='Bank Summary Page'!$AI$30 -> 0 | M116: ='Bank Summary Page'!$AI$31 -> 0 | N116: ='Bank Summary Page'!$AI$32 -> 0 | O116: 0 | Q116: =IF(COA!$E$109="Y","Show","Hide") -> Show | R116: Free Schoolbook Grant Expense | S116: =INDEX($C$84:$O$197,MATCH(R116,$B$84:$B$197,0),MATCH($S$83,$C$83:$O$83,0)) -> 0 | T116: 0 | W116: N
B117: Book Rental Scheme Expense | C117: ='Bank Summary Page'!$AJ$21 -> 0 | D117: ='Bank Summary Page'!$AJ$22 -> 0 | E117: ='Bank Summary Page'!$AJ$23 -> 0 | F117: ='Bank Summary Page'!$AJ$24 -> 0 | G117: ='Bank Summary Page'!$AJ$25 -> 0 | H117: ='Bank Summary Page'!$AJ$26 -> 0 | I117: ='Bank Summary Page'!$AJ$27 -> 0 | J117: ='Bank Summary Page'!$AJ$28 -> 0 | K117: ='Bank Summary Page'!$AJ$29 -> 0 | L117: ='Bank Summary Page'!$AJ$30 -> 0 | M117: ='Bank Summary Page'!$AJ$31 -> 0 | N117: ='Bank Summary Page'!$AJ$32 -> 0 | O117: 0 | Q117: =IF(COA!$E$110="Y","Show","Hide") -> Hide | R117: Book Rental Scheme Expense | S117: 0 | T117: 0 | W117: Y
B118: Classroom Books/Resources Expense | C118: ='Bank Summary Page'!$AK$21 -> 0 | D118: ='Bank Summary Page'!$AK$22 -> 0 | E118: ='Bank Summary Page'!$AK$23 -> 0 | F118: ='Bank Summary Page'!$AK$24 -> 0 | G118: ='Bank Summary Page'!$AK$25 -> 0 | H118: ='Bank Summary Page'!$AK$26 -> 0 | I118: ='Bank Summary Page'!$AK$27 -> 0 | J118: ='Bank Summary Page'!$AK$28 -> 0 | K118: ='Bank Summary Page'!$AK$29 -> 0 | L118: ='Bank Summary Page'!$AK$30 -> 0 | M118: ='Bank Summary Page'!$AK$31 -> 0 | N118: ='Bank Summary Page'!$AK$32 -> 0 | O118: 0 | Q118: =IF(COA!$E$111="Y","Show","Hide") -> Show | R118: Classroom Books/Resources Expense | S118: 0 | T118: 0 | W118: N
B119: School Yearbook/Journal Expense | C119: ='Bank Summary Page'!$AL$21 -> 0 | D119: ='Bank Summary Page'!$AL$22 -> 0 | E119: ='Bank Summary Page'!$AL$23 -> 0 | F119: ='Bank Summary Page'!$AL$24 -> 0 | G119: ='Bank Summary Page'!$AL$25 -> 0 | H119: ='Bank Summary Page'!$AL$26 -> 0 | I119: ='Bank Summary Page'!$AL$27 -> 0 | J119: ='Bank Summary Page'!$AL$28 -> 0 | K119: ='Bank Summary Page'!$AL$29 -> 0 | L119: ='Bank Summary Page'!$AL$30 -> 0 | M119: ='Bank Summary Page'!$AL$31 -> 0 | N119: ='Bank Summary Page'!$AL$32 -> 0 | O119: 0 | Q119: =IF(COA!$E$112="Y","Show","Hide") -> Show | R119: School Yearbook/Journal Expense | S119: 0 | T119: 0 | W119: N
B120: Trophies and Prizes Expense | C120: ='Bank Summary Page'!$AM$21 -> 0 | D120: ='Bank Summary Page'!$AM$22 -> 0 | E120: ='Bank Summary Page'!$AM$23 -> 0 | F120: ='Bank Summary Page'!$AM$24 -> 0 | G120: ='Bank Summary Page'!$AM$25 -> 0 | H120: ='Bank Summary Page'!$AM$26 -> 0 | I120: ='Bank Summary Page'!$AM$27 -> 0 | J120: ='Bank Summary Page'!$AM$28 -> 0 | K120: ='Bank Summary Page'!$AM$29 -> 0 | L120: ='Bank Summary Page'!$AM$30 -> 0 | M120: ='Bank Summary Page'!$AM$31 -> 0 | N120: ='Bank Summary Page'!$AM$32 -> 0 | O120: 0 | Q120: =IF(COA!$E$113="Y","Show","Hide") -> Show | R120: Trophies and Prizes Expense | S120: 0 | T120: 0 | W120: N
B121: Uniform Expense | C121: ='Bank Summary Page'!$AN$21 -> 0 | D121: ='Bank Summary Page'!$AN$22 -> 0 | E121: ='Bank Summary Page'!$AN$23 -> 0 | F121: ='Bank Summary Page'!$AN$24 -> 0 | G121: ='Bank Summary Page'!$AN$25 -> 0 | H121: ='Bank Summary Page'!$AN$26 -> 0 | I121: ='Bank Summary Page'!$AN$27 -> 0 | J121: ='Bank Summary Page'!$AN$28 -> 0 | K121: ='Bank Summary Page'!$AN$29 -> 0 | L121: ='Bank Summary Page'!$AN$30 -> 0 | M121: ='Bank Summary Page'!$AN$31 -> 0 | N121: ='Bank Summary Page'!$AN$32 -> 0 | O121: 0 | Q121: =IF(COA!$E$114="Y","Show","Hide") -> Show | R121: Uniform Expense | S121: 0 | T121: 0 | W121: N
B122: Home School Liaison Expense | C122: ='Bank Summary Page'!$AO$21 -> 0 | D122: ='Bank Summary Page'!$AO$22 -> 0 | E122: ='Bank Summary Page'!$AO$23 -> 0 | F122: ='Bank Summary Page'!$AO$24 -> 0 | G122: ='Bank Summary Page'!$AO$25 -> 0 | H122: ='Bank Summary Page'!$AO$26 -> 0 | I122: ='Bank Summary Page'!$AO$27 -> 0 | J122: ='Bank Summary Page'!$AO$28 -> 0 | K122: ='Bank Summary Page'!$AO$29 -> 0 | L122: ='Bank Summary Page'!$AO$30 -> 0 | M122: ='Bank Summary Page'!$AO$31 -> 0 | N122: ='Bank Summary Page'!$AO$32 -> 0 | O122: 0 | Q122: =IF(COA!$E$115="Y","Show","Hide") -> Show | R122: Home School Liaison Expense | S122: 0 | T122: 0 | W122: N
B123: School Excellence Fund Expense | C123: ='Bank Summary Page'!$AP$21 -> 0 | D123: ='Bank Summary Page'!$AP$22 -> 0 | E123: ='Bank Summary Page'!$AP$23 -> 0 | F123: ='Bank Summary Page'!$AP$24 -> 0 | G123: ='Bank Summary Page'!$AP$25 -> 0 | H123: ='Bank Summary Page'!$AP$26 -> 0 | I123: ='Bank Summary Page'!$AP$27 -> 0 | J123: ='Bank Summary Page'!$AP$28 -> 0 | K123: ='Bank Summary Page'!$AP$29 -> 0 | L123: ='Bank Summary Page'!$AP$30 -> 0 | M123: ='Bank Summary Page'!$AP$31 -> 0 | N123: ='Bank Summary Page'!$AP$32 -> 0 | O123: 0 | Q123: =IF(COA!$E$116="Y","Show","Hide") -> Hide | R123: School Excellence Fund Expense | S123: 0 | T123: 0 | W123: Y
B124: Other Summer Camps Expense | C124: ='Bank Summary Page'!$AQ$21 -> 0 | D124: ='Bank Summary Page'!$AQ$22 -> 0 | E124: ='Bank Summary Page'!$AQ$23 -> 0 | F124: ='Bank Summary Page'!$AQ$24 -> 0 | G124: ='Bank Summary Page'!$AQ$25 -> 0 | H124: ='Bank Summary Page'!$AQ$26 -> 0 | I124: ='Bank Summary Page'!$AQ$27 -> 0 | J124: ='Bank Summary Page'!$AQ$28 -> 0 | K124: ='Bank Summary Page'!$AQ$29 -> 0 | L124: ='Bank Summary Page'!$AQ$30 -> 0 | M124: ='Bank Summary Page'!$AQ$31 -> 0 | N124: ='Bank Summary Page'!$AQ$32 -> 0 | O124: 0 | Q124: =IF(COA!$E$117="Y","Show","Hide") -> Hide | R124: Other Summer Camps Expense | S124: 0 | T124: 0 | W124: Y
B125: Other Summer Provision Expense | C125: ='Bank Summary Page'!$AR$21 -> 0 | D125: ='Bank Summary Page'!$AR$22 -> 0 | E125: ='Bank Summary Page'!$AR$23 -> 0 | F125: ='Bank Summary Page'!$AR$24 -> 0 | G125: ='Bank Summary Page'!$AR$25 -> 0 | H125: ='Bank Summary Page'!$AR$26 -> 0 | I125: ='Bank Summary Page'!$AR$27 -> 0 | J125: ='Bank Summary Page'!$AR$28 -> 0 | K125: ='Bank Summary Page'!$AR$29 -> 0 | L125: ='Bank Summary Page'!$AR$30 -> 0 | M125: ='Bank Summary Page'!$AR$31 -> 0 | N125: ='Bank Summary Page'!$AR$32 -> 0 | O125: 0 | Q125: =IF(COA!$E$118="Y","Show","Hide") -> Show | R125: Other Summer Provision Expense | S125: 0 | T125: 0 | W125: N
B126: Other Educational Expense | C126: ='Bank Summary Page'!$AS$21 -> 0 | D126: ='Bank Summary Page'!$AS$22 -> 0 | E126: ='Bank Summary Page'!$AS$23 -> 0 | F126: ='Bank Summary Page'!$AS$24 -> 0 | G126: ='Bank Summary Page'!$AS$25 -> 0 | H126: ='Bank Summary Page'!$AS$26 -> 0 | I126: ='Bank Summary Page'!$AS$27 -> 0 | J126: ='Bank Summary Page'!$AS$28 -> 0 | K126: ='Bank Summary Page'!$AS$29 -> 0 | L126: ='Bank Summary Page'!$AS$30 -> 0 | M126: ='Bank Summary Page'!$AS$31 -> 0 | N126: ='Bank Summary Page'!$AS$32 -> 0 | O126: 0 | Q126: =IF(COA!$E$119="Y","Show","Hide") -> Show | R126: Other Educational Expense | S126: 0 | T126: 0 | W126: N
B127: Department of Children and Youth Affairs Activities Expense | C127: ='Bank Summary Page'!$AT$21 -> 0 | D127: ='Bank Summary Page'!$AT$22 -> 0 | E127: ='Bank Summary Page'!$AT$23 -> 0 | F127: ='Bank Summary Page'!$AT$24 -> 0 | G127: ='Bank Summary Page'!$AT$25 -> 0 | H127: ='Bank Summary Page'!$AT$26 -> 0 | I127: ='Bank Summary Page'!$AT$27 -> 0 | J127: ='Bank Summary Page'!$AT$28 -> 0 | K127: ='Bank Summary Page'!$AT$29 -> 0 | L127: ='Bank Summary Page'!$AT$30 -> 0 | M127: ='Bank Summary Page'!$AT$31 -> 0 | N127: ='Bank Summary Page'!$AT$32 -> 0 | O127: 0 | Q127: =IF(COA!$E$120="Y","Show","Hide") -> Hide | R127: Department of Children and Youth Affairs Activities Expense | S127: 0 | T127: 0 | W127: Y
B128: DSP School Meals Food Costs | C128: ='Bank Summary Page'!$AU$21 -> 0 | D128: ='Bank Summary Page'!$AU$22 -> 0 | E128: ='Bank Summary Page'!$AU$23 -> 0 | F128: ='Bank Summary Page'!$AU$24 -> 0 | G128: ='Bank Summary Page'!$AU$25 -> 0 | H128: ='Bank Summary Page'!$AU$26 -> 0 | I128: ='Bank Summary Page'!$AU$27 -> 0 | J128: ='Bank Summary Page'!$AU$28 -> 0 | K128: ='Bank Summary Page'!$AU$29 -> 0 | L128: ='Bank Summary Page'!$AU$30 -> 0 | M128: ='Bank Summary Page'!$AU$31 -> 0 | N128: ='Bank Summary Page'!$AU$32 -> 0 | O128: 0 | Q128: =IF(COA!$E$121="Y","Show","Hide") -> Show | R128: DSP School Meals Food Costs | S128: 0 | T128: 0 | W128: N
B129: Erasmus Expense | C129: ='Bank Summary Page'!$AV$21 -> 0 | D129: ='Bank Summary Page'!$AV$22 -> 0 | E129: ='Bank Summary Page'!$AV$23 -> 0 | F129: ='Bank Summary Page'!$AV$24 -> 0 | G129: ='Bank Summary Page'!$AV$25 -> 0 | H129: ='Bank Summary Page'!$AV$26 -> 0 | I129: ='Bank Summary Page'!$AV$27 -> 0 | J129: ='Bank Summary Page'!$AV$28 -> 0 | K129: ='Bank Summary Page'!$AV$29 -> 0 | L129: ='Bank Summary Page'!$AV$30 -> 0 | M129: ='Bank Summary Page'!$AV$31 -> 0 | N129: ='Bank Summary Page'!$AV$32 -> 0 | O129: 0 | Q129: =IF(COA!$E$122="Y","Show","Hide") -> Hide | R129: Erasmus Expense | S129: 0 | T129: 0 | W129: Y
B130: Other Non Capital DE Grants Expense | C130: ='Bank Summary Page'!$AW$21 -> 0 | D130: ='Bank Summary Page'!$AW$22 -> 0 | E130: ='Bank Summary Page'!$AW$23 -> 0 | F130: ='Bank Summary Page'!$AW$24 -> 0 | G130: ='Bank Summary Page'!$AW$25 -> 0 | H130: ='Bank Summary Page'!$AW$26 -> 0 | I130: ='Bank Summary Page'!$AW$27 -> 0 | J130: ='Bank Summary Page'!$AW$28 -> 0 | K130: ='Bank Summary Page'!$AW$29 -> 0 | L130: ='Bank Summary Page'!$AW$30 -> 0 | M130: ='Bank Summary Page'!$AW$31 -> 0 | N130: ='Bank Summary Page'!$AW$32 -> 0 | O130: 0 | Q130: =IF(COA!$E$123="Y","Show","Hide") -> Show | R130: Other Non Capital DE Grants Expense | S130: 0 | T130: 0 | W130: N
B131: Other Canteen Expense | C131: ='Bank Summary Page'!$AX$21 -> 0 | D131: ='Bank Summary Page'!$AX$22 -> 0 | E131: ='Bank Summary Page'!$AX$23 -> 0 | F131: ='Bank Summary Page'!$AX$24 -> 0 | G131: ='Bank Summary Page'!$AX$25 -> 0 | H131: ='Bank Summary Page'!$AX$26 -> 0 | I131: ='Bank Summary Page'!$AX$27 -> 0 | J131: ='Bank Summary Page'!$AX$28 -> 0 | K131: ='Bank Summary Page'!$AX$29 -> 0 | L131: ='Bank Summary Page'!$AX$30 -> 0 | M131: ='Bank Summary Page'!$AX$31 -> 0 | N131: ='Bank Summary Page'!$AX$32 -> 0 | O131: 0 | Q131: =IF(COA!$E$124="Y","Show","Hide") -> Show | R131: Other Canteen Expense | S131: 0 | T131: 0 | W131: N
B132: Student Insurance Expense | C132: ='Bank Summary Page'!$AY$21 -> 0 | D132: ='Bank Summary Page'!$AY$22 -> 0 | E132: ='Bank Summary Page'!$AY$23 -> 0 | F132: ='Bank Summary Page'!$AY$24 -> 0 | G132: ='Bank Summary Page'!$AY$25 -> 0 | H132: ='Bank Summary Page'!$AY$26 -> 0 | I132: ='Bank Summary Page'!$AY$27 -> 0 | J132: ='Bank Summary Page'!$AY$28 -> 0 | K132: ='Bank Summary Page'!$AY$29 -> 0 | L132: ='Bank Summary Page'!$AY$30 -> 0 | M132: ='Bank Summary Page'!$AY$31 -> 0 | N132: ='Bank Summary Page'!$AY$32 -> 0 | O132: 0 | Q132: =IF(COA!$E$125="Y","Show","Hide") -> Show | R132: Student Insurance Expense | S132: 0 | T132: 0 | W132: N
B133: Standardised Testing Expense | C133: ='Bank Summary Page'!$AZ$21 -> 0 | D133: ='Bank Summary Page'!$AZ$22 -> 0 | E133: ='Bank Summary Page'!$AZ$23 -> 0 | F133: ='Bank Summary Page'!$AZ$24 -> 0 | G133: ='Bank Summary Page'!$AZ$25 -> 0 | H133: ='Bank Summary Page'!$AZ$26 -> 0 | I133: ='Bank Summary Page'!$AZ$27 -> 0 | J133: ='Bank Summary Page'!$AZ$28 -> 0 | K133: ='Bank Summary Page'!$AZ$29 -> 0 | L133: ='Bank Summary Page'!$AZ$30 -> 0 | M133: ='Bank Summary Page'!$AZ$31 -> 0 | N133: ='Bank Summary Page'!$AZ$32 -> 0 | O133: 0 | Q133: =IF(COA!$E$126="Y","Show","Hide") -> Show | R133: Standardised Testing Expense | S133: 0 | T133: 0 | W133: N
B134: Designated Expenditure (Non Capital) | C134: ='Bank Summary Page'!$BA$21 -> 0 | D134: ='Bank Summary Page'!$BA$22 -> 0 | E134: ='Bank Summary Page'!$BA$23 -> 0 | F134: ='Bank Summary Page'!$BA$24 -> 0 | G134: ='Bank Summary Page'!$BA$25 -> 0 | H134: ='Bank Summary Page'!$BA$26 -> 0 | I134: ='Bank Summary Page'!$BA$27 -> 0 | J134: ='Bank Summary Page'!$BA$28 -> 0 | K134: ='Bank Summary Page'!$BA$29 -> 0 | L134: ='Bank Summary Page'!$BA$30 -> 0 | M134: ='Bank Summary Page'!$BA$31 -> 0 | N134: ='Bank Summary Page'!$BA$32 -> 0 | O134: 0 | Q134: =IF(COA!$E$127="Y","Show","Hide") -> Show | R134: Designated Expenditure (Non Capital) | S134: 0 | T134: 0 | W134: N
B135: Special Educational Equipment (Non Capital) Expense | C135: ='Bank Summary Page'!$BB$21 -> 0 | D135: ='Bank Summary Page'!$BB$22 -> 0 | E135: ='Bank Summary Page'!$BB$23 -> 0 | F135: ='Bank Summary Page'!$BB$24 -> 0 | G135: ='Bank Summary Page'!$BB$25 -> 0 | H135: ='Bank Summary Page'!$BB$26 -> 0 | I135: ='Bank Summary Page'!$BB$27 -> 0 | J135: ='Bank Summary Page'!$BB$28 -> 0 | K135: ='Bank Summary Page'!$BB$29 -> 0 | L135: ='Bank Summary Page'!$BB$30 -> 0 | M135: ='Bank Summary Page'!$BB$31 -> 0 | N135: ='Bank Summary Page'!$BB$32 -> 0 | O135: 0 | Q135: =IF(COA!$E$128="Y","Show","Hide") -> Show | R135: Special Educational Equipment (Non Capital) Expense | S135: 0 | T135: 0 | W135: N
B136: School Dance Expense | C136: ='Bank Summary Page'!$BC$21 -> 0 | D136: ='Bank Summary Page'!$BC$22 -> 0 | E136: ='Bank Summary Page'!$BC$23 -> 0 | F136: ='Bank Summary Page'!$BC$24 -> 0 | G136: ='Bank Summary Page'!$BC$25 -> 0 | H136: ='Bank Summary Page'!$BC$26 -> 0 | I136: ='Bank Summary Page'!$BC$27 -> 0 | J136: ='Bank Summary Page'!$BC$28 -> 0 | K136: ='Bank Summary Page'!$BC$29 -> 0 | L136: ='Bank Summary Page'!$BC$30 -> 0 | M136: ='Bank Summary Page'!$BC$31 -> 0 | N136: ='Bank Summary Page'!$BC$32 -> 0 | O136: 0 | Q136: =IF(COA!$E$129="Y","Show","Hide") -> Show | R136: School Dance Expense | S136: 0 | T136: 0 | W136: N
B137: School Swimming Expense | C137: ='Bank Summary Page'!$BD$21 -> 0 | D137: ='Bank Summary Page'!$BD$22 -> 0 | E137: ='Bank Summary Page'!$BD$23 -> 0 | F137: ='Bank Summary Page'!$BD$24 -> 0 | G137: ='Bank Summary Page'!$BD$25 -> 0 | H137: ='Bank Summary Page'!$BD$26 -> 0 | I137: ='Bank Summary Page'!$BD$27 -> 0 | J137: ='Bank Summary Page'!$BD$28 -> 0 | K137: ='Bank Summary Page'!$BD$29 -> 0 | L137: ='Bank Summary Page'!$BD$30 -> 0 | M137: ='Bank Summary Page'!$BD$31 -> 0 | N137: ='Bank Summary Page'!$BD$32 -> 0 | O137: 0 | Q137: =IF(COA!$E$130="Y","Show","Hide") -> Show | R137: School Swimming Expense | S137: 0 | T137: 0 | W137: N
B138: Restricted School Fundraising Expenses (Non Capital) | C138: ='Bank Summary Page'!$BE$21 -> 0 | D138: ='Bank Summary Page'!$BE$22 -> 0 | E138: ='Bank Summary Page'!$BE$23 -> 0 | F138: ='Bank Summary Page'!$BE$24 -> 0 | G138: ='Bank Summary Page'!$BE$25 -> 0 | H138: ='Bank Summary Page'!$BE$26 -> 0 | I138: ='Bank Summary Page'!$BE$27 -> 0 | J138: ='Bank Summary Page'!$BE$28 -> 0 | K138: ='Bank Summary Page'!$BE$29 -> 0 | L138: ='Bank Summary Page'!$BE$30 -> 0 | M138: ='Bank Summary Page'!$BE$31 -> 0 | N138: ='Bank Summary Page'!$BE$32 -> 0 | O138: 0 | Q138: =IF(COA!$E$131="Y","Show","Hide") -> Show | R138: Restricted School Fundraising Expenses (Non Capital) | S138: 0 | T138: 0 | W138: N
B139: Restricted External Fundraising Expenses (Non Capital) | C139: ='Bank Summary Page'!$BF$21 -> 0 | D139: ='Bank Summary Page'!$BF$22 -> 0 | E139: ='Bank Summary Page'!$BF$23 -> 0 | F139: ='Bank Summary Page'!$BF$24 -> 0 | G139: ='Bank Summary Page'!$BF$25 -> 0 | H139: ='Bank Summary Page'!$BF$26 -> 0 | I139: ='Bank Summary Page'!$BF$27 -> 0 | J139: ='Bank Summary Page'!$BF$28 -> 0 | K139: ='Bank Summary Page'!$BF$29 -> 0 | L139: ='Bank Summary Page'!$BF$30 -> 0 | M139: ='Bank Summary Page'!$BF$31 -> 0 | N139: ='Bank Summary Page'!$BF$32 -> 0 | O139: 0 | Q139: =IF(COA!$E$132="Y","Show","Hide") -> Show | R139: Restricted External Fundraising Expenses (Non Capital) | S139: 0 | T139: 0 | W139: N
B140: Unrestricted External Fundraising Expenses (Non Capital) | C140: ='Bank Summary Page'!$BG$21 -> 0 | D140: ='Bank Summary Page'!$BG$22 -> 0 | E140: ='Bank Summary Page'!$BG$23 -> 0 | F140: ='Bank Summary Page'!$BG$24 -> 0 | G140: ='Bank Summary Page'!$BG$25 -> 0 | H140: ='Bank Summary Page'!$BG$26 -> 0 | I140: ='Bank Summary Page'!$BG$27 -> 0 | J140: ='Bank Summary Page'!$BG$28 -> 0 | K140: ='Bank Summary Page'!$BG$29 -> 0 | L140: ='Bank Summary Page'!$BG$30 -> 0 | M140: ='Bank Summary Page'!$BG$31 -> 0 | N140: ='Bank Summary Page'!$BG$32 -> 0 | O140: 0 | Q140: =IF(COA!$E$133="Y","Show","Hide") -> Show | R140: Unrestricted External Fundraising Expenses (Non Capital) | S140: 0 | T140: 0 | W140: N
B141: Unrestricted School Fundraising Expenses (Non Capital) | C141: ='Bank Summary Page'!$BH$21 -> 0 | D141: ='Bank Summary Page'!$BH$22 -> 0 | E141: ='Bank Summary Page'!$BH$23 -> 0 | F141: ='Bank Summary Page'!$BH$24 -> 0 | G141: ='Bank Summary Page'!$BH$25 -> 0 | H141: ='Bank Summary Page'!$BH$26 -> 0 | I141: ='Bank Summary Page'!$BH$27 -> 0 | J141: ='Bank Summary Page'!$BH$28 -> 0 | K141: ='Bank Summary Page'!$BH$29 -> 0 | L141: ='Bank Summary Page'!$BH$30 -> 0 | M141: ='Bank Summary Page'!$BH$31 -> 0 | N141: ='Bank Summary Page'!$BH$32 -> 0 | O141: 0 | Q141: =IF(COA!$E$134="Y","Show","Hide") -> Show | R141: Unrestricted School Fundraising Expenses (Non Capital) | S141: 0 | T141: 0 | W141: N
B142: School Arts and Crafts Expense | C142: ='Bank Summary Page'!$BI$21 -> 0 | D142: ='Bank Summary Page'!$BI$22 -> 0 | E142: ='Bank Summary Page'!$BI$23 -> 0 | F142: ='Bank Summary Page'!$BI$24 -> 0 | G142: ='Bank Summary Page'!$BI$25 -> 0 | H142: ='Bank Summary Page'!$BI$26 -> 0 | I142: ='Bank Summary Page'!$BI$27 -> 0 | J142: ='Bank Summary Page'!$BI$28 -> 0 | K142: ='Bank Summary Page'!$BI$29 -> 0 | L142: ='Bank Summary Page'!$BI$30 -> 0 | M142: ='Bank Summary Page'!$BI$31 -> 0 | N142: ='Bank Summary Page'!$BI$32 -> 0 | O142: 0 | Q142: =IF(COA!$E$135="Y","Show","Hide") -> Show | R142: School Arts and Crafts Expense | S142: 0 | T142: 0 | W142: N
B143: Other HSE Expense | C143: ='Bank Summary Page'!$BJ$21 -> 0 | D143: ='Bank Summary Page'!$BJ$22 -> 0 | E143: ='Bank Summary Page'!$BJ$23 -> 0 | F143: ='Bank Summary Page'!$BJ$24 -> 0 | G143: ='Bank Summary Page'!$BJ$25 -> 0 | H143: ='Bank Summary Page'!$BJ$26 -> 0 | I143: ='Bank Summary Page'!$BJ$27 -> 0 | J143: ='Bank Summary Page'!$BJ$28 -> 0 | K143: ='Bank Summary Page'!$BJ$29 -> 0 | L143: ='Bank Summary Page'!$BJ$30 -> 0 | M143: ='Bank Summary Page'!$BJ$31 -> 0 | N143: ='Bank Summary Page'!$BJ$32 -> 0 | O143: 0 | Q143: =IF(COA!$E$136="Y","Show","Hide") -> Hide | R143: Other HSE Expense | S143: 0 | T143: 0 | W143: Y
B144: Other State Funding Expense | C144: ='Bank Summary Page'!$BK$21 -> 0 | D144: ='Bank Summary Page'!$BK$22 -> 0 | E144: ='Bank Summary Page'!$BK$23 -> 0 | F144: ='Bank Summary Page'!$BK$24 -> 0 | G144: ='Bank Summary Page'!$BK$25 -> 0 | H144: ='Bank Summary Page'!$BK$26 -> 0 | I144: ='Bank Summary Page'!$BK$27 -> 0 | J144: ='Bank Summary Page'!$BK$28 -> 0 | K144: ='Bank Summary Page'!$BK$29 -> 0 | L144: ='Bank Summary Page'!$BK$30 -> 0 | M144: ='Bank Summary Page'!$BK$31 -> 0 | N144: ='Bank Summary Page'!$BK$32 -> 0 | O144: 0 | Q144: =IF(COA!$E$137="Y","Show","Hide") -> Show | R144: Other State Funding Expense | S144: 0 | T144: 0 | W144: N
B145: Pre-School Expense | C145: ='Bank Summary Page'!$BL$21 -> 0 | D145: ='Bank Summary Page'!$BL$22 -> 0 | E145: ='Bank Summary Page'!$BL$23 -> 0 | F145: ='Bank Summary Page'!$BL$24 -> 0 | G145: ='Bank Summary Page'!$BL$25 -> 0 | H145: ='Bank Summary Page'!$BL$26 -> 0 | I145: ='Bank Summary Page'!$BL$27 -> 0 | J145: ='Bank Summary Page'!$BL$28 -> 0 | K145: ='Bank Summary Page'!$BL$29 -> 0 | L145: ='Bank Summary Page'!$BL$30 -> 0 | M145: ='Bank Summary Page'!$BL$31 -> 0 | N145: ='Bank Summary Page'!$BL$32 -> 0 | O145: 0 | Q145: =IF(COA!$E$138="Y","Show","Hide") -> Hide | R145: Pre-School Expense | S145: 0 | T145: 0 | W145: Y
B146: Caretaker Wages Expense | C146: ='Bank Summary Page'!$BM$21 -> 0 | D146: ='Bank Summary Page'!$BM$22 -> 0 | E146: ='Bank Summary Page'!$BM$23 -> 0 | F146: ='Bank Summary Page'!$BM$24 -> 0 | G146: ='Bank Summary Page'!$BM$25 -> 0 | H146: ='Bank Summary Page'!$BM$26 -> 0 | I146: ='Bank Summary Page'!$BM$27 -> 0 | J146: ='Bank Summary Page'!$BM$28 -> 0 | K146: ='Bank Summary Page'!$BM$29 -> 0 | L146: ='Bank Summary Page'!$BM$30 -> 0 | M146: ='Bank Summary Page'!$BM$31 -> 0 | N146: ='Bank Summary Page'!$BM$32 -> 0 | O146: 0 | Q146: =IF(COA!$E$139="Y","Show","Hide") -> Show | R146: Caretaker Wages Expense | S146: 0 | T146: 0 | W146: N
B147: Caretaker Pension Expense | C147: ='Bank Summary Page'!$BN$21 -> 0 | D147: ='Bank Summary Page'!$BN$22 -> 0 | E147: ='Bank Summary Page'!$BN$23 -> 0 | F147: ='Bank Summary Page'!$BN$24 -> 0 | G147: ='Bank Summary Page'!$BN$25 -> 0 | H147: ='Bank Summary Page'!$BN$26 -> 0 | I147: ='Bank Summary Page'!$BN$27 -> 0 | J147: ='Bank Summary Page'!$BN$28 -> 0 | K147: ='Bank Summary Page'!$BN$29 -> 0 | L147: ='Bank Summary Page'!$BN$30 -> 0 | M147: ='Bank Summary Page'!$BN$31 -> 0 | N147: ='Bank Summary Page'!$BN$32 -> 0 | O147: 0 | Q147: =IF(COA!$E$140="Y","Show","Hide") -> Hide | R147: Caretaker Pension Expense | S147: 0 | T147: 0 | W147: Y
B148: Cleaners Wages Expense | C148: ='Bank Summary Page'!$BO$21 -> 0 | D148: ='Bank Summary Page'!$BO$22 -> 0 | E148: ='Bank Summary Page'!$BO$23 -> 0 | F148: ='Bank Summary Page'!$BO$24 -> 0 | G148: ='Bank Summary Page'!$BO$25 -> 0 | H148: ='Bank Summary Page'!$BO$26 -> 0 | I148: ='Bank Summary Page'!$BO$27 -> 0 | J148: ='Bank Summary Page'!$BO$28 -> 0 | K148: ='Bank Summary Page'!$BO$29 -> 0 | L148: ='Bank Summary Page'!$BO$30 -> 0 | M148: ='Bank Summary Page'!$BO$31 -> 0 | N148: ='Bank Summary Page'!$BO$32 -> 0 | O148: 0 | Q148: =IF(COA!$E$141="Y","Show","Hide") -> Show | R148: Cleaners Wages Expense | S148: =INDEX($C$84:$O$197,MATCH(R148,$B$84:$B$197,0),MATCH($S$83,$C$83:$O$83,0)) -> 0 | T148: 0 | W148: =IF(AND(O148=0,Q148="Show"),"N","Y") -> N
B149: Cleaners' Pension Expense | C149: ='Bank Summary Page'!$BP$21 -> 0 | D149: ='Bank Summary Page'!$BP$22 -> 0 | E149: ='Bank Summary Page'!$BP$23 -> 0 | F149: ='Bank Summary Page'!$BP$24 -> 0 | G149: ='Bank Summary Page'!$BP$25 -> 0 | H149: ='Bank Summary Page'!$BP$26 -> 0 | I149: ='Bank Summary Page'!$BP$27 -> 0 | J149: ='Bank Summary Page'!$BP$28 -> 0 | K149: ='Bank Summary Page'!$BP$29 -> 0 | L149: ='Bank Summary Page'!$BP$30 -> 0 | M149: ='Bank Summary Page'!$BP$31 -> 0 | N149: ='Bank Summary Page'!$BP$32 -> 0 | O149: =(CELL("width",C149)>0)*C149+(CELL("width",D149)>0)*D149+(CELL("width",E149)>0)*E149+(CELL("width",F149)>0)*F149+(CELL("width",G149)>0)*G149+(CELL("width",H149)>0)*H149+(CELL("width",I149)>0)*I149+(CELL("width",J149)>0)*J149+(CELL("width",K149)>0)*K149+(CELL("width",L149)>0)*L149+(CELL("width",M149)>0)*M149+(CELL("width",N149)>0)*N149 -> 0 | Q149: =IF(COA!$E$142="Y","Show","Hide") -> Hide | R149: Cleaners' Pension Expense | S149: 0 | T149: =SUM(C149:N149) -> 0 | W149: Y
B150: Contract Cleaners Expense | C150: ='Bank Summary Page'!$BQ$21 -> 0 | D150: ='Bank Summary Page'!$BQ$22 -> 0 | E150: ='Bank Summary Page'!$BQ$23 -> 0 | F150: ='Bank Summary Page'!$BQ$24 -> 0 | G150: ='Bank Summary Page'!$BQ$25 -> 0 | H150: ='Bank Summary Page'!$BQ$26 -> 0 | I150: ='Bank Summary Page'!$BQ$27 -> 0 | J150: ='Bank Summary Page'!$BQ$28 -> 0 | K150: ='Bank Summary Page'!$BQ$29 -> 0 | L150: ='Bank Summary Page'!$BQ$30 -> 0 | M150: ='Bank Summary Page'!$BQ$31 -> 0 | N150: ='Bank Summary Page'!$BQ$32 -> 0 | O150: 0 | Q150: =IF(COA!$E$143="Y","Show","Hide") -> Show | R150: Contract Cleaners Expense | S150: 0 | T150: 0 | W150: N
B151: Cleaning Materials Expense | C151: ='Bank Summary Page'!$BR$21 -> 0 | D151: ='Bank Summary Page'!$BR$22 -> 0 | E151: ='Bank Summary Page'!$BR$23 -> 0 | F151: ='Bank Summary Page'!$BR$24 -> 0 | G151: ='Bank Summary Page'!$BR$25 -> 0 | H151: ='Bank Summary Page'!$BR$26 -> 0 | I151: ='Bank Summary Page'!$BR$27 -> 0 | J151: ='Bank Summary Page'!$BR$28 -> 0 | K151: ='Bank Summary Page'!$BR$29 -> 0 | L151: ='Bank Summary Page'!$BR$30 -> 0 | M151: ='Bank Summary Page'!$BR$31 -> 0 | N151: ='Bank Summary Page'!$BR$32 -> 0 | O151: 0 | Q151: =IF(COA!$E$144="Y","Show","Hide") -> Show | R151: Cleaning Materials Expense | S151: 0 | T151: 0 | W151: N
B152: Other Cleaning and Sanitation Expense | C152: ='Bank Summary Page'!$BS$21 -> 0 | D152: ='Bank Summary Page'!$BS$22 -> 0 | E152: ='Bank Summary Page'!$BS$23 -> 0 | F152: ='Bank Summary Page'!$BS$24 -> 0 | G152: ='Bank Summary Page'!$BS$25 -> 0 | H152: ='Bank Summary Page'!$BS$26 -> 0 | I152: ='Bank Summary Page'!$BS$27 -> 0 | J152: ='Bank Summary Page'!$BS$28 -> 0 | K152: ='Bank Summary Page'!$BS$29 -> 0 | L152: ='Bank Summary Page'!$BS$30 -> 0 | M152: ='Bank Summary Page'!$BS$31 -> 0 | N152: ='Bank Summary Page'!$BS$32 -> 0 | O152: 0 | Q152: =IF(COA!$E$145="Y","Show","Hide") -> Show | R152: Other Cleaning and Sanitation Expense | S152: 0 | T152: 0 | W152: N
B153: Repairs to Buildings and Grounds Expense | C153: ='Bank Summary Page'!$BT$21 -> 0 | D153: ='Bank Summary Page'!$BT$22 -> 0 | E153: ='Bank Summary Page'!$BT$23 -> 0 | F153: ='Bank Summary Page'!$BT$24 -> 0 | G153: ='Bank Summary Page'!$BT$25 -> 0 | H153: ='Bank Summary Page'!$BT$26 -> 0 | I153: ='Bank Summary Page'!$BT$27 -> 0 | J153: ='Bank Summary Page'!$BT$28 -> 0 | K153: ='Bank Summary Page'!$BT$29 -> 0 | L153: ='Bank Summary Page'!$BT$30 -> 0 | M153: ='Bank Summary Page'!$BT$31 -> 0 | N153: ='Bank Summary Page'!$BT$32 -> 0 | O153: 0 | Q153: =IF(COA!$E$146="Y","Show","Hide") -> Show | R153: Repairs to Buildings and Grounds Expense | S153: 0 | T153: 0 | W153: N
B154: Minor Works Grant (Non Capital) Expense | C154: ='Bank Summary Page'!$BU$21 -> 0 | D154: ='Bank Summary Page'!$BU$22 -> 0 | E154: ='Bank Summary Page'!$BU$23 -> 0 | F154: ='Bank Summary Page'!$BU$24 -> 0 | G154: ='Bank Summary Page'!$BU$25 -> 0 | H154: ='Bank Summary Page'!$BU$26 -> 0 | I154: ='Bank Summary Page'!$BU$27 -> 0 | J154: ='Bank Summary Page'!$BU$28 -> 0 | K154: ='Bank Summary Page'!$BU$29 -> 0 | L154: ='Bank Summary Page'!$BU$30 -> 0 | M154: ='Bank Summary Page'!$BU$31 -> 0 | N154: ='Bank Summary Page'!$BU$32 -> 0 | O154: 0 | Q154: =IF(COA!$E$147="Y","Show","Hide") -> Show | R154: Minor Works Grant (Non Capital) Expense | S154: 0 | T154: 0 | W154: N
B155: Repairs to Furniture, Fittings and Equipment Expense | C155: ='Bank Summary Page'!$BV$21 -> 0 | D155: ='Bank Summary Page'!$BV$22 -> 0 | E155: ='Bank Summary Page'!$BV$23 -> 0 | F155: ='Bank Summary Page'!$BV$24 -> 0 | G155: ='Bank Summary Page'!$BV$25 -> 0 | H155: ='Bank Summary Page'!$BV$26 -> 0 | I155: ='Bank Summary Page'!$BV$27 -> 0 | J155: ='Bank Summary Page'!$BV$28 -> 0 | K155: ='Bank Summary Page'!$BV$29 -> 0 | L155: ='Bank Summary Page'!$BV$30 -> 0 | M155: ='Bank Summary Page'!$BV$31 -> 0 | N155: ='Bank Summary Page'!$BV$32 -> 0 | O155: 0 | Q155: =IF(COA!$E$148="Y","Show","Hide") -> Show | R155: Repairs to Furniture, Fittings and Equipment Expense | S155: 0 | T155: 0 | W155: N
B156: Routine Security Expense | C156: ='Bank Summary Page'!$BW$21 -> 0 | D156: ='Bank Summary Page'!$BW$22 -> 0 | E156: ='Bank Summary Page'!$BW$23 -> 0 | F156: ='Bank Summary Page'!$BW$24 -> 0 | G156: ='Bank Summary Page'!$BW$25 -> 0 | H156: ='Bank Summary Page'!$BW$26 -> 0 | I156: ='Bank Summary Page'!$BW$27 -> 0 | J156: ='Bank Summary Page'!$BW$28 -> 0 | K156: ='Bank Summary Page'!$BW$29 -> 0 | L156: ='Bank Summary Page'!$BW$30 -> 0 | M156: ='Bank Summary Page'!$BW$31 -> 0 | N156: ='Bank Summary Page'!$BW$32 -> 0 | O156: 0 | Q156: =IF(COA!$E$149="Y","Show","Hide") -> Show | R156: Routine Security Expense | S156: 0 | T156: 0 | W156: N
B157: General Insurance Expense | C157: ='Bank Summary Page'!$BX$21 -> 0 | D157: ='Bank Summary Page'!$BX$22 -> 0 | E157: ='Bank Summary Page'!$BX$23 -> 0 | F157: ='Bank Summary Page'!$BX$24 -> 0 | G157: ='Bank Summary Page'!$BX$25 -> 0 | H157: ='Bank Summary Page'!$BX$26 -> 0 | I157: ='Bank Summary Page'!$BX$27 -> 0 | J157: ='Bank Summary Page'!$BX$28 -> 0 | K157: ='Bank Summary Page'!$BX$29 -> 0 | L157: ='Bank Summary Page'!$BX$30 -> 0 | M157: ='Bank Summary Page'!$BX$31 -> 0 | N157: ='Bank Summary Page'!$BX$32 -> 0 | O157: 0 | Q157: =IF(COA!$E$150="Y","Show","Hide") -> Show | R157: General Insurance Expense | S157: 0 | T157: 0 | W157: N
B158: Heating Expense | C158: ='Bank Summary Page'!$BY$21 -> 0 | D158: ='Bank Summary Page'!$BY$22 -> 0 | E158: ='Bank Summary Page'!$BY$23 -> 0 | F158: ='Bank Summary Page'!$BY$24 -> 0 | G158: ='Bank Summary Page'!$BY$25 -> 0 | H158: ='Bank Summary Page'!$BY$26 -> 0 | I158: ='Bank Summary Page'!$BY$27 -> 0 | J158: ='Bank Summary Page'!$BY$28 -> 0 | K158: ='Bank Summary Page'!$BY$29 -> 0 | L158: ='Bank Summary Page'!$BY$30 -> 0 | M158: ='Bank Summary Page'!$BY$31 -> 0 | N158: ='Bank Summary Page'!$BY$32 -> 0 | O158: 0 | Q158: =IF(COA!$E$151="Y","Show","Hide") -> Show | R158: Heating Expense | S158: 0 | T158: 0 | W158: N
B159: Light and Power Expense | C159: ='Bank Summary Page'!$BZ$21 -> 0 | D159: ='Bank Summary Page'!$BZ$22 -> 0 | E159: ='Bank Summary Page'!$BZ$23 -> 0 | F159: ='Bank Summary Page'!$BZ$24 -> 0 | G159: ='Bank Summary Page'!$BZ$25 -> 0 | H159: ='Bank Summary Page'!$BZ$26 -> 0 | I159: ='Bank Summary Page'!$BZ$27 -> 0 | J159: ='Bank Summary Page'!$BZ$28 -> 0 | K159: ='Bank Summary Page'!$BZ$29 -> 0 | L159: ='Bank Summary Page'!$BZ$30 -> 0 | M159: ='Bank Summary Page'!$BZ$31 -> 0 | N159: ='Bank Summary Page'!$BZ$32 -> 0 | O159: 0 | Q159: =IF(COA!$E$152="Y","Show","Hide") -> Show | R159: Light and Power Expense | S159: 0 | T159: 0 | W159: N
B160: Rent of Temporary Accommodation Expense | C160: ='Bank Summary Page'!$CA$21 -> 0 | D160: ='Bank Summary Page'!$CA$22 -> 0 | E160: ='Bank Summary Page'!$CA$23 -> 0 | F160: ='Bank Summary Page'!$CA$24 -> 0 | G160: ='Bank Summary Page'!$CA$25 -> 0 | H160: ='Bank Summary Page'!$CA$26 -> 0 | I160: ='Bank Summary Page'!$CA$27 -> 0 | J160: ='Bank Summary Page'!$CA$28 -> 0 | K160: ='Bank Summary Page'!$CA$29 -> 0 | L160: ='Bank Summary Page'!$CA$30 -> 0 | M160: ='Bank Summary Page'!$CA$31 -> 0 | N160: ='Bank Summary Page'!$CA$32 -> 0 | O160: 0 | Q160: =IF(COA!$E$153="Y","Show","Hide") -> Show | R160: Rent of Temporary Accommodation Expense | S160: 0 | T160: 0 | W160: N
B161: Other Rental Costs Expense | C161: ='Bank Summary Page'!$CB$21 -> 0 | D161: ='Bank Summary Page'!$CB$22 -> 0 | E161: ='Bank Summary Page'!$CB$23 -> 0 | F161: ='Bank Summary Page'!$CB$24 -> 0 | G161: ='Bank Summary Page'!$CB$25 -> 0 | H161: ='Bank Summary Page'!$CB$26 -> 0 | I161: ='Bank Summary Page'!$CB$27 -> 0 | J161: ='Bank Summary Page'!$CB$28 -> 0 | K161: ='Bank Summary Page'!$CB$29 -> 0 | L161: ='Bank Summary Page'!$CB$30 -> 0 | M161: ='Bank Summary Page'!$CB$31 -> 0 | N161: ='Bank Summary Page'!$CB$32 -> 0 | O161: 0 | Q161: =IF(COA!$E$154="Y","Show","Hide") -> Hide | R161: Other Rental Costs Expense | S161: 0 | T161: 0 | W161: Y
B162: Refuse Expense | C162: ='Bank Summary Page'!$CC$21 -> 0 | D162: ='Bank Summary Page'!$CC$22 -> 0 | E162: ='Bank Summary Page'!$CC$23 -> 0 | F162: ='Bank Summary Page'!$CC$24 -> 0 | G162: ='Bank Summary Page'!$CC$25 -> 0 | H162: ='Bank Summary Page'!$CC$26 -> 0 | I162: ='Bank Summary Page'!$CC$27 -> 0 | J162: ='Bank Summary Page'!$CC$28 -> 0 | K162: ='Bank Summary Page'!$CC$29 -> 0 | L162: ='Bank Summary Page'!$CC$30 -> 0 | M162: ='Bank Summary Page'!$CC$31 -> 0 | N162: ='Bank Summary Page'!$CC$32 -> 0 | O162: 0 | Q162: =IF(COA!$E$155="Y","Show","Hide") -> Show | R162: Refuse Expense | S162: 0 | T162: 0 | W162: N
B163: Water Rates Expense | C163: ='Bank Summary Page'!$CD$21 -> 0 | D163: ='Bank Summary Page'!$CD$22 -> 0 | E163: ='Bank Summary Page'!$CD$23 -> 0 | F163: ='Bank Summary Page'!$CD$24 -> 0 | G163: ='Bank Summary Page'!$CD$25 -> 0 | H163: ='Bank Summary Page'!$CD$26 -> 0 | I163: ='Bank Summary Page'!$CD$27 -> 0 | J163: ='Bank Summary Page'!$CD$28 -> 0 | K163: ='Bank Summary Page'!$CD$29 -> 0 | L163: ='Bank Summary Page'!$CD$30 -> 0 | M163: ='Bank Summary Page'!$CD$31 -> 0 | N163: ='Bank Summary Page'!$CD$32 -> 0 | O163: 0 | Q163: =IF(COA!$E$156="Y","Show","Hide") -> Show | R163: Water Rates Expense | S163: 0 | T163: 0 | W163: N
B164: Licence Fee to Patron/Trustee Expense | C164: ='Bank Summary Page'!$CE$21 -> 0 | D164: ='Bank Summary Page'!$CE$22 -> 0 | E164: ='Bank Summary Page'!$CE$23 -> 0 | F164: ='Bank Summary Page'!$CE$24 -> 0 | G164: ='Bank Summary Page'!$CE$25 -> 0 | H164: ='Bank Summary Page'!$CE$26 -> 0 | I164: ='Bank Summary Page'!$CE$27 -> 0 | J164: ='Bank Summary Page'!$CE$28 -> 0 | K164: ='Bank Summary Page'!$CE$29 -> 0 | L164: ='Bank Summary Page'!$CE$30 -> 0 | M164: ='Bank Summary Page'!$CE$31 -> 0 | N164: ='Bank Summary Page'!$CE$32 -> 0 | O164: 0 | Q164: =IF(COA!$E$157="Y","Show","Hide") -> Show | R164: Licence Fee to Patron/Trustee Expense | S164: 0 | T164: 0 | W164: N
B165: Other Repairs and Maintenance Expense | C165: ='Bank Summary Page'!$CF$21 -> 0 | D165: ='Bank Summary Page'!$CF$22 -> 0 | E165: ='Bank Summary Page'!$CF$23 -> 0 | F165: ='Bank Summary Page'!$CF$24 -> 0 | G165: ='Bank Summary Page'!$CF$25 -> 0 | H165: ='Bank Summary Page'!$CF$26 -> 0 | I165: ='Bank Summary Page'!$CF$27 -> 0 | J165: ='Bank Summary Page'!$CF$28 -> 0 | K165: ='Bank Summary Page'!$CF$29 -> 0 | L165: ='Bank Summary Page'!$CF$30 -> 0 | M165: ='Bank Summary Page'!$CF$31 -> 0 | N165: ='Bank Summary Page'!$CF$32 -> 0 | O165: 0 | Q165: =IF(COA!$E$158="Y","Show","Hide") -> Show | R165: Other Repairs and Maintenance Expense | S165: 0 | T165: 0 | W165: N
B166: COVID Capitation for Cleaning Wages Expense | C166: ='Bank Summary Page'!$CG$21 -> 0 | D166: ='Bank Summary Page'!$CG$22 -> 0 | E166: ='Bank Summary Page'!$CG$23 -> 0 | F166: ='Bank Summary Page'!$CG$24 -> 0 | G166: ='Bank Summary Page'!$CG$25 -> 0 | H166: ='Bank Summary Page'!$CG$26 -> 0 | I166: ='Bank Summary Page'!$CG$27 -> 0 | J166: ='Bank Summary Page'!$CG$28 -> 0 | K166: ='Bank Summary Page'!$CG$29 -> 0 | L166: ='Bank Summary Page'!$CG$30 -> 0 | M166: ='Bank Summary Page'!$CG$31 -> 0 | N166: ='Bank Summary Page'!$CG$32 -> 0 | O166: 0 | Q166: =IF(COA!$E$159="Y","Show","Hide") -> Hide | R166: COVID Capitation for Cleaning Wages Expense | S166: 0 | T166: 0 | W166: Y
B167: COVID Capitation for Cleaning (Non Wages) and PPE Grant Expense | C167: ='Bank Summary Page'!$CH$21 -> 0 | D167: ='Bank Summary Page'!$CH$22 -> 0 | E167: ='Bank Summary Page'!$CH$23 -> 0 | F167: ='Bank Summary Page'!$CH$24 -> 0 | G167: ='Bank Summary Page'!$CH$25 -> 0 | H167: ='Bank Summary Page'!$CH$26 -> 0 | I167: ='Bank Summary Page'!$CH$27 -> 0 | J167: ='Bank Summary Page'!$CH$28 -> 0 | K167: ='Bank Summary Page'!$CH$29 -> 0 | L167: ='Bank Summary Page'!$CH$30 -> 0 | M167: ='Bank Summary Page'!$CH$31 -> 0 | N167: ='Bank Summary Page'!$CH$32 -> 0 | O167: 0 | Q167: =IF(COA!$E$160="Y","Show","Hide") -> Hide | R167: COVID Capitation for Cleaning (Non Wages) and PPE Grant Expense | S167: 0 | T167: 0 | W167: Y
B168: Clerical Officers/Secretarial Wages Expense | C168: ='Bank Summary Page'!$CI$21 -> 0 | D168: ='Bank Summary Page'!$CI$22 -> 0 | E168: ='Bank Summary Page'!$CI$23 -> 0 | F168: ='Bank Summary Page'!$CI$24 -> 0 | G168: ='Bank Summary Page'!$CI$25 -> 0 | H168: ='Bank Summary Page'!$CI$26 -> 0 | I168: ='Bank Summary Page'!$CI$27 -> 0 | J168: ='Bank Summary Page'!$CI$28 -> 0 | K168: ='Bank Summary Page'!$CI$29 -> 0 | L168: ='Bank Summary Page'!$CI$30 -> 0 | M168: ='Bank Summary Page'!$CI$31 -> 0 | N168: ='Bank Summary Page'!$CI$32 -> 0 | O168: 0 | Q168: =IF(COA!$E$161="Y","Show","Hide") -> Show | R168: Clerical Officers/Secretarial Wages Expense | S168: 0 | T168: 0 | W168: N
B169: Clerical Officers/Secretarial Pension Expense | C169: ='Bank Summary Page'!$CJ$21 -> 0 | D169: ='Bank Summary Page'!$CJ$22 -> 0 | E169: ='Bank Summary Page'!$CJ$23 -> 0 | F169: ='Bank Summary Page'!$CJ$24 -> 0 | G169: ='Bank Summary Page'!$CJ$25 -> 0 | H169: ='Bank Summary Page'!$CJ$26 -> 0 | I169: ='Bank Summary Page'!$CJ$27 -> 0 | J169: ='Bank Summary Page'!$CJ$28 -> 0 | K169: ='Bank Summary Page'!$CJ$29 -> 0 | L169: ='Bank Summary Page'!$CJ$30 -> 0 | M169: ='Bank Summary Page'!$CJ$31 -> 0 | N169: ='Bank Summary Page'!$CJ$32 -> 0 | O169: 0 | Q169: =IF(COA!$E$162="Y","Show","Hide") -> Hide | R169: Clerical Officers/Secretarial Pension Expense | S169: 0 | T169: 0 | W169: Y
B170: Recruitment Expense | C170: ='Bank Summary Page'!$CK$21 -> 0 | D170: ='Bank Summary Page'!$CK$22 -> 0 | E170: ='Bank Summary Page'!$CK$23 -> 0 | F170: ='Bank Summary Page'!$CK$24 -> 0 | G170: ='Bank Summary Page'!$CK$25 -> 0 | H170: ='Bank Summary Page'!$CK$26 -> 0 | I170: ='Bank Summary Page'!$CK$27 -> 0 | J170: ='Bank Summary Page'!$CK$28 -> 0 | K170: ='Bank Summary Page'!$CK$29 -> 0 | L170: ='Bank Summary Page'!$CK$30 -> 0 | M170: ='Bank Summary Page'!$CK$31 -> 0 | N170: ='Bank Summary Page'!$CK$32 -> 0 | O170: 0 | Q170: =IF(COA!$E$163="Y","Show","Hide") -> Show | R170: Recruitment Expense | S170: 0 | T170: 0 | W170: N
B171: Advertising / Public Relations Expense | C171: ='Bank Summary Page'!$CL$21 -> 0 | D171: ='Bank Summary Page'!$CL$22 -> 0 | E171: ='Bank Summary Page'!$CL$23 -> 0 | F171: ='Bank Summary Page'!$CL$24 -> 0 | G171: ='Bank Summary Page'!$CL$25 -> 0 | H171: ='Bank Summary Page'!$CL$26 -> 0 | I171: ='Bank Summary Page'!$CL$27 -> 0 | J171: ='Bank Summary Page'!$CL$28 -> 0 | K171: ='Bank Summary Page'!$CL$29 -> 0 | L171: ='Bank Summary Page'!$CL$30 -> 0 | M171: ='Bank Summary Page'!$CL$31 -> 0 | N171: ='Bank Summary Page'!$CL$32 -> 0 | O171: 0 | Q171: =IF(COA!$E$164="Y","Show","Hide") -> Show | R171: Advertising / Public Relations Expense | S171: 0 | T171: 0 | W171: N
B172: Postage Expense | C172: ='Bank Summary Page'!$CM$21 -> 0 | D172: ='Bank Summary Page'!$CM$22 -> 0 | E172: ='Bank Summary Page'!$CM$23 -> 0 | F172: ='Bank Summary Page'!$CM$24 -> 0 | G172: ='Bank Summary Page'!$CM$25 -> 0 | H172: ='Bank Summary Page'!$CM$26 -> 0 | I172: ='Bank Summary Page'!$CM$27 -> 0 | J172: ='Bank Summary Page'!$CM$28 -> 0 | K172: ='Bank Summary Page'!$CM$29 -> 0 | L172: ='Bank Summary Page'!$CM$30 -> 0 | M172: ='Bank Summary Page'!$CM$31 -> 0 | N172: ='Bank Summary Page'!$CM$32 -> 0 | O172: 0 | Q172: =IF(COA!$E$165="Y","Show","Hide") -> Show | R172: Postage Expense | S172: 0 | T172: 0 | W172: N
B173: Telephone Expense / SMS Text | C173: ='Bank Summary Page'!$CN$21 -> 0 | D173: ='Bank Summary Page'!$CN$22 -> 0 | E173: ='Bank Summary Page'!$CN$23 -> 0 | F173: ='Bank Summary Page'!$CN$24 -> 0 | G173: ='Bank Summary Page'!$CN$25 -> 0 | H173: ='Bank Summary Page'!$CN$26 -> 0 | I173: ='Bank Summary Page'!$CN$27 -> 0 | J173: ='Bank Summary Page'!$CN$28 -> 0 | K173: ='Bank Summary Page'!$CN$29 -> 0 | L173: ='Bank Summary Page'!$CN$30 -> 0 | M173: ='Bank Summary Page'!$CN$31 -> 0 | N173: ='Bank Summary Page'!$CN$32 -> 0 | O173: 0 | Q173: =IF(COA!$E$166="Y","Show","Hide") -> Show | R173: Telephone Expense / SMS Text | S173: 0 | T173: 0 | W173: N
B174: Printing and Stationery Expense | C174: ='Bank Summary Page'!$CO$21 -> 0 | D174: ='Bank Summary Page'!$CO$22 -> 0 | E174: ='Bank Summary Page'!$CO$23 -> 0 | F174: ='Bank Summary Page'!$CO$24 -> 0 | G174: ='Bank Summary Page'!$CO$25 -> 0 | H174: ='Bank Summary Page'!$CO$26 -> 0 | I174: ='Bank Summary Page'!$CO$27 -> 0 | J174: ='Bank Summary Page'!$CO$28 -> 0 | K174: ='Bank Summary Page'!$CO$29 -> 0 | L174: ='Bank Summary Page'!$CO$30 -> 0 | M174: ='Bank Summary Page'!$CO$31 -> 0 | N174: ='Bank Summary Page'!$CO$32 -> 0 | O174: 0 | Q174: =IF(COA!$E$167="Y","Show","Hide") -> Show | R174: Printing and Stationery Expense | S174: 0 | T174: 0 | W174: N
B175: Office Equipment (Non Capital) Expense | C175: ='Bank Summary Page'!$CP$21 -> 0 | D175: ='Bank Summary Page'!$CP$22 -> 0 | E175: ='Bank Summary Page'!$CP$23 -> 0 | F175: ='Bank Summary Page'!$CP$24 -> 0 | G175: ='Bank Summary Page'!$CP$25 -> 0 | H175: ='Bank Summary Page'!$CP$26 -> 0 | I175: ='Bank Summary Page'!$CP$27 -> 0 | J175: ='Bank Summary Page'!$CP$28 -> 0 | K175: ='Bank Summary Page'!$CP$29 -> 0 | L175: ='Bank Summary Page'!$CP$30 -> 0 | M175: ='Bank Summary Page'!$CP$31 -> 0 | N175: ='Bank Summary Page'!$CP$32 -> 0 | O175: 0 | Q175: =IF(COA!$E$168="Y","Show","Hide") -> Show | R175: Office Equipment (Non Capital) Expense | S175: 0 | T175: 0 | W175: N
B176: Non-ICT_Grant Funded Office Computers Expense | C176: ='Bank Summary Page'!$CQ$21 -> 0 | D176: ='Bank Summary Page'!$CQ$22 -> 0 | E176: ='Bank Summary Page'!$CQ$23 -> 0 | F176: ='Bank Summary Page'!$CQ$24 -> 0 | G176: ='Bank Summary Page'!$CQ$25 -> 0 | H176: ='Bank Summary Page'!$CQ$26 -> 0 | I176: ='Bank Summary Page'!$CQ$27 -> 0 | J176: ='Bank Summary Page'!$CQ$28 -> 0 | K176: ='Bank Summary Page'!$CQ$29 -> 0 | L176: ='Bank Summary Page'!$CQ$30 -> 0 | M176: ='Bank Summary Page'!$CQ$31 -> 0 | N176: ='Bank Summary Page'!$CQ$32 -> 0 | O176: 0 | Q176: =IF(COA!$E$169="Y","Show","Hide") -> Show | R176: Non-ICT_Grant Funded Office Computers Expense | S176: 0 | T176: 0 | W176: N
B177: Accounting / Auditing Expense | C177: ='Bank Summary Page'!$CR$21 -> 0 | D177: ='Bank Summary Page'!$CR$22 -> 0 | E177: ='Bank Summary Page'!$CR$23 -> 0 | F177: ='Bank Summary Page'!$CR$24 -> 0 | G177: ='Bank Summary Page'!$CR$25 -> 0 | H177: ='Bank Summary Page'!$CR$26 -> 0 | I177: ='Bank Summary Page'!$CR$27 -> 0 | J177: ='Bank Summary Page'!$CR$28 -> 0 | K177: ='Bank Summary Page'!$CR$29 -> 0 | L177: ='Bank Summary Page'!$CR$30 -> 0 | M177: ='Bank Summary Page'!$CR$31 -> 0 | N177: ='Bank Summary Page'!$CR$32 -> 0 | O177: 0 | Q177: =IF(COA!$E$170="Y","Show","Hide") -> Show | R177: Accounting / Auditing Expense | S177: 0 | T177: 0 | W177: N
B178: Other Professional Fees Expense | C178: ='Bank Summary Page'!$CS$21 -> 0 | D178: ='Bank Summary Page'!$CS$22 -> 0 | E178: ='Bank Summary Page'!$CS$23 -> 0 | F178: ='Bank Summary Page'!$CS$24 -> 0 | G178: ='Bank Summary Page'!$CS$25 -> 0 | H178: ='Bank Summary Page'!$CS$26 -> 0 | I178: ='Bank Summary Page'!$CS$27 -> 0 | J178: ='Bank Summary Page'!$CS$28 -> 0 | K178: ='Bank Summary Page'!$CS$29 -> 0 | L178: ='Bank Summary Page'!$CS$30 -> 0 | M178: ='Bank Summary Page'!$CS$31 -> 0 | N178: ='Bank Summary Page'!$CS$32 -> 0 | O178: 0 | Q178: =IF(COA!$E$171="Y","Show","Hide") -> Show | R178: Other Professional Fees Expense | S178: 0 | T178: 0 | W178: N
B179: Travel and Subsistence Expense | C179: ='Bank Summary Page'!$CT$21 -> 0 | D179: ='Bank Summary Page'!$CT$22 -> 0 | E179: ='Bank Summary Page'!$CT$23 -> 0 | F179: ='Bank Summary Page'!$CT$24 -> 0 | G179: ='Bank Summary Page'!$CT$25 -> 0 | H179: ='Bank Summary Page'!$CT$26 -> 0 | I179: ='Bank Summary Page'!$CT$27 -> 0 | J179: ='Bank Summary Page'!$CT$28 -> 0 | K179: ='Bank Summary Page'!$CT$29 -> 0 | L179: ='Bank Summary Page'!$CT$30 -> 0 | M179: ='Bank Summary Page'!$CT$31 -> 0 | N179: ='Bank Summary Page'!$CT$32 -> 0 | O179: 0 | Q179: =IF(COA!$E$172="Y","Show","Hide") -> Show | R179: Travel and Subsistence Expense | S179: 0 | T179: 0 | W179: N
B180: Principals Expenses | C180: ='Bank Summary Page'!$CU$21 -> 0 | D180: ='Bank Summary Page'!$CU$22 -> 0 | E180: ='Bank Summary Page'!$CU$23 -> 0 | F180: ='Bank Summary Page'!$CU$24 -> 0 | G180: ='Bank Summary Page'!$CU$25 -> 0 | H180: ='Bank Summary Page'!$CU$26 -> 0 | I180: ='Bank Summary Page'!$CU$27 -> 0 | J180: ='Bank Summary Page'!$CU$28 -> 0 | K180: ='Bank Summary Page'!$CU$29 -> 0 | L180: ='Bank Summary Page'!$CU$30 -> 0 | M180: ='Bank Summary Page'!$CU$31 -> 0 | N180: ='Bank Summary Page'!$CU$32 -> 0 | O180: 0 | Q180: =IF(COA!$E$173="Y","Show","Hide") -> Show | R180: Principals Expenses | S180: =INDEX($C$84:$O$197,MATCH(R180,$B$84:$B$197,0),MATCH($S$83,$C$83:$O$83,0)) -> 0 | T180: 0 | W180: N
B181: Board of Management Expense | C181: ='Bank Summary Page'!$CV$21 -> 0 | D181: ='Bank Summary Page'!$CV$22 -> 0 | E181: ='Bank Summary Page'!$CV$23 -> 0 | F181: ='Bank Summary Page'!$CV$24 -> 0 | G181: ='Bank Summary Page'!$CV$25 -> 0 | H181: ='Bank Summary Page'!$CV$26 -> 0 | I181: ='Bank Summary Page'!$CV$27 -> 0 | J181: ='Bank Summary Page'!$CV$28 -> 0 | K181: ='Bank Summary Page'!$CV$29 -> 0 | L181: ='Bank Summary Page'!$CV$30 -> 0 | M181: ='Bank Summary Page'!$CV$31 -> 0 | N181: ='Bank Summary Page'!$CV$32 -> 0 | O181: 0 | Q181: =IF(COA!$E$174="Y","Show","Hide") -> Show | R181: Board of Management Expense | S181: 0 | T181: 0 | W181: N
B182: Annual Subscriptions Expense | C182: ='Bank Summary Page'!$CW$21 -> 0 | D182: ='Bank Summary Page'!$CW$22 -> 0 | E182: ='Bank Summary Page'!$CW$23 -> 0 | F182: ='Bank Summary Page'!$CW$24 -> 0 | G182: ='Bank Summary Page'!$CW$25 -> 0 | H182: ='Bank Summary Page'!$CW$26 -> 0 | I182: ='Bank Summary Page'!$CW$27 -> 0 | J182: ='Bank Summary Page'!$CW$28 -> 0 | K182: ='Bank Summary Page'!$CW$29 -> 0 | L182: ='Bank Summary Page'!$CW$30 -> 0 | M182: ='Bank Summary Page'!$CW$31 -> 0 | N182: ='Bank Summary Page'!$CW$32 -> 0 | O182: 0 | Q182: =IF(COA!$E$175="Y","Show","Hide") -> Show | R182: Annual Subscriptions Expense | S182: 0 | T182: 0 | W182: N
B183: InSchool Administration System Expense | C183: ='Bank Summary Page'!$CX$21 -> 0 | D183: ='Bank Summary Page'!$CX$22 -> 0 | E183: ='Bank Summary Page'!$CX$23 -> 0 | F183: ='Bank Summary Page'!$CX$24 -> 0 | G183: ='Bank Summary Page'!$CX$25 -> 0 | H183: ='Bank Summary Page'!$CX$26 -> 0 | I183: ='Bank Summary Page'!$CX$27 -> 0 | J183: ='Bank Summary Page'!$CX$28 -> 0 | K183: ='Bank Summary Page'!$CX$29 -> 0 | L183: ='Bank Summary Page'!$CX$30 -> 0 | M183: ='Bank Summary Page'!$CX$31 -> 0 | N183: ='Bank Summary Page'!$CX$32 -> 0 | O183: 0 | Q183: =IF(COA!$E$176="Y","Show","Hide") -> Show | R183: InSchool Administration System Expense | S183: 0 | T183: 0 | W183: N
B184: Accounting Software/Payroll Software Expense | C184: ='Bank Summary Page'!$CY$21 -> 0 | D184: ='Bank Summary Page'!$CY$22 -> 0 | E184: ='Bank Summary Page'!$CY$23 -> 0 | F184: ='Bank Summary Page'!$CY$24 -> 0 | G184: ='Bank Summary Page'!$CY$25 -> 0 | H184: ='Bank Summary Page'!$CY$26 -> 0 | I184: ='Bank Summary Page'!$CY$27 -> 0 | J184: ='Bank Summary Page'!$CY$28 -> 0 | K184: ='Bank Summary Page'!$CY$29 -> 0 | L184: ='Bank Summary Page'!$CY$30 -> 0 | M184: ='Bank Summary Page'!$CY$31 -> 0 | N184: ='Bank Summary Page'!$CY$32 -> 0 | O184: 0 | Q184: =IF(COA!$E$177="Y","Show","Hide") -> Show | R184: Accounting Software/Payroll Software Expense | S184: 0 | T184: 0 | W184: N
B185: Donations to Charity | C185: ='Bank Summary Page'!$CZ$21 -> 0 | D185: ='Bank Summary Page'!$CZ$22 -> 0 | E185: ='Bank Summary Page'!$CZ$23 -> 0 | F185: ='Bank Summary Page'!$CZ$24 -> 0 | G185: ='Bank Summary Page'!$CZ$25 -> 0 | H185: ='Bank Summary Page'!$CZ$26 -> 0 | I185: ='Bank Summary Page'!$CZ$27 -> 0 | J185: ='Bank Summary Page'!$CZ$28 -> 0 | K185: ='Bank Summary Page'!$CZ$29 -> 0 | L185: ='Bank Summary Page'!$CZ$30 -> 0 | M185: ='Bank Summary Page'!$CZ$31 -> 0 | N185: ='Bank Summary Page'!$CZ$32 -> 0 | O185: 0 | Q185: =IF(COA!$E$178="Y","Show","Hide") -> Show | R185: Donations to Charity | S185: 0 | T185: 0 | W185: N
B186: Medical and First Aid Expense | C186: ='Bank Summary Page'!$DA$21 -> 0 | D186: ='Bank Summary Page'!$DA$22 -> 0 | E186: ='Bank Summary Page'!$DA$23 -> 0 | F186: ='Bank Summary Page'!$DA$24 -> 0 | G186: ='Bank Summary Page'!$DA$25 -> 0 | H186: ='Bank Summary Page'!$DA$26 -> 0 | I186: ='Bank Summary Page'!$DA$27 -> 0 | J186: ='Bank Summary Page'!$DA$28 -> 0 | K186: ='Bank Summary Page'!$DA$29 -> 0 | L186: ='Bank Summary Page'!$DA$30 -> 0 | M186: ='Bank Summary Page'!$DA$31 -> 0 | N186: ='Bank Summary Page'!$DA$32 -> 0 | O186: 0 | Q186: =IF(COA!$E$179="Y","Show","Hide") -> Show | R186: Medical and First Aid Expense | S186: 0 | T186: 0 | W186: N
B187: Staff Room Expenses | C187: ='Bank Summary Page'!$DB$21 -> 0 | D187: ='Bank Summary Page'!$DB$22 -> 0 | E187: ='Bank Summary Page'!$DB$23 -> 0 | F187: ='Bank Summary Page'!$DB$24 -> 0 | G187: ='Bank Summary Page'!$DB$25 -> 0 | H187: ='Bank Summary Page'!$DB$26 -> 0 | I187: ='Bank Summary Page'!$DB$27 -> 0 | J187: ='Bank Summary Page'!$DB$28 -> 0 | K187: ='Bank Summary Page'!$DB$29 -> 0 | L187: ='Bank Summary Page'!$DB$30 -> 0 | M187: ='Bank Summary Page'!$DB$31 -> 0 | N187: ='Bank Summary Page'!$DB$32 -> 0 | O187: 0 | Q187: =IF(COA!$E$180="Y","Show","Hide") -> Show | R187: Staff Room Expenses | S187: 0 | T187: 0 | W187: N
B188: Hospitality Expense | C188: ='Bank Summary Page'!$DC$21 -> 0 | D188: ='Bank Summary Page'!$DC$22 -> 0 | E188: ='Bank Summary Page'!$DC$23 -> 0 | F188: ='Bank Summary Page'!$DC$24 -> 0 | G188: ='Bank Summary Page'!$DC$25 -> 0 | H188: ='Bank Summary Page'!$DC$26 -> 0 | I188: ='Bank Summary Page'!$DC$27 -> 0 | J188: ='Bank Summary Page'!$DC$28 -> 0 | K188: ='Bank Summary Page'!$DC$29 -> 0 | L188: ='Bank Summary Page'!$DC$30 -> 0 | M188: ='Bank Summary Page'!$DC$31 -> 0 | N188: ='Bank Summary Page'!$DC$32 -> 0 | O188: 0 | Q188: =IF(COA!$E$181="Y","Show","Hide") -> Show | R188: Hospitality Expense | S188: 0 | T188: 0 | W188: N
B189: Tuck Shop Expense | C189: ='Bank Summary Page'!$DD$21 -> 0 | D189: ='Bank Summary Page'!$DD$22 -> 0 | E189: ='Bank Summary Page'!$DD$23 -> 0 | F189: ='Bank Summary Page'!$DD$24 -> 0 | G189: ='Bank Summary Page'!$DD$25 -> 0 | H189: ='Bank Summary Page'!$DD$26 -> 0 | I189: ='Bank Summary Page'!$DD$27 -> 0 | J189: ='Bank Summary Page'!$DD$28 -> 0 | K189: ='Bank Summary Page'!$DD$29 -> 0 | L189: ='Bank Summary Page'!$DD$30 -> 0 | M189: ='Bank Summary Page'!$DD$31 -> 0 | N189: ='Bank Summary Page'!$DD$32 -> 0 | O189: 0 | Q189: =IF(COA!$E$182="Y","Show","Hide") -> Show | R189: Tuck Shop Expense | S189: 0 | T189: 0 | W189: N
B190: Other Administration Expenses | C190: ='Bank Summary Page'!$DE$21 -> 0 | D190: ='Bank Summary Page'!$DE$22 -> 0 | E190: ='Bank Summary Page'!$DE$23 -> 0 | F190: ='Bank Summary Page'!$DE$24 -> 0 | G190: ='Bank Summary Page'!$DE$25 -> 0 | H190: ='Bank Summary Page'!$DE$26 -> 0 | I190: ='Bank Summary Page'!$DE$27 -> 0 | J190: ='Bank Summary Page'!$DE$28 -> 0 | K190: ='Bank Summary Page'!$DE$29 -> 0 | L190: ='Bank Summary Page'!$DE$30 -> 0 | M190: ='Bank Summary Page'!$DE$31 -> 0 | N190: ='Bank Summary Page'!$DE$32 -> 0 | O190: 0 | Q190: =IF(COA!$E$183="Y","Show","Hide") -> Show | R190: Other Administration Expenses | S190: 0 | T190: 0 | W190: N
B191: Leasing Expenses | C191: ='Bank Summary Page'!$DF$21 -> 0 | D191: ='Bank Summary Page'!$DF$22 -> 0 | E191: ='Bank Summary Page'!$DF$23 -> 0 | F191: ='Bank Summary Page'!$DF$24 -> 0 | G191: ='Bank Summary Page'!$DF$25 -> 0 | H191: ='Bank Summary Page'!$DF$26 -> 0 | I191: ='Bank Summary Page'!$DF$27 -> 0 | J191: ='Bank Summary Page'!$DF$28 -> 0 | K191: ='Bank Summary Page'!$DF$29 -> 0 | L191: ='Bank Summary Page'!$DF$30 -> 0 | M191: ='Bank Summary Page'!$DF$31 -> 0 | N191: ='Bank Summary Page'!$DF$32 -> 0 | O191: 0 | Q191: =IF(COA!$E$184="Y","Show","Hide") -> Show | R191: Leasing Expenses | S191: 0 | T191: 0 | W191: N
B192: Loan Charges Expense | C192: ='Bank Summary Page'!$DG$21 -> 0 | D192: ='Bank Summary Page'!$DG$22 -> 0 | E192: ='Bank Summary Page'!$DG$23 -> 0 | F192: ='Bank Summary Page'!$DG$24 -> 0 | G192: ='Bank Summary Page'!$DG$25 -> 0 | H192: ='Bank Summary Page'!$DG$26 -> 0 | I192: ='Bank Summary Page'!$DG$27 -> 0 | J192: ='Bank Summary Page'!$DG$28 -> 0 | K192: ='Bank Summary Page'!$DG$29 -> 0 | L192: ='Bank Summary Page'!$DG$30 -> 0 | M192: ='Bank Summary Page'!$DG$31 -> 0 | N192: ='Bank Summary Page'!$DG$32 -> 0 | O192: 0 | Q192: =IF(COA!$E$185="Y","Show","Hide") -> Show | R192: Loan Charges Expense | S192: 0 | T192: 0 | W192: N
B193: Bank Interest Expense | C193: ='Bank Summary Page'!$DH$21 -> 0 | D193: ='Bank Summary Page'!$DH$22 -> 0 | E193: ='Bank Summary Page'!$DH$23 -> 0 | F193: ='Bank Summary Page'!$DH$24 -> 0 | G193: ='Bank Summary Page'!$DH$25 -> 0 | H193: ='Bank Summary Page'!$DH$26 -> 0 | I193: ='Bank Summary Page'!$DH$27 -> 0 | J193: ='Bank Summary Page'!$DH$28 -> 0 | K193: ='Bank Summary Page'!$DH$29 -> 0 | L193: ='Bank Summary Page'!$DH$30 -> 0 | M193: ='Bank Summary Page'!$DH$31 -> 0 | N193: ='Bank Summary Page'!$DH$32 -> 0 | O193: 0 | Q193: =IF(COA!$E$186="Y","Show","Hide") -> Show | R193: Bank Interest Expense | S193: 0 | T193: 0 | W193: N
B194: Bank Charges Expense | C194: ='Bank Summary Page'!$DI$21 -> 0 | D194: ='Bank Summary Page'!$DI$22 -> 0 | E194: ='Bank Summary Page'!$DI$23 -> 0 | F194: ='Bank Summary Page'!$DI$24 -> 0 | G194: ='Bank Summary Page'!$DI$25 -> 0 | H194: ='Bank Summary Page'!$DI$26 -> 0 | I194: ='Bank Summary Page'!$DI$27 -> 0 | J194: ='Bank Summary Page'!$DI$28 -> 0 | K194: ='Bank Summary Page'!$DI$29 -> 0 | L194: ='Bank Summary Page'!$DI$30 -> 0 | M194: ='Bank Summary Page'!$DI$31 -> 0 | N194: ='Bank Summary Page'!$DI$32 -> 0 | O194: 0 | Q194: =IF(COA!$E$187="Y","Show","Hide") -> Show | R194: Bank Charges Expense | S194: 0 | T194: 0 | W194: N
B195: Reimbursable Expenses | C195: ='Bank Summary Page'!$DJ$21 -> 0 | D195: ='Bank Summary Page'!$DJ$22 -> 0 | E195: ='Bank Summary Page'!$DJ$23 -> 0 | F195: ='Bank Summary Page'!$DJ$24 -> 0 | G195: ='Bank Summary Page'!$DJ$25 -> 0 | H195: ='Bank Summary Page'!$DJ$26 -> 0 | I195: ='Bank Summary Page'!$DJ$27 -> 0 | J195: ='Bank Summary Page'!$DJ$28 -> 0 | K195: ='Bank Summary Page'!$DJ$29 -> 0 | L195: ='Bank Summary Page'!$DJ$30 -> 0 | M195: ='Bank Summary Page'!$DJ$31 -> 0 | N195: ='Bank Summary Page'!$DJ$32 -> 0 | O195: 0 | Q195: =IF(COA!$E$188="Y","Show","Hide") -> Show | R195: Reimbursable Expenses | S195: 0 | T195: 0 | W195: N
B196: Discounts Received | C196: ='Bank Summary Page'!$DK$21 -> 0 | D196: ='Bank Summary Page'!$DK$22 -> 0 | E196: ='Bank Summary Page'!$DK$23 -> 0 | F196: ='Bank Summary Page'!$DK$24 -> 0 | G196: ='Bank Summary Page'!$DK$25 -> 0 | H196: ='Bank Summary Page'!$DK$26 -> 0 | I196: ='Bank Summary Page'!$DK$27 -> 0 | J196: ='Bank Summary Page'!$DK$28 -> 0 | K196: ='Bank Summary Page'!$DK$29 -> 0 | L196: ='Bank Summary Page'!$DK$30 -> 0 | M196: ='Bank Summary Page'!$DK$31 -> 0 | N196: ='Bank Summary Page'!$DK$32 -> 0 | O196: 0 | Q196: =IF(COA!$E$189="Y","Show","Hide") -> Hide | R196: Discounts Received | S196: 0 | T196: 0 | W196: Y
B197: Transfer Out | C197: ='Bank Summary Page'!$DU$21 -> 0 | D197: ='Bank Summary Page'!$DU$22 -> 0 | E197: ='Bank Summary Page'!$DU$23 -> 0 | F197: ='Bank Summary Page'!$DU$24 -> 0 | G197: ='Bank Summary Page'!$DU$25 -> 0 | H197: ='Bank Summary Page'!$DU$26 -> 0 | I197: ='Bank Summary Page'!$DU$27 -> 0 | J197: ='Bank Summary Page'!$DU$28 -> 0 | K197: ='Bank Summary Page'!$DU$29 -> 0 | L197: ='Bank Summary Page'!$DU$30 -> 0 | M197: ='Bank Summary Page'!$DU$31 -> 0 | N197: ='Bank Summary Page'!$DU$32 -> 0 | O197: 0 | R197: Transfer Out | S197: 0 | T197: 0
B198: TOTAL SCHOOL EXPENDITURE | C198: =SUM(C84:C197) -> 0 | D198: 0 | E198: 0 | F198: 0 | G198: 0 | H198: 0 | I198: 0 | J198: 0 | K198: 0 | L198: 0 | M198: 0 | N198: 0 | O198: 0 | R198: TOTAL SCHOOL EXPENDITURE | S198: =SUM(S84:S197) -> 0 | T198: =SUM(T84:T197) -> 0
B200: NET SURPLUS / (DEFICIT) | C200: =C81-C198 -> 0 | D200: 0 | E200: 0 | F200: 0 | G200: 0 | H200: 0 | I200: 0 | J200: 0 | K200: 0 | L200: 0 | M200: 0 | N200: 0 | O200: 0 | R200: NET SURPLUS / (DEFICIT) | S200: =S81-S198 -> 0 | T200: =T81-T198 -> 0
B204: CAPITAL AND RESERVES REPORT | R204: CAPITAL AND RESERVES REPORT
B205: CAPITAL INCOME | C205: September | D205: October | E205: November | F205: December | G205: January | H205: February | I205: March | J205: April | K205: May | L205: June | M205: July | N205: August | O205: Total | R205: CAPITAL MONTHLY INCOME | S205: =S5 -> September | T205: Year to date
B207: DE Capital Building Grant Income | C207: ='Bank Summary Page'!$BW$4 -> 0 | D207: ='Bank Summary Page'!$BW$5 -> 0 | E207: ='Bank Summary Page'!$BW$6 -> 0 | F207: ='Bank Summary Page'!$BW$7 -> 0 | G207: ='Bank Summary Page'!$BW$8 -> 0 | H207: ='Bank Summary Page'!$BW$9 -> 0 | I207: ='Bank Summary Page'!$BW$10 -> 0 | J207: ='Bank Summary Page'!$BW$11 -> 0 | K207: ='Bank Summary Page'!$BW$12 -> 0 | L207: ='Bank Summary Page'!$BW$13 -> 0 | M207: ='Bank Summary Page'!$BW$14 -> 0 | N207: ='Bank Summary Page'!$BW$15 -> 0 | O207: =(CELL("width",C207)>0)*C207+(CELL("width",D207)>0)*D207+(CELL("width",E207)>0)*E207+(CELL("width",F207)>0)*F207+(CELL("width",G207)>0)*G207+(CELL("width",H207)>0)*H207+(CELL("width",I207)>0)*I207+(CELL("width",J207)>0)*J207+(CELL("width",K207)>0)*K207+(CELL("width",L207)>0)*L207+(CELL("width",M207)>0)*M207+(CELL("width",N207)>0)*N207 -> 0 | R207: DE Capital Building Grant Income | S207: =INDEX($C$207:$O$215,MATCH(R207,$B$207:$B$215,0),MATCH($S$205,$C$205:$O$205,0)) -> 0 | T207: =SUM(C207:N207) -> 0
... 22 more rows

Sheet Actual v Budget
A1: Main Menu | B1: =Instructions!G4 -> Enter | L1: Budget Summary | M1: Income and Expense Selection Report
B3: YEAR TO DATE ACTUAL VERSUS BUDGET | D3: Input/Import | H3: 2024-09-01 | J3: PERIOD ACTUAL v PRIOR YR
A4: Nominal Code | C4: Year to Date | D4: Budget | E4: Year to Date v Budget 2024/2025 | F4: Year to Date v Budget 2024/2025 | H4: Rolling Period | I4: Period Prior Year 2023/2024 | J4: Period v Period Prior Yr | K4: Period v Period Prior Yr
B5: SCHOOL INCOME | C5: Actual | D5: 2024/2025 | E5: Difference | F5: % Difference | G5: SCHOOL INCOME | H5: Actual | I5: Actual | J5: Difference | K5: % Difference
A6: 3010 | B6: Capitation/Non Pay Budget | C6: ='Monthly Income & Exp. Reports'!O8 -> 0 | D6: 0 | E6: =C6-D6 -> 0 | F6: =IF(D6,(C6-D6)/D6,0) -> 0 | G6: =B6 -> Capitation/Non Pay Budget | H6: =IFERROR(HLOOKUP(A6,'Bank Summary Page'!$B$2:$CF$18,17),"") -> 0 | I6: =IFERROR(HLOOKUP(A6,'Import BSP Bud'!$C$3:$CK$18,16,FALSE),0) -> 0 | J6: =IFERROR(SUM(H6-I6),"") -> 0 | K6: =IF(I6,(H6-I6)/I6,0) -> 0 | Y6: =IF(COA!$E$5="Y","Show","Hide") -> Show
A7: 3020 | B7: DEIS Grant | C7: ='Monthly Income & Exp. Reports'!O9 -> 0 | D7: 0 | E7: =C7-D7 -> 0 | F7: =IF(D7,(C7-D7)/D7,0) -> 0 | G7: DEIS Grant | H7: =IFERROR(HLOOKUP(A7,'Bank Summary Page'!$B$2:$CF$18,17),"") -> 0 | I7: =IFERROR(HLOOKUP(A7,'Import BSP Bud'!$C$3:$CK$18,16,FALSE),0) -> 0 | J7: =IFERROR(SUM(H7-I7),"") -> 0 | K7: =IF(I7,(H7-I7)/I7,0) -> 0 | Y7: =IF(COA!$E$6="Y","Show","Hide") -> Show
A8: 3021 | B8: Early Start Programme Mat/Equip/Par Inv Grant | C8: ='Monthly Income & Exp. Reports'!O10 -> 0 | D8: 0 | E8: 0 | F8: 0 | G8: Early Start Programme Mat/Equip/Par Inv Grant | H8: =IFERROR(HLOOKUP(A8,'Bank Summary Page'!$B$2:$CF$18,17),"") -> 0 | I8: =IFERROR(HLOOKUP(A8,'Import BSP Bud'!$C$3:$CK$18,16,FALSE),0) -> 0 | J8: 0 | K8: 0 | Y8: =IF(COA!$E$7="Y","Show","Hide") -> Hide
A9: 3022 | B9: Early Start Programme Capitation | C9: ='Monthly Income & Exp. Reports'!O11 -> 0 | D9: 0 | E9: 0 | F9: 0 | G9: Early Start Programme Capitation | H9: =IFERROR(HLOOKUP(A9,'Bank Summary Page'!$B$2:$CF$18,17),"") -> 0 | I9: =IFERROR(HLOOKUP(A9,'Import BSP Bud'!$C$3:$CK$18,16,FALSE),0) -> 0 | J9: 0 | K9: 0 | Y9: =IF(COA!$E$8="Y","Show","Hide") -> Hide
A10: 3050 | B10: Ancillary/School Support Services Grant | C10: ='Monthly Income & Exp. Reports'!O12 -> 0 | D10: 0 | E10: 0 | F10: 0 | G10: Ancillary/School Support Services Grant | H10: =IFERROR(HLOOKUP(A10,'Bank Summary Page'!$B$2:$CF$18,17),"") -> 0 | I10: =IFERROR(HLOOKUP(A10,'Import BSP Bud'!$C$3:$CK$18,16,FALSE),0) -> 0 | J10: 0 | K10: 0 | Y10: =IF(COA!$E$9="Y","Show","Hide") -> Show
A11: 3140 | B11: Special Education Equipment Grant | C11: ='Monthly Income & Exp. Reports'!O13 -> 0 | D11: 0 | E11: 0 | F11: 0 | G11: Special Education Equipment Grant | H11: =IFERROR(HLOOKUP(A11,'Bank Summary Page'!$B$2:$CF$18,17),"") -> 0 | I11: =IFERROR(HLOOKUP(A11,'Import BSP Bud'!$C$3:$CK$18,16,FALSE),0) -> 0 | J11: 0 | K11: 0 | Y11: =IF(COA!$E$10="Y","Show","Hide") -> Show
A12: 3151 | B12: Free Schoolbook Grant | C12: ='Monthly Income & Exp. Reports'!O14 -> 0 | D12: 0 | E12: 0 | F12: 0 | G12: Free Schoolbook Grant | H12: =IFERROR(HLOOKUP(A12,'Bank Summary Page'!$B$2:$CF$18,17),"") -> 0 | I12: =IFERROR(HLOOKUP(A12,'Import BSP Bud'!$C$3:$CK$18,16,FALSE),0) -> 0 | J12: 0 | K12: 0 | Y12: =IF(COA!$E$11="Y","Show","Hide") -> Show
A13: 3152 | B13: Free Schoolbook Admin Grant | C13: ='Monthly Income & Exp. Reports'!O15 -> 0 | D13: 0 | E13: 0 | F13: 0 | G13: Free Schoolbook Admin Grant | H13: =IFERROR(HLOOKUP(A13,'Bank Summary Page'!$B$2:$CF$18,17),"") -> 0 | I13: =IFERROR(HLOOKUP(A13,'Import BSP Bud'!$C$3:$CK$18,16,FALSE),0) -> 0 | J13: 0 | K13: 0 | Y13: =IF(COA!$E$12="Y","Show","Hide") -> Show
A14: 3155 | B14: School Library Books Capital Grant | C14: ='Monthly Income & Exp. Reports'!O16 -> 0 | D14: 0 | E14: 0 | F14: 0 | G14: School Library Books Capital Grant | H14: =IFERROR(HLOOKUP(A14,'Bank Summary Page'!$B$2:$CF$18,17),"") -> 0 | I14: =IFERROR(HLOOKUP(A14,'Import BSP Bud'!$C$3:$CK$18,16,FALSE),0) -> 0 | J14: 0 | K14: 0 | Y14: =IF(COA!$E$13="Y","Show","Hide") -> Hide
A15: 3170 | B15: Special Subject Grant | C15: ='Monthly Income & Exp. Reports'!O17 -> 0 | D15: 0 | E15: 0 | F15: 0 | G15: Special Subject Grant | H15: =IFERROR(HLOOKUP(A15,'Bank Summary Page'!$B$2:$CF$18,17),"") -> 0 | I15: =IFERROR(HLOOKUP(A15,'Import BSP Bud'!$C$3:$CK$18,16,FALSE),0) -> 0 | J15: 0 | K15: 0 | Y15: =IF(COA!$E$14="Y","Show","Hide") -> Hide
A16: 3171 | B16: Irish & Bilingual School Grant | C16: ='Monthly Income & Exp. Reports'!O18 -> 0 | D16: 0 | E16: 0 | F16: 0 | G16: Irish & Bilingual School Grant | H16: =IFERROR(HLOOKUP(A16,'Bank Summary Page'!$B$2:$CF$18,17),"") -> 0 | I16: =IFERROR(HLOOKUP(A16,'Import BSP Bud'!$C$3:$CK$18,16,FALSE),0) -> 0 | J16: 0 | K16: 0 | Y16: =IF(COA!$E$15="Y","Show","Hide") -> Hide
A17: 3190 | B17: JCSP Grant | C17: ='Monthly Income & Exp. Reports'!O19 -> 0 | D17: 0 | E17: 0 | F17: 0 | G17: JCSP Grant | H17: =IFERROR(HLOOKUP(A17,'Bank Summary Page'!$B$2:$CF$18,17),"") -> 0 | I17: =IFERROR(HLOOKUP(A17,'Import BSP Bud'!$C$3:$CK$18,16,FALSE),0) -> 0 | J17: 0 | K17: 0 | Y17: =IF(COA!$E$16="Y","Show","Hide") -> Hide
A18: 3200 | B18: Transition Year Grant | C18: ='Monthly Income & Exp. Reports'!O20 -> 0 | D18: 0 | E18: 0 | F18: 0 | G18: Transition Year Grant | H18: =IFERROR(HLOOKUP(A18,'Bank Summary Page'!$B$2:$CF$18,17),"") -> 0 | I18: =IFERROR(HLOOKUP(A18,'Import BSP Bud'!$C$3:$CK$18,16,FALSE),0) -> 0 | J18: 0 | K18: 0 | Y18: =IF(COA!$E$17="Y","Show","Hide") -> Hide
A19: 3210 | B19: Leaving Certificate Applied Grant | C19: ='Monthly Income & Exp. Reports'!O21 -> 0 | D19: 0 | E19: 0 | F19: 0 | G19: Leaving Certificate Applied Grant | H19: =IFERROR(HLOOKUP(A19,'Bank Summary Page'!$B$2:$CF$18,17),"") -> 0 | I19: =IFERROR(HLOOKUP(A19,'Import BSP Bud'!$C$3:$CK$18,16,FALSE),0) -> 0 | J19: 0 | K19: 0 | Y19: =IF(COA!$E$18="Y","Show","Hide") -> Hide
A20: 3225 | B20: Amortisation of DE Equipment Grants | C20: ='Monthly Income & Exp. Reports'!O22 -> 0 | D20: 0 | E20: 0 | F20: 0 | G20: Amortisation of DE Equipment Grants | H20: =IFERROR(HLOOKUP(A20,'Bank Summary Page'!$B$2:$CF$18,17),"") -> 0 | I20: =IFERROR(HLOOKUP(A20,'Import BSP Bud'!$C$3:$CK$18,16,FALSE),0) -> 0 | J20: 0 | K20: 0 | Y20: =IF(COA!$E$19="Y","Show","Hide") -> Hide
A21: 3226 | B21: Amortisation of DE ICT Grants | C21: ='Monthly Income & Exp. Reports'!O23 -> 0 | D21: 0 | E21: 0 | F21: 0 | G21: Amortisation of DE ICT Grants | H21: =IFERROR(HLOOKUP(A21,'Bank Summary Page'!$B$2:$CF$18,17),"") -> 0 | I21: =IFERROR(HLOOKUP(A21,'Import BSP Bud'!$C$3:$CK$18,16,FALSE),0) -> 0 | J21: 0 | K21: 0 | Y21: =IF(COA!$E$20="Y","Show","Hide") -> Hide
A22: 3227 | B22: Amortisation of Other DE Grants | C22: ='Monthly Income & Exp. Reports'!O24 -> 0 | D22: 0 | E22: 0 | F22: 0 | G22: Amortisation of Other DE Grants | H22: =IFERROR(HLOOKUP(A22,'Bank Summary Page'!$B$2:$CF$18,17),"") -> 0 | I22: =IFERROR(HLOOKUP(A22,'Import BSP Bud'!$C$3:$CK$18,16,FALSE),0) -> 0 | J22: 0 | K22: 0 | Y22: =IF(COA!$E$21="Y","Show","Hide") -> Hide
A23: 3230 | B23: ICT Grant | C23: ='Monthly Income & Exp. Reports'!O25 -> 0 | D23: 0 | E23: 0 | F23: 0 | G23: ICT Grant | H23: =IFERROR(HLOOKUP(A23,'Bank Summary Page'!$B$2:$CF$18,17),"") -> 0 | I23: =IFERROR(HLOOKUP(A23,'Import BSP Bud'!$C$3:$CK$18,16,FALSE),0) -> 0 | J23: 0 | K23: 0 | Y23: =IF(COA!$E$22="Y","Show","Hide") -> Show
A24: 3260 | B24: School Excellence Fund Income | C24: ='Monthly Income & Exp. Reports'!O26 -> 0 | D24: 0 | E24: 0 | F24: 0 | G24: School Excellence Fund Income | H24: =IFERROR(HLOOKUP(A24,'Bank Summary Page'!$B$2:$CF$18,17),"") -> 0 | I24: =IFERROR(HLOOKUP(A24,'Import BSP Bud'!$C$3:$CK$18,16,FALSE),0) -> 0 | J24: 0 | K24: 0 | Y24: =IF(COA!$E$23="Y","Show","Hide") -> Hide
A25: 3275 | B25: Minor Works Grant-Non Capital | C25: ='Monthly Income & Exp. Reports'!O27 -> 0 | D25: 0 | E25: 0 | F25: 0 | G25: Minor Works Grant-Non Capital | H25: =IFERROR(HLOOKUP(A25,'Bank Summary Page'!$B$2:$CF$18,17),"") -> 0 | I25: =IFERROR(HLOOKUP(A25,'Import BSP Bud'!$C$3:$CK$18,16,FALSE),0) -> 0 | J25: 0 | K25: 0 | Y25: =IF(COA!$E$24="Y","Show","Hide") -> Show
A26: 3276 | B26: Temporary Accommodation Grant Income | C26: ='Monthly Income & Exp. Reports'!O28 -> 0 | D26: 0 | E26: 0 | F26: 0 | G26: Temporary Accommodation Grant Income | H26: =IFERROR(HLOOKUP(A26,'Bank Summary Page'!$B$2:$CF$18,17),"") -> 0 | I26: =IFERROR(HLOOKUP(A26,'Import BSP Bud'!$C$3:$CK$18,16,FALSE),0) -> 0 | J26: 0 | K26: 0 | Y26: =IF(COA!$E$25="Y","Show","Hide") -> Show
A27: 3277 | B27: COVID Minor Works Grant | C27: ='Monthly Income & Exp. Reports'!O29 -> 0 | D27: 0 | E27: 0 | F27: 0 | G27: COVID Minor Works Grant | H27: =IFERROR(HLOOKUP(A27,'Bank Summary Page'!$B$2:$CF$18,17),"") -> 0 | I27: =IFERROR(HLOOKUP(A27,'Import BSP Bud'!$C$3:$CK$18,16,FALSE),0) -> 0 | J27: 0 | K27: 0 | Y27: =IF(COA!$E$26="Y","Show","Hide") -> Hide
A28: 3288 | B28: COVID Capitation for Cleaning and PPE Grant | C28: ='Monthly Income & Exp. Reports'!O30 -> 0 | D28: 0 | E28: 0 | F28: 0 | G28: COVID Capitation for Cleaning and PPE Grant | H28: =IFERROR(HLOOKUP(A28,'Bank Summary Page'!$B$2:$CF$18,17),"") -> 0 | I28: =IFERROR(HLOOKUP(A28,'Import BSP Bud'!$C$3:$CK$18,16,FALSE),0) -> 0 | J28: 0 | K28: 0 | Y28: =IF(COA!$E$27="Y","Show","Hide") -> Hide
A29: 3289 | B29: Once-Off Cost of Living Grant | C29: ='Monthly Income & Exp. Reports'!O31 -> 0 | D29: 0 | E29: 0 | F29: 0 | G29: Once-Off Cost of Living Grant | H29: =IFERROR(HLOOKUP(A29,'Bank Summary Page'!$B$2:$CF$18,17),"") -> 0 | I29: =IFERROR(HLOOKUP(A29,'Import BSP Bud'!$C$3:$CK$18,16,FALSE),0) -> 0 | J29: 0 | K29: 0 | Y29: =IF(COA!$E$28="Y","Show","Hide") -> Show
A30: 3290 | B30: Other Non Capital DE Grant Income | C30: ='Monthly Income & Exp. Reports'!O32 -> 0 | D30: 0 | E30: 0 | F30: 0 | G30: Other Non Capital DE Grant Income | H30: =IFERROR(HLOOKUP(A30,'Bank Summary Page'!$B$2:$CF$18,17),"") -> 0 | I30: =IFERROR(HLOOKUP(A30,'Import BSP Bud'!$C$3:$CK$18,16,FALSE),0) -> 0 | J30: 0 | K30: 0 | Y30: =IF(COA!$E$29="Y","Show","Hide") -> Show
A31: 3292 | B31: Standardised Testing Grant | C31: ='Monthly Income & Exp. Reports'!O33 -> 0 | D31: 0 | E31: 0 | F31: 0 | G31: Standardised Testing Grant | H31: =IFERROR(HLOOKUP(A31,'Bank Summary Page'!$B$2:$CF$18,17),"") -> 0 | I31: =IFERROR(HLOOKUP(A31,'Import BSP Bud'!$C$3:$CK$18,16,FALSE),0) -> 0 | J31: 0 | K31: 0 | Y31: =IF(COA!$E$30="Y","Show","Hide") -> Show
A32: 3293 | B32: Summer Provision Grant | C32: ='Monthly Income & Exp. Reports'!O34 -> 0 | D32: 0 | E32: 0 | F32: 0 | G32: Summer Provision Grant | H32: =IFERROR(HLOOKUP(A32,'Bank Summary Page'!$B$2:$CF$18,17),"") -> 0 | I32: =IFERROR(HLOOKUP(A32,'Import BSP Bud'!$C$3:$CK$18,16,FALSE),0) -> 0 | J32: 0 | K32: 0 | Y32: =IF(COA!$E$31="Y","Show","Hide") -> Show
A33: 3294 | B33: Bus Escort Grant | C33: ='Monthly Income & Exp. Reports'!O35 -> 0 | D33: 0 | E33: 0 | F33: 0 | G33: Bus Escort Grant | H33: =IFERROR(HLOOKUP(A33,'Bank Summary Page'!$B$2:$CF$18,17),"") -> 0 | I33: =IFERROR(HLOOKUP(A33,'Import BSP Bud'!$C$3:$CK$18,16,FALSE),0) -> 0 | J33: 0 | K33: 0 | Y33: =IF(COA!$E$32="Y","Show","Hide") -> Show
A34: 3295 | B34: Department of Children and Youth Affairs Income | C34: ='Monthly Income & Exp. Reports'!O36 -> 0 | D34: 0 | E34: 0 | F34: 0 | G34: Department of Children and Youth Affairs Income | H34: =IFERROR(HLOOKUP(A34,'Bank Summary Page'!$B$2:$CF$18,17),"") -> 0 | I34: =IFERROR(HLOOKUP(A34,'Import BSP Bud'!$C$3:$CK$18,16,FALSE),0) -> 0 | J34: 0 | K34: 0 | Y34: =IF(COA!$E$33="Y","Show","Hide") -> Hide
A35: 3296 | B35: DSP School Meals Grant | C35: ='Monthly Income & Exp. Reports'!O37 -> 0 | D35: 0 | E35: 0 | F35: 0 | G35: DSP School Meals Grant | H35: =IFERROR(HLOOKUP(A35,'Bank Summary Page'!$B$2:$CF$18,17),"") -> 0 | I35: =IFERROR(HLOOKUP(A35,'Import BSP Bud'!$C$3:$CK$18,16,FALSE),0) -> 0 | J35: 0 | K35: 0 | Y35: =IF(COA!$E$34="Y","Show","Hide") -> Show
A36: 3297 | B36: Erasmus Income | C36: ='Monthly Income & Exp. Reports'!O38 -> 0 | D36: 0 | E36: 0 | F36: 0 | G36: Erasmus Income | H36: =IFERROR(HLOOKUP(A36,'Bank Summary Page'!$B$2:$CF$18,17),"") -> 0 | I36: =IFERROR(HLOOKUP(A36,'Import BSP Bud'!$C$3:$CK$18,16,FALSE),0) -> 0 | J36: 0 | K36: 0 | Y36: =IF(COA!$E$35="Y","Show","Hide") -> Hide
A37: 3298 | B37: HSE Funding | C37: ='Monthly Income & Exp. Reports'!O39 -> 0 | D37: 0 | E37: 0 | F37: 0 | G37: HSE Funding | H37: =IFERROR(HLOOKUP(A37,'Bank Summary Page'!$B$2:$CF$18,17),"") -> 0 | I37: =IFERROR(HLOOKUP(A37,'Import BSP Bud'!$C$3:$CK$18,16,FALSE),0) -> 0 | J37: 0 | K37: 0 | Y37: =IF(COA!$E$36="Y","Show","Hide") -> Hide
A38: 3299 | B38: Other State Funding | C38: ='Monthly Income & Exp. Reports'!O40 -> 0 | D38: 0 | E38: 0 | F38: 0 | G38: Other State Funding | H38: =IFERROR(HLOOKUP(A38,'Bank Summary Page'!$B$2:$CF$18,17),"") -> 0 | I38: =IFERROR(HLOOKUP(A38,'Import BSP Bud'!$C$3:$CK$18,16,FALSE),0) -> 0 | J38: 0 | K38: 0 | Y38: =IF(COA!$E$37="Y","Show","Hide") -> Show
A39: 3300 | B39: Education Fees (Fee paying schools) | C39: ='Monthly Income & Exp. Reports'!O41 -> 0 | D39: 0 | E39: 0 | F39: 0 | G39: Education Fees (Fee paying schools) | H39: =IFERROR(HLOOKUP(A39,'Bank Summary Page'!$B$2:$CF$18,17),"") -> 0 | I39: =IFERROR(HLOOKUP(A39,'Import BSP Bud'!$C$3:$CK$18,16,FALSE),0) -> 0 | J39: 0 | K39: 0 | Y39: =IF(COA!$E$38="Y","Show","Hide") -> Hide
A40: 3310 | B40: Transition Year Income | C40: ='Monthly Income & Exp. Reports'!O42 -> 0 | D40: 0 | E40: 0 | F40: 0 | G40: Transition Year Income | H40: =IFERROR(HLOOKUP(A40,'Bank Summary Page'!$B$2:$CF$18,17),"") -> 0 | I40: =IFERROR(HLOOKUP(A40,'Import BSP Bud'!$C$3:$CK$18,16,FALSE),0) -> 0 | J40: 0 | K40: 0 | Y40: =IF(COA!$E$39="Y","Show","Hide") -> Hide
A41: 3335 | B41: Classroom Books/Resources Income | C41: ='Monthly Income & Exp. Reports'!O43 -> 0 | D41: 0 | E41: 0 | F41: 0 | G41: Classroom Books/Resources Income | H41: =IFERROR(HLOOKUP(A41,'Bank Summary Page'!$B$2:$CF$18,17),"") -> 0 | I41: =IFERROR(HLOOKUP(A41,'Import BSP Bud'!$C$3:$CK$18,16,FALSE),0) -> 0 | J41: 0 | K41: 0 | Y41: =IF(COA!$E$40="Y","Show","Hide") -> Show
A42: 3350 | B42: Hire of Facilities Rental Income | C42: ='Monthly Income & Exp. Reports'!O44 -> 0 | D42: 0 | E42: 0 | F42: 0 | G42: Hire of Facilities Rental Income | H42: =IFERROR(HLOOKUP(A42,'Bank Summary Page'!$B$2:$CF$18,17),"") -> 0 | I42: =IFERROR(HLOOKUP(A42,'Import BSP Bud'!$C$3:$CK$18,16,FALSE),0) -> 0 | J42: 0 | K42: 0 | Y42: =IF(COA!$E$41="Y","Show","Hide") -> Show
A43: 3370 | B43: Locker Income | C43: ='Monthly Income & Exp. Reports'!O45 -> 0 | D43: 0 | E43: 0 | F43: 0 | G43: Locker Income | H43: =IFERROR(HLOOKUP(A43,'Bank Summary Page'!$B$2:$CF$18,17),"") -> 0 | I43: =IFERROR(HLOOKUP(A43,'Import BSP Bud'!$C$3:$CK$18,16,FALSE),0) -> 0 | J43: 0 | K43: 0 | Y43: =IF(COA!$E$42="Y","Show","Hide") -> Hide
A44: 3375 | B44: Journals and Year Book Income | C44: ='Monthly Income & Exp. Reports'!O46 -> 0 | D44: 0 | E44: 0 | F44: 0 | G44: Journals and Year Book Income | H44: =IFERROR(HLOOKUP(A44,'Bank Summary Page'!$B$2:$CF$18,17),"") -> 0 | I44: =IFERROR(HLOOKUP(A44,'Import BSP Bud'!$C$3:$CK$18,16,FALSE),0) -> 0 | J44: 0 | K44: 0 | Y44: =IF(COA!$E$43="Y","Show","Hide") -> Show
A45: 3380 | B45: Student Photocopying Income | C45: ='Monthly Income & Exp. Reports'!O47 -> 0 | D45: 0 | E45: 0 | F45: 0 | G45: Student Photocopying Income | H45: =IFERROR(HLOOKUP(A45,'Bank Summary Page'!$B$2:$CF$18,17),"") -> 0 | I45: =IFERROR(HLOOKUP(A45,'Import BSP Bud'!$C$3:$CK$18,16,FALSE),0) -> 0 | J45: 0 | K45: 0 | Y45: =IF(COA!$E$44="Y","Show","Hide") -> Show
A46: 3390 | B46: School Administration Charges | C46: ='Monthly Income & Exp. Reports'!O48 -> 0 | D46: 0 | E46: 0 | F46: 0 | G46: School Administration Charges | H46: =IFERROR(HLOOKUP(A46,'Bank Summary Page'!$B$2:$CF$18,17),"") -> 0 | I46: =IFERROR(HLOOKUP(A46,'Import BSP Bud'!$C$3:$CK$18,16,FALSE),0) -> 0 | J46: 0 | K46: 0 | Y46: =IF(COA!$E$45="Y","Show","Hide") -> Show
A47: 3410 | B47: Adult Education Income | C47: ='Monthly Income & Exp. Reports'!O49 -> 0 | D47: 0 | E47: 0 | F47: 0 | G47: Adult Education Income | H47: =IFERROR(HLOOKUP(A47,'Bank Summary Page'!$B$2:$CF$18,17),"") -> 0 | I47: =IFERROR(HLOOKUP(A47,'Import BSP Bud'!$C$3:$CK$18,16,FALSE),0) -> 0 | J47: 0 | K47: 0 | Y47: =IF(COA!$E$46="Y","Show","Hide") -> Hide
A48: 3420 | B48: Canteen Income | C48: ='Monthly Income & Exp. Reports'!O50 -> 0 | D48: 0 | E48: 0 | F48: 0 | G48: Canteen Income | H48: =IFERROR(HLOOKUP(A48,'Bank Summary Page'!$B$2:$CF$18,17),"") -> 0 | I48: =IFERROR(HLOOKUP(A48,'Import BSP Bud'!$C$3:$CK$18,16,FALSE),0) -> 0 | J48: 0 | K48: 0 | Y48: =IF(COA!$E$47="Y","Show","Hide") -> Hide
A49: 3430 | B49: Tuck Shop Income | C49: ='Monthly Income & Exp. Reports'!O51 -> 0 | D49: 0 | E49: 0 | F49: 0 | G49: Tuck Shop Income | H49: =IFERROR(HLOOKUP(A49,'Bank Summary Page'!$B$2:$CF$18,17),"") -> 0 | I49: =IFERROR(HLOOKUP(A49,'Import BSP Bud'!$C$3:$CK$18,16,FALSE),0) -> 0 | J49: 0 | K49: 0 | Y49: =IF(COA!$E$48="Y","Show","Hide") -> Show
A50: 3440 | B50: Uniforms Income | C50: ='Monthly Income & Exp. Reports'!O52 -> 0 | D50: 0 | E50: 0 | F50: 0 | G50: Uniforms Income | H50: =IFERROR(HLOOKUP(A50,'Bank Summary Page'!$B$2:$CF$18,17),"") -> 0 | I50: =IFERROR(HLOOKUP(A50,'Import BSP Bud'!$C$3:$CK$18,16,FALSE),0) -> 0 | J50: 0 | K50: 0 | Y50: =IF(COA!$E$49="Y","Show","Hide") -> Show
A51: 3450 | B51: Religion/Ethos Income | C51: ='Monthly Income & Exp. Reports'!O53 -> 0 | D51: 0 | E51: 0 | F51: 0 | G51: Religion/Ethos Income | H51: =IFERROR(HLOOKUP(A51,'Bank Summary Page'!$B$2:$CF$18,17),"") -> 0 | I51: =IFERROR(HLOOKUP(A51,'Import BSP Bud'!$C$3:$CK$18,16,FALSE),0) -> 0 | J51: 0 | K51: 0 | Y51: =IF(COA!$E$50="Y","Show","Hide") -> Show
A52: 3490 | B52: After School Study/Club Income | C52: ='Monthly Income & Exp. Reports'!O54 -> 0 | D52: 0 | E52: 0 | F52: 0 | G52: After School Study/Club Income | H52: =IFERROR(HLOOKUP(A52,'Bank Summary Page'!$B$2:$CF$18,17),"") -> 0 | I52: =IFERROR(HLOOKUP(A52,'Import BSP Bud'!$C$3:$CK$18,16,FALSE),0) -> 0 | J52: 0 | K52: 0 | Y52: =IF(COA!$E$51="Y","Show","Hide") -> Show
A53: 3500 | B53: Games Income | C53: ='Monthly Income & Exp. Reports'!O55 -> 0 | D53: 0 | E53: 0 | F53: 0 | G53: Games Income | H53: =IFERROR(HLOOKUP(A53,'Bank Summary Page'!$B$2:$CF$18,17),"") -> 0 | I53: =IFERROR(HLOOKUP(A53,'Import BSP Bud'!$C$3:$CK$18,16,FALSE),0) -> 0 | J53: 0 | K53: 0 | Y53: =IF(COA!$E$52="Y","Show","Hide") -> Show
A54: 3510 | B54: Bus Hire for Games Income | C54: ='Monthly Income & Exp. Reports'!O56 -> 0 | D54: 0 | E54: 0 | F54: 0 | G54: Bus Hire for Games Income | H54: =IFERROR(HLOOKUP(A54,'Bank Summary Page'!$B$2:$CF$18,17),"") -> 0 | I54: =IFERROR(HLOOKUP(A54,'Import BSP Bud'!$C$3:$CK$18,16,FALSE),0) -> 0 | J54: 0 | K54: 0 | Y54: =IF(COA!$E$53="Y","Show","Hide") -> Show
A55: 3511 | B55: Bus Hire Other Income | C55: ='Monthly Income & Exp. Reports'!O57 -> 0 | D55: 0 | E55: 0 | F55: 0 | G55: Bus Hire Other Income | H55: =IFERROR(HLOOKUP(A55,'Bank Summary Page'!$B$2:$CF$18,17),"") -> 0 | I55: =IFERROR(HLOOKUP(A55,'Import BSP Bud'!$C$3:$CK$18,16,FALSE),0) -> 0 | J55: 0 | K55: 0 | Y55: =IF(COA!$E$54="Y","Show","Hide") -> Show
A56: 3520 | B56: School Musical/Drama Income | C56: ='Monthly Income & Exp. Reports'!O58 -> 0 | D56: 0 | E56: 0 | F56: 0 | G56: School Musical/Drama Income | H56: =IFERROR(HLOOKUP(A56,'Bank Summary Page'!$B$2:$CF$18,17),"") -> 0 | I56: =IFERROR(HLOOKUP(A56,'Import BSP Bud'!$C$3:$CK$18,16,FALSE),0) -> 0 | J56: 0 | K56: 0 | Y56: =IF(COA!$E$55="Y","Show","Hide") -> Show
A57: 3530 | B57: School Tours Income | C57: ='Monthly Income & Exp. Reports'!O59 -> 0 | D57: 0 | E57: 0 | F57: 0 | G57: School Tours Income | H57: =IFERROR(HLOOKUP(A57,'Bank Summary Page'!$B$2:$CF$18,17),"") -> 0 | I57: =IFERROR(HLOOKUP(A57,'Import BSP Bud'!$C$3:$CK$18,16,FALSE),0) -> 0 | J57: 0 | K57: 0 | Y57: =IF(COA!$E$56="Y","Show","Hide") -> Show
A58: 3531 | B58: School Swimming Income | C58: ='Monthly Income & Exp. Reports'!O60 -> 0 | D58: 0 | E58: 0 | F58: 0 | G58: School Swimming Income | H58: =IFERROR(HLOOKUP(A58,'Bank Summary Page'!$B$2:$CF$18,17),"") -> 0 | I58: =IFERROR(HLOOKUP(A58,'Import BSP Bud'!$C$3:$CK$18,16,FALSE),0) -> 0 | J58: 0 | K58: 0 | Y58: =IF(COA!$E$57="Y","Show","Hide") -> Show
A59: 3535 | B59: Student Insurance Income | C59: ='Monthly Income & Exp. Reports'!O61 -> 0 | D59: 0 | E59: 0 | F59: 0 | G59: Student Insurance Income | H59: =IFERROR(HLOOKUP(A59,'Bank Summary Page'!$B$2:$CF$18,17),"") -> 0 | I59: =IFERROR(HLOOKUP(A59,'Import BSP Bud'!$C$3:$CK$18,16,FALSE),0) -> 0 | J59: 0 | K59: 0 | Y59: =IF(COA!$E$58="Y","Show","Hide") -> Show
A60: 3540 | B60: Pre-School Income | C60: ='Monthly Income & Exp. Reports'!O62 -> 0 | D60: 0 | E60: 0 | F60: 0 | G60: Pre-School Income | H60: =IFERROR(HLOOKUP(A60,'Bank Summary Page'!$B$2:$CF$18,17),"") -> 0 | I60: =IFERROR(HLOOKUP(A60,'Import BSP Bud'!$C$3:$CK$18,16,FALSE),0) -> 0 | J60: 0 | K60: 0 | Y60: =IF(COA!$E$59="Y","Show","Hide") -> Show
A61: 3545 | B61: Summer Camps Income | C61: ='Monthly Income & Exp. Reports'!O63 -> 0 | D61: 0 | E61: 0 | F61: 0 | G61: Summer Camps Income | H61: =IFERROR(HLOOKUP(A61,'Bank Summary Page'!$B$2:$CF$18,17),"") -> 0 | I61: =IFERROR(HLOOKUP(A61,'Import BSP Bud'!$C$3:$CK$18,16,FALSE),0) -> 0 | J61: 0 | K61: 0 | Y61: =IF(COA!$E$60="Y","Show","Hide") -> Hide
A62: 3550 | B62: Reimbursable Income | C62: ='Monthly Income & Exp. Reports'!O64 -> 0 | D62: 0 | E62: 0 | F62: 0 | G62: Reimbursable Income | H62: =IFERROR(HLOOKUP(A62,'Bank Summary Page'!$B$2:$CF$18,17),"") -> 0 | I62: =IFERROR(HLOOKUP(A62,'Import BSP Bud'!$C$3:$CK$18,16,FALSE),0) -> 0 | J62: 0 | K62: 0 | Y62: =IF(COA!$E$61="Y","Show","Hide") -> Show
A63: 3570 | B63: Other School Generated Income | C63: ='Monthly Income & Exp. Reports'!O65 -> 0 | D63: 0 | E63: 0 | F63: 0 | G63: Other School Generated Income | H63: =IFERROR(HLOOKUP(A63,'Bank Summary Page'!$B$2:$CF$18,17),"") -> 0 | I63: =IFERROR(HLOOKUP(A63,'Import BSP Bud'!$C$3:$CK$18,16,FALSE),0) -> 0 | J63: 0 | K63: 0 | Y63: =IF(COA!$E$62="Y","Show","Hide") -> Show
A64: 3572 | B64: School Arts and Crafts Income | C64: ='Monthly Income & Exp. Reports'!O66 -> 0 | D64: 0 | E64: 0 | F64: 0 | G64: School Arts and Crafts Income | H64: =IFERROR(HLOOKUP(A64,'Bank Summary Page'!$B$2:$CF$18,17),"") -> 0 | I64: =IFERROR(HLOOKUP(A64,'Import BSP Bud'!$C$3:$CK$18,16,FALSE),0) -> 0 | J64: 0 | K64: 0 | Y64: =IF(COA!$E$63="Y","Show","Hide") -> Show
A65: 3573 | B65: School Dance Income | C65: ='Monthly Income & Exp. Reports'!O67 -> 0 | D65: 0 | E65: 0 | F65: 0 | G65: School Dance Income | H65: =IFERROR(HLOOKUP(A65,'Bank Summary Page'!$B$2:$CF$18,17),"") -> 0 | I65: =IFERROR(HLOOKUP(A65,'Import BSP Bud'!$C$3:$CK$18,16,FALSE),0) -> 0 | J65: 0 | K65: 0 | Y65: =IF(COA!$E$64="Y","Show","Hide") -> Show
A66: 3574 | B66: Restricted School Fundraising (Non Capital) | C66: ='Monthly Income & Exp. Reports'!O68 -> 0 | D66: 0 | E66: =C66-D66 -> 0 | F66: 0 | G66: Restricted School Fundraising (Non Capital) | H66: =IFERROR(HLOOKUP(A66,'Bank Summary Page'!$B$2:$CF$18,17),"") -> 0 | I66: =IFERROR(HLOOKUP(A66,'Import BSP Bud'!$C$3:$CK$18,16,FALSE),0) -> 0 | J66: 0 | K66: 0 | Y66: =IF(COA!$E$65="Y","Show","Hide") -> Show
A67: 3575 | B67: Unrestricted School Fundraising (Non Capital) | C67: ='Monthly Income & Exp. Reports'!O69 -> 0 | D67: 0 | E67: 0 | F67: 0 | G67: Unrestricted School Fundraising (Non Capital) | H67: =IFERROR(HLOOKUP(A67,'Bank Summary Page'!$B$2:$CF$18,17),"") -> 0 | I67: =IFERROR(HLOOKUP(A67,'Import BSP Bud'!$C$3:$CK$18,16,FALSE),0) -> 0 | J67: 0 | K67: 0 | Y67: =IF(COA!$E$66="Y","Show","Hide") -> Show
A68: 3580 | B68: Discounts/Rebates | C68: ='Monthly Income & Exp. Reports'!O70 -> 0 | D68: 0 | E68: 0 | F68: 0 | G68: Discounts/Rebates | H68: =IFERROR(HLOOKUP(A68,'Bank Summary Page'!$B$2:$CF$18,17),"") -> 0 | I68: =IFERROR(HLOOKUP(A68,'Import BSP Bud'!$C$3:$CK$18,16,FALSE),0) -> 0 | J68: 0 | K68: 0 | Y68: =IF(COA!$E$67="Y","Show","Hide") -> Hide
A69: 3650 | B69: Voluntary Contributions | C69: ='Monthly Income & Exp. Reports'!O71 -> 0 | D69: 0 | E69: 0 | F69: 0 | G69: Voluntary Contributions | H69: =IFERROR(HLOOKUP(A69,'Bank Summary Page'!$B$2:$CF$18,17),"") -> 0 | I69: =IFERROR(HLOOKUP(A69,'Import BSP Bud'!$C$3:$CK$18,16,FALSE),0) -> 0 | J69: 0 | K69: 0 | Y69: =IF(COA!$E$68="Y","Show","Hide") -> Show
A70: 3700 | B70: Income from Parents Association | C70: ='Monthly Income & Exp. Reports'!O72 -> 0 | D70: 0 | E70: 0 | F70: 0 | G70: Income from Parents Association | H70: =IFERROR(HLOOKUP(A70,'Bank Summary Page'!$B$2:$CF$18,17),"") -> 0 | I70: =IFERROR(HLOOKUP(A70,'Import BSP Bud'!$C$3:$CK$18,16,FALSE),0) -> 0 | J70: 0 | K70: 0 | Y70: =IF(COA!$E$69="Y","Show","Hide") -> Show
A71: 3770 | B71: Insurance Claim Income | C71: ='Monthly Income & Exp. Reports'!O73 -> 0 | D71: 0 | E71: 0 | F71: =IF(D71,(C71-D71)/D71,0) -> 0 | G71: Insurance Claim Income | H71: =IFERROR(HLOOKUP(A71,'Bank Summary Page'!$B$2:$CF$18,17),"") -> 0 | I71: =IFERROR(HLOOKUP(A71,'Import BSP Bud'!$C$3:$CK$18,16,FALSE),0) -> 0 | J71: =IFERROR(SUM(H71-I71),"") -> 0 | K71: =IF(I71,(H71-I71)/I71,0) -> 0 | Y71: =IF(COA!$E$70="Y","Show","Hide") -> Show
A72: 3800 | B72: Bank Interest Received | C72: ='Monthly Income & Exp. Reports'!O74 -> 0 | D72: 0 | E72: 0 | F72: 0 | G72: Bank Interest Received | H72: =IFERROR(HLOOKUP(A72,'Bank Summary Page'!$B$2:$CF$18,17),"") -> 0 | I72: =IFERROR(HLOOKUP(A72,'Import BSP Bud'!$C$3:$CK$18,16,FALSE),0) -> 0 | J72: 0 | K72: 0 | Y72: =IF(COA!$E$71="Y","Show","Hide") -> Show
A73: 3840 | B73: Amortisation of Non DE funding | C73: ='Monthly Income & Exp. Reports'!O75 -> 0 | D73: 0 | E73: 0 | F73: 0 | G73: Amortisation of Non DE funding | H73: =IFERROR(HLOOKUP(A73,'Bank Summary Page'!$B$2:$CF$18,17),"") -> 0 | I73: =IFERROR(HLOOKUP(A73,'Import BSP Bud'!$C$3:$CK$18,16,FALSE),0) -> 0 | J73: 0 | K73: 0 | Y73: =IF(COA!$E$72="Y","Show","Hide") -> Hide
A74: 3850 | B74: Other Income | C74: ='Monthly Income & Exp. Reports'!O76 -> 0 | E74: 0 | F74: 0 | G74: Other Income | H74: =IFERROR(HLOOKUP(A74,'Bank Summary Page'!$B$2:$CF$18,17),"") -> 0 | I74: =IFERROR(HLOOKUP(A74,'Import BSP Bud'!$C$3:$CK$18,16,FALSE),0) -> 0 | J74: 0 | K74: 0 | Y74: =IF(COA!$E$73="Y","Show","Hide") -> Show
A75: 3851 | B75: Designated Income (Non Capital) | C75: ='Monthly Income & Exp. Reports'!O77 -> 0 | E75: 0 | F75: 0 | G75: Designated Income (Non Capital) | H75: =IFERROR(HLOOKUP(A75,'Bank Summary Page'!$B$2:$CF$18,17),"") -> 0 | I75: =IFERROR(HLOOKUP(A75,'Import BSP Bud'!$C$3:$CK$18,16,FALSE),0) -> 0 | J75: 0 | K75: 0 | Y75: =IF(COA!$E$74="Y","Show","Hide") -> Show
A76: 3852 | B76: Restricted External Fundraising (Non Capital) | C76: ='Monthly Income & Exp. Reports'!O78 -> 0 | D76: 0 | E76: 0 | F76: 0 | G76: Restricted External Fundraising (Non Capital) | H76: =IFERROR(HLOOKUP(A76,'Bank Summary Page'!$B$2:$CF$18,17),"") -> 0 | I76: =IFERROR(HLOOKUP(A76,'Import BSP Bud'!$C$3:$CK$18,16,FALSE),0) -> 0 | J76: 0 | K76: 0 | Y76: =IF(COA!$E$75="Y","Show","Hide") -> Show
A77: 3853 | B77: Unrestricted External Fundraising (Non Capital) | C77: ='Monthly Income & Exp. Reports'!O79 -> 0 | D77: 0 | E77: =C77-D77 -> 0 | F77: 0 | G77: Unrestricted External Fundraising (Non Capital) | H77: =IFERROR(HLOOKUP(A77,'Bank Summary Page'!$B$2:$CF$18,17),"") -> 0 | I77: =IFERROR(HLOOKUP(A77,'Import BSP Bud'!$C$3:$CK$18,16,FALSE),0) -> 0 | J77: =IFERROR(SUM(H77-I77),"") -> 0 | K77: 0 | Y77: =IF(COA!$E$76="Y","Show","Hide") -> Show
B78: TOTAL SCHOOL INCOME | C78: =SUM(C6:C77) -> 0 | D78: =SUM(D6:D77) -> 0 | E78: =SUM(E6:E77) -> 0 | F78: =IF(D78,(C78-D78)/D78,0) -> 0 | G78: TOTAL SCHOOL INCOME | H78: =SUM(H6:H77) -> 0 | I78: =SUM(I6:I77) -> 0 | J78: =SUM(J6:J77) -> 0 | K78: =IF(I78,(H78-I78)/I78,0) -> 0
C79: Year to Date | D79: Budget | E79: Year to Date v Budget 2024/2025 | F79: Year to Date v Budget 2024/2025 | H79: Rolling Period | I79: Period Prior Year 2023/2024 | J79: Period v Period Prior Yr | K79: Period v Period Prior Yr
B80: SCHOOL EXPENDITURE | C80: Actual | D80: 2024/2025 | E80: Difference | F80: % Difference | G80: SCHOOL EXPENDITURE | H80: Actual | I80: Actual | J80: Difference | K80: % Difference
A81: 4110 | B81: Substitute Teachers Expense | C81: ='Monthly Income & Exp. Reports'!O84 -> 0 | D81: 0 | E81: =-(C81-D81) -> 0 | F81: =IF(D81,(C81-D81)/D81,0)*-1 -> 0 | G81: Substitute Teachers Expense | H81: =IFERROR(HLOOKUP(A81,'Bank Summary Page'!$B$19:$DK$35,17),"") -> 0 | I81: =IFERROR(HLOOKUP(A81,'Import BSP Bud'!$C$19:$DK$34,16,FALSE),0) -> 0 | J81: =-IFERROR(SUM(H81-I81),"") -> 0 | K81: =IF(I81,(H81-I81)/I81,0)*-1 -> 0 | Y81: =IF(COA!$E$77="Y","Show","Hide") -> Show
A82: 4111 | B82: Privately Paid Teachers Expense | C82: ='Monthly Income & Exp. Reports'!O85 -> 0 | D82: 0 | E82: =-(C82-D82) -> 0 | F82: =IF(D82,(C82-D82)/D82,0)*-1 -> 0 | G82: Privately Paid Teachers Expense | H82: =IFERROR(HLOOKUP(A82,'Bank Summary Page'!$B$19:$DK$35,17),"") -> 0 | I82: =IFERROR(HLOOKUP(A82,'Import BSP Bud'!$C$19:$DK$34,16,FALSE),0) -> 0 | J82: =-IFERROR(SUM(H82-I82),"") -> 0 | K82: =IF(I82,(H82-I82)/I82,0)*-1 -> 0 | Y82: =IF(COA!$E$78="Y","Show","Hide") -> Show
A83: 4113 | B83: Free Schoolbook Admin Salaries Expense | C83: ='Monthly Income & Exp. Reports'!O86 -> 0 | D83: 0 | E83: 0 | F83: 0 | G83: Free Schoolbook Admin Salaries Expense | H83: =IFERROR(HLOOKUP(A83,'Bank Summary Page'!$B$19:$DK$35,17),"") -> 0 | I83: =IFERROR(HLOOKUP(A83,'Import BSP Bud'!$C$19:$DK$34,16,FALSE),0) -> 0 | J83: 0 | K83: 0 | Y83: =IF(COA!$E$79="Y","Show","Hide") -> Show
A84: 4150 | B84: Supervision and Substitution Salaries Expense | C84: ='Monthly Income & Exp. Reports'!O87 -> 0 | D84: 0 | E84: 0 | F84: 0 | G84: Supervision and Substitution Salaries Expense | H84: =IFERROR(HLOOKUP(A84,'Bank Summary Page'!$B$19:$DK$35,17),"") -> 0 | I84: =IFERROR(HLOOKUP(A84,'Import BSP Bud'!$C$19:$DK$34,16,FALSE),0) -> 0 | J84: 0 | K84: 0 | Y84: =IF(COA!$E$80="Y","Show","Hide") -> Hide
A85: 4170 | B85: Adult Education Salaries Expense | C85: ='Monthly Income & Exp. Reports'!O88 -> 0 | D85: 0 | E85: 0 | F85: 0 | G85: Adult Education Salaries Expense | H85: =IFERROR(HLOOKUP(A85,'Bank Summary Page'!$B$19:$DK$35,17),"") -> 0 | I85: =IFERROR(HLOOKUP(A85,'Import BSP Bud'!$C$19:$DK$34,16,FALSE),0) -> 0 | J85: 0 | K85: 0 | Y85: =IF(COA!$E$81="Y","Show","Hide") -> Hide
A86: 4181 | B86: Canteen Salaries Expense | C86: ='Monthly Income & Exp. Reports'!O89 -> 0 | D86: 0 | E86: 0 | F86: 0 | G86: Canteen Salaries Expense | H86: =IFERROR(HLOOKUP(A86,'Bank Summary Page'!$B$19:$DK$35,17),"") -> 0 | I86: =IFERROR(HLOOKUP(A86,'Import BSP Bud'!$C$19:$DK$34,16,FALSE),0) -> 0 | J86: 0 | K86: 0 | Y86: =IF(COA!$E$82="Y","Show","Hide") -> Hide
A87: 4190 | B87: After School Study/Club Salaries Expense | C87: ='Monthly Income & Exp. Reports'!O90 -> 0 | D87: 0 | E87: 0 | F87: 0 | G87: After School Study/Club Salaries Expense | H87: =IFERROR(HLOOKUP(A87,'Bank Summary Page'!$B$19:$DK$35,17),"") -> 0 | I87: =IFERROR(HLOOKUP(A87,'Import BSP Bud'!$C$19:$DK$34,16,FALSE),0) -> 0 | J87: 0 | K87: 0 | Y87: =IF(COA!$E$83="Y","Show","Hide") -> Show
A88: 4191 | B88: Summer Camps Salaries Expense | C88: ='Monthly Income & Exp. Reports'!O91 -> 0 | D88: 0 | E88: 0 | F88: 0 | G88: Summer Camps Salaries Expense | H88: =IFERROR(HLOOKUP(A88,'Bank Summary Page'!$B$19:$DK$35,17),"") -> 0 | I88: =IFERROR(HLOOKUP(A88,'Import BSP Bud'!$C$19:$DK$34,16,FALSE),0) -> 0 | J88: 0 | K88: 0 | Y88: =IF(COA!$E$84="Y","Show","Hide") -> Hide
A89: 4196 | B89: Bus Escort Salary Expense | C89: ='Monthly Income & Exp. Reports'!O92 -> 0 | D89: 0 | E89: 0 | F89: 0 | G89: Bus Escort Salary Expense | H89: =IFERROR(HLOOKUP(A89,'Bank Summary Page'!$B$19:$DK$35,17),"") -> 0 | I89: =IFERROR(HLOOKUP(A89,'Import BSP Bud'!$C$19:$DK$34,16,FALSE),0) -> 0 | J89: 0 | K89: 0 | Y89: =IF(COA!$E$85="Y","Show","Hide") -> Show
A90: 4198 | B90: Other Educational Salaries Expense | C90: ='Monthly Income & Exp. Reports'!O93 -> 0 | D90: 0 | E90: 0 | F90: 0 | G90: Other Educational Salaries Expense | H90: =IFERROR(HLOOKUP(A90,'Bank Summary Page'!$B$19:$DK$35,17),"") -> 0 | I90: =IFERROR(HLOOKUP(A90,'Import BSP Bud'!$C$19:$DK$34,16,FALSE),0) -> 0 | J90: 0 | K90: 0 | Y90: =IF(COA!$E$86="Y","Show","Hide") -> Show
A91: 4199 | B91: HSE Funded Salaries Expense | C91: ='Monthly Income & Exp. Reports'!O94 -> 0 | D91: 0 | E91: 0 | F91: 0 | G91: HSE Funded Salaries Expense | H91: =IFERROR(HLOOKUP(A91,'Bank Summary Page'!$B$19:$DK$35,17),"") -> 0 | I91: =IFERROR(HLOOKUP(A91,'Import BSP Bud'!$C$19:$DK$34,16,FALSE),0) -> 0 | J91: 0 | K91: 0 | Y91: =IF(COA!$E$87="Y","Show","Hide") -> Hide
A92: 4310 | B92: Teaching Aids Expense | C92: ='Monthly Income & Exp. Reports'!O95 -> 0 | D92: 0 | E92: 0 | F92: 0 | G92: Teaching Aids Expense | H92: =IFERROR(HLOOKUP(A92,'Bank Summary Page'!$B$19:$DK$35,17),"") -> 0 | I92: =IFERROR(HLOOKUP(A92,'Import BSP Bud'!$C$19:$DK$34,16,FALSE),0) -> 0 | J92: 0 | K92: 0 | Y92: =IF(COA!$E$88="Y","Show","Hide") -> Show
A93: 4311 | B93: Early Start Programme Mat/Equip/Par Inv Expenses | C93: ='Monthly Income & Exp. Reports'!O96 -> 0 | D93: 0 | E93: 0 | F93: 0 | G93: Early Start Programme Mat/Equip/Par Inv Expenses | H93: =IFERROR(HLOOKUP(A93,'Bank Summary Page'!$B$19:$DK$35,17),"") -> 0 | I93: =IFERROR(HLOOKUP(A93,'Import BSP Bud'!$C$19:$DK$34,16,FALSE),0) -> 0 | J93: 0 | K93: 0 | Y93: =IF(COA!$E$89="Y","Show","Hide") -> Hide
A94: 4315 | B94: Student Photocopying Expenses | C94: ='Monthly Income & Exp. Reports'!O97 -> 0 | D94: 0 | E94: 0 | F94: 0 | G94: Student Photocopying Expenses | H94: =IFERROR(HLOOKUP(A94,'Bank Summary Page'!$B$19:$DK$35,17),"") -> 0 | I94: =IFERROR(HLOOKUP(A94,'Import BSP Bud'!$C$19:$DK$34,16,FALSE),0) -> 0 | J94: 0 | K94: 0 | Y94: =IF(COA!$E$90="Y","Show","Hide") -> Show
A95: 4330 | B95: Religion/Ethos Expense | C95: ='Monthly Income & Exp. Reports'!O98 -> 0 | D95: 0 | E95: 0 | F95: 0 | G95: Religion/Ethos Expense | H95: =IFERROR(HLOOKUP(A95,'Bank Summary Page'!$B$19:$DK$35,17),"") -> 0 | I95: =IFERROR(HLOOKUP(A95,'Import BSP Bud'!$C$19:$DK$34,16,FALSE),0) -> 0 | J95: 0 | K95: 0 | Y95: =IF(COA!$E$91="Y","Show","Hide") -> Show
A96: 4410 | B96: ICT Grant Expense | C96: ='Monthly Income & Exp. Reports'!O99 -> 0 | D96: 0 | E96: 0 | F96: 0 | G96: ICT Grant Expense | H96: =IFERROR(HLOOKUP(A96,'Bank Summary Page'!$B$19:$DK$35,17),"") -> 0 | I96: =IFERROR(HLOOKUP(A96,'Import BSP Bud'!$C$19:$DK$34,16,FALSE),0) -> 0 | J96: 0 | K96: 0 | Y96: =IF(COA!$E$92="Y","Show","Hide") -> Show
A97: 4420 | B97: Computer Maintenance & Support Expense | C97: ='Monthly Income & Exp. Reports'!O100 -> 0 | D97: 0 | E97: 0 | F97: 0 | G97: Computer Maintenance & Support Expense | H97: =IFERROR(HLOOKUP(A97,'Bank Summary Page'!$B$19:$DK$35,17),"") -> 0 | I97: =IFERROR(HLOOKUP(A97,'Import BSP Bud'!$C$19:$DK$34,16,FALSE),0) -> 0 | J97: 0 | K97: 0 | Y97: =IF(COA!$E$93="Y","Show","Hide") -> Show
A98: 4490 | B98: Other Subjects Expense | C98: ='Monthly Income & Exp. Reports'!O101 -> 0 | D98: 0 | E98: 0 | F98: 0 | G98: Other Subjects Expense | H98: =IFERROR(HLOOKUP(A98,'Bank Summary Page'!$B$19:$DK$35,17),"") -> 0 | I98: =IFERROR(HLOOKUP(A98,'Import BSP Bud'!$C$19:$DK$34,16,FALSE),0) -> 0 | J98: 0 | K98: 0 | Y98: =IF(COA!$E$94="Y","Show","Hide") -> Hide
A99: 4550 | B99: Leaving Cert Applied Expense | C99: ='Monthly Income & Exp. Reports'!O102 -> 0 | D99: 0 | E99: 0 | F99: 0 | G99: Leaving Cert Applied Expense | H99: =IFERROR(HLOOKUP(A99,'Bank Summary Page'!$B$19:$DK$35,17),"") -> 0 | I99: =IFERROR(HLOOKUP(A99,'Import BSP Bud'!$C$19:$DK$34,16,FALSE),0) -> 0 | J99: 0 | K99: 0 | Y99: =IF(COA!$E$95="Y","Show","Hide") -> Hide
A100: 4570 | B100: LCVP Expense | C100: ='Monthly Income & Exp. Reports'!O103 -> 0 | D100: 0 | E100: 0 | F100: 0 | G100: LCVP Expense | H100: =IFERROR(HLOOKUP(A100,'Bank Summary Page'!$B$19:$DK$35,17),"") -> 0 | I100: =IFERROR(HLOOKUP(A100,'Import BSP Bud'!$C$19:$DK$34,16,FALSE),0) -> 0 | J100: 0 | K100: 0 | Y100: =IF(COA!$E$96="Y","Show","Hide") -> Hide
A101: 4590 | B101: Transition Year Expense | C101: ='Monthly Income & Exp. Reports'!O104 -> 0 | D101: 0 | E101: 0 | F101: 0 | G101: Transition Year Expense | H101: =IFERROR(HLOOKUP(A101,'Bank Summary Page'!$B$19:$DK$35,17),"") -> 0 | I101: =IFERROR(HLOOKUP(A101,'Import BSP Bud'!$C$19:$DK$34,16,FALSE),0) -> 0 | J101: 0 | K101: 0 | Y101: =IF(COA!$E$97="Y","Show","Hide") -> Hide
A102: 4610 | B102: Learning Support Expense | C102: ='Monthly Income & Exp. Reports'!O105 -> 0 | D102: 0 | E102: 0 | F102: 0 | G102: Learning Support Expense | H102: =IFERROR(HLOOKUP(A102,'Bank Summary Page'!$B$19:$DK$35,17),"") -> 0 | I102: =IFERROR(HLOOKUP(A102,'Import BSP Bud'!$C$19:$DK$34,16,FALSE),0) -> 0 | J102: 0 | K102: 0 | Y102: =IF(COA!$E$98="Y","Show","Hide") -> Show
A103: 4620 | B103: Teacher Inservice and Training Expense | C103: ='Monthly Income & Exp. Reports'!O106 -> 0 | D103: 0 | E103: 0 | F103: 0 | G103: Teacher Inservice and Training Expense | H103: =IFERROR(HLOOKUP(A103,'Bank Summary Page'!$B$19:$DK$35,17),"") -> 0 | I103: =IFERROR(HLOOKUP(A103,'Import BSP Bud'!$C$19:$DK$34,16,FALSE),0) -> 0 | J103: 0 | K103: 0 | Y103: =IF(COA!$E$99="Y","Show","Hide") -> Show
A104: 4635 | B104: Student Wellbeing Expense | C104: ='Monthly Income & Exp. Reports'!O107 -> 0 | D104: 0 | E104: 0 | F104: 0 | G104: Student Wellbeing Expense | H104: =IFERROR(HLOOKUP(A104,'Bank Summary Page'!$B$19:$DK$35,17),"") -> 0 | I104: =IFERROR(HLOOKUP(A104,'Import BSP Bud'!$C$19:$DK$34,16,FALSE),0) -> 0 | J104: 0 | K104: 0 | Y104: =IF(COA!$E$100="Y","Show","Hide") -> Show
A105: 4640 | B105: Library Non Grant Funded Expense | C105: ='Monthly Income & Exp. Reports'!O108 -> 0 | D105: 0 | E105: 0 | F105: 0 | G105: Library Non Grant Funded Expense | H105: =IFERROR(HLOOKUP(A105,'Bank Summary Page'!$B$19:$DK$35,17),"") -> 0 | I105: =IFERROR(HLOOKUP(A105,'Import BSP Bud'!$C$19:$DK$34,16,FALSE),0) -> 0 | J105: 0 | K105: 0 | Y105: =IF(COA!$E$101="Y","Show","Hide") -> Hide
A106: 4641 | B106: School Library Books Capital Grant Expense | C106: ='Monthly Income & Exp. Reports'!O109 -> 0 | D106: 0 | E106: 0 | F106: 0 | G106: School Library Books Capital Grant Expense | H106: =IFERROR(HLOOKUP(A106,'Bank Summary Page'!$B$19:$DK$35,17),"") -> 0 | I106: =IFERROR(HLOOKUP(A106,'Import BSP Bud'!$C$19:$DK$34,16,FALSE),0) -> 0 | J106: 0 | K106: 0 | Y106: =IF(COA!$E$102="Y","Show","Hide") -> Hide
A107: 4650 | B107: Physical Education Expense | C107: ='Monthly Income & Exp. Reports'!O110 -> 0 | D107: 0 | E107: 0 | F107: 0 | G107: Physical Education Expense | H107: =IFERROR(HLOOKUP(A107,'Bank Summary Page'!$B$19:$DK$35,17),"") -> 0 | I107: =IFERROR(HLOOKUP(A107,'Import BSP Bud'!$C$19:$DK$34,16,FALSE),0) -> 0 | J107: 0 | K107: 0 | Y107: =IF(COA!$E$103="Y","Show","Hide") -> Show
A108: 4670 | B108: Games (excl. travel) Expense | C108: ='Monthly Income & Exp. Reports'!O111 -> 0 | D108: 0 | E108: 0 | F108: 0 | G108: Games (excl. travel) Expense | H108: =IFERROR(HLOOKUP(A108,'Bank Summary Page'!$B$19:$DK$35,17),"") -> 0 | I108: =IFERROR(HLOOKUP(A108,'Import BSP Bud'!$C$19:$DK$34,16,FALSE),0) -> 0 | J108: 0 | K108: 0 | Y108: =IF(COA!$E$104="Y","Show","Hide") -> Show
A109: 4671 | B109: Bus Hire for Games Expense | C109: ='Monthly Income & Exp. Reports'!O112 -> 0 | D109: 0 | E109: 0 | F109: 0 | G109: Bus Hire for Games Expense | H109: =IFERROR(HLOOKUP(A109,'Bank Summary Page'!$B$19:$DK$35,17),"") -> 0 | I109: =IFERROR(HLOOKUP(A109,'Import BSP Bud'!$C$19:$DK$34,16,FALSE),0) -> 0 | J109: 0 | K109: 0 | Y109: =IF(COA!$E$105="Y","Show","Hide") -> Show
A110: 4690 | B110: Bus Hire Other Expense | C110: ='Monthly Income & Exp. Reports'!O113 -> 0 | D110: 0 | E110: 0 | F110: 0 | G110: Bus Hire Other Expense | H110: =IFERROR(HLOOKUP(A110,'Bank Summary Page'!$B$19:$DK$35,17),"") -> 0 | I110: =IFERROR(HLOOKUP(A110,'Import BSP Bud'!$C$19:$DK$34,16,FALSE),0) -> 0 | J110: 0 | K110: 0 | Y110: =IF(COA!$E$106="Y","Show","Hide") -> Show
A111: 4710 | B111: School Tours Expense | C111: ='Monthly Income & Exp. Reports'!O114 -> 0 | D111: 0 | E111: 0 | F111: 0 | G111: School Tours Expense | H111: =IFERROR(HLOOKUP(A111,'Bank Summary Page'!$B$19:$DK$35,17),"") -> 0 | I111: =IFERROR(HLOOKUP(A111,'Import BSP Bud'!$C$19:$DK$34,16,FALSE),0) -> 0 | J111: 0 | K111: 0 | Y111: =IF(COA!$E$107="Y","Show","Hide") -> Show
A112: 4720 | B112: School Musical/Drama Expense | C112: ='Monthly Income & Exp. Reports'!O115 -> 0 | D112: 0 | E112: 0 | F112: 0 | G112: School Musical/Drama Expense | H112: =IFERROR(HLOOKUP(A112,'Bank Summary Page'!$B$19:$DK$35,17),"") -> 0 | I112: =IFERROR(HLOOKUP(A112,'Import BSP Bud'!$C$19:$DK$34,16,FALSE),0) -> 0 | J112: 0 | K112: 0 | Y112: =IF(COA!$E$108="Y","Show","Hide") -> Show
A113: 4731 | B113: Free Schoolbook Grant Expense | C113: ='Monthly Income & Exp. Reports'!O116 -> 0 | D113: 0 | E113: 0 | F113: 0 | G113: Free Schoolbook Grant Expense | H113: =IFERROR(HLOOKUP(A113,'Bank Summary Page'!$B$19:$DK$35,17),"") -> 0 | I113: =IFERROR(HLOOKUP(A113,'Import BSP Bud'!$C$19:$DK$34,16,FALSE),0) -> 0 | J113: 0 | K113: 0 | Y113: =IF(COA!$E$109="Y","Show","Hide") -> Show
A114: 4740 | B114: Book Rental Scheme Expense | C114: ='Monthly Income & Exp. Reports'!O117 -> 0 | D114: 0 | E114: 0 | F114: 0 | G114: Book Rental Scheme Expense | H114: =IFERROR(HLOOKUP(A114,'Bank Summary Page'!$B$19:$DK$35,17),"") -> 0 | I114: =IFERROR(HLOOKUP(A114,'Import BSP Bud'!$C$19:$DK$34,16,FALSE),0) -> 0 | J114: 0 | K114: 0 | Y114: =IF(COA!$E$110="Y","Show","Hide") -> Hide
A115: 4741 | B115: Classroom Books/Resources Expense | C115: ='Monthly Income & Exp. Reports'!O118 -> 0 | D115: 0 | E115: 0 | F115: 0 | G115: Classroom Books/Resources Expense | H115: =IFERROR(HLOOKUP(A115,'Bank Summary Page'!$B$19:$DK$35,17),"") -> 0 | I115: =IFERROR(HLOOKUP(A115,'Import BSP Bud'!$C$19:$DK$34,16,FALSE),0) -> 0 | J115: 0 | K115: 0 | Y115: =IF(COA!$E$111="Y","Show","Hide") -> Show
A116: 4760 | B116: School Yearbook/Journal Expense | C116: ='Monthly Income & Exp. Reports'!O119 -> 0 | D116: 0 | E116: 0 | F116: 0 | G116: School Yearbook/Journal Expense | H116: =IFERROR(HLOOKUP(A116,'Bank Summary Page'!$B$19:$DK$35,17),"") -> 0 | I116: =IFERROR(HLOOKUP(A116,'Import BSP Bud'!$C$19:$DK$34,16,FALSE),0) -> 0 | J116: 0 | K116: 0 | Y116: =IF(COA!$E$112="Y","Show","Hide") -> Show
A117: 4770 | B117: Trophies and Prizes Expense | C117: ='Monthly Income & Exp. Reports'!O120 -> 0 | D117: 0 | E117: 0 | F117: 0 | G117: Trophies and Prizes Expense | H117: =IFERROR(HLOOKUP(A117,'Bank Summary Page'!$B$19:$DK$35,17),"") -> 0 | I117: =IFERROR(HLOOKUP(A117,'Import BSP Bud'!$C$19:$DK$34,16,FALSE),0) -> 0 | J117: 0 | K117: 0 | Y117: =IF(COA!$E$113="Y","Show","Hide") -> Show
A118: 4780 | B118: Uniform Expense | C118: ='Monthly Income & Exp. Reports'!O121 -> 0 | D118: 0 | E118: 0 | F118: 0 | G118: Uniform Expense | H118: =IFERROR(HLOOKUP(A118,'Bank Summary Page'!$B$19:$DK$35,17),"") -> 0 | I118: =IFERROR(HLOOKUP(A118,'Import BSP Bud'!$C$19:$DK$34,16,FALSE),0) -> 0 | J118: 0 | K118: 0 | Y118: =IF(COA!$E$114="Y","Show","Hide") -> Show
A119: 4810 | B119: Home School Liaison Expense | C119: ='Monthly Income & Exp. Reports'!O122 -> 0 | D119: 0 | E119: 0 | F119: 0 | G119: Home School Liaison Expense | H119: =IFERROR(HLOOKUP(A119,'Bank Summary Page'!$B$19:$DK$35,17),"") -> 0 | I119: =IFERROR(HLOOKUP(A119,'Import BSP Bud'!$C$19:$DK$34,16,FALSE),0) -> 0 | J119: 0 | K119: 0 | Y119: =IF(COA!$E$115="Y","Show","Hide") -> Show
A120: 4815 | B120: School Excellence Fund Expense | C120: ='Monthly Income & Exp. Reports'!O123 -> 0 | D120: 0 | E120: 0 | F120: 0 | G120: School Excellence Fund Expense | H120: =IFERROR(HLOOKUP(A120,'Bank Summary Page'!$B$19:$DK$35,17),"") -> 0 | I120: =IFERROR(HLOOKUP(A120,'Import BSP Bud'!$C$19:$DK$34,16,FALSE),0) -> 0 | J120: 0 | K120: 0 | Y120: =IF(COA!$E$116="Y","Show","Hide") -> Hide
A121: 4908 | B121: Other Summer Camps Expense | C121: ='Monthly Income & Exp. Reports'!O124 -> 0 | D121: 0 | E121: 0 | F121: 0 | G121: Other Summer Camps Expense | H121: =IFERROR(HLOOKUP(A121,'Bank Summary Page'!$B$19:$DK$35,17),"") -> 0 | I121: =IFERROR(HLOOKUP(A121,'Import BSP Bud'!$C$19:$DK$34,16,FALSE),0) -> 0 | J121: 0 | K121: 0 | Y121: =IF(COA!$E$117="Y","Show","Hide") -> Hide
A122: 4909 | B122: Other Summer Provision Expense | C122: ='Monthly Income & Exp. Reports'!O125 -> 0 | D122: 0 | E122: 0 | F122: 0 | G122: Other Summer Provision Expense | H122: =IFERROR(HLOOKUP(A122,'Bank Summary Page'!$B$19:$DK$35,17),"") -> 0 | I122: =IFERROR(HLOOKUP(A122,'Import BSP Bud'!$C$19:$DK$34,16,FALSE),0) -> 0 | J122: 0 | K122: 0 | Y122: =IF(COA!$E$118="Y","Show","Hide") -> Show
A123: 4910 | B123: Other Educational Expense | C123: ='Monthly Income & Exp. Reports'!O126 -> 0 | D123: 0 | E123: 0 | F123: 0 | G123: Other Educational Expense | H123: =IFERROR(HLOOKUP(A123,'Bank Summary Page'!$B$19:$DK$35,17),"") -> 0 | I123: =IFERROR(HLOOKUP(A123,'Import BSP Bud'!$C$19:$DK$34,16,FALSE),0) -> 0 | J123: 0 | K123: 0 | Y123: =IF(COA!$E$119="Y","Show","Hide") -> Show
A124: 4911 | B124: Department of Children and Youth Affairs Activities Expense | C124: ='Monthly Income & Exp. Reports'!O127 -> 0 | D124: 0 | E124: 0 | F124: 0 | G124: Department of Children and Youth Affairs Activities Expense | H124: =IFERROR(HLOOKUP(A124,'Bank Summary Page'!$B$19:$DK$35,17),"") -> 0 | I124: =IFERROR(HLOOKUP(A124,'Import BSP Bud'!$C$19:$DK$34,16,FALSE),0) -> 0 | J124: 0 | K124: 0 | Y124: =IF(COA!$E$120="Y","Show","Hide") -> Hide
A125: 4912 | B125: DSP School Meals Food Costs | C125: ='Monthly Income & Exp. Reports'!O128 -> 0 | D125: 0 | E125: 0 | F125: 0 | G125: DSP School Meals Food Costs | H125: =IFERROR(HLOOKUP(A125,'Bank Summary Page'!$B$19:$DK$35,17),"") -> 0 | I125: =IFERROR(HLOOKUP(A125,'Import BSP Bud'!$C$19:$DK$34,16,FALSE),0) -> 0 | J125: 0 | K125: 0 | Y125: =IF(COA!$E$121="Y","Show","Hide") -> Show
A126: 4913 | B126: Erasmus Expense | C126: ='Monthly Income & Exp. Reports'!O129 -> 0 | D126: 0 | E126: 0 | F126: 0 | G126: Erasmus Expense | H126: =IFERROR(HLOOKUP(A126,'Bank Summary Page'!$B$19:$DK$35,17),"") -> 0 | I126: =IFERROR(HLOOKUP(A126,'Import BSP Bud'!$C$19:$DK$34,16,FALSE),0) -> 0 | J126: 0 | K126: 0 | Y126: =IF(COA!$E$122="Y","Show","Hide") -> Hide
A127: 4914 | B127: Other Non Capital DE Grants Expense | C127: ='Monthly Income & Exp. Reports'!O130 -> 0 | D127: 0 | E127: 0 | F127: 0 | G127: Other Non Capital DE Grants Expense | H127: =IFERROR(HLOOKUP(A127,'Bank Summary Page'!$B$19:$DK$35,17),"") -> 0 | I127: =IFERROR(HLOOKUP(A127,'Import BSP Bud'!$C$19:$DK$34,16,FALSE),0) -> 0 | J127: 0 | K127: 0 | Y127: =IF(COA!$E$123="Y","Show","Hide") -> Show
A128: 4915 | B128: Other Canteen Expense | C128: ='Monthly Income & Exp. Reports'!O131 -> 0 | D128: 0 | E128: 0 | F128: 0 | G128: Other Canteen Expense | H128: =IFERROR(HLOOKUP(A128,'Bank Summary Page'!$B$19:$DK$35,17),"") -> 0 | I128: =IFERROR(HLOOKUP(A128,'Import BSP Bud'!$C$19:$DK$34,16,FALSE),0) -> 0 | J128: 0 | K128: 0 | Y128: =IF(COA!$E$124="Y","Show","Hide") -> Show
A129: 4916 | B129: Student Insurance Expense | C129: ='Monthly Income & Exp. Reports'!O132 -> 0 | D129: 0 | E129: 0 | F129: 0 | G129: Student Insurance Expense | H129: =IFERROR(HLOOKUP(A129,'Bank Summary Page'!$B$19:$DK$35,17),"") -> 0 | I129: =IFERROR(HLOOKUP(A129,'Import BSP Bud'!$C$19:$DK$34,16,FALSE),0) -> 0 | J129: 0 | K129: 0 | Y129: =IF(COA!$E$125="Y","Show","Hide") -> Show
A130: 4917 | B130: Standardised Testing Expense | C130: ='Monthly Income & Exp. Reports'!O133 -> 0 | E130: 0 | F130: 0 | G130: Standardised Testing Expense | H130: =IFERROR(HLOOKUP(A130,'Bank Summary Page'!$B$19:$DK$35,17),"") -> 0 | I130: =IFERROR(HLOOKUP(A130,'Import BSP Bud'!$C$19:$DK$34,16,FALSE),0) -> 0 | J130: 0 | K130: 0 | Y130: =IF(COA!$E$126="Y","Show","Hide") -> Show
A131: 4918 | B131: Designated Expenditure (Non Capital) | C131: ='Monthly Income & Exp. Reports'!O134 -> 0 | D131: 0 | E131: 0 | F131: 0 | G131: Designated Expenditure (Non Capital) | H131: =IFERROR(HLOOKUP(A131,'Bank Summary Page'!$B$19:$DK$35,17),"") -> 0 | I131: =IFERROR(HLOOKUP(A131,'Import BSP Bud'!$C$19:$DK$34,16,FALSE),0) -> 0 | J131: 0 | K131: 0 | Y131: =IF(COA!$E$127="Y","Show","Hide") -> Show
A132: 4919 | B132: Special Educational Equipment (Non Capital) Expense | C132: ='Monthly Income & Exp. Reports'!O135 -> 0 | D132: 0 | E132: 0 | F132: 0 | G132: Special Educational Equipment (Non Capital) Expense | H132: =IFERROR(HLOOKUP(A132,'Bank Summary Page'!$B$19:$DK$35,17),"") -> 0 | I132: =IFERROR(HLOOKUP(A132,'Import BSP Bud'!$C$19:$DK$34,16,FALSE),0) -> 0 | J132: 0 | K132: 0 | Y132: =IF(COA!$E$128="Y","Show","Hide") -> Show
A133: 4920 | B133: School Dance Expense | C133: ='Monthly Income & Exp. Reports'!O136 -> 0 | D133: 0 | E133: 0 | F133: 0 | G133: School Dance Expense | H133: =IFERROR(HLOOKUP(A133,'Bank Summary Page'!$B$19:$DK$35,17),"") -> 0 | I133: =IFERROR(HLOOKUP(A133,'Import BSP Bud'!$C$19:$DK$34,16,FALSE),0) -> 0 | J133: 0 | K133: 0 | Y133: =IF(COA!$E$129="Y","Show","Hide") -> Show
A134: 4921 | B134: School Swimming Expense | C134: ='Monthly Income & Exp. Reports'!O137 -> 0 | D134: 0 | E134: 0 | F134: 0 | G134: School Swimming Expense | H134: =IFERROR(HLOOKUP(A134,'Bank Summary Page'!$B$19:$DK$35,17),"") -> 0 | I134: =IFERROR(HLOOKUP(A134,'Import BSP Bud'!$C$19:$DK$34,16,FALSE),0) -> 0 | J134: 0 | K134: 0 | Y134: =IF(COA!$E$130="Y","Show","Hide") -> Show
A135: 4922 | B135: Restricted School Fundraising Expenses (Non Capital) | C135: ='Monthly Income & Exp. Reports'!O138 -> 0 | D135: 0 | E135: 0 | F135: 0 | G135: Restricted School Fundraising Expenses (Non Capital) | H135: =IFERROR(HLOOKUP(A135,'Bank Summary Page'!$B$19:$DK$35,17),"") -> 0 | I135: =IFERROR(HLOOKUP(A135,'Import BSP Bud'!$C$19:$DK$34,16,FALSE),0) -> 0 | J135: 0 | K135: 0 | Y135: =IF(COA!$E$131="Y","Show","Hide") -> Show
A136: 4923 | B136: Restricted External Fundraising Expenses (Non Capital) | C136: ='Monthly Income & Exp. Reports'!O139 -> 0 | D136: 0 | E136: 0 | F136: 0 | G136: Restricted External Fundraising Expenses (Non Capital) | H136: =IFERROR(HLOOKUP(A136,'Bank Summary Page'!$B$19:$DK$35,17),"") -> 0 | I136: =IFERROR(HLOOKUP(A136,'Import BSP Bud'!$C$19:$DK$34,16,FALSE),0) -> 0 | J136: 0 | K136: 0 | Y136: =IF(COA!$E$132="Y","Show","Hide") -> Show
A137: 4924 | B137: Unrestricted External Fundraising Expenses (Non Capital) | C137: ='Monthly Income & Exp. Reports'!O140 -> 0 | D137: 0 | E137: 0 | F137: 0 | G137: Unrestricted External Fundraising Expenses (Non Capital) | H137: =IFERROR(HLOOKUP(A137,'Bank Summary Page'!$B$19:$DK$35,17),"") -> 0 | I137: =IFERROR(HLOOKUP(A137,'Import BSP Bud'!$C$19:$DK$34,16,FALSE),0) -> 0 | J137: 0 | K137: 0 | Y137: =IF(COA!$E$133="Y","Show","Hide") -> Show
A138: 4925 | B138: Unrestricted School Fundraising Expenses (Non Capital) | C138: ='Monthly Income & Exp. Reports'!O141 -> 0 | D138: 0 | E138: 0 | F138: 0 | G138: Unrestricted School Fundraising Expenses (Non Capital) | H138: =IFERROR(HLOOKUP(A138,'Bank Summary Page'!$B$19:$DK$35,17),"") -> 0 | I138: =IFERROR(HLOOKUP(A138,'Import BSP Bud'!$C$19:$DK$34,16,FALSE),0) -> 0 | J138: 0 | K138: 0 | Y138: =IF(COA!$E$134="Y","Show","Hide") -> Show
A139: 4927 | B139: School Arts and Crafts Expense | C139: ='Monthly Income & Exp. Reports'!O142 -> 0 | D139: 0 | E139: 0 | F139: 0 | G139: School Arts and Crafts Expense | H139: =IFERROR(HLOOKUP(A139,'Bank Summary Page'!$B$19:$DK$35,17),"") -> 0 | I139: =IFERROR(HLOOKUP(A139,'Import BSP Bud'!$C$19:$DK$34,16,FALSE),0) -> 0 | J139: 0 | K139: 0 | Y139: =IF(COA!$E$135="Y","Show","Hide") -> Show
A140: 4928 | B140: Other HSE Expense | C140: ='Monthly Income & Exp. Reports'!O143 -> 0 | D140: 0 | E140: 0 | F140: 0 | G140: Other HSE Expense | H140: =IFERROR(HLOOKUP(A140,'Bank Summary Page'!$B$19:$DK$35,17),"") -> 0 | I140: =IFERROR(HLOOKUP(A140,'Import BSP Bud'!$C$19:$DK$34,16,FALSE),0) -> 0 | J140: 0 | K140: 0 | Y140: =IF(COA!$E$136="Y","Show","Hide") -> Hide
A141: 4929 | B141: Other State Funding Expense | C141: ='Monthly Income & Exp. Reports'!O144 -> 0 | D141: 0 | E141: 0 | F141: 0 | G141: Other State Funding Expense | H141: =IFERROR(HLOOKUP(A141,'Bank Summary Page'!$B$19:$DK$35,17),"") -> 0 | I141: =IFERROR(HLOOKUP(A141,'Import BSP Bud'!$C$19:$DK$34,16,FALSE),0) -> 0 | J141: 0 | K141: 0 | Y141: =IF(COA!$E$137="Y","Show","Hide") -> Show
A142: 4930 | B142: Pre-School Expense | C142: ='Monthly Income & Exp. Reports'!O145 -> 0 | D142: 0 | E142: 0 | F142: 0 | G142: Pre-School Expense | H142: =IFERROR(HLOOKUP(A142,'Bank Summary Page'!$B$19:$DK$35,17),"") -> 0 | I142: =IFERROR(HLOOKUP(A142,'Import BSP Bud'!$C$19:$DK$34,16,FALSE),0) -> 0 | J142: 0 | K142: 0 | Y142: =IF(COA!$E$138="Y","Show","Hide") -> Hide
A143: 5010 | B143: Caretaker Wages Expense | C143: ='Monthly Income & Exp. Reports'!O146 -> 0 | D143: 0 | E143: 0 | F143: 0 | G143: Caretaker Wages Expense | H143: =IFERROR(HLOOKUP(A143,'Bank Summary Page'!$B$19:$DK$35,17),"") -> 0 | I143: =IFERROR(HLOOKUP(A143,'Import BSP Bud'!$C$19:$DK$34,16,FALSE),0) -> 0 | J143: 0 | K143: 0 | Y143: =IF(COA!$E$139="Y","Show","Hide") -> Show
A144: 5030 | B144: Caretaker Pension Expense | C144: ='Monthly Income & Exp. Reports'!O147 -> 0 | D144: 0 | E144: 0 | F144: 0 | G144: Caretaker Pension Expense | H144: =IFERROR(HLOOKUP(A144,'Bank Summary Page'!$B$19:$DK$35,17),"") -> 0 | I144: =IFERROR(HLOOKUP(A144,'Import BSP Bud'!$C$19:$DK$34,16,FALSE),0) -> 0 | J144: 0 | K144: 0 | Y144: =IF(COA!$E$140="Y","Show","Hide") -> Hide
A145: 5110 | B145: Cleaners Wages Expense | C145: ='Monthly Income & Exp. Reports'!O148 -> 0 | D145: 0 | E145: =-(C145-D145) -> 0 | F145: 0 | G145: Cleaners Wages Expense | H145: =IFERROR(HLOOKUP(A145,'Bank Summary Page'!$B$19:$DK$35,17),"") -> 0 | I145: =IFERROR(HLOOKUP(A145,'Import BSP Bud'!$C$19:$DK$34,16,FALSE),0) -> 0 | J145: 0 | K145: 0 | Y145: =IF(COA!$E$141="Y","Show","Hide") -> Show
A146: 5112 | B146: Cleaners' Pension Expense | C146: ='Monthly Income & Exp. Reports'!O149 -> 0 | D146: 0 | E146: 0 | F146: =IF(D146,(C146-D146)/D146,0)*-1 -> 0 | G146: Cleaners' Pension Expense | H146: =IFERROR(HLOOKUP(A146,'Bank Summary Page'!$B$19:$DK$35,17),"") -> 0 | I146: =IFERROR(HLOOKUP(A146,'Import BSP Bud'!$C$19:$DK$34,16,FALSE),0) -> 0 | J146: =-IFERROR(SUM(H146-I146),"") -> 0 | K146: =IF(I146,(H146-I146)/I146,0)*-1 -> 0 | Y146: =IF(COA!$E$142="Y","Show","Hide") -> Hide
A147: 5150 | B147: Contract Cleaners Expense | C147: ='Monthly Income & Exp. Reports'!O150 -> 0 | D147: 0 | E147: 0 | F147: 0 | G147: Contract Cleaners Expense | H147: =IFERROR(HLOOKUP(A147,'Bank Summary Page'!$B$19:$DK$35,17),"") -> 0 | I147: =IFERROR(HLOOKUP(A147,'Import BSP Bud'!$C$19:$DK$34,16,FALSE),0) -> 0 | J147: 0 | K147: 0 | Y147: =IF(COA!$E$143="Y","Show","Hide") -> Show
A148: 5170 | B148: Cleaning Materials Expense | C148: ='Monthly Income & Exp. Reports'!O151 -> 0 | D148: 0 | E148: 0 | F148: 0 | G148: Cleaning Materials Expense | H148: =IFERROR(HLOOKUP(A148,'Bank Summary Page'!$B$19:$DK$35,17),"") -> 0 | I148: =IFERROR(HLOOKUP(A148,'Import BSP Bud'!$C$19:$DK$34,16,FALSE),0) -> 0 | J148: 0 | K148: 0 | Y148: =IF(COA!$E$144="Y","Show","Hide") -> Show
A149: 5175 | B149: Other Cleaning and Sanitation Expense | C149: ='Monthly Income & Exp. Reports'!O152 -> 0 | D149: 0 | E149: 0 | F149: 0 | G149: Other Cleaning and Sanitation Expense | H149: =IFERROR(HLOOKUP(A149,'Bank Summary Page'!$B$19:$DK$35,17),"") -> 0 | I149: =IFERROR(HLOOKUP(A149,'Import BSP Bud'!$C$19:$DK$34,16,FALSE),0) -> 0 | J149: 0 | K149: 0 | Y149: =IF(COA!$E$145="Y","Show","Hide") -> Show
A150: 5310 | B150: Repairs to Buildings and Grounds Expense | C150: ='Monthly Income & Exp. Reports'!O153 -> 0 | D150: 0 | E150: 0 | F150: 0 | G150: Repairs to Buildings and Grounds Expense | H150: =IFERROR(HLOOKUP(A150,'Bank Summary Page'!$B$19:$DK$35,17),"") -> 0 | I150: =IFERROR(HLOOKUP(A150,'Import BSP Bud'!$C$19:$DK$34,16,FALSE),0) -> 0 | J150: 0 | K150: 0 | Y150: =IF(COA!$E$146="Y","Show","Hide") -> Show
A151: 5315 | B151: Minor Works Grant (Non Capital) Expense | C151: ='Monthly Income & Exp. Reports'!O154 -> 0 | E151: 0 | F151: 0 | G151: Minor Works Grant (Non Capital) Expense | H151: =IFERROR(HLOOKUP(A151,'Bank Summary Page'!$B$19:$DK$35,17),"") -> 0 | I151: =IFERROR(HLOOKUP(A151,'Import BSP Bud'!$C$19:$DK$34,16,FALSE),0) -> 0 | J151: 0 | K151: 0 | Y151: =IF(COA!$E$147="Y","Show","Hide") -> Show
A152: 5350 | B152: Repairs to Furniture, Fittings and Equipment Expense | C152: ='Monthly Income & Exp. Reports'!O155 -> 0 | D152: 0 | E152: 0 | F152: 0 | G152: Repairs to Furniture, Fittings and Equipment Expense | H152: =IFERROR(HLOOKUP(A152,'Bank Summary Page'!$B$19:$DK$35,17),"") -> 0 | I152: =IFERROR(HLOOKUP(A152,'Import BSP Bud'!$C$19:$DK$34,16,FALSE),0) -> 0 | J152: 0 | K152: 0 | Y152: =IF(COA!$E$148="Y","Show","Hide") -> Show
A153: 5400 | B153: Routine Security Expense | C153: ='Monthly Income & Exp. Reports'!O156 -> 0 | D153: 0 | E153: 0 | F153: 0 | G153: Routine Security Expense | H153: =IFERROR(HLOOKUP(A153,'Bank Summary Page'!$B$19:$DK$35,17),"") -> 0 | I153: =IFERROR(HLOOKUP(A153,'Import BSP Bud'!$C$19:$DK$34,16,FALSE),0) -> 0 | J153: 0 | K153: 0 | Y153: =IF(COA!$E$149="Y","Show","Hide") -> Show
A154: 5450 | B154: General Insurance Expense | C154: ='Monthly Income & Exp. Reports'!O157 -> 0 | D154: 0 | E154: 0 | F154: 0 | G154: General Insurance Expense | H154: =IFERROR(HLOOKUP(A154,'Bank Summary Page'!$B$19:$DK$35,17),"") -> 0 | I154: =IFERROR(HLOOKUP(A154,'Import BSP Bud'!$C$19:$DK$34,16,FALSE),0) -> 0 | J154: 0 | K154: 0 | Y154: =IF(COA!$E$150="Y","Show","Hide") -> Show
A155: 5510 | B155: Heating Expense | C155: ='Monthly Income & Exp. Reports'!O158 -> 0 | D155: 0 | E155: 0 | F155: 0 | G155: Heating Expense | H155: =IFERROR(HLOOKUP(A155,'Bank Summary Page'!$B$19:$DK$35,17),"") -> 0 | I155: =IFERROR(HLOOKUP(A155,'Import BSP Bud'!$C$19:$DK$34,16,FALSE),0) -> 0 | J155: 0 | K155: 0 | Y155: =IF(COA!$E$151="Y","Show","Hide") -> Show
A156: 5550 | B156: Light and Power Expense | C156: ='Monthly Income & Exp. Reports'!O159 -> 0 | D156: 0 | E156: 0 | F156: 0 | G156: Light and Power Expense | H156: =IFERROR(HLOOKUP(A156,'Bank Summary Page'!$B$19:$DK$35,17),"") -> 0 | I156: =IFERROR(HLOOKUP(A156,'Import BSP Bud'!$C$19:$DK$34,16,FALSE),0) -> 0 | J156: 0 | K156: 0 | Y156: =IF(COA!$E$152="Y","Show","Hide") -> Show
A157: 5551 | B157: Rent of Temporary Accommodation Expense | C157: ='Monthly Income & Exp. Reports'!O160 -> 0 | D157: 0 | E157: 0 | F157: 0 | G157: Rent of Temporary Accommodation Expense | H157: =IFERROR(HLOOKUP(A157,'Bank Summary Page'!$B$19:$DK$35,17),"") -> 0 | I157: =IFERROR(HLOOKUP(A157,'Import BSP Bud'!$C$19:$DK$34,16,FALSE),0) -> 0 | J157: 0 | K157: 0 | Y157: =IF(COA!$E$153="Y","Show","Hide") -> Show
A158: 5552 | B158: Other Rental Costs Expense | C158: ='Monthly Income & Exp. Reports'!O161 -> 0 | D158: 0 | E158: 0 | F158: 0 | G158: Other Rental Costs Expense | H158: =IFERROR(HLOOKUP(A158,'Bank Summary Page'!$B$19:$DK$35,17),"") -> 0 | I158: =IFERROR(HLOOKUP(A158,'Import BSP Bud'!$C$19:$DK$34,16,FALSE),0) -> 0 | J158: 0 | K158: 0 | Y158: =IF(COA!$E$154="Y","Show","Hide") -> Hide
A159: 5610 | B159: Refuse Expense | C159: ='Monthly Income & Exp. Reports'!O162 -> 0 | D159: 0 | E159: 0 | F159: 0 | G159: Refuse Expense | H159: =IFERROR(HLOOKUP(A159,'Bank Summary Page'!$B$19:$DK$35,17),"") -> 0 | I159: =IFERROR(HLOOKUP(A159,'Import BSP Bud'!$C$19:$DK$34,16,FALSE),0) -> 0 | J159: 0 | K159: 0 | Y159: =IF(COA!$E$155="Y","Show","Hide") -> Show
A160: 5611 | B160: Water Rates Expense | C160: ='Monthly Income & Exp. Reports'!O163 -> 0 | D160: 0 | E160: 0 | F160: 0 | G160: Water Rates Expense | H160: =IFERROR(HLOOKUP(A160,'Bank Summary Page'!$B$19:$DK$35,17),"") -> 0 | I160: =IFERROR(HLOOKUP(A160,'Import BSP Bud'!$C$19:$DK$34,16,FALSE),0) -> 0 | J160: 0 | K160: 0 | Y160: =IF(COA!$E$156="Y","Show","Hide") -> Show
A161: 5700 | B161: Licence Fee to Patron/Trustee Expense | C161: ='Monthly Income & Exp. Reports'!O164 -> 0 | D161: 0 | E161: 0 | F161: 0 | G161: Licence Fee to Patron/Trustee Expense | H161: =IFERROR(HLOOKUP(A161,'Bank Summary Page'!$B$19:$DK$35,17),"") -> 0 | I161: =IFERROR(HLOOKUP(A161,'Import BSP Bud'!$C$19:$DK$34,16,FALSE),0) -> 0 | J161: 0 | K161: 0 | Y161: =IF(COA!$E$157="Y","Show","Hide") -> Show
A162: 5800 | B162: Other Repairs and Maintenance Expense | C162: ='Monthly Income & Exp. Reports'!O165 -> 0 | D162: 0 | E162: 0 | F162: 0 | G162: Other Repairs and Maintenance Expense | H162: =IFERROR(HLOOKUP(A162,'Bank Summary Page'!$B$19:$DK$35,17),"") -> 0 | I162: =IFERROR(HLOOKUP(A162,'Import BSP Bud'!$C$19:$DK$34,16,FALSE),0) -> 0 | J162: 0 | K162: 0 | Y162: =IF(COA!$E$158="Y","Show","Hide") -> Show
A163: 5804 | B163: COVID Capitation for Cleaning Wages Expense | C163: ='Monthly Income & Exp. Reports'!O166 -> 0 | D163: 0 | E163: 0 | F163: 0 | G163: COVID Capitation for Cleaning Wages Expense | H163: =IFERROR(HLOOKUP(A163,'Bank Summary Page'!$B$19:$DK$35,17),"") -> 0 | I163: =IFERROR(HLOOKUP(A163,'Import BSP Bud'!$C$19:$DK$34,16,FALSE),0) -> 0 | J163: 0 | K163: 0 | Y163: =IF(COA!$E$159="Y","Show","Hide") -> Hide
A164: 5806 | B164: COVID Capitation for Cleaning (Non Wages) and PPE Grant Expense | C164: ='Monthly Income & Exp. Reports'!O167 -> 0 | D164: 0 | E164: 0 | F164: 0 | G164: COVID Capitation for Cleaning (Non Wages) and PPE Grant Expense | H164: =IFERROR(HLOOKUP(A164,'Bank Summary Page'!$B$19:$DK$35,17),"") -> 0 | I164: =IFERROR(HLOOKUP(A164,'Import BSP Bud'!$C$19:$DK$34,16,FALSE),0) -> 0 | J164: 0 | K164: 0 | Y164: =IF(COA!$E$160="Y","Show","Hide") -> Hide
A165: 6010 | B165: Clerical Officers/Secretarial Wages Expense | C165: ='Monthly Income & Exp. Reports'!O168 -> 0 | D165: 0 | E165: 0 | F165: 0 | G165: Clerical Officers/Secretarial Wages Expense | H165: =IFERROR(HLOOKUP(A165,'Bank Summary Page'!$B$19:$DK$35,17),"") -> 0 | I165: =IFERROR(HLOOKUP(A165,'Import BSP Bud'!$C$19:$DK$34,16,FALSE),0) -> 0 | J165: 0 | K165: 0 | Y165: =IF(COA!$E$161="Y","Show","Hide") -> Show
A166: 6050 | B166: Clerical Officers/Secretarial Pension Expense | C166: ='Monthly Income & Exp. Reports'!O169 -> 0 | D166: 0 | E166: 0 | F166: 0 | G166: Clerical Officers/Secretarial Pension Expense | H166: =IFERROR(HLOOKUP(A166,'Bank Summary Page'!$B$19:$DK$35,17),"") -> 0 | I166: =IFERROR(HLOOKUP(A166,'Import BSP Bud'!$C$19:$DK$34,16,FALSE),0) -> 0 | J166: 0 | K166: 0 | Y166: =IF(COA!$E$162="Y","Show","Hide") -> Hide
A167: 6100 | B167: Recruitment Expense | C167: ='Monthly Income & Exp. Reports'!O170 -> 0 | D167: 0 | E167: 0 | F167: 0 | G167: Recruitment Expense | H167: =IFERROR(HLOOKUP(A167,'Bank Summary Page'!$B$19:$DK$35,17),"") -> 0 | I167: =IFERROR(HLOOKUP(A167,'Import BSP Bud'!$C$19:$DK$34,16,FALSE),0) -> 0 | J167: 0 | K167: 0 | Y167: =IF(COA!$E$163="Y","Show","Hide") -> Show
A168: 6150 | B168: Advertising / Public Relations Expense | C168: ='Monthly Income & Exp. Reports'!O171 -> 0 | D168: 0 | E168: 0 | F168: 0 | G168: Advertising / Public Relations Expense | H168: =IFERROR(HLOOKUP(A168,'Bank Summary Page'!$B$19:$DK$35,17),"") -> 0 | I168: =IFERROR(HLOOKUP(A168,'Import BSP Bud'!$C$19:$DK$34,16,FALSE),0) -> 0 | J168: 0 | K168: 0 | Y168: =IF(COA!$E$164="Y","Show","Hide") -> Show
A169: 6210 | B169: Postage Expense | C169: ='Monthly Income & Exp. Reports'!O172 -> 0 | D169: 0 | E169: 0 | F169: 0 | G169: Postage Expense | H169: =IFERROR(HLOOKUP(A169,'Bank Summary Page'!$B$19:$DK$35,17),"") -> 0 | I169: =IFERROR(HLOOKUP(A169,'Import BSP Bud'!$C$19:$DK$34,16,FALSE),0) -> 0 | J169: 0 | K169: 0 | Y169: =IF(COA!$E$165="Y","Show","Hide") -> Show
A170: 6250 | B170: Telephone Expense / SMS Text | C170: ='Monthly Income & Exp. Reports'!O173 -> 0 | D170: 0 | E170: 0 | F170: 0 | G170: Telephone Expense / SMS Text | H170: =IFERROR(HLOOKUP(A170,'Bank Summary Page'!$B$19:$DK$35,17),"") -> 0 | I170: =IFERROR(HLOOKUP(A170,'Import BSP Bud'!$C$19:$DK$34,16,FALSE),0) -> 0 | J170: 0 | K170: 0 | Y170: =IF(COA!$E$166="Y","Show","Hide") -> Show
A171: 6300 | B171: Printing and Stationery Expense | C171: ='Monthly Income & Exp. Reports'!O174 -> 0 | D171: 0 | E171: 0 | F171: 0 | G171: Printing and Stationery Expense | H171: =IFERROR(HLOOKUP(A171,'Bank Summary Page'!$B$19:$DK$35,17),"") -> 0 | I171: =IFERROR(HLOOKUP(A171,'Import BSP Bud'!$C$19:$DK$34,16,FALSE),0) -> 0 | J171: 0 | K171: 0 | Y171: =IF(COA!$E$167="Y","Show","Hide") -> Show
A172: 6350 | B172: Office Equipment (Non Capital) Expense | C172: ='Monthly Income & Exp. Reports'!O175 -> 0 | D172: 0 | E172: 0 | F172: 0 | G172: Office Equipment (Non Capital) Expense | H172: =IFERROR(HLOOKUP(A172,'Bank Summary Page'!$B$19:$DK$35,17),"") -> 0 | I172: =IFERROR(HLOOKUP(A172,'Import BSP Bud'!$C$19:$DK$34,16,FALSE),0) -> 0 | J172: 0 | K172: 0 | Y172: =IF(COA!$E$168="Y","Show","Hide") -> Show
A173: 6355 | B173: Non-ICT_Grant Funded Office Computers Expense | C173: ='Monthly Income & Exp. Reports'!O176 -> 0 | D173: 0 | E173: 0 | F173: 0 | G173: Non-ICT_Grant Funded Office Computers Expense | H173: =IFERROR(HLOOKUP(A173,'Bank Summary Page'!$B$19:$DK$35,17),"") -> 0 | I173: =IFERROR(HLOOKUP(A173,'Import BSP Bud'!$C$19:$DK$34,16,FALSE),0) -> 0 | J173: 0 | K173: 0 | Y173: =IF(COA!$E$169="Y","Show","Hide") -> Show
A174: 6400 | B174: Accounting / Auditing Expense | C174: ='Monthly Income & Exp. Reports'!O177 -> 0 | D174: 0 | E174: 0 | F174: 0 | G174: Accounting / Auditing Expense | H174: =IFERROR(HLOOKUP(A174,'Bank Summary Page'!$B$19:$DK$35,17),"") -> 0 | I174: =IFERROR(HLOOKUP(A174,'Import BSP Bud'!$C$19:$DK$34,16,FALSE),0) -> 0 | J174: 0 | K174: 0 | Y174: =IF(COA!$E$170="Y","Show","Hide") -> Show
A175: 6450 | B175: Other Professional Fees Expense | C175: ='Monthly Income & Exp. Reports'!O178 -> 0 | D175: 0 | E175: 0 | F175: 0 | G175: Other Professional Fees Expense | H175: =IFERROR(HLOOKUP(A175,'Bank Summary Page'!$B$19:$DK$35,17),"") -> 0 | I175: =IFERROR(HLOOKUP(A175,'Import BSP Bud'!$C$19:$DK$34,16,FALSE),0) -> 0 | J175: 0 | K175: 0 | Y175: =IF(COA!$E$171="Y","Show","Hide") -> Show
A176: 6500 | B176: Travel and Subsistence Expense | C176: ='Monthly Income & Exp. Reports'!O179 -> 0 | D176: 0 | E176: 0 | F176: 0 | G176: Travel and Subsistence Expense | H176: =IFERROR(HLOOKUP(A176,'Bank Summary Page'!$B$19:$DK$35,17),"") -> 0 | I176: =IFERROR(HLOOKUP(A176,'Import BSP Bud'!$C$19:$DK$34,16,FALSE),0) -> 0 | J176: 0 | K176: 0 | Y176: =IF(COA!$E$172="Y","Show","Hide") -> Show
A177: 6600 | B177: Principals Expenses | C177: ='Monthly Income & Exp. Reports'!O180 -> 0 | D177: 0 | E177: 0 | F177: 0 | G177: Principals Expenses | H177: =IFERROR(HLOOKUP(A177,'Bank Summary Page'!$B$19:$DK$35,17),"") -> 0 | I177: =IFERROR(HLOOKUP(A177,'Import BSP Bud'!$C$19:$DK$34,16,FALSE),0) -> 0 | J177: 0 | K177: 0 | Y177: =IF(COA!$E$173="Y","Show","Hide") -> Show
A178: 6650 | B178: Board of Management Expense | C178: ='Monthly Income & Exp. Reports'!O181 -> 0 | D178: 0 | E178: 0 | F178: 0 | G178: Board of Management Expense | H178: =IFERROR(HLOOKUP(A178,'Bank Summary Page'!$B$19:$DK$35,17),"") -> 0 | I178: =IFERROR(HLOOKUP(A178,'Import BSP Bud'!$C$19:$DK$34,16,FALSE),0) -> 0 | J178: 0 | K178: 0 | Y178: =IF(COA!$E$174="Y","Show","Hide") -> Show
A179: 6700 | B179: Annual Subscriptions Expense | C179: ='Monthly Income & Exp. Reports'!O182 -> 0 | D179: 0 | E179: 0 | F179: 0 | G179: Annual Subscriptions Expense | H179: =IFERROR(HLOOKUP(A179,'Bank Summary Page'!$B$19:$DK$35,17),"") -> 0 | I179: =IFERROR(HLOOKUP(A179,'Import BSP Bud'!$C$19:$DK$34,16,FALSE),0) -> 0 | J179: 0 | K179: 0 | Y179: =IF(COA!$E$175="Y","Show","Hide") -> Show
A180: 6730 | B180: InSchool Administration System Expense | C180: ='Monthly Income & Exp. Reports'!O183 -> 0 | D180: 0 | E180: 0 | F180: 0 | G180: InSchool Administration System Expense | H180: =IFERROR(HLOOKUP(A180,'Bank Summary Page'!$B$19:$DK$35,17),"") -> 0 | I180: =IFERROR(HLOOKUP(A180,'Import BSP Bud'!$C$19:$DK$34,16,FALSE),0) -> 0 | J180: 0 | K180: 0 | Y180: =IF(COA!$E$176="Y","Show","Hide") -> Show
A181: 6731 | B181: Accounting Software/Payroll Software Expense | C181: ='Monthly Income & Exp. Reports'!O184 -> 0 | D181: 0 | E181: 0 | F181: 0 | G181: Accounting Software/Payroll Software Expense | H181: =IFERROR(HLOOKUP(A181,'Bank Summary Page'!$B$19:$DK$35,17),"") -> 0 | I181: =IFERROR(HLOOKUP(A181,'Import BSP Bud'!$C$19:$DK$34,16,FALSE),0) -> 0 | J181: 0 | K181: 0 | Y181: =IF(COA!$E$177="Y","Show","Hide") -> Show
A182: 6750 | B182: Donations to Charity | C182: ='Monthly Income & Exp. Reports'!O185 -> 0 | D182: 0 | E182: 0 | F182: 0 | G182: Donations to Charity | H182: =IFERROR(HLOOKUP(A182,'Bank Summary Page'!$B$19:$DK$35,17),"") -> 0 | I182: =IFERROR(HLOOKUP(A182,'Import BSP Bud'!$C$19:$DK$34,16,FALSE),0) -> 0 | J182: 0 | K182: 0 | Y182: =IF(COA!$E$178="Y","Show","Hide") -> Show
A183: 6755 | B183: Medical and First Aid Expense | C183: ='Monthly Income & Exp. Reports'!O186 -> 0 | D183: 0 | E183: 0 | F183: 0 | G183: Medical and First Aid Expense | H183: =IFERROR(HLOOKUP(A183,'Bank Summary Page'!$B$19:$DK$35,17),"") -> 0 | I183: =IFERROR(HLOOKUP(A183,'Import BSP Bud'!$C$19:$DK$34,16,FALSE),0) -> 0 | J183: 0 | K183: 0 | Y183: =IF(COA!$E$179="Y","Show","Hide") -> Show
A184: 6780 | B184: Staff Room Expenses | C184: ='Monthly Income & Exp. Reports'!O187 -> 0 | D184: 0 | E184: 0 | F184: 0 | G184: Staff Room Expenses | H184: =IFERROR(HLOOKUP(A184,'Bank Summary Page'!$B$19:$DK$35,17),"") -> 0 | I184: =IFERROR(HLOOKUP(A184,'Import BSP Bud'!$C$19:$DK$34,16,FALSE),0) -> 0 | J184: 0 | K184: 0 | Y184: =IF(COA!$E$180="Y","Show","Hide") -> Show
A185: 6800 | B185: Hospitality Expense | C185: ='Monthly Income & Exp. Reports'!O188 -> 0 | D185: 0 | E185: 0 | F185: 0 | G185: Hospitality Expense | H185: =IFERROR(HLOOKUP(A185,'Bank Summary Page'!$B$19:$DK$35,17),"") -> 0 | I185: =IFERROR(HLOOKUP(A185,'Import BSP Bud'!$C$19:$DK$34,16,FALSE),0) -> 0 | J185: 0 | K185: 0 | Y185: =IF(COA!$E$181="Y","Show","Hide") -> Show
A186: 6830 | B186: Tuck Shop Expense | C186: ='Monthly Income & Exp. Reports'!O189 -> 0 | D186: 0 | E186: 0 | F186: 0 | G186: Tuck Shop Expense | H186: =IFERROR(HLOOKUP(A186,'Bank Summary Page'!$B$19:$DK$35,17),"") -> 0 | I186: =IFERROR(HLOOKUP(A186,'Import BSP Bud'!$C$19:$DK$34,16,FALSE),0) -> 0 | J186: 0 | K186: 0 | Y186: =IF(COA!$E$182="Y","Show","Hide") -> Show
A187: 6900 | B187: Other Administration Expenses | C187: ='Monthly Income & Exp. Reports'!O190 -> 0 | D187: 0 | E187: 0 | F187: 0 | G187: Other Administration Expenses | H187: =IFERROR(HLOOKUP(A187,'Bank Summary Page'!$B$19:$DK$35,17),"") -> 0 | I187: =IFERROR(HLOOKUP(A187,'Import BSP Bud'!$C$19:$DK$34,16,FALSE),0) -> 0 | J187: 0 | K187: 0 | Y187: =IF(COA!$E$183="Y","Show","Hide") -> Show
A188: 7300 | B188: Leasing Expenses | C188: ='Monthly Income & Exp. Reports'!O191 -> 0 | E188: 0 | F188: 0 | G188: Leasing Expenses | H188: =IFERROR(HLOOKUP(A188,'Bank Summary Page'!$B$19:$DK$35,17),"") -> 0 | I188: =IFERROR(HLOOKUP(A188,'Import BSP Bud'!$C$19:$DK$34,16,FALSE),0) -> 0 | J188: =-IFERROR(SUM(H188-I188),"") -> 0 | K188: 0 | Y188: =IF(COA!$E$184="Y","Show","Hide") -> Show
A189: 7320 | B189: Loan Charges Expense | C189: ='Monthly Income & Exp. Reports'!O192 -> 0 | D189: 0 | E189: 0 | F189: 0 | G189: Loan Charges Expense | H189: =IFERROR(HLOOKUP(A189,'Bank Summary Page'!$B$19:$DK$35,17),"") -> 0 | I189: =IFERROR(HLOOKUP(A189,'Import BSP Bud'!$C$19:$DK$34,16,FALSE),0) -> 0 | J189: =-IFERROR(SUM(H189-I189),"") -> 0 | K189: 0 | Y189: =IF(COA!$E$185="Y","Show","Hide") -> Show
A190: 7400 | B190: Bank Interest Expense | C190: ='Monthly Income & Exp. Reports'!O193 -> 0 | E190: 0 | F190: 0 | G190: Bank Interest Expense | H190: =IFERROR(HLOOKUP(A190,'Bank Summary Page'!$B$19:$DK$35,17),"") -> 0 | I190: =IFERROR(HLOOKUP(A190,'Import BSP Bud'!$C$19:$DK$34,16,FALSE),0) -> 0 | J190: 0 | K190: 0 | Y190: =IF(COA!$E$186="Y","Show","Hide") -> Show
A191: 7450 | B191: Bank Charges Expense | C191: ='Monthly Income & Exp. Reports'!O194 -> 0 | D191: 0 | E191: 0 | F191: 0 | G191: Bank Charges Expense | H191: =IFERROR(HLOOKUP(A191,'Bank Summary Page'!$B$19:$DK$35,17),"") -> 0 | I191: =IFERROR(HLOOKUP(A191,'Import BSP Bud'!$C$19:$DK$34,16,FALSE),0) -> 0 | J191: 0 | K191: 0 | Y191: =IF(COA!$E$187="Y","Show","Hide") -> Show
A192: 7800 | B192: Reimbursable Expenses | C192: ='Monthly Income & Exp. Reports'!O195 -> 0 | D192: 0 | E192: 0 | F192: 0 | G192: Reimbursable Expenses | H192: =IFERROR(HLOOKUP(A192,'Bank Summary Page'!$B$19:$DK$35,17),"") -> 0 | I192: =IFERROR(HLOOKUP(A192,'Import BSP Bud'!$C$19:$DK$34,16,FALSE),0) -> 0 | J192: 0 | K192: 0 | Y192: =IF(COA!$E$188="Y","Show","Hide") -> Show
A193: 7850 | B193: Discounts Received | C193: ='Monthly Income & Exp. Reports'!O196 -> 0 | D193: 0 | E193: 0 | F193: 0 | G193: Discounts Received | H193: =IFERROR(HLOOKUP(A193,'Bank Summary Page'!$B$19:$DK$35,16),"") -> 0 | I193: =IFERROR(HLOOKUP(A193,'Import BSP Bud'!$C$19:$DK$34,16,FALSE),"") -> 0 | J193: =-IFERROR(SUM(H193-I193),"") -> 0 | K193: 0 | Y193: =IF(COA!$E$189="Y","Show","Hide") -> Hide
B194: TOTAL SCHOOL EXPENDITURE | C194: =SUM(C81:C193) -> 0 | D194: =SUM(D81:D193) -> 0 | E194: =SUM(E81:E193) -> 0 | F194: =IF(D194,(C194-D194)/D194,0)*-1 -> 0 | G194: TOTAL SCHOOL EXPENDITURE | H194: =SUM(H81:H193) -> 0 | I194: =SUM(I81:I193) -> 0 | J194: =SUM(J81:J193) -> 0 | K194: =IF(I194,(H194-I194)/I194,0)*-1 -> 0 | Y194: =IF(COA!$E$189="Y","Show","Hide") -> Hide
B196: NET SURPLUS / (DEFICIT) | C196: =C78-C194 -> 0 | D196: =D78-D194 -> 0 | E196: =E78-(-E194) -> 0 | F196: =IF(D196,(C196-D196)/D196,0) -> 0 | G196: NET SURPLUS / (DEFICIT) | H196: =H78-H194 -> 0 | I196: =I78-I194 -> 0 | J196: =J78-(-J194) -> 0 | K196: =IF(I196,(H196-I196)/I196,0) -> 0
D199: Difference | E199: % Difference
B200: SUMMARY: YEAR TO DATE ACTUAL VERSUS BUDGET | D200: Year to Date v Budget 2024/2025 | E200: Year to Date v Budget 2024/2025
B201: Category | C201: Actual | J201: Budget
A202: Actual | B202: Department of Education Income | C202: =SUM(INDEX(BudvAct_Dep_of_Edu_Inc,,3)) -> 0 | D202: =C202-J202 -> 0 | E202: =IF(J202,(C202-J202)/J202,0) -> 0 | F202: Budget | G202: Department of Education Income | J202: =SUM(INDEX(BudvAct_Dep_of_Edu_Inc,,4)) -> 0
A203: Income | B203: Other State Income | C203: =SUM(INDEX(BudvAct_Other_State_Income,,3)) -> 0 | D203: =C203-J203 -> 0 | E203: =IF(J203,(C203-J203)/J203,0) -> 0 | F203: Income | G203: Other State Income | J203: =SUM(INDEX(BudvAct_Other_State_Income,,4)) -> 0
B204: School Generated Income | C204: =SUM(INDEX(BudvAct_School_Generated_Income,,3)) -> 0 | D204: 0 | E204: =IF(J204,(C204-J204)/J204,0) -> 0 | G204: School Generated Income | J204: =SUM(INDEX(BudvAct_School_Generated_Income,,4)) -> 0
... 16 more rows

Sheet Bank Summary Page
A1: ='Monthly Income & Exp. Reports'!B3 -> Enter | B1: Main Menu | C1: Grant Analysis | D1: Income Analysis | E1: Expenditure Analysis | BR1: =IF(OR(CM2="Show",CL19="Show")=TRUE,"Show","Hide") -> Hide | BS1: =IF(OR(CN2="Show",CM19="Show")=TRUE,"Show","Hide") -> Hide
A2: Bank Lodgements Summary | C2: 3010 | D2: 3020 | E2: 3021 | F2: 3022 | G2: 3050 | H2: 3140 | I2: 3151 | J2: 3152 | K2: 3155 | L2: 3170 | M2: 3171 | N2: 3190 | O2: 3200 | P2: 3210 | Q2: 3225 | R2: 3226 | S2: 3227 | T2: 3230 | U2: 3260 | V2: 3275 | W2: 3276 | X2: 3277 | Y2: 3288 | Z2: 3289 | AA2: 3290 | AB2: 3292 | AC2: 3293 | AD2: 3294 | AE2: 3295 | AF2: 3296 | AG2: 3297 | AH2: 3298 | AI2: 3299 | AJ2: 3300 | AK2: 3310 | AL2: 3335 | AM2: 3350 | AN2: 3370 | AO2: 3375 | AP2: 3380 | AQ2: 3390 | AR2: 3410 | AS2: 3420 | AT2: 3430 | AU2: 3440 | AV2: 3450 | AW2: 3490 | AX2: 3500 | AY2: 3510 | AZ2: 3511 | BA2: 3520 | BB2: 3530 | BC2: 3531 | BD2: 3535 | BE2: 3540 | BF2: 3545 | BG2: 3550 | BH2: 3570 | BI2: 3572 | BJ2: 3573 | BK2: 3574 | BL2: 3575 | BM2: 3580 | BN2: 3650 | BO2: 3700 | BP2: 3770 | BQ2: 3800 | BR2: 3840 | BS2: 3850 | BT2: 3851 | BU2: 3852 | BV2: 3853
B3: Total | C3: Capitation/Non Pay Budget | D3: DEIS Grant | E3: Early Start Programme Mat/Equip/Par Inv Grant | F3: Early Start Programme Capitation | G3: Ancillary/School Support Services Grant | H3: Special Education Equipment Grant | I3: Free Schoolbook Grant | J3: Free Schoolbook Admin Grant | K3: School Library Books Capital Grant | L3: Special Subject Grant | M3: Irish & Bilingual School Grant | N3: JCSP Grant | O3: Transition Year Grant | P3: Leaving Certificate Applied Grant | Q3: Amortisation of DE Equipment Grants | R3: Amortisation of DE ICT Grants | S3: Amortisation of Other DE Grants | T3: ICT Grant | U3: School Excellence Fund Income | V3: Minor Works Grant-Non Capital | W3: Temporary Accommodation Grant Income | X3: COVID Minor Works Grant | Y3: COVID Capitation for Cleaning and PPE Grant | Z3: Once-Off Cost of Living Grant | AA3: Other Non Capital DE Grant Income | AB3: Standardised Testing Grant | AC3: Summer Provision Grant | AD3: Bus Escort Grant | AE3: Department of Children and Youth Affairs Income | AF3: DSP School Meals Grant | AG3: Erasmus Income | AH3: HSE Funding | AI3: Other State Funding | AJ3: Education Fees (Fee paying schools) | AK3: Transition Year Income | AL3: Classroom Books/Resources Income | AM3: Hire of Facilities Rental Income | AN3: Locker Income | AO3: Journals and Year Book Income | AP3: Student Photocopying Income | AQ3: School Administration Charges | AR3: Adult Education Income | AS3: Canteen Income | AT3: Tuck Shop Income | AU3: Uniforms Income | AV3: Religion/Ethos Income | AW3: After School Study/Club Income | AX3: Games Income | AY3: Bus Hire for Games Income | AZ3: Bus Hire Other Income | BA3: School Musical/Drama Income | BB3: School Tours Income | BC3: School Swimming Income | BD3: Student Insurance Income | BE3: Pre-School Income | BF3: Summer Camps Income | BG3: Reimbursable Income | BH3: Other School Generated Income | BI3: School Arts and Crafts Income | BJ3: School Dance Income | BK3: Restricted School Fundraising (Non Capital) | BL3: Unrestricted School Fundraising (Non Capital) | BM3: Discounts/Rebates | BN3: Voluntary Contributions | BO3: Income from Parents Association | BP3: Insurance Claim Income | BQ3: Bank Interest Received | BR3: Amortisation of Non DE funding | BS3: Other Income | BT3: Designated Income (Non Capital) | BU3: Restricted External Fundraising (Non Capital) | BV3: Unrestricted External Fundraising (Non Capital) | BW3: DE Capital Building Grant Income | BX3: Capital Projects Fundraising Income | BY3: Parents Contribution to Capital Projects Income | BZ3: Patron/Trustee Contribution to Capital Projects Income | CA3: Other State Capital Projects Income | CB3: Covid Minor Works Capital Grant Income | CC3: Capital Donations Income | CD3: DE Fixtures, Fittings & Equipment Grant Income | CE3: DE ICT Grant Capital Income | CF3: Transfer In
A4: 2024-09-01 | B4: =SUM(C4:CF4) -> 0 | C4: ='September Income'!H27 -> 0 | D4: ='September Income'!I27 -> 0 | E4: ='September Income'!J27 -> 0 | F4: ='September Income'!K27 -> 0 | G4: ='September Income'!L27 -> 0 | H4: ='September Income'!M27 -> 0 | I4: ='September Income'!N27 -> 0 | J4: ='September Income'!O27 -> 0 | K4: ='September Income'!P27 -> 0 | L4: ='September Income'!Q27 -> 0 | M4: ='September Income'!R27 -> 0 | N4: ='September Income'!S27 -> 0 | O4: ='September Income'!T27 -> 0 | P4: ='September Income'!U27 -> 0 | Q4: ='September Income'!V27 -> 0 | R4: ='September Income'!W27 -> 0 | S4: ='September Income'!X27 -> 0 | T4: ='September Income'!Y27 -> 0 | U4: ='September Income'!Z27 -> 0 | V4: ='September Income'!AA27 -> 0 | W4: ='September Income'!AB27 -> 0 | X4: ='September Income'!AC27 -> 0 | Y4: ='September Income'!AD27 -> 0 | Z4: ='September Income'!AE27 -> 0 | AA4: ='September Income'!AF27 -> 0 | AB4: ='September Income'!AG27 -> 0 | AC4: ='September Income'!AH27 -> 0 | AD4: ='September Income'!AI27 -> 0 | AE4: ='September Income'!AJ27 -> 0 | AF4: ='September Income'!AK27 -> 0 | AG4: ='September Income'!AL27 -> 0 | AH4: ='September Income'!AM27 -> 0 | AI4: ='September Income'!AN27 -> 0 | AJ4: ='September Income'!AO27 -> 0 | AK4: ='September Income'!AP27 -> 0 | AL4: ='September Income'!AQ27 -> 0 | AM4: ='September Income'!AR27 -> 0 | AN4: ='September Income'!AS27 -> 0 | AO4: ='September Income'!AT27 -> 0 | AP4: ='September Income'!AU27 -> 0 | AQ4: ='September Income'!AV27 -> 0 | AR4: ='September Income'!AW27 -> 0 | AS4: ='September Income'!AX27 -> 0 | AT4: ='September Income'!AY27 -> 0 | AU4: ='September Income'!AZ27 -> 0 | AV4: ='September Income'!BA27 -> 0 | AW4: ='September Income'!BB27 -> 0 | AX4: ='September Income'!BC27 -> 0 | AY4: ='September Income'!BD27 -> 0 | AZ4: ='September Income'!BE27 -> 0 | BA4: ='September Income'!BF27 -> 0 | BB4: ='September Income'!BG27 -> 0 | BC4: ='September Income'!BH27 -> 0 | BD4: ='September Income'!BI27 -> 0 | BE4: ='September Income'!BJ27 -> 0 | BF4: ='September Income'!BK27 -> 0 | BG4: ='September Income'!BL27 -> 0 | BH4: ='September Income'!BM27 -> 0 | BI4: ='September Income'!BN27 -> 0 | BJ4: ='September Income'!BO27 -> 0 | BK4: ='September Income'!BP27 -> 0 | BL4: ='September Income'!BQ27 -> 0 | BM4: ='September Income'!BR27 -> 0 | BN4: ='September Income'!BS27 -> 0 | BO4: ='September Income'!BT27 -> 0 | BP4: ='September Income'!BU27 -> 0 | BQ4: ='September Income'!BV27 -> 0 | BR4: ='September Income'!BW27 -> 0 | BS4: ='September Income'!BX27 -> 0 | BT4: ='September Income'!BY27 -> 0 | BU4: ='September Income'!BZ27 -> 0 | BV4: ='September Income'!CA27 -> 0 | BW4: ='September Income'!CB27 -> 0 | BX4: ='September Income'!CC27 -> 0 | BY4: ='September Income'!CD27 -> 0 | BZ4: ='September Income'!CE27 -> 0 | CA4: ='September Income'!CF27 -> 0 | CB4: ='September Income'!CG27 -> 0 | CC4: ='September Income'!CH27 -> 0 | CD4: ='September Income'!CI27 -> 0 | CE4: ='September Income'!CJ27 -> 0 | CF4: ='September Income'!CK27 -> 0
A5: 2024-10-01 | B5: 0 | C5: ='October Income'!H27 -> 0 | D5: ='October Income'!I27 -> 0 | E5: ='October Income'!J27 -> 0 | F5: ='October Income'!K27 -> 0 | G5: ='October Income'!L27 -> 0 | H5: ='October Income'!M27 -> 0 | I5: ='October Income'!N27 -> 0 | J5: ='October Income'!O27 -> 0 | K5: ='October Income'!P27 -> 0 | L5: ='October Income'!Q27 -> 0 | M5: ='October Income'!R27 -> 0 | N5: ='October Income'!S27 -> 0 | O5: ='October Income'!T27 -> 0 | P5: ='October Income'!U27 -> 0 | Q5: ='October Income'!V27 -> 0 | R5: ='October Income'!W27 -> 0 | S5: ='October Income'!X27 -> 0 | T5: ='October Income'!Y27 -> 0 | U5: ='October Income'!Z27 -> 0 | V5: ='October Income'!AA27 -> 0 | W5: ='October Income'!AB27 -> 0 | X5: ='October Income'!AC27 -> 0 | Y5: ='October Income'!AD27 -> 0 | Z5: ='October Income'!AE27 -> 0 | AA5: ='October Income'!AF27 -> 0 | AB5: ='October Income'!AG27 -> 0 | AC5: ='October Income'!AH27 -> 0 | AD5: ='October Income'!AI27 -> 0 | AE5: ='October Income'!AJ27 -> 0 | AF5: ='October Income'!AK27 -> 0 | AG5: ='October Income'!AL27 -> 0 | AH5: ='October Income'!AM27 -> 0 | AI5: ='October Income'!AN27 -> 0 | AJ5: ='October Income'!AO27 -> 0 | AK5: ='October Income'!AP27 -> 0 | AL5: ='October Income'!AQ27 -> 0 | AM5: ='October Income'!AR27 -> 0 | AN5: ='October Income'!AS27 -> 0 | AO5: ='October Income'!AT27 -> 0 | AP5: ='October Income'!AU27 -> 0 | AQ5: ='October Income'!AV27 -> 0 | AR5: ='October Income'!AW27 -> 0 | AS5: ='October Income'!AX27 -> 0 | AT5: ='October Income'!AY27 -> 0 | AU5: ='October Income'!AZ27 -> 0 | AV5: ='October Income'!BA27 -> 0 | AW5: ='October Income'!BB27 -> 0 | AX5: ='October Income'!BC27 -> 0 | AY5: ='October Income'!BD27 -> 0 | AZ5: ='October Income'!BE27 -> 0 | BA5: ='October Income'!BF27 -> 0 | BB5: ='October Income'!BG27 -> 0 | BC5: ='October Income'!BH27 -> 0 | BD5: ='October Income'!BI27 -> 0 | BE5: ='October Income'!BJ27 -> 0 | BF5: ='October Income'!BK27 -> 0 | BG5: ='October Income'!BL27 -> 0 | BH5: ='October Income'!BM27 -> 0 | BI5: ='October Income'!BN27 -> 0 | BJ5: ='October Income'!BO27 -> 0 | BK5: ='October Income'!BP27 -> 0 | BL5: ='October Income'!BQ27 -> 0 | BM5: ='October Income'!BR27 -> 0 | BN5: ='October Income'!BS27 -> 0 | BO5: ='October Income'!BT27 -> 0 | BP5: ='October Income'!BU27 -> 0 | BQ5: ='October Income'!BV27 -> 0 | BR5: ='October Income'!BW27 -> 0 | BS5: ='October Income'!BX27 -> 0 | BT5: ='October Income'!BY27 -> 0 | BU5: ='October Income'!BZ27 -> 0 | BV5: ='October Income'!CA27 -> 0 | BW5: ='October Income'!CB27 -> 0 | BX5: ='October Income'!CC27 -> 0 | BY5: ='October Income'!CD27 -> 0 | BZ5: ='October Income'!CE27 -> 0 | CA5: ='October Income'!CF27 -> 0 | CB5: ='October Income'!CG27 -> 0 | CC5: ='October Income'!CH27 -> 0 | CD5: ='October Income'!CI27 -> 0 | CE5: ='October Income'!CJ27 -> 0 | CF5: ='October Income'!CK27 -> 0
A6: 2024-11-01 | B6: 0 | C6: ='November Income'!H27 -> 0 | D6: ='November Income'!I27 -> 0 | E6: ='November Income'!J27 -> 0 | F6: ='November Income'!K27 -> 0 | G6: ='November Income'!L27 -> 0 | H6: ='November Income'!M27 -> 0 | I6: ='November Income'!N27 -> 0 | J6: ='November Income'!O27 -> 0 | K6: ='November Income'!P27 -> 0 | L6: ='November Income'!Q27 -> 0 | M6: ='November Income'!R27 -> 0 | N6: ='November Income'!S27 -> 0 | O6: ='November Income'!T27 -> 0 | P6: ='November Income'!U27 -> 0 | Q6: ='November Income'!V27 -> 0 | R6: ='November Income'!W27 -> 0 | S6: ='November Income'!X27 -> 0 | T6: ='November Income'!Y27 -> 0 | U6: ='November Income'!Z27 -> 0 | V6: ='November Income'!AA27 -> 0 | W6: ='November Income'!AB27 -> 0 | X6: ='November Income'!AC27 -> 0 | Y6: ='November Income'!AD27 -> 0 | Z6: ='November Income'!AE27 -> 0 | AA6: ='November Income'!AF27 -> 0 | AB6: ='November Income'!AG27 -> 0 | AC6: ='November Income'!AH27 -> 0 | AD6: ='November Income'!AI27 -> 0 | AE6: ='November Income'!AJ27 -> 0 | AF6: ='November Income'!AK27 -> 0 | AG6: ='November Income'!AL27 -> 0 | AH6: ='November Income'!AM27 -> 0 | AI6: ='November Income'!AN27 -> 0 | AJ6: ='November Income'!AO27 -> 0 | AK6: ='November Income'!AP27 -> 0 | AL6: ='November Income'!AQ27 -> 0 | AM6: ='November Income'!AR27 -> 0 | AN6: ='November Income'!AS27 -> 0 | AO6: ='November Income'!AT27 -> 0 | AP6: ='November Income'!AU27 -> 0 | AQ6: ='November Income'!AV27 -> 0 | AR6: ='November Income'!AW27 -> 0 | AS6: ='November Income'!AX27 -> 0 | AT6: ='November Income'!AY27 -> 0 | AU6: ='November Income'!AZ27 -> 0 | AV6: ='November Income'!BA27 -> 0 | AW6: ='November Income'!BB27 -> 0 | AX6: ='November Income'!BC27 -> 0 | AY6: ='November Income'!BD27 -> 0 | AZ6: ='November Income'!BE27 -> 0 | BA6: ='November Income'!BF27 -> 0 | BB6: ='November Income'!BG27 -> 0 | BC6: ='November Income'!BH27 -> 0 | BD6: ='November Income'!BI27 -> 0 | BE6: ='November Income'!BJ27 -> 0 | BF6: ='November Income'!BK27 -> 0 | BG6: ='November Income'!BL27 -> 0 | BH6: ='November Income'!BM27 -> 0 | BI6: ='November Income'!BN27 -> 0 | BJ6: ='November Income'!BO27 -> 0 | BK6: ='November Income'!BP27 -> 0 | BL6: ='November Income'!BQ27 -> 0 | BM6: ='November Income'!BR27 -> 0 | BN6: ='November Income'!BS27 -> 0 | BO6: ='November Income'!BT27 -> 0 | BP6: ='November Income'!BU27 -> 0 | BQ6: ='November Income'!BV27 -> 0 | BR6: ='November Income'!BW27 -> 0 | BS6: ='November Income'!BX27 -> 0 | BT6: ='November Income'!BY27 -> 0 | BU6: ='November Income'!BZ27 -> 0 | BV6: ='November Income'!CA27 -> 0 | BW6: ='November Income'!CB27 -> 0 | BX6: ='November Income'!CC27 -> 0 | BY6: ='November Income'!CD27 -> 0 | BZ6: ='November Income'!CE27 -> 0 | CA6: ='November Income'!CF27 -> 0 | CB6: ='November Income'!CG27 -> 0 | CC6: ='November Income'!CH27 -> 0 | CD6: ='November Income'!CI27 -> 0 | CE6: ='November Income'!CJ27 -> 0 | CF6: ='November Income'!CK27 -> 0
A7: 2024-12-01 | B7: 0 | C7: ='December Income'!H27 -> 0 | D7: ='December Income'!I27 -> 0 | E7: ='December Income'!J27 -> 0 | F7: ='December Income'!K27 -> 0 | G7: ='December Income'!L27 -> 0 | H7: ='December Income'!M27 -> 0 | I7: ='December Income'!N27 -> 0 | J7: ='December Income'!O27 -> 0 | K7: ='December Income'!P27 -> 0 | L7: ='December Income'!Q27 -> 0 | M7: ='December Income'!R27 -> 0 | N7: ='December Income'!S27 -> 0 | O7: ='December Income'!T27 -> 0 | P7: ='December Income'!U27 -> 0 | Q7: ='December Income'!V27 -> 0 | R7: ='December Income'!W27 -> 0 | S7: ='December Income'!X27 -> 0 | T7: ='December Income'!Y27 -> 0 | U7: ='December Income'!Z27 -> 0 | V7: ='December Income'!AA27 -> 0 | W7: ='December Income'!AB27 -> 0 | X7: ='December Income'!AC27 -> 0 | Y7: ='December Income'!AD27 -> 0 | Z7: ='December Income'!AE27 -> 0 | AA7: ='December Income'!AF27 -> 0 | AB7: ='December Income'!AG27 -> 0 | AC7: ='December Income'!AH27 -> 0 | AD7: ='December Income'!AI27 -> 0 | AE7: ='December Income'!AJ27 -> 0 | AF7: ='December Income'!AK27 -> 0 | AG7: ='December Income'!AL27 -> 0 | AH7: ='December Income'!AM27 -> 0 | AI7: ='December Income'!AN27 -> 0 | AJ7: ='December Income'!AO27 -> 0 | AK7: ='December Income'!AP27 -> 0 | AL7: ='December Income'!AQ27 -> 0 | AM7: ='December Income'!AR27 -> 0 | AN7: ='December Income'!AS27 -> 0 | AO7: ='December Income'!AT27 -> 0 | AP7: ='December Income'!AU27 -> 0 | AQ7: ='December Income'!AV27 -> 0 | AR7: ='December Income'!AW27 -> 0 | AS7: ='December Income'!AX27 -> 0 | AT7: ='December Income'!AY27 -> 0 | AU7: ='December Income'!AZ27 -> 0 | AV7: ='December Income'!BA27 -> 0 | AW7: ='December Income'!BB27 -> 0 | AX7: ='December Income'!BC27 -> 0 | AY7: ='December Income'!BD27 -> 0 | AZ7: ='December Income'!BE27 -> 0 | BA7: ='December Income'!BF27 -> 0 | BB7: ='December Income'!BG27 -> 0 | BC7: ='December Income'!BH27 -> 0 | BD7: ='December Income'!BI27 -> 0 | BE7: ='December Income'!BJ27 -> 0 | BF7: ='December Income'!BK27 -> 0 | BG7: ='December Income'!BL27 -> 0 | BH7: ='December Income'!BM27 -> 0 | BI7: ='December Income'!BN27 -> 0 | BJ7: ='December Income'!BO27 -> 0 | BK7: ='December Income'!BP27 -> 0 | BL7: ='December Income'!BQ27 -> 0 | BM7: ='December Income'!BR27 -> 0 | BN7: ='December Income'!BS27 -> 0 | BO7: ='December Income'!BT27 -> 0 | BP7: ='December Income'!BU27 -> 0 | BQ7: ='December Income'!BV27 -> 0 | BR7: ='December Income'!BW27 -> 0 | BS7: ='December Income'!BX27 -> 0 | BT7: ='December Income'!BY27 -> 0 | BU7: ='December Income'!BZ27 -> 0 | BV7: ='December Income'!CA27 -> 0 | BW7: ='December Income'!CB27 -> 0 | BX7: ='December Income'!CC27 -> 0 | BY7: ='December Income'!CD27 -> 0 | BZ7: ='December Income'!CE27 -> 0 | CA7: ='December Income'!CF27 -> 0 | CB7: ='December Income'!CG27 -> 0 | CC7: ='December Income'!CH27 -> 0 | CD7: ='December Income'!CI27 -> 0 | CE7: ='December Income'!CJ27 -> 0 | CF7: ='December Income'!CK27 -> 0
A8: 2025-01-01 | B8: 0 | C8: ='January Income'!H27 -> 0 | D8: ='January Income'!I27 -> 0 | E8: ='January Income'!J27 -> 0 | F8: ='January Income'!K27 -> 0 | G8: ='January Income'!L27 -> 0 | H8: ='January Income'!M27 -> 0 | I8: ='January Income'!N27 -> 0 | J8: ='January Income'!O27 -> 0 | K8: ='January Income'!P27 -> 0 | L8: ='January Income'!Q27 -> 0 | M8: ='January Income'!R27 -> 0 | N8: ='January Income'!S27 -> 0 | O8: ='January Income'!T27 -> 0 | P8: ='January Income'!U27 -> 0 | Q8: ='January Income'!V27 -> 0 | R8: ='January Income'!W27 -> 0 | S8: ='January Income'!X27 -> 0 | T8: ='January Income'!Y27 -> 0 | U8: ='January Income'!Z27 -> 0 | V8: ='January Income'!AA27 -> 0 | W8: ='January Income'!AB27 -> 0 | X8: ='January Income'!AC27 -> 0 | Y8: ='January Income'!AD27 -> 0 | Z8: ='January Income'!AE27 -> 0 | AA8: ='January Income'!AF27 -> 0 | AB8: ='January Income'!AG27 -> 0 | AC8: ='January Income'!AH27 -> 0 | AD8: ='January Income'!AI27 -> 0 | AE8: ='January Income'!AJ27 -> 0 | AF8: ='January Income'!AK27 -> 0 | AG8: ='January Income'!AL27 -> 0 | AH8: ='January Income'!AM27 -> 0 | AI8: ='January Income'!AN27 -> 0 | AJ8: ='January Income'!AO27 -> 0 | AK8: ='January Income'!AP27 -> 0 | AL8: ='January Income'!AQ27 -> 0 | AM8: ='January Income'!AR27 -> 0 | AN8: ='January Income'!AS27 -> 0 | AO8: ='January Income'!AT27 -> 0 | AP8: ='January Income'!AU27 -> 0 | AQ8: ='January Income'!AV27 -> 0 | AR8: ='January Income'!AW27 -> 0 | AS8: ='January Income'!AX27 -> 0 | AT8: ='January Income'!AY27 -> 0 | AU8: ='January Income'!AZ27 -> 0 | AV8: ='January Income'!BA27 -> 0 | AW8: ='January Income'!BB27 -> 0 | AX8: ='January Income'!BC27 -> 0 | AY8: ='January Income'!BD27 -> 0 | AZ8: ='January Income'!BE27 -> 0 | BA8: ='January Income'!BF27 -> 0 | BB8: ='January Income'!BG27 -> 0 | BC8: ='January Income'!BH27 -> 0 | BD8: ='January Income'!BI27 -> 0 | BE8: ='January Income'!BJ27 -> 0 | BF8: ='January Income'!BK27 -> 0 | BG8: ='January Income'!BL27 -> 0 | BH8: ='January Income'!BM27 -> 0 | BI8: ='January Income'!BN27 -> 0 | BJ8: ='January Income'!BO27 -> 0 | BK8: ='January Income'!BP27 -> 0 | BL8: ='January Income'!BQ27 -> 0 | BM8: ='January Income'!BR27 -> 0 | BN8: ='January Income'!BS27 -> 0 | BO8: ='January Income'!BT27 -> 0 | BP8: ='January Income'!BU27 -> 0 | BQ8: ='January Income'!BV27 -> 0 | BR8: ='January Income'!BW27 -> 0 | BS8: ='January Income'!BX27 -> 0 | BT8: ='January Income'!BY27 -> 0 | BU8: ='January Income'!BZ27 -> 0 | BV8: ='January Income'!CA27 -> 0 | BW8: ='January Income'!CB27 -> 0 | BX8: ='January Income'!CC27 -> 0 | BY8: ='January Income'!CD27 -> 0 | BZ8: ='January Income'!CE27 -> 0 | CA8: ='January Income'!CF27 -> 0 | CB8: ='January Income'!CG27 -> 0 | CC8: ='January Income'!CH27 -> 0 | CD8: ='January Income'!CI27 -> 0 | CE8: ='January Income'!CJ27 -> 0 | CF8: ='January Income'!CK27 -> 0
A9: 2025-02-01 | B9: 0 | C9: ='February Income'!H27 -> 0 | D9: ='February Income'!I27 -> 0 | E9: ='February Income'!J27 -> 0 | F9: ='February Income'!K27 -> 0 | G9: ='February Income'!L27 -> 0 | H9: ='February Income'!M27 -> 0 | I9: ='February Income'!N27 -> 0 | J9: ='February Income'!O27 -> 0 | K9: ='February Income'!P27 -> 0 | L9: ='February Income'!Q27 -> 0 | M9: ='February Income'!R27 -> 0 | N9: ='February Income'!S27 -> 0 | O9: ='February Income'!T27 -> 0 | P9: ='February Income'!U27 -> 0 | Q9: ='February Income'!V27 -> 0 | R9: ='February Income'!W27 -> 0 | S9: ='February Income'!X27 -> 0 | T9: ='February Income'!Y27 -> 0 | U9: ='February Income'!Z27 -> 0 | V9: ='February Income'!AA27 -> 0 | W9: ='February Income'!AB27 -> 0 | X9: ='February Income'!AC27 -> 0 | Y9: ='February Income'!AD27 -> 0 | Z9: ='February Income'!AE27 -> 0 | AA9: ='February Income'!AF27 -> 0 | AB9: ='February Income'!AG27 -> 0 | AC9: ='February Income'!AH27 -> 0 | AD9: ='February Income'!AI27 -> 0 | AE9: ='February Income'!AJ27 -> 0 | AF9: ='February Income'!AK27 -> 0 | AG9: ='February Income'!AL27 -> 0 | AH9: ='February Income'!AM27 -> 0 | AI9: ='February Income'!AN27 -> 0 | AJ9: ='February Income'!AO27 -> 0 | AK9: ='February Income'!AP27 -> 0 | AL9: ='February Income'!AQ27 -> 0 | AM9: ='February Income'!AR27 -> 0 | AN9: ='February Income'!AS27 -> 0 | AO9: ='February Income'!AT27 -> 0 | AP9: ='February Income'!AU27 -> 0 | AQ9: ='February Income'!AV27 -> 0 | AR9: ='February Income'!AW27 -> 0 | AS9: ='February Income'!AX27 -> 0 | AT9: ='February Income'!AY27 -> 0 | AU9: ='February Income'!AZ27 -> 0 | AV9: ='February Income'!BA27 -> 0 | AW9: ='February Income'!BB27 -> 0 | AX9: ='February Income'!BC27 -> 0 | AY9: ='February Income'!BD27 -> 0 | AZ9: ='February Income'!BE27 -> 0 | BA9: ='February Income'!BF27 -> 0 | BB9: ='February Income'!BG27 -> 0 | BC9: ='February Income'!BH27 -> 0 | BD9: ='February Income'!BI27 -> 0 | BE9: ='February Income'!BJ27 -> 0 | BF9: ='February Income'!BK27 -> 0 | BG9: ='February Income'!BL27 -> 0 | BH9: ='February Income'!BM27 -> 0 | BI9: ='February Income'!BN27 -> 0 | BJ9: ='February Income'!BO27 -> 0 | BK9: ='February Income'!BP27 -> 0 | BL9: ='February Income'!BQ27 -> 0 | BM9: ='February Income'!BR27 -> 0 | BN9: ='February Income'!BS27 -> 0 | BO9: ='February Income'!BT27 -> 0 | BP9: ='February Income'!BU27 -> 0 | BQ9: ='February Income'!BV27 -> 0 | BR9: ='February Income'!BW27 -> 0 | BS9: ='February Income'!BX27 -> 0 | BT9: ='February Income'!BY27 -> 0 | BU9: ='February Income'!BZ27 -> 0 | BV9: ='February Income'!CA27 -> 0 | BW9: ='February Income'!CB27 -> 0 | BX9: ='February Income'!CC27 -> 0 | BY9: ='February Income'!CD27 -> 0 | BZ9: ='February Income'!CE27 -> 0 | CA9: ='February Income'!CF27 -> 0 | CB9: ='February Income'!CG27 -> 0 | CC9: ='February Income'!CH27 -> 0 | CD9: ='February Income'!CI27 -> 0 | CE9: ='February Income'!CJ27 -> 0 | CF9: ='February Income'!CK27 -> 0
A10: 2025-03-01 | B10: 0 | C10: ='March Income'!H27 -> 0 | D10: ='March Income'!I27 -> 0 | E10: ='March Income'!J27 -> 0 | F10: ='March Income'!K27 -> 0 | G10: ='March Income'!L27 -> 0 | H10: ='March Income'!M27 -> 0 | I10: ='March Income'!N27 -> 0 | J10: ='March Income'!O27 -> 0 | K10: ='March Income'!P27 -> 0 | L10: ='March Income'!Q27 -> 0 | M10: ='March Income'!R27 -> 0 | N10: ='March Income'!S27 -> 0 | O10: ='March Income'!T27 -> 0 | P10: ='March Income'!U27 -> 0 | Q10: ='March Income'!V27 -> 0 | R10: ='March Income'!W27 -> 0 | S10: ='March Income'!X27 -> 0 | T10: ='March Income'!Y27 -> 0 | U10: ='March Income'!Z27 -> 0 | V10: ='March Income'!AA27 -> 0 | W10: ='March Income'!AB27 -> 0 | X10: ='March Income'!AC27 -> 0 | Y10: ='March Income'!AD27 -> 0 | Z10: ='March Income'!AE27 -> 0 | AA10: ='March Income'!AF27 -> 0 | AB10: ='March Income'!AG27 -> 0 | AC10: ='March Income'!AH27 -> 0 | AD10: ='March Income'!AI27 -> 0 | AE10: ='March Income'!AJ27 -> 0 | AF10: ='March Income'!AK27 -> 0 | AG10: ='March Income'!AL27 -> 0 | AH10: ='March Income'!AM27 -> 0 | AI10: ='March Income'!AN27 -> 0 | AJ10: ='March Income'!AO27 -> 0 | AK10: ='March Income'!AP27 -> 0 | AL10: ='March Income'!AQ27 -> 0 | AM10: ='March Income'!AR27 -> 0 | AN10: ='March Income'!AS27 -> 0 | AO10: ='March Income'!AT27 -> 0 | AP10: ='March Income'!AU27 -> 0 | AQ10: ='March Income'!AV27 -> 0 | AR10: ='March Income'!AW27 -> 0 | AS10: ='March Income'!AX27 -> 0 | AT10: ='March Income'!AY27 -> 0 | AU10: ='March Income'!AZ27 -> 0 | AV10: ='March Income'!BA27 -> 0 | AW10: ='March Income'!BB27 -> 0 | AX10: ='March Income'!BC27 -> 0 | AY10: ='March Income'!BD27 -> 0 | AZ10: ='March Income'!BE27 -> 0 | BA10: ='March Income'!BF27 -> 0 | BB10: ='March Income'!BG27 -> 0 | BC10: ='March Income'!BH27 -> 0 | BD10: ='March Income'!BI27 -> 0 | BE10: ='March Income'!BJ27 -> 0 | BF10: ='March Income'!BK27 -> 0 | BG10: ='March Income'!BL27 -> 0 | BH10: ='March Income'!BM27 -> 0 | BI10: ='March Income'!BN27 -> 0 | BJ10: ='March Income'!BO27 -> 0 | BK10: ='March Income'!BP27 -> 0 | BL10: ='March Income'!BQ27 -> 0 | BM10: ='March Income'!BR27 -> 0 | BN10: ='March Income'!BS27 -> 0 | BO10: ='March Income'!BT27 -> 0 | BP10: ='March Income'!BU27 -> 0 | BQ10: ='March Income'!BV27 -> 0 | BR10: ='March Income'!BW27 -> 0 | BS10: ='March Income'!BX27 -> 0 | BT10: ='March Income'!BY27 -> 0 | BU10: ='March Income'!BZ27 -> 0 | BV10: ='March Income'!CA27 -> 0 | BW10: ='March Income'!CB27 -> 0 | BX10: ='March Income'!CC27 -> 0 | BY10: ='March Income'!CD27 -> 0 | BZ10: ='March Income'!CE27 -> 0 | CA10: ='March Income'!CF27 -> 0 | CB10: ='March Income'!CG27 -> 0 | CC10: ='March Income'!CH27 -> 0 | CD10: ='March Income'!CI27 -> 0 | CE10: ='March Income'!CJ27 -> 0 | CF10: ='March Income'!CK27 -> 0
